Workbook

Sheet Report
A1: Use the dropdown box below to select a district:
A3: LEAP Office | BG3: 2024-03-27T10:02:12.800
A4: K-12 General Fund Expenditures per FTE Enrollment: by Activity Grouping
AN5: =TRIM(AU5) ->  | AP5: =TRIM(AW5) -> 
BF6: District Budgeted
B7: =+" "&"SY"&Statewide!B5 -> SY1995-96 | D7: =+" "&"SY"&Statewide!C5 -> SY1996-97 | F7: =+" "&"SY"&Statewide!D5 -> SY1997-98 | H7: =+" "&"SY"&Statewide!E5 -> SY1998-99 | J7: =+" "&"SY"&Statewide!F5 -> SY1999-00 | L7: =+" "&"SY"&Statewide!G5 -> SY2000-01 | N7: =+"SY"&Statewide!H5 -> SY2001-02 | P7: =+"SY"&Statewide!I5 -> SY2002-03 | R7: =+"SY"&Statewide!J5 -> SY2003-04 | T7: =+"SY"&Statewide!K5 -> SY2004-05 | V7: =+"SY"&Statewide!L5 -> SY2005-06 | X7: =+"SY"&Statewide!M5 -> SY2006-07 | Z7: =+"SY"&Statewide!N5 -> SY2007-08 | AB7: =+"SY"&Statewide!O5 -> SY2008-09 | AD7: =+"SY"&Statewide!P5 -> SY2009-10 | AF7: =+"SY"&Statewide!Q5 -> SY2010-11 | AH7: =+"SY"&Statewide!R5 -> SY2011-12 | AJ7: =+"SY"&Statewide!S5 -> SY2012-13 | AL7: =+"SY"&Statewide!T5 -> SY2013-14 | AN7: =+"SY"&Statewide!U5 -> SY2014-15 | AP7: =+"SY"&Statewide!V5 -> SY2015-16 | AR7: =+"SY"&Statewide!W5 -> SY2016-17 | AT7: =+"SY"&Statewide!X5 -> SY2017-18 | AV7: =+"SY"&Statewide!Y5 -> SY2018-19 | AX7: =+"SY"&Statewide!Z5 -> SY2019-20 | AZ7: =+"SY"&Statewide!AA5 -> SY2020-21 | BB7: =+"SY"&Statewide!AB5 -> SY2021-22 | BD7: =+"SY"&Statewide!AC5 -> SY2022-23 | BF7: =+"SY"&Statewide!AD5 -> SY2023-24
B8: $ per FTE | C8: % of | D8: $ per FTE | E8: % of | F8: $ per FTE | G8: % of | H8: $ per FTE | I8: % of | J8: $ per FTE | K8: % of | L8: $ per FTE | M8: % of | N8: $ per FTE | O8: % of | P8: $ per FTE | Q8: % of | R8: $ per FTE | S8: % of | T8: $ per FTE | U8: % of | V8: $ per FTE | W8: % of | X8: $ per FTE | Y8: % of | Z8: $ per FTE | AA8: % of | AB8: $ per FTE | AC8: % of | AD8: $ per FTE | AE8: % of | AF8: $ per FTE | AG8: % of | AH8: $ per FTE | AI8: % of | AJ8: $ per FTE | AK8: % of | AL8: $ per FTE | AM8: % of | AN8: $ per FTE | AO8: % of | AP8: $ per FTE | AQ8: % of | AR8: $ per FTE | AS8: % of | AT8: $ per FTE | AU8: % of | AV8: $ per FTE | AW8: % of | AX8: $ per FTE | AY8: % of | AZ8: $ per FTE | BA8: % of | BB8: $ per FTE | BC8: % of | BD8: $ per FTE | BE8: % of | BF8: $ per FTE | BG8: % of
A9: Activities | B9: Enrollment | C9: Total Exp | D9: Enrollment | E9: Total Exp | F9: Enrollment | G9: Total Exp | H9: Enrollment | I9: Total Exp | J9: Enrollment | K9: Total Exp | L9: Enrollment | M9: Total Exp | N9: Enrollment | O9: Total Exp | P9: Enrollment | Q9: Total Exp | R9: Enrollment | S9: Total Exp | T9: Enrollment | U9: Total Exp | V9: Enrollment | W9: Total Exp | X9: Enrollment | Y9: Total Exp | Z9: Enrollment | AA9: Total Exp | AB9: Enrollment | AC9: Total Exp | AD9: Enrollment | AE9: Total Exp | AF9: Enrollment | AG9: Total Exp | AH9: Enrollment | AI9: Total Exp | AJ9: Enrollment | AK9: Total Exp | AL9: Enrollment | AM9: Total Exp | AN9: Enrollment | AO9: Total Exp | AP9: Enrollment | AQ9: Total Exp | AR9: Enrollment | AS9: Total Exp | AT9: Enrollment | AU9: Total Exp | AV9: Enrollment | AW9: Total Exp | AX9: Enrollment | AY9: Total Exp | AZ9: Enrollment | BA9: Total Exp | BB9: Enrollment | BC9: Total Exp | BD9: Enrollment | BE9: Total Exp | BF9: Enrollment | BG9: Total Exp
A11: =+" "&(SelectedDistrict) -> Aberdeen
A12: =+Statewide!A7 -> Teaching | B12: =IFERROR(VLOOKUP(SelectedDistrict&$A12,DistrictExpenditures!$A:D,COLUMN(DistrictExpenditures!D:D),0)/$B$20,0) -> 4083.862208 | C12: =IF(ISERR(+B12/B$19),"",+B12/B$19) -> 0.6751753625 | D12: =IFERROR(VLOOKUP(SelectedDistrict&$A12,DistrictExpenditures!$A:E,COLUMN(DistrictExpenditures!E:E),0)/D$20,0) -> 4272.840517 | E12: 0.6725340565 | F12: =IFERROR(VLOOKUP(SelectedDistrict&$A12,DistrictExpenditures!$A:F,COLUMN(DistrictExpenditures!F:F),0)/F$20,0) -> 4195.545838 | G12: 0.6727423799 | H12: =IFERROR(VLOOKUP(SelectedDistrict&$A12,DistrictExpenditures!$A:G,COLUMN(DistrictExpenditures!G:G),0)/H$20,0) -> 4472.995392 | I12: 0.6706098553 | J12: =IFERROR(VLOOKUP(SelectedDistrict&$A12,DistrictExpenditures!$A:H,COLUMN(DistrictExpenditures!H:H),0)/J$20,0) -> 4609.404922 | K12: 0.6621202271 | L12: =IFERROR(VLOOKUP(SelectedDistrict&$A12,DistrictExpenditures!$A:I,COLUMN(DistrictExpenditures!I:I),0)/L$20,0) -> 4750.207048 | M12: 0.6564762668 | N12: =IFERROR(VLOOKUP(SelectedDistrict&$A12,DistrictExpenditures!$A:J,COLUMN(DistrictExpenditures!J:J),0)/N$20,0) -> 4874.192422 | O12: 0.6314149006 | P12: =IFERROR(VLOOKUP(SelectedDistrict&$A12,DistrictExpenditures!$A:K,COLUMN(DistrictExpenditures!K:K),0)/P$20,0) -> 4960.879661 | Q12: 0.6223119728 | R12: =IFERROR(VLOOKUP(SelectedDistrict&$A12,DistrictExpenditures!$A:L,COLUMN(DistrictExpenditures!L:L),0)/R$20,0) -> 5090.001478 | S12: 0.6234831477 | T12: =IFERROR(VLOOKUP(SelectedDistrict&$A12,DistrictExpenditures!$A:M,COLUMN(DistrictExpenditures!M:M),0)/T$20,0) -> 5241.95149 | U12: 0.6105632368 | V12: =IFERROR(VLOOKUP(SelectedDistrict&$A12,DistrictExpenditures!$A:N,COLUMN(DistrictExpenditures!N:N),0)/V$20,0) -> 5432.180052 | W12: 0.632903585 | X12: =IFERROR(VLOOKUP(SelectedDistrict&$A12,DistrictExpenditures!$A:O,COLUMN(DistrictExpenditures!O:O),0)/X$20,0) -> 5775.092278 | Y12: 0.6297118027 | Z12: =IFERROR(VLOOKUP(SelectedDistrict&$A12,DistrictExpenditures!$A:P,COLUMN(DistrictExpenditures!P:P),0)/Z$20,0) -> 6606.691231 | AA12: 0.6306842864 | AB12: =IFERROR(VLOOKUP(SelectedDistrict&$A12,DistrictExpenditures!$A:Q,COLUMN(DistrictExpenditures!Q:Q),0)/AB$20,0) -> 7121.230129 | AC12: 0.6393580719 | AD12: =IFERROR(VLOOKUP(SelectedDistrict&$A12,DistrictExpenditures!$A:R,COLUMN(DistrictExpenditures!R:R),0)/AD$20,0) -> 7023.368242 | AE12: =IF(ISERR(+AD12/AD$19),"",+AD12/AD$19) -> 0.6410992868 | AF12: =IFERROR(VLOOKUP(SelectedDistrict&$A12,DistrictExpenditures!$A:S,COLUMN(DistrictExpenditures!S:S),0)/AF$20,0) -> 7417.879019 | AG12: =IF(ISERR(+AF12/AF$19),"",+AF12/AF$19) -> 0.6393375859 | AH12: =IFERROR(VLOOKUP(SelectedDistrict&$A12,DistrictExpenditures!$A:T,COLUMN(DistrictExpenditures!T:T),0)/AH$20,0) -> 7106.403807 | AI12: =IF(ISERR(+AH12/AH$19),"",+AH12/AH$19) -> 0.6218452028 | AJ12: =IFERROR(VLOOKUP(SelectedDistrict&$A12,DistrictExpenditures!$A:U,COLUMN(DistrictExpenditures!U:U),0)/AJ$20,0) -> 6982.026338 | AK12: =IF(ISERR(+AJ12/AJ$19),"",+AJ12/AJ$19) -> 0.6267342966 | AL12: =IFERROR(VLOOKUP(SelectedDistrict&$A12,DistrictExpenditures!$A:V,COLUMN(DistrictExpenditures!V:V),0)/AL$20,0) -> 7159.748233 | AM12: =IF(ISERR(+AL12/AL$19),"",+AL12/AL$19) -> 0.6178222357 | AN12: =IFERROR(VLOOKUP(SelectedDistrict&$A12,DistrictExpenditures!$A:W,COLUMN(DistrictExpenditures!W:W),0)/AN$20,0) -> 7570.300435 | AO12: =IF(ISERR(+AN12/AN$19),"",+AN12/AN$19) -> 0.6314905187 | AP12: =IFERROR(VLOOKUP(SelectedDistrict&$A12,DistrictExpenditures!$A:X,COLUMN(DistrictExpenditures!X:X),0)/AP$20,0) -> 7900.475842 | AQ12: =IF(ISERR(+AP12/AP$19),"",+AP12/AP$19) -> 0.6238538606 | AR12: =IFERROR(VLOOKUP(SelectedDistrict&$A12,DistrictExpenditures!$A:Y,COLUMN(DistrictExpenditures!Y:Y),0)/AR$20,0) -> 8311.475886 | AS12: =IF(ISERR(+AR12/AR$19),"",+AR12/AR$19) -> 0.6281725281 | AT12: =IFERROR(VLOOKUP(SelectedDistrict&$A12,DistrictExpenditures!$A:Z,COLUMN(DistrictExpenditures!Z:Z),0)/AT$20,0) -> 8550.575935 | AU12: =IF(ISERR(+AT12/AT$19),"",+AT12/AT$19) -> 0.6131910911 | AV12: =IFERROR(VLOOKUP(SelectedDistrict&$A12,DistrictExpenditures!$A:AA,COLUMN(DistrictExpenditures!AA:AA),0)/AV$20,0) -> 9630.825366 | AW12: =IF(ISERR(+AV12/AV$19),"",+AV12/AV$19) -> 0.6259177937 | AX12: =IFERROR(VLOOKUP(SelectedDistrict&$A12,DistrictExpenditures!$A:AB,COLUMN(DistrictExpenditures!AB:AB),0)/AX$20,0) -> 9814.927311 | AY12: =IF(ISERR(+AX12/AX$19),"",+AX12/AX$19) -> 0.6285795208 | AZ12: =IFERROR(VLOOKUP(SelectedDistrict&$A12,DistrictExpenditures!$A:AC,COLUMN(DistrictExpenditures!AC:AC),0)/AZ$20,0) -> 9215.775954 | BA12: =IF(ISERR(+AZ12/AZ$19),"",+AZ12/AZ$19) -> 0.5883363165 | BB12: =IFERROR(VLOOKUP(SelectedDistrict&$A12,DistrictExpenditures!$A:AD,COLUMN(DistrictExpenditures!AD:AD),0)/BB$20,0) -> 11159.58585 | BC12: =IF(ISERR(+BB12/BB$19),"",+BB12/BB$19) -> 0.5956187868 | BD12: =IFERROR(VLOOKUP(SelectedDistrict&$A12,DistrictExpenditures!$A:BV,COLUMN(DistrictExpenditures!AE:AE),0)/BD$20,0) -> 11831.17835 | BE12: =IF(ISERR(+BD12/BD$19),"",+BD12/BD$19) -> 0.5979194876 | BF12: =IFERROR(VLOOKUP(SelectedDistrict&$A12,DistrictExpenditures!$A:AF,COLUMN(DistrictExpenditures!AF:AF),0)/BF$20,0) -> 11702.56887 | BG12: =IF(ISERR(+BF12/BF$19),"",+BF12/BF$19) -> 0.6051555236
A13: =+Statewide!A8 -> Teaching Support | B13: =IFERROR(VLOOKUP(SelectedDistrict&$A13,DistrictExpenditures!$A:D,COLUMN(DistrictExpenditures!D:D),0)/$B$20,0) -> 280.6132919 | C13: 0.04639313753 | D13: =IFERROR(VLOOKUP(SelectedDistrict&$A13,DistrictExpenditures!$A:E,COLUMN(DistrictExpenditures!E:E),0)/D$20,0) -> 317.7731195 | E13: 0.05001666789 | F13: =IFERROR(VLOOKUP(SelectedDistrict&$A13,DistrictExpenditures!$A:F,COLUMN(DistrictExpenditures!F:F),0)/F$20,0) -> 373.8408965 | G13: 0.0599441942 | H13: =IFERROR(VLOOKUP(SelectedDistrict&$A13,DistrictExpenditures!$A:G,COLUMN(DistrictExpenditures!G:G),0)/H$20,0) -> 415.4961723 | I13: 0.06229289404 | J13: =IFERROR(VLOOKUP(SelectedDistrict&$A13,DistrictExpenditures!$A:H,COLUMN(DistrictExpenditures!H:H),0)/J$20,0) -> 433.7659276 | K13: 0.06230851907 | L13: =IFERROR(VLOOKUP(SelectedDistrict&$A13,DistrictExpenditures!$A:I,COLUMN(DistrictExpenditures!I:I),0)/L$20,0) -> 453.7813429 | M13: 0.06271235736 | N13: =IFERROR(VLOOKUP(SelectedDistrict&$A13,DistrictExpenditures!$A:J,COLUMN(DistrictExpenditures!J:J),0)/N$20,0) -> 516.2080361 | O13: 0.0668708614 | P13: =IFERROR(VLOOKUP(SelectedDistrict&$A13,DistrictExpenditures!$A:K,COLUMN(DistrictExpenditures!K:K),0)/P$20,0) -> 493.0399413 | Q13: 0.06184884123 | R13: =IFERROR(VLOOKUP(SelectedDistrict&$A13,DistrictExpenditures!$A:L,COLUMN(DistrictExpenditures!L:L),0)/R$20,0) -> 573.7852028 | S13: 0.07028394901 | T13: =IFERROR(VLOOKUP(SelectedDistrict&$A13,DistrictExpenditures!$A:M,COLUMN(DistrictExpenditures!M:M),0)/T$20,0) -> 606.2296587 | U13: 0.07061140175 | V13: =IFERROR(VLOOKUP(SelectedDistrict&$A13,DistrictExpenditures!$A:N,COLUMN(DistrictExpenditures!N:N),0)/V$20,0) -> 623.7624058 | W13: 0.07267459087 | X13: =IFERROR(VLOOKUP(SelectedDistrict&$A13,DistrictExpenditures!$A:O,COLUMN(DistrictExpenditures!O:O),0)/X$20,0) -> 648.6947244 | Y13: 0.07073319432 | Z13: =IFERROR(VLOOKUP(SelectedDistrict&$A13,DistrictExpenditures!$A:P,COLUMN(DistrictExpenditures!P:P),0)/Z$20,0) -> 741.8741251 | AA13: 0.07082037541 | AB13: =IFERROR(VLOOKUP(SelectedDistrict&$A13,DistrictExpenditures!$A:Q,COLUMN(DistrictExpenditures!Q:Q),0)/AB$20,0) -> 801.5034712 | AC13: 0.07196056085 | AD13: =IFERROR(VLOOKUP(SelectedDistrict&$A13,DistrictExpenditures!$A:R,COLUMN(DistrictExpenditures!R:R),0)/AD$20,0) -> 759.2709563 | AE13: 0.06930692679 | AF13: =IFERROR(VLOOKUP(SelectedDistrict&$A13,DistrictExpenditures!$A:S,COLUMN(DistrictExpenditures!S:S),0)/AF$20,0) -> 802.6376077 | AG13: 0.06917831757 | AH13: =IFERROR(VLOOKUP(SelectedDistrict&$A13,DistrictExpenditures!$A:T,COLUMN(DistrictExpenditures!T:T),0)/AH$20,0) -> 957.0346816 | AI13: 0.08374523062 | AJ13: =IFERROR(VLOOKUP(SelectedDistrict&$A13,DistrictExpenditures!$A:U,COLUMN(DistrictExpenditures!U:U),0)/AJ$20,0) -> 932.7729488 | AK13: 0.08372938881 | AL13: =IFERROR(VLOOKUP(SelectedDistrict&$A13,DistrictExpenditures!$A:V,COLUMN(DistrictExpenditures!V:V),0)/AL$20,0) -> 1123.721941 | AM13: 0.09696715293 | AN13: =IFERROR(VLOOKUP(SelectedDistrict&$A13,DistrictExpenditures!$A:W,COLUMN(DistrictExpenditures!W:W),0)/AN$20,0) -> 1121.634099 | AO13: 0.09356316899 | AP13: =IFERROR(VLOOKUP(SelectedDistrict&$A13,DistrictExpenditures!$A:X,COLUMN(DistrictExpenditures!X:X),0)/AP$20,0) -> 1265.284752 | AQ13: 0.09991205507 | AR13: =IFERROR(VLOOKUP(SelectedDistrict&$A13,DistrictExpenditures!$A:Y,COLUMN(DistrictExpenditures!Y:Y),0)/AR$20,0) -> 1462.965314 | AS13: 0.110569366 | AT13: =IFERROR(VLOOKUP(SelectedDistrict&$A13,DistrictExpenditures!$A:Z,COLUMN(DistrictExpenditures!Z:Z),0)/AT$20,0) -> 1571.116598 | AU13: 0.1126701533 | AV13: =IFERROR(VLOOKUP(SelectedDistrict&$A13,DistrictExpenditures!$A:AA,COLUMN(DistrictExpenditures!AA:AA),0)/AV$20,0) -> 1478.128739 | AW13: 0.0960651911 | AX13: =IFERROR(VLOOKUP(SelectedDistrict&$A13,DistrictExpenditures!$A:AB,COLUMN(DistrictExpenditures!AB:AB),0)/AX$20,0) -> 1626.572144 | AY13: 0.104170913 | AZ13: =IFERROR(VLOOKUP(SelectedDistrict&$A13,DistrictExpenditures!$A:AC,COLUMN(DistrictExpenditures!AC:AC),0)/AZ$20,0) -> 2169.625532 | BA13: 0.1385091717 | BB13: =IFERROR(VLOOKUP(SelectedDistrict&$A13,DistrictExpenditures!$A:AD,COLUMN(DistrictExpenditures!AD:AD),0)/BB$20,0) -> 2471.729707 | BC13: 0.1319232334 | BD13: =IFERROR(VLOOKUP(SelectedDistrict&$A13,DistrictExpenditures!$A:BV,COLUMN(DistrictExpenditures!AE:AE),0)/BD$20,0) -> 2476.13292 | BE13: 0.125137842 | BF13: =IFERROR(VLOOKUP(SelectedDistrict&$A13,DistrictExpenditures!$A:AF,COLUMN(DistrictExpenditures!AF:AF),0)/BF$20,0) -> 2361.37699 | BG13: 0.1221099696
A14: =+Statewide!A9 -> Food Services | B14: =IFERROR(VLOOKUP(SelectedDistrict&$A14,DistrictExpenditures!$A:D,COLUMN(DistrictExpenditures!D:D),0)/$B$20,0) -> 213.0342744 | C14: 0.03522045704 | D14: =IFERROR(VLOOKUP(SelectedDistrict&$A14,DistrictExpenditures!$A:E,COLUMN(DistrictExpenditures!E:E),0)/D$20,0) -> 233.5324921 | E14: 0.03675741082 | F14: =IFERROR(VLOOKUP(SelectedDistrict&$A14,DistrictExpenditures!$A:F,COLUMN(DistrictExpenditures!F:F),0)/F$20,0) -> 222.7913516 | G14: 0.03572388192 | H14: =IFERROR(VLOOKUP(SelectedDistrict&$A14,DistrictExpenditures!$A:G,COLUMN(DistrictExpenditures!G:G),0)/H$20,0) -> 229.136749 | I14: 0.03435312327 | J14: =IFERROR(VLOOKUP(SelectedDistrict&$A14,DistrictExpenditures!$A:H,COLUMN(DistrictExpenditures!H:H),0)/J$20,0) -> 261.4456834 | K14: 0.03755549321 | L14: =IFERROR(VLOOKUP(SelectedDistrict&$A14,DistrictExpenditures!$A:I,COLUMN(DistrictExpenditures!I:I),0)/L$20,0) -> 289.0250765 | M14: 0.03994312275 | N14: =IFERROR(VLOOKUP(SelectedDistrict&$A14,DistrictExpenditures!$A:J,COLUMN(DistrictExpenditures!J:J),0)/N$20,0) -> 305.4408208 | O14: 0.03956755681 | P14: =IFERROR(VLOOKUP(SelectedDistrict&$A14,DistrictExpenditures!$A:K,COLUMN(DistrictExpenditures!K:K),0)/P$20,0) -> 344.7278811 | Q14: 0.04324400154 | R14: =IFERROR(VLOOKUP(SelectedDistrict&$A14,DistrictExpenditures!$A:L,COLUMN(DistrictExpenditures!L:L),0)/R$20,0) -> 355.6659193 | S14: 0.04356613801 | T14: =IFERROR(VLOOKUP(SelectedDistrict&$A14,DistrictExpenditures!$A:M,COLUMN(DistrictExpenditures!M:M),0)/T$20,0) -> 414.4020664 | U14: 0.04826802908 | V14: =IFERROR(VLOOKUP(SelectedDistrict&$A14,DistrictExpenditures!$A:N,COLUMN(DistrictExpenditures!N:N),0)/V$20,0) -> 421.4895162 | W14: 0.0491077658 | X14: =IFERROR(VLOOKUP(SelectedDistrict&$A14,DistrictExpenditures!$A:O,COLUMN(DistrictExpenditures!O:O),0)/X$20,0) -> 449.0155019 | Y14: 0.04896031917 | Z14: =IFERROR(VLOOKUP(SelectedDistrict&$A14,DistrictExpenditures!$A:P,COLUMN(DistrictExpenditures!P:P),0)/Z$20,0) -> 538.4598664 | AA14: 0.05140215651 | AB14: =IFERROR(VLOOKUP(SelectedDistrict&$A14,DistrictExpenditures!$A:Q,COLUMN(DistrictExpenditures!Q:Q),0)/AB$20,0) -> 572.3566619 | AC14: 0.05138730882 | AD14: =IFERROR(VLOOKUP(SelectedDistrict&$A14,DistrictExpenditures!$A:R,COLUMN(DistrictExpenditures!R:R),0)/AD$20,0) -> 566.8432282 | AE14: 0.05174195298 | AF14: =IFERROR(VLOOKUP(SelectedDistrict&$A14,DistrictExpenditures!$A:S,COLUMN(DistrictExpenditures!S:S),0)/AF$20,0) -> 582.5188634 | AG14: 0.05020656213 | AH14: =IFERROR(VLOOKUP(SelectedDistrict&$A14,DistrictExpenditures!$A:T,COLUMN(DistrictExpenditures!T:T),0)/AH$20,0) -> 548.6225084 | AI14: 0.04800716146 | AJ14: =IFERROR(VLOOKUP(SelectedDistrict&$A14,DistrictExpenditures!$A:U,COLUMN(DistrictExpenditures!U:U),0)/AJ$20,0) -> 565.4757211 | AK14: 0.05075933707 | AL14: =IFERROR(VLOOKUP(SelectedDistrict&$A14,DistrictExpenditures!$A:V,COLUMN(DistrictExpenditures!V:V),0)/AL$20,0) -> 558.193696 | AM14: 0.04816712348 | AN14: =IFERROR(VLOOKUP(SelectedDistrict&$A14,DistrictExpenditures!$A:W,COLUMN(DistrictExpenditures!W:W),0)/AN$20,0) -> 574.545465 | AO14: 0.0479267655 | AP14: =IFERROR(VLOOKUP(SelectedDistrict&$A14,DistrictExpenditures!$A:X,COLUMN(DistrictExpenditures!X:X),0)/AP$20,0) -> 584.1075616 | AQ14: 0.04612352023 | AR14: =IFERROR(VLOOKUP(SelectedDistrict&$A14,DistrictExpenditures!$A:Y,COLUMN(DistrictExpenditures!Y:Y),0)/AR$20,0) -> 582.537664 | AS14: 0.04402757851 | AT14: =IFERROR(VLOOKUP(SelectedDistrict&$A14,DistrictExpenditures!$A:Z,COLUMN(DistrictExpenditures!Z:Z),0)/AT$20,0) -> 649.2187748 | AU14: 0.0465577023 | AV14: =IFERROR(VLOOKUP(SelectedDistrict&$A14,DistrictExpenditures!$A:AA,COLUMN(DistrictExpenditures!AA:AA),0)/AV$20,0) -> 679.7691394 | AW14: 0.04417893418 | AX14: =IFERROR(VLOOKUP(SelectedDistrict&$A14,DistrictExpenditures!$A:AB,COLUMN(DistrictExpenditures!AB:AB),0)/AX$20,0) -> 684.083635 | AY14: 0.04381091676 | AZ14: =IFERROR(VLOOKUP(SelectedDistrict&$A14,DistrictExpenditures!$A:AC,COLUMN(DistrictExpenditures!AC:AC),0)/AZ$20,0) -> 553.5955614 | BA14: 0.0353416115 | BB14: =IFERROR(VLOOKUP(SelectedDistrict&$A14,DistrictExpenditures!$A:AD,COLUMN(DistrictExpenditures!AD:AD),0)/BB$20,0) -> 823.3639622 | BC14: 0.04394527278 | BD14: =IFERROR(VLOOKUP(SelectedDistrict&$A14,DistrictExpenditures!$A:BV,COLUMN(DistrictExpenditures!AE:AE),0)/BD$20,0) -> 902.4114875 | BE14: 0.04560572061 | BF14: =IFERROR(VLOOKUP(SelectedDistrict&$A14,DistrictExpenditures!$A:AF,COLUMN(DistrictExpenditures!AF:AF),0)/BF$20,0) -> 847.6486365 | BG14: 0.04383304726
A15: =+Statewide!A10 -> Pupil Transpo | B15: =IFERROR(VLOOKUP(SelectedDistrict&$A15,DistrictExpenditures!$A:D,COLUMN(DistrictExpenditures!D:D),0)/$B$20,0) -> 132.5091318 | C15: 0.02190742403 | D15: =IFERROR(VLOOKUP(SelectedDistrict&$A15,DistrictExpenditures!$A:E,COLUMN(DistrictExpenditures!E:E),0)/D$20,0) -> 137.3845453 | E15: 0.02162397244 | F15: =IFERROR(VLOOKUP(SelectedDistrict&$A15,DistrictExpenditures!$A:F,COLUMN(DistrictExpenditures!F:F),0)/F$20,0) -> 134.7158287 | G15: 0.02160125302 | H15: =IFERROR(VLOOKUP(SelectedDistrict&$A15,DistrictExpenditures!$A:G,COLUMN(DistrictExpenditures!G:G),0)/H$20,0) -> 144.8428197 | I15: 0.0217154309 | J15: =IFERROR(VLOOKUP(SelectedDistrict&$A15,DistrictExpenditures!$A:H,COLUMN(DistrictExpenditures!H:H),0)/J$20,0) -> 148.8706677 | K15: 0.02138459996 | L15: =IFERROR(VLOOKUP(SelectedDistrict&$A15,DistrictExpenditures!$A:I,COLUMN(DistrictExpenditures!I:I),0)/L$20,0) -> 136.2748996 | M15: 0.01883312379 | N15: =IFERROR(VLOOKUP(SelectedDistrict&$A15,DistrictExpenditures!$A:J,COLUMN(DistrictExpenditures!J:J),0)/N$20,0) -> 146.6025842 | O15: 0.01899126011 | P15: =IFERROR(VLOOKUP(SelectedDistrict&$A15,DistrictExpenditures!$A:K,COLUMN(DistrictExpenditures!K:K),0)/P$20,0) -> 150.1961835 | Q15: 0.01884119141 | R15: =IFERROR(VLOOKUP(SelectedDistrict&$A15,DistrictExpenditures!$A:L,COLUMN(DistrictExpenditures!L:L),0)/R$20,0) -> 170.5569016 | S15: 0.02089181198 | T15: =IFERROR(VLOOKUP(SelectedDistrict&$A15,DistrictExpenditures!$A:M,COLUMN(DistrictExpenditures!M:M),0)/T$20,0) -> 167.2425663 | U15: 0.01947979923 | V15: =IFERROR(VLOOKUP(SelectedDistrict&$A15,DistrictExpenditures!$A:N,COLUMN(DistrictExpenditures!N:N),0)/V$20,0) -> 186.7225258 | W15: 0.02175505134 | X15: =IFERROR(VLOOKUP(SelectedDistrict&$A15,DistrictExpenditures!$A:O,COLUMN(DistrictExpenditures!O:O),0)/X$20,0) -> 185.6763316 | Y15: 0.02024601025 | Z15: =IFERROR(VLOOKUP(SelectedDistrict&$A15,DistrictExpenditures!$A:P,COLUMN(DistrictExpenditures!P:P),0)/Z$20,0) -> 169.3618487 | AA15: 0.01616752667 | AB15: =IFERROR(VLOOKUP(SelectedDistrict&$A15,DistrictExpenditures!$A:Q,COLUMN(DistrictExpenditures!Q:Q),0)/AB$20,0) -> 180.8889741 | AC15: 0.0162405685 | AD15: =IFERROR(VLOOKUP(SelectedDistrict&$A15,DistrictExpenditures!$A:R,COLUMN(DistrictExpenditures!R:R),0)/AD$20,0) -> 173.2329043 | AE15: 0.01581285326 | AF15: =IFERROR(VLOOKUP(SelectedDistrict&$A15,DistrictExpenditures!$A:S,COLUMN(DistrictExpenditures!S:S),0)/AF$20,0) -> 249.2906738 | AG15: 0.02148604705 | AH15: =IFERROR(VLOOKUP(SelectedDistrict&$A15,DistrictExpenditures!$A:T,COLUMN(DistrictExpenditures!T:T),0)/AH$20,0) -> 238.2308319 | AI15: 0.02084636675 | AJ15: =IFERROR(VLOOKUP(SelectedDistrict&$A15,DistrictExpenditures!$A:U,COLUMN(DistrictExpenditures!U:U),0)/AJ$20,0) -> 245.6678021 | AK15: 0.02205211348 | AL15: =IFERROR(VLOOKUP(SelectedDistrict&$A15,DistrictExpenditures!$A:V,COLUMN(DistrictExpenditures!V:V),0)/AL$20,0) -> 259.5149151 | AM15: 0.02239381607 | AN15: =IFERROR(VLOOKUP(SelectedDistrict&$A15,DistrictExpenditures!$A:W,COLUMN(DistrictExpenditures!W:W),0)/AN$20,0) -> 224.0764953 | AO15: 0.01869175252 | AP15: =IFERROR(VLOOKUP(SelectedDistrict&$A15,DistrictExpenditures!$A:X,COLUMN(DistrictExpenditures!X:X),0)/AP$20,0) -> 247.4101356 | AQ15: 0.01953651544 | AR15: =IFERROR(VLOOKUP(SelectedDistrict&$A15,DistrictExpenditures!$A:Y,COLUMN(DistrictExpenditures!Y:Y),0)/AR$20,0) -> 283.2103914 | AS15: 0.02140474087 | AT15: =IFERROR(VLOOKUP(SelectedDistrict&$A15,DistrictExpenditures!$A:Z,COLUMN(DistrictExpenditures!Z:Z),0)/AT$20,0) -> 325.9266632 | AU15: 0.02337331751 | AV15: =IFERROR(VLOOKUP(SelectedDistrict&$A15,DistrictExpenditures!$A:AA,COLUMN(DistrictExpenditures!AA:AA),0)/AV$20,0) -> 333.5699143 | AW15: 0.02167907078 | AX15: =IFERROR(VLOOKUP(SelectedDistrict&$A15,DistrictExpenditures!$A:AB,COLUMN(DistrictExpenditures!AB:AB),0)/AX$20,0) -> 398.9636016 | AY15: 0.02555091256 | AZ15: =IFERROR(VLOOKUP(SelectedDistrict&$A15,DistrictExpenditures!$A:AC,COLUMN(DistrictExpenditures!AC:AC),0)/AZ$20,0) -> 257.5130473 | BA15: 0.0164396659 | BB15: =IFERROR(VLOOKUP(SelectedDistrict&$A15,DistrictExpenditures!$A:AD,COLUMN(DistrictExpenditures!AD:AD),0)/BB$20,0) -> 394.9345117 | BC15: 0.02107877639 | BD15: =IFERROR(VLOOKUP(SelectedDistrict&$A15,DistrictExpenditures!$A:BV,COLUMN(DistrictExpenditures!AE:AE),0)/BD$20,0) -> 522.7419937 | BE15: 0.02641813147 | BF15: =IFERROR(VLOOKUP(SelectedDistrict&$A15,DistrictExpenditures!$A:AF,COLUMN(DistrictExpenditures!AF:AF),0)/BF$20,0) -> 414.073764 | BG15: 0.0214123094
A16: =+Statewide!A11 -> Util/Plant/Ins/IS/Other | B16: =IFERROR(VLOOKUP(SelectedDistrict&$A16,DistrictExpenditures!$A:D,COLUMN(DistrictExpenditures!D:D),0)/$B$20,0) -> 685.6401924 | C16: 0.1133552853 | D16: =IFERROR(VLOOKUP(SelectedDistrict&$A16,DistrictExpenditures!$A:E,COLUMN(DistrictExpenditures!E:E),0)/D$20,0) -> 699.0618765 | E16: 0.110030533 | F16: =IFERROR(VLOOKUP(SelectedDistrict&$A16,DistrictExpenditures!$A:F,COLUMN(DistrictExpenditures!F:F),0)/F$20,0) -> 616.7414878 | G16: 0.0988925285 | H16: =IFERROR(VLOOKUP(SelectedDistrict&$A16,DistrictExpenditures!$A:G,COLUMN(DistrictExpenditures!G:G),0)/H$20,0) -> 687.9255617 | I16: 0.1031366279 | J16: =IFERROR(VLOOKUP(SelectedDistrict&$A16,DistrictExpenditures!$A:H,COLUMN(DistrictExpenditures!H:H),0)/J$20,0) -> 751.5646919 | K16: 0.1079588782 | L16: =IFERROR(VLOOKUP(SelectedDistrict&$A16,DistrictExpenditures!$A:I,COLUMN(DistrictExpenditures!I:I),0)/L$20,0) -> 809.4482453 | M16: 0.1118653475 | N16: =IFERROR(VLOOKUP(SelectedDistrict&$A16,DistrictExpenditures!$A:J,COLUMN(DistrictExpenditures!J:J),0)/N$20,0) -> 1030.645794 | O16: 0.1335123966 | P16: =IFERROR(VLOOKUP(SelectedDistrict&$A16,DistrictExpenditures!$A:K,COLUMN(DistrictExpenditures!K:K),0)/P$20,0) -> 1076.499355 | Q16: 0.1350402515 | R16: =IFERROR(VLOOKUP(SelectedDistrict&$A16,DistrictExpenditures!$A:L,COLUMN(DistrictExpenditures!L:L),0)/R$20,0) -> 1042.945201 | S16: 0.1277521744 | T16: =IFERROR(VLOOKUP(SelectedDistrict&$A16,DistrictExpenditures!$A:M,COLUMN(DistrictExpenditures!M:M),0)/T$20,0) -> 1287.707566 | U16: 0.1499874429 | V16: =IFERROR(VLOOKUP(SelectedDistrict&$A16,DistrictExpenditures!$A:N,COLUMN(DistrictExpenditures!N:N),0)/V$20,0) -> 1008.374885 | W16: 0.1174858111 | X16: =IFERROR(VLOOKUP(SelectedDistrict&$A16,DistrictExpenditures!$A:O,COLUMN(DistrictExpenditures!O:O),0)/X$20,0) -> 1113.607012 | Y16: 0.1214268873 | Z16: =IFERROR(VLOOKUP(SelectedDistrict&$A16,DistrictExpenditures!$A:P,COLUMN(DistrictExpenditures!P:P),0)/Z$20,0) -> 1300.458573 | AA16: 0.1241436535 | AB16: =IFERROR(VLOOKUP(SelectedDistrict&$A16,DistrictExpenditures!$A:Q,COLUMN(DistrictExpenditures!Q:Q),0)/AB$20,0) -> 1280.703162 | AC16: 0.1149840532 | AD16: =IFERROR(VLOOKUP(SelectedDistrict&$A16,DistrictExpenditures!$A:R,COLUMN(DistrictExpenditures!R:R),0)/AD$20,0) -> 1287.229788 | AE16: 0.1174994775 | AF16: =IFERROR(VLOOKUP(SelectedDistrict&$A16,DistrictExpenditures!$A:S,COLUMN(DistrictExpenditures!S:S),0)/AF$20,0) -> 1327.625091 | AG16: 0.114426323 | AH16: =IFERROR(VLOOKUP(SelectedDistrict&$A16,DistrictExpenditures!$A:T,COLUMN(DistrictExpenditures!T:T),0)/AH$20,0) -> 1354.448607 | AI16: 0.1185208991 | AJ16: =IFERROR(VLOOKUP(SelectedDistrict&$A16,DistrictExpenditures!$A:U,COLUMN(DistrictExpenditures!U:U),0)/AJ$20,0) -> 1241.554206 | AK16: 0.1114468156 | AL16: =IFERROR(VLOOKUP(SelectedDistrict&$A16,DistrictExpenditures!$A:V,COLUMN(DistrictExpenditures!V:V),0)/AL$20,0) -> 1290.364815 | AM16: 0.1113469425 | AN16: =IFERROR(VLOOKUP(SelectedDistrict&$A16,DistrictExpenditures!$A:W,COLUMN(DistrictExpenditures!W:W),0)/AN$20,0) -> 1315.809964 | AO16: 0.1097607056 | AP16: =IFERROR(VLOOKUP(SelectedDistrict&$A16,DistrictExpenditures!$A:X,COLUMN(DistrictExpenditures!X:X),0)/AP$20,0) -> 1446.02762 | AQ16: 0.1141842506 | AR16: =IFERROR(VLOOKUP(SelectedDistrict&$A16,DistrictExpenditures!$A:Y,COLUMN(DistrictExpenditures!Y:Y),0)/AR$20,0) -> 1318.729816 | AS16: 0.09966820017 | AT16: =IFERROR(VLOOKUP(SelectedDistrict&$A16,DistrictExpenditures!$A:Z,COLUMN(DistrictExpenditures!Z:Z),0)/AT$20,0) -> 1432.374806 | AU16: 0.1027205041 | AV16: =IFERROR(VLOOKUP(SelectedDistrict&$A16,DistrictExpenditures!$A:AA,COLUMN(DistrictExpenditures!AA:AA),0)/AV$20,0) -> 1820.069653 | AW16: 0.1182883022 | AX16: =IFERROR(VLOOKUP(SelectedDistrict&$A16,DistrictExpenditures!$A:AB,COLUMN(DistrictExpenditures!AB:AB),0)/AX$20,0) -> 1656.919166 | AY16: 0.1061144339 | AZ16: =IFERROR(VLOOKUP(SelectedDistrict&$A16,DistrictExpenditures!$A:AC,COLUMN(DistrictExpenditures!AC:AC),0)/AZ$20,0) -> 1958.342573 | BA16: 0.1250208406 | BB16: =IFERROR(VLOOKUP(SelectedDistrict&$A16,DistrictExpenditures!$A:AD,COLUMN(DistrictExpenditures!AD:AD),0)/BB$20,0) -> 2061.869332 | BC16: 0.1100478213 | BD16: =IFERROR(VLOOKUP(SelectedDistrict&$A16,DistrictExpenditures!$A:BV,COLUMN(DistrictExpenditures!AE:AE),0)/BD$20,0) -> 2031.660408 | BE16: 0.1026752632 | BF16: =IFERROR(VLOOKUP(SelectedDistrict&$A16,DistrictExpenditures!$A:AF,COLUMN(DistrictExpenditures!AF:AF),0)/BF$20,0) -> 2054.459793 | BG16: 0.1062388699
A17: =+Statewide!A12 -> Unit Admin | B17: =IFERROR(VLOOKUP(SelectedDistrict&$A17,DistrictExpenditures!$A:D,COLUMN(DistrictExpenditures!D:D),0)/$B$20,0) -> 343.7822875 | C17: 0.05683671946 | D17: =IFERROR(VLOOKUP(SelectedDistrict&$A17,DistrictExpenditures!$A:E,COLUMN(DistrictExpenditures!E:E),0)/D$20,0) -> 337.8195913 | E17: 0.05317193076 | F17: =IFERROR(VLOOKUP(SelectedDistrict&$A17,DistrictExpenditures!$A:F,COLUMN(DistrictExpenditures!F:F),0)/F$20,0) -> 338.3604689 | G17: 0.05425502091 | H17: =IFERROR(VLOOKUP(SelectedDistrict&$A17,DistrictExpenditures!$A:G,COLUMN(DistrictExpenditures!G:G),0)/H$20,0) -> 374.4012707 | I17: 0.05613177746 | J17: =IFERROR(VLOOKUP(SelectedDistrict&$A17,DistrictExpenditures!$A:H,COLUMN(DistrictExpenditures!H:H),0)/J$20,0) -> 389.1215515 | K17: 0.0558955558 | L17: =IFERROR(VLOOKUP(SelectedDistrict&$A17,DistrictExpenditures!$A:I,COLUMN(DistrictExpenditures!I:I),0)/L$20,0) -> 422.8375477 | M17: 0.05843594016 | N17: =IFERROR(VLOOKUP(SelectedDistrict&$A17,DistrictExpenditures!$A:J,COLUMN(DistrictExpenditures!J:J),0)/N$20,0) -> 434.7303698 | O17: 0.05631604366 | P17: =IFERROR(VLOOKUP(SelectedDistrict&$A17,DistrictExpenditures!$A:K,COLUMN(DistrictExpenditures!K:K),0)/P$20,0) -> 480.0688518 | Q17: 0.06022169749 | R17: =IFERROR(VLOOKUP(SelectedDistrict&$A17,DistrictExpenditures!$A:L,COLUMN(DistrictExpenditures!L:L),0)/R$20,0) -> 528.1891526 | S17: 0.06469880939 | T17: =IFERROR(VLOOKUP(SelectedDistrict&$A17,DistrictExpenditures!$A:M,COLUMN(DistrictExpenditures!M:M),0)/T$20,0) -> 487.7746072 | U17: 0.05681419287 | V17: =IFERROR(VLOOKUP(SelectedDistrict&$A17,DistrictExpenditures!$A:N,COLUMN(DistrictExpenditures!N:N),0)/V$20,0) -> 512.042379 | W17: 0.05965808463 | X17: =IFERROR(VLOOKUP(SelectedDistrict&$A17,DistrictExpenditures!$A:O,COLUMN(DistrictExpenditures!O:O),0)/X$20,0) -> 519.9529149 | Y17: 0.05669528236 | Z17: =IFERROR(VLOOKUP(SelectedDistrict&$A17,DistrictExpenditures!$A:P,COLUMN(DistrictExpenditures!P:P),0)/Z$20,0) -> 572.041816 | AA17: 0.05460793791 | AB17: =IFERROR(VLOOKUP(SelectedDistrict&$A17,DistrictExpenditures!$A:Q,COLUMN(DistrictExpenditures!Q:Q),0)/AB$20,0) -> 601.863983 | AC17: 0.05403653425 | AD17: =IFERROR(VLOOKUP(SelectedDistrict&$A17,DistrictExpenditures!$A:R,COLUMN(DistrictExpenditures!R:R),0)/AD$20,0) -> 575.322937 | AE17: 0.05251598832 | AF17: =IFERROR(VLOOKUP(SelectedDistrict&$A17,DistrictExpenditures!$A:S,COLUMN(DistrictExpenditures!S:S),0)/AF$20,0) -> 632.3318412 | AG17: 0.05449987952 | AH17: =IFERROR(VLOOKUP(SelectedDistrict&$A17,DistrictExpenditures!$A:T,COLUMN(DistrictExpenditures!T:T),0)/AH$20,0) -> 653.5358011 | AI17: 0.05718758936 | AJ17: =IFERROR(VLOOKUP(SelectedDistrict&$A17,DistrictExpenditures!$A:U,COLUMN(DistrictExpenditures!U:U),0)/AJ$20,0) -> 611.9116993 | AK17: 0.05492761412 | AL17: =IFERROR(VLOOKUP(SelectedDistrict&$A17,DistrictExpenditures!$A:V,COLUMN(DistrictExpenditures!V:V),0)/AL$20,0) -> 611.0218181 | AM17: 0.05272571792 | AN17: =IFERROR(VLOOKUP(SelectedDistrict&$A17,DistrictExpenditures!$A:W,COLUMN(DistrictExpenditures!W:W),0)/AN$20,0) -> 643.4650877 | AO17: 0.05367582244 | AP17: =IFERROR(VLOOKUP(SelectedDistrict&$A17,DistrictExpenditures!$A:X,COLUMN(DistrictExpenditures!X:X),0)/AP$20,0) -> 659.7407361 | AQ17: 0.05209582478 | AR17: =IFERROR(VLOOKUP(SelectedDistrict&$A17,DistrictExpenditures!$A:Y,COLUMN(DistrictExpenditures!Y:Y),0)/AR$20,0) -> 671.9380508 | AS17: 0.05078436488 | AT17: =IFERROR(VLOOKUP(SelectedDistrict&$A17,DistrictExpenditures!$A:Z,COLUMN(DistrictExpenditures!Z:Z),0)/AT$20,0) -> 734.2274863 | AU17: 0.05265396821 | AV17: =IFERROR(VLOOKUP(SelectedDistrict&$A17,DistrictExpenditures!$A:AA,COLUMN(DistrictExpenditures!AA:AA),0)/AV$20,0) -> 764.4602645 | AW17: 0.04968310233 | AX17: =IFERROR(VLOOKUP(SelectedDistrict&$A17,DistrictExpenditures!$A:AB,COLUMN(DistrictExpenditures!AB:AB),0)/AX$20,0) -> 726.8683487 | AY17: 0.04655098747 | AZ17: =IFERROR(VLOOKUP(SelectedDistrict&$A17,DistrictExpenditures!$A:AC,COLUMN(DistrictExpenditures!AC:AC),0)/AZ$20,0) -> 738.3964132 | BA17: 0.04713932154 | BB17: =IFERROR(VLOOKUP(SelectedDistrict&$A17,DistrictExpenditures!$A:AD,COLUMN(DistrictExpenditures!AD:AD),0)/BB$20,0) -> 933.6972998 | BC17: 0.04983407632 | BD17: =IFERROR(VLOOKUP(SelectedDistrict&$A17,DistrictExpenditures!$A:BV,COLUMN(DistrictExpenditures!AE:AE),0)/BD$20,0) -> 1055.80575 | BE17: 0.05335790015 | BF17: =IFERROR(VLOOKUP(SelectedDistrict&$A17,DistrictExpenditures!$A:AF,COLUMN(DistrictExpenditures!AF:AF),0)/BF$20,0) -> 1067.013937 | BG17: 0.05517672102
A18: =+Statewide!A13 -> Central Admin | B18: =IFERROR(VLOOKUP(SelectedDistrict&$A18,DistrictExpenditures!$A:D,COLUMN(DistrictExpenditures!D:D),0)/$B$20,0) -> 309.1534453 | C18: 0.05111161418 | D18: =IFERROR(VLOOKUP(SelectedDistrict&$A18,DistrictExpenditures!$A:E,COLUMN(DistrictExpenditures!E:E),0)/D$20,0) -> 354.9323106 | E18: 0.05586542855 | F18: =IFERROR(VLOOKUP(SelectedDistrict&$A18,DistrictExpenditures!$A:F,COLUMN(DistrictExpenditures!F:F),0)/F$20,0) -> 354.4862693 | G18: 0.05684074151 | H18: =IFERROR(VLOOKUP(SelectedDistrict&$A18,DistrictExpenditures!$A:G,COLUMN(DistrictExpenditures!G:G),0)/H$20,0) -> 345.2432765 | I18: 0.05176029113 | J18: =IFERROR(VLOOKUP(SelectedDistrict&$A18,DistrictExpenditures!$A:H,COLUMN(DistrictExpenditures!H:H),0)/J$20,0) -> 367.4095636 | K18: 0.05277672667 | L18: =IFERROR(VLOOKUP(SelectedDistrict&$A18,DistrictExpenditures!$A:I,COLUMN(DistrictExpenditures!I:I),0)/L$20,0) -> 374.3417262 | M18: 0.05173384159 | N18: =IFERROR(VLOOKUP(SelectedDistrict&$A18,DistrictExpenditures!$A:J,COLUMN(DistrictExpenditures!J:J),0)/N$20,0) -> 411.6563697 | O18: 0.05332698082 | P18: =IFERROR(VLOOKUP(SelectedDistrict&$A18,DistrictExpenditures!$A:K,COLUMN(DistrictExpenditures!K:K),0)/P$20,0) -> 466.2805867 | Q18: 0.05849204408 | R18: =IFERROR(VLOOKUP(SelectedDistrict&$A18,DistrictExpenditures!$A:L,COLUMN(DistrictExpenditures!L:L),0)/R$20,0) -> 402.6717938 | S18: 0.04932396947 | T18: =IFERROR(VLOOKUP(SelectedDistrict&$A18,DistrictExpenditures!$A:M,COLUMN(DistrictExpenditures!M:M),0)/T$20,0) -> 380.1278764 | U18: 0.04427589745 | V18: =IFERROR(VLOOKUP(SelectedDistrict&$A18,DistrictExpenditures!$A:N,COLUMN(DistrictExpenditures!N:N),0)/V$20,0) -> 398.3785958 | W18: 0.04641511125 | X18: =IFERROR(VLOOKUP(SelectedDistrict&$A18,DistrictExpenditures!$A:O,COLUMN(DistrictExpenditures!O:O),0)/X$20,0) -> 478.9697096 | Y18: 0.05222650388 | Z18: =IFERROR(VLOOKUP(SelectedDistrict&$A18,DistrictExpenditures!$A:P,COLUMN(DistrictExpenditures!P:P),0)/Z$20,0) -> 546.5459273 | AA18: 0.05217406355 | AB18: =IFERROR(VLOOKUP(SelectedDistrict&$A18,DistrictExpenditures!$A:Q,COLUMN(DistrictExpenditures!Q:Q),0)/AB$20,0) -> 579.5473442 | AC18: 0.05203290244 | AD18: =IFERROR(VLOOKUP(SelectedDistrict&$A18,DistrictExpenditures!$A:R,COLUMN(DistrictExpenditures!R:R),0)/AD$20,0) -> 569.9277883 | AE18: 0.05202351436 | AF18: =IFERROR(VLOOKUP(SelectedDistrict&$A18,DistrictExpenditures!$A:S,COLUMN(DistrictExpenditures!S:S),0)/AF$20,0) -> 590.1616563 | AG18: 0.05086528476 | AH18: =IFERROR(VLOOKUP(SelectedDistrict&$A18,DistrictExpenditures!$A:T,COLUMN(DistrictExpenditures!T:T),0)/AH$20,0) -> 569.6543397 | AI18: 0.0498475499 | AJ18: =IFERROR(VLOOKUP(SelectedDistrict&$A18,DistrictExpenditures!$A:U,COLUMN(DistrictExpenditures!U:U),0)/AJ$20,0) -> 560.9204104 | AK18: 0.05035043436 | AL18: =IFERROR(VLOOKUP(SelectedDistrict&$A18,DistrictExpenditures!$A:V,COLUMN(DistrictExpenditures!V:V),0)/AL$20,0) -> 586.121132 | AM18: 0.05057701142 | AN18: =IFERROR(VLOOKUP(SelectedDistrict&$A18,DistrictExpenditures!$A:W,COLUMN(DistrictExpenditures!W:W),0)/AN$20,0) -> 538.1559379 | AO18: 0.04489126625 | AP18: =IFERROR(VLOOKUP(SelectedDistrict&$A18,DistrictExpenditures!$A:X,COLUMN(DistrictExpenditures!X:X),0)/AP$20,0) -> 560.9382066 | AQ18: 0.04429397327 | AR18: =IFERROR(VLOOKUP(SelectedDistrict&$A18,DistrictExpenditures!$A:Y,COLUMN(DistrictExpenditures!Y:Y),0)/AR$20,0) -> 600.3421342 | AS18: 0.04537322147 | AT18: =IFERROR(VLOOKUP(SelectedDistrict&$A18,DistrictExpenditures!$A:Z,COLUMN(DistrictExpenditures!Z:Z),0)/AT$20,0) -> 680.9500895 | AU18: 0.04883326357 | AV18: =IFERROR(VLOOKUP(SelectedDistrict&$A18,DistrictExpenditures!$A:AA,COLUMN(DistrictExpenditures!AA:AA),0)/AV$20,0) -> 679.9025651 | AW18: 0.04418760566 | AX18: =IFERROR(VLOOKUP(SelectedDistrict&$A18,DistrictExpenditures!$A:AB,COLUMN(DistrictExpenditures!AB:AB),0)/AX$20,0) -> 706.1218597 | AY18: 0.04522231557 | AZ18: =IFERROR(VLOOKUP(SelectedDistrict&$A18,DistrictExpenditures!$A:AC,COLUMN(DistrictExpenditures!AC:AC),0)/AZ$20,0) -> 770.8799127 | BA18: 0.0492130723 | BB18: =IFERROR(VLOOKUP(SelectedDistrict&$A18,DistrictExpenditures!$A:AD,COLUMN(DistrictExpenditures!AD:AD),0)/BB$20,0) -> 890.9406585 | BC18: 0.04755203296 | BD18: =IFERROR(VLOOKUP(SelectedDistrict&$A18,DistrictExpenditures!$A:BV,COLUMN(DistrictExpenditures!AE:AE),0)/BD$20,0) -> 967.312348 | BE18: 0.04888565505 | BF18: =IFERROR(VLOOKUP(SelectedDistrict&$A18,DistrictExpenditures!$A:AF,COLUMN(DistrictExpenditures!AF:AF),0)/BF$20,0) -> 890.9759236 | BG18: 0.04607355935
A19: =+A30 -> Total All Activities | B19: =SUM(B12:B18) -> 6048.594831 | C19: =IFERROR(+B19/B$19,"") -> 1 | D19: =SUM(D12:D18) -> 6353.344452 | E19: =IFERROR(+D19/D$19,"") -> 1 | F19: =SUM(F12:F18) -> 6236.48214 | G19: =IFERROR(+F19/F$19,"") -> 1 | H19: =SUM(H12:H18) -> 6670.041242 | I19: =IFERROR(+H19/H$19,"") -> 1 | J19: =SUM(J12:J18) -> 6961.583008 | K19: =IFERROR(+J19/J$19,"") -> 1 | L19: =SUM(L12:L18) -> 7235.915886 | M19: =IFERROR(+L19/L$19,"") -> 1 | N19: =SUM(N12:N18) -> 7719.476396 | O19: =IFERROR(+N19/N$19,"") -> 1 | P19: =SUM(P12:P18) -> 7971.69246 | Q19: =IFERROR(+P19/P$19,"") -> 1 | R19: =SUM(R12:R18) -> 8163.815649 | S19: =IFERROR(+R19/R$19,"") -> 1 | T19: =SUM(T12:T18) -> 8585.435831 | U19: =IFERROR(+T19/T$19,"") -> 1 | V19: =SUM(V12:V18) -> 8582.95036 | W19: =IFERROR(+V19/V$19,"") -> 1 | X19: =SUM(X12:X18) -> 9171.008473 | Y19: =IFERROR(+X19/X$19,"") -> 1 | Z19: =SUM(Z12:Z18) -> 10475.43339 | AA19: =IFERROR(+Z19/Z$19,"") -> 1 | AB19: =SUM(AB12:AB18) -> 11138.09373 | AC19: =IFERROR(+AB19/AB$19,"") -> 1 | AD19: =SUM(AD12:AD18) -> 10955.19584 | AE19: =IFERROR(+AD19/AD$19,"") -> 1 | AF19: =SUM(AF12:AF18) -> 11602.44475 | AG19: =IFERROR(+AF19/AF$19,"") -> 1 | AH19: =SUM(AH12:AH18) -> 11427.93058 | AI19: =IFERROR(+AH19/AH$19,"") -> 1 | AJ19: =SUM(AJ12:AJ18) -> 11140.32913 | AK19: =IFERROR(+AJ19/AJ$19,"") -> 1 | AL19: =SUM(AL12:AL18) -> 11588.68655 | AM19: =IFERROR(+AL19/AL$19,"") -> 1 | AN19: =SUM(AN12:AN18) -> 11987.98748 | AO19: =IFERROR(+AN19/AN$19,"") -> 1 | AP19: =SUM(AP12:AP18) -> 12663.98485 | AQ19: =IFERROR(+AP19/AP$19,"") -> 1 | AR19: =SUM(AR12:AR18) -> 13231.19926 | AS19: =IFERROR(+AR19/AR$19,"") -> 1 | AT19: =SUM(AT12:AT18) -> 13944.39035 | AU19: =IFERROR(+AT19/AT$19,"") -> 1 | AV19: =SUM(AV12:AV18) -> 15386.72564 | AW19: =IFERROR(+AV19/AV$19,"") -> 1 | AX19: =SUM(AX12:AX18) -> 15614.45607 | AY19: =IFERROR(+AX19/AX$19,"") -> 1 | AZ19: =SUM(AZ12:AZ18) -> 15664.12899 | BA19: =IFERROR(+AZ19/AZ$19,"") -> 1 | BB19: =SUM(BB12:BB18) -> 18736.12132 | BC19: =IFERROR(+BB19/BB$19,"") -> 1 | BD19: =SUM(BD12:BD18) -> 19787.24325 | BE19: =IFERROR(+BD19/BD$19,"") -> 1 | BF19: =SUM(BF12:BF18) -> 19338.11792 | BG19: =IFERROR(+BF19/BF$19,"") -> 1
A20: =+A31 -> Total FTE Enrollment | B20: =VLOOKUP(SelectedDistrict,Enrollment!$A:C,COLUMN(Enrollment!C:C),0) -> 3799.92 | D20: =VLOOKUP(SelectedDistrict,Enrollment!$A:D,COLUMN(Enrollment!D:D),0) -> 3800.15 | F20: =VLOOKUP(SelectedDistrict,Enrollment!$A:E,COLUMN(Enrollment!E:E),0) -> 3795.14 | H20: =VLOOKUP(SelectedDistrict,Enrollment!$A:F,COLUMN(Enrollment!F:F),0) -> 3747.67 | J20: =VLOOKUP(SelectedDistrict,Enrollment!$A:G,COLUMN(Enrollment!G:G),0) -> 3688.56 | L20: =VLOOKUP(SelectedDistrict,Enrollment!$A:H,COLUMN(Enrollment!H:H),0) -> 3717.83 | N20: =VLOOKUP(SelectedDistrict,Enrollment!$A:I,COLUMN(Enrollment!I:I),0) -> 3786.89 | P20: =VLOOKUP(SelectedDistrict,Enrollment!$A:J,COLUMN(Enrollment!J:J),0) -> 3749.5 | R20: =VLOOKUP(SelectedDistrict,Enrollment!$A:K,COLUMN(Enrollment!K:K),0) -> 3755.17 | T20: =VLOOKUP(SelectedDistrict,Enrollment!$A:L,COLUMN(Enrollment!L:L),0) -> 3727.27 | V20: =VLOOKUP(SelectedDistrict,Enrollment!$A:M,COLUMN(Enrollment!M:M),0) -> 3605.56 | X20: =VLOOKUP(SelectedDistrict,Enrollment!$A:N,COLUMN(Enrollment!N:N),0) -> 3504.08 | Z20: =VLOOKUP(SelectedDistrict,Enrollment!$A:O,COLUMN(Enrollment!O:O),0) -> 3301.85 | AB20: =VLOOKUP(SelectedDistrict,Enrollment!$A:P,COLUMN(Enrollment!P:P),0) -> 3155.93 | AD20: =VLOOKUP(SelectedDistrict,Enrollment!$A:Q,COLUMN(Enrollment!Q:Q),0) -> 3157.52 | AF20: =VLOOKUP(SelectedDistrict,Enrollment!$A:R,COLUMN(Enrollment!R:R),0) -> 3089.58 | AH20: =VLOOKUP(SelectedDistrict,Enrollment!$A:S,COLUMN(Enrollment!S:S),0) -> 3139.99 | AJ20: =VLOOKUP(SelectedDistrict,Enrollment!$A:T,COLUMN(Enrollment!T:T),0) -> 3176.42 | AL20: =VLOOKUP(SelectedDistrict,Enrollment!$A:U,COLUMN(Enrollment!U:U),0) -> 3213.85 | AN20: =VLOOKUP(SelectedDistrict,Enrollment!$A:V,COLUMN(Enrollment!V:V),0) -> 3209.61 | AP20: =VLOOKUP(SelectedDistrict,Enrollment!$A:W,COLUMN(Enrollment!W:W),0) -> 3250.51 | AR20: =VLOOKUP(SelectedDistrict,Enrollment!$A:X,COLUMN(Enrollment!X:X),0) -> 3324.66 | AT20: =VLOOKUP(SelectedDistrict,Enrollment!$A:Y,COLUMN(Enrollment!Y:Y),0) -> 3374.84 | AV20: =VLOOKUP(SelectedDistrict,Enrollment!$A:Z,COLUMN(Enrollment!Z:Z),0) -> 3350.03 | AX20: =VLOOKUP(SelectedDistrict,Enrollment!$A:AA,COLUMN(Enrollment!AA:AA),0) -> 3334.49 | AZ20: =VLOOKUP(SelectedDistrict,Enrollment!$A:AB,COLUMN(Enrollment!AB:AB),0) -> 3101.41 | BB20: =VLOOKUP(SelectedDistrict,Enrollment!$A:AC,COLUMN(Enrollment!AC:AC),0) -> 3113.84 | BD20: =VLOOKUP(SelectedDistrict,Enrollment!$A:AD,COLUMN(Enrollment!AD:AD),0) -> 3162.21 | BF20: =VLOOKUP(SelectedDistrict,Enrollment!$A:AE,COLUMN(Enrollment!AE:AE),0) -> 3225.15
A22: =+DistsbySize!C26&" Districts with Total FTE Enrollment "&DistsbySize!B3 -> 29 Districts with Total FTE Enrollment 3,000 to 4,999
A23: =+DistsbySize!A8 -> Teaching | B23: =+DistsbySize!B8/Report!B$31 -> 3550.379206 | C23: =+B23/B$30 -> 0.6220845417 | D23: =+DistsbySize!C8/Report!D$31 -> 3615.70489 | E23: =+D23/D$30 -> 0.6232860908 | F23: =+DistsbySize!D8/Report!F$31 -> 3741.018299 | G23: =+F23/F$30 -> 0.615475975 | H23: =+DistsbySize!E8/Report!H$31 -> 3842.161971 | I23: =+H23/H$30 -> 0.6198409156 | J23: =+DistsbySize!F8/Report!J$31 -> 4000.907854 | K23: =+J23/J$30 -> 0.6173418623 | L23: =+DistsbySize!G8/Report!L$31 -> 4217.959646 | M23: =+L23/L$30 -> 0.6162953629 | N23: =+DistsbySize!H8/Report!N$31 -> 4361.407927 | O23: 0.6128489873 | P23: =+DistsbySize!I8/Report!P$31 -> 4482.662028 | Q23: =+P23/P$30 -> 0.6123407985 | R23: =+DistsbySize!J8/Report!R$31 -> 4596.382283 | S23: 0.6085826123 | T23: =+DistsbySize!K8/Report!T$31 -> 4744.665963 | U23: =+T23/T$30 -> 0.6065356219 | V23: =+DistsbySize!L8/Report!V$31 -> 4919.06562 | W23: 0.604796896 | X23: =+DistsbySize!M8/Report!X$31 -> 5199.884448 | Y23: =+X23/X$30 -> 0.606107605 | Z23: =+DistsbySize!N8/Report!Z$31 -> 5583.04775 | AA23: 0.6105818429 | AB23: =+DistsbySize!O8/Report!AB$31 -> 5947.446045 | AC23: =+AB23/AB$30 -> 0.6187127256 | AD23: =+DistsbySize!P8/Report!AD$31 -> 5799.898945 | AE23: =+AD23/AD$30 -> 0.6201015778 | AF23: =+DistsbySize!Q8/Report!AF$31 -> 5936.330443 | AG23: =+AF23/AF$30 -> 0.617185996 | AH23: =+DistsbySize!R8/Report!AH$31 -> 5686.88327 | AI23: =+AH23/AH$30 -> 0.5944387809 | AJ23: =+DistsbySize!S8/Report!AJ$31 -> 5725.969415 | AK23: =+AJ23/AJ$30 -> 0.5883060865 | AL23: =+DistsbySize!T8/Report!AL$31 -> 5996.538402 | AM23: 0.5850749999 | AN23: =+DistsbySize!U8/Report!AN$31 -> 6075.747149 | AO23: 0.5757681698 | AP23: =+DistsbySize!V8/Report!AP$31 -> 6477.626896 | AQ23: 0.5755257272 | AR23: =+DistsbySize!W8/Report!AR$31 -> 6733.625188 | AS23: 0.5739588759 | AT23: =IFERROR(VLOOKUP($A23,DistsbySize!$A:BN,COLUMN(DistsbySize!X:X),0)/AT$31,0) -> 7265.497636 | AU23: 0.5734755946 | AV23: =IFERROR(VLOOKUP($A23,DistsbySize!$A:BP,COLUMN(DistsbySize!Y:Y),0)/AV$31,0) -> 8249.277227 | AW23: 0.5863607975 | AX23: =IFERROR(VLOOKUP($A23,DistsbySize!$A:BR,COLUMN(DistsbySize!Z:Z),0)/AX$31,0) -> 8513.640024 | AY23: 0.5878547545 | AZ23: =IFERROR(VLOOKUP($A23,DistsbySize!$A:BT,COLUMN(DistsbySize!AA:AA),0)/AZ$31,0) -> 9029.847327 | BA23: =+AZ23/AZ$30 -> 0.5870916887 | BB23: =IFERROR(VLOOKUP($A23,DistsbySize!$A:BV,COLUMN(DistsbySize!AB:AB),0)/BB$31,0) -> 9569.933798 | BC23: =+BB23/BB$30 -> 0.5749447232 | BD23: =IFERROR(VLOOKUP($A23,DistsbySize!$A:BX,COLUMN(DistsbySize!AC:AC),0)/BD$31,0) -> 10093.85548 | BE23: =+BD23/BD$30 -> 0.5714098949 | BF23: =IFERROR(VLOOKUP($A23,DistsbySize!$A:AD,COLUMN(DistsbySize!AD:AD),0)/BF$31,0) -> 10793.96974 | BG23: =+BF23/BF$30 -> 0.5863173631
A24: =+DistsbySize!A9 -> Teaching Support | B24: =+DistsbySize!B9/Report!B$31 -> 413.3357937 | C24: =+B24/B$30 -> 0.07242319564 | D24: =+DistsbySize!C9/Report!D$31 -> 413.0455566 | E24: 0.07120203616 | F24: =+DistsbySize!D9/Report!F$31 -> 514.8593206 | G24: 0.084705157 | H24: =+DistsbySize!E9/Report!H$31 -> 489.7531769 | I24: 0.07900995841 | J24: =+DistsbySize!F9/Report!J$31 -> 519.7940598 | K24: 0.08020445473 | L24: =+DistsbySize!G9/Report!L$31 -> 544.9713686 | M24: 0.07962696554 | N24: =+DistsbySize!H9/Report!N$31 -> 561.1029239 | O24: 0.07884411742 | P24: =+DistsbySize!I9/Report!P$31 -> 578.9166224 | Q24: 0.07908119431 | R24: =+DistsbySize!J9/Report!R$31 -> 600.3076647 | S24: 0.0794835556 | T24: =+DistsbySize!K9/Report!T$31 -> 628.1326821 | U24: 0.08029750671 | V24: =+DistsbySize!L9/Report!V$31 -> 650.4749811 | W24: 0.0799756051 | X24: =+DistsbySize!M9/Report!X$31 -> 695.7564405 | Y24: 0.08109858479 | Z24: =+DistsbySize!N9/Report!Z$31 -> 733.3207963 | AA24: 0.08019855521 | AB24: =+DistsbySize!O9/Report!AB$31 -> 765.6751365 | AC24: 0.07965317333 | AD24: =+DistsbySize!P9/Report!AD$31 -> 732.1953939 | AE24: 0.07828334999 | AF24: =+DistsbySize!Q9/Report!AF$31 -> 732.6823009 | AG24: 0.07617521631 | AH24: =+DistsbySize!R9/Report!AH$31 -> 925.167405 | AI24: 0.0967059386 | AJ24: =+DistsbySize!S9/Report!AJ$31 -> 957.9058265 | AK24: 0.09841858857 | AL24: =+DistsbySize!T9/Report!AL$31 -> 1038.670107 | AM24: 0.1013417862 | AN24: =+DistsbySize!U9/Report!AN$31 -> 1176.858088 | AO24: 0.111524955 | AP24: =+DistsbySize!V9/Report!AP$31 -> 1304.401964 | AQ24: 0.1158938144 | AR24: =+DistsbySize!W9/Report!AR$31 -> 1427.359873 | AS24: 0.1216649049 | AT24: =IFERROR(VLOOKUP($A24,DistsbySize!$A:BN,COLUMN(DistsbySize!X:X),0)/AT$31,0) -> 1592.913442 | AU24: 0.1257308211 | AV24: =IFERROR(VLOOKUP($A24,DistsbySize!$A:BP,COLUMN(DistsbySize!Y:Y),0)/AV$31,0) -> 1746.717182 | AW24: 0.1241571172 | AX24: =IFERROR(VLOOKUP($A24,DistsbySize!$A:BR,COLUMN(DistsbySize!Z:Z),0)/AX$31,0) -> 1806.622213 | AY24: 0.1247446984 | AZ24: =IFERROR(VLOOKUP($A24,DistsbySize!$A:BT,COLUMN(DistsbySize!AA:AA),0)/AZ$31,0) -> 1993.473465 | BA24: 0.1296092459 | BB24: =IFERROR(VLOOKUP($A24,DistsbySize!$A:BV,COLUMN(DistsbySize!AB:AB),0)/VLOOKUP("Total",DistsbySize!$A$19:$AI$25,COLUMN(AB:AB),0),0) -> 2177.115727 | BC24: 0.1307972684 | BD24: =IFERROR(VLOOKUP($A24,DistsbySize!$A:BX,COLUMN(DistsbySize!AC:AC),0)/BD$31,0) -> 2318.279203 | BE24: 0.131237036 | BF24: =IFERROR(VLOOKUP($A24,DistsbySize!$A:AD,COLUMN(DistsbySize!AD:AD),0)/BF$31,0) -> 2304.239272 | BG24: 0.1251639135
A25: =+DistsbySize!A10 -> Food Services | B25: =+DistsbySize!B10/Report!B$31 -> 212.5118853 | C25: 0.03723556023 | D25: =+DistsbySize!C10/Report!D$31 -> 215.3362062 | E25: 0.03712030331 | F25: =+DistsbySize!D10/Report!F$31 -> 223.2754941 | G25: 0.03673350181 | H25: =+DistsbySize!E10/Report!H$31 -> 227.8581814 | I25: 0.03675946637 | J25: =+DistsbySize!F10/Report!J$31 -> 240.4884201 | K25: 0.03710747024 | L25: =+DistsbySize!G10/Report!L$31 -> 259.8351272 | M25: 0.03796508205 | N25: =+DistsbySize!H10/Report!N$31 -> 270.7104076 | O25: 0.03803922998 | P25: =+DistsbySize!I10/Report!P$31 -> 274.3477166 | Q25: 0.03747645903 | R25: =+DistsbySize!J10/Report!R$31 -> 293.0647695 | S25: 0.03880315257 | T25: =+DistsbySize!K10/Report!T$31 -> 311.4801087 | U25: 0.03981814166 | V25: =+DistsbySize!L10/Report!V$31 -> 315.9436597 | W25: 0.03884513025 | X25: =+DistsbySize!M10/Report!X$31 -> 330.4816324 | Y25: 0.03852151576 | Z25: =+DistsbySize!N10/Report!Z$31 -> 352.1305582 | AA25: 0.03851024293 | AB25: =+DistsbySize!O10/Report!AB$31 -> 356.1540669 | AC25: 0.03705070241 | AD25: =+DistsbySize!P10/Report!AD$31 -> 352.3186162 | AE25: 0.03766847179 | AF25: =+DistsbySize!Q10/Report!AF$31 -> 362.0728653 | AG25: 0.03764384482 | AH25: =+DistsbySize!R10/Report!AH$31 -> 372.0989088 | AI25: 0.03889477087 | AJ25: =+DistsbySize!S10/Report!AJ$31 -> 379.4094261 | AK25: 0.03898184892 | AL25: =+DistsbySize!T10/Report!AL$31 -> 391.6773512 | AM25: 0.03821548548 | AN25: =+DistsbySize!U10/Report!AN$31 -> 399.1143608 | AO25: 0.03782207182 | AP25: =+DistsbySize!V10/Report!AP$31 -> 409.187546 | AQ25: 0.03635559191 | AR25: =+DistsbySize!W10/Report!AR$31 -> 417.1245314 | AS25: 0.0355547451 | AT25: =IFERROR(VLOOKUP($A25,DistsbySize!$A:BN,COLUMN(DistsbySize!X:X),0)/AT$31,0) -> 422.9938122 | AU25: 0.03338747601 | AV25: =IFERROR(VLOOKUP($A25,DistsbySize!$A:BP,COLUMN(DistsbySize!Y:Y),0)/AV$31,0) -> 444.6916871 | AW25: 0.03160880222 | AX25: =IFERROR(VLOOKUP($A25,DistsbySize!$A:BR,COLUMN(DistsbySize!Z:Z),0)/AX$31,0) -> 423.9307183 | AY25: 0.02927181413 | AZ25: =IFERROR(VLOOKUP($A25,DistsbySize!$A:BT,COLUMN(DistsbySize!AA:AA),0)/AZ$31,0) -> 433.8011172 | BA25: 0.0282043562 | BB25: =IFERROR(VLOOKUP($A25,DistsbySize!$A:BV,COLUMN(DistsbySize!AB:AB),0)/VLOOKUP("Total",DistsbySize!$A$19:$AI$25,COLUMN(AB:AB),0),0) -> 558.9670795 | BC25: 0.03358175507 | BD25: =IFERROR(VLOOKUP($A25,DistsbySize!$A:BX,COLUMN(DistsbySize!AC:AC),0)/BD$31,0) -> 599.2780891 | BE25: 0.03392493884 | BF25: =IFERROR(VLOOKUP($A25,DistsbySize!$A:AD,COLUMN(DistsbySize!AD:AD),0)/BF$31,0) -> 595.6308459 | BG25: 0.03235405652
A26: =+DistsbySize!A11 -> Pupil Transpo | B26: =+DistsbySize!B11/Report!B$31 -> 230.8491089 | C26: 0.04044854191 | D26: =+DistsbySize!C11/Report!D$31 -> 232.7715579 | E26: 0.04012586171 | F26: =+DistsbySize!D11/Report!F$31 -> 237.7171415 | G26: 0.03910945571 | H26: =+DistsbySize!E11/Report!H$31 -> 240.0622813 | I26: 0.03872830593 | J26: =+DistsbySize!F11/Report!J$31 -> 251.2995276 | K26: 0.03877562894 | L26: =+DistsbySize!G11/Report!L$31 -> 266.1081164 | M26: 0.03888164229 | N26: =+DistsbySize!H11/Report!N$31 -> 267.5053779 | O26: 0.03758887101 | P26: =+DistsbySize!I11/Report!P$31 -> 285.554534 | Q26: 0.03900733321 | R26: =+DistsbySize!J11/Report!R$31 -> 291.9469072 | S26: 0.03865514235 | T26: =+DistsbySize!K11/Report!T$31 -> 312.6108847 | U26: 0.03996269471 | V26: =+DistsbySize!L11/Report!V$31 -> 336.3136481 | W26: 0.04134961111 | X26: =+DistsbySize!M11/Report!X$31 -> 343.0246266 | Y26: 0.03998354906 | Z26: =+DistsbySize!N11/Report!Z$31 -> 362.3670133 | AA26: 0.03962973785 | AB26: =+DistsbySize!O11/Report!AB$31 -> 359.6065282 | AC26: 0.03740986191 | AD26: =+DistsbySize!P11/Report!AD$31 -> 362.7034314 | AE26: 0.03877877394 | AF26: =+DistsbySize!Q11/Report!AF$31 -> 383.7517402 | AG26: 0.03989774529 | AH26: =+DistsbySize!R11/Report!AH$31 -> 384.4659768 | AI26: 0.04018747628 | AJ26: =+DistsbySize!S11/Report!AJ$31 -> 389.8832193 | AK26: 0.040057963 | AL26: =+DistsbySize!T11/Report!AL$31 -> 397.0448002 | AM26: 0.03873918098 | AN26: =+DistsbySize!U11/Report!AN$31 -> 409.6322468 | AO26: 0.03881879927 | AP26: =+DistsbySize!V11/Report!AP$31 -> 418.5429762 | AQ26: 0.03718680539 | AR26: =+DistsbySize!W11/Report!AR$31 -> 440.7039154 | AS26: 0.03756459809 | AT26: =IFERROR(VLOOKUP($A26,DistsbySize!$A:BN,COLUMN(DistsbySize!X:X),0)/AT$31,0) -> 471.2429826 | AU26: 0.03719584854 | AV26: =IFERROR(VLOOKUP($A26,DistsbySize!$A:BP,COLUMN(DistsbySize!Y:Y),0)/AV$31,0) -> 515.675482 | AW26: 0.03665434905 | AX26: =IFERROR(VLOOKUP($A26,DistsbySize!$A:BR,COLUMN(DistsbySize!Z:Z),0)/AX$31,0) -> 538.5853385 | AY26: 0.03718855284 | AZ26: =IFERROR(VLOOKUP($A26,DistsbySize!$A:BT,COLUMN(DistsbySize!AA:AA),0)/AZ$31,0) -> 461.1090164 | BA26: 0.02997982815 | BB26: =IFERROR(VLOOKUP($A26,DistsbySize!$A:BV,COLUMN(DistsbySize!AB:AB),0)/VLOOKUP("Total",DistsbySize!$A$19:$AI$25,COLUMN(AB:AB),0),0) -> 595.572633 | BC26: 0.03578095208 | BD26: =IFERROR(VLOOKUP($A26,DistsbySize!$A:BX,COLUMN(DistsbySize!AC:AC),0)/BD$31,0) -> 659.8121589 | BE26: 0.03735175295 | BF26: =IFERROR(VLOOKUP($A26,DistsbySize!$A:AD,COLUMN(DistsbySize!AD:AD),0)/BF$31,0) -> 693.8894119 | BG26: 0.03769136103
A27: =+DistsbySize!A12 -> Util/Plant/Ins/IS/Other | B27: =+DistsbySize!B12/Report!B$31 -> 606.6052125 | C27: 0.1062871608 | D27: =+DistsbySize!C12/Report!D$31 -> 611.448471 | E27: 0.1054033277 | F27: =+DistsbySize!D12/Report!F$31 -> 622.2953205 | G27: 0.1023806324 | H27: =+DistsbySize!E12/Report!H$31 -> 654.8568631 | I27: 0.1056454883 | J27: =+DistsbySize!F12/Report!J$31 -> 685.4327219 | K27: 0.105762574 | L27: =+DistsbySize!G12/Report!L$31 -> 728.7006574 | M27: 0.1064720561 | N27: =+DistsbySize!H12/Report!N$31 -> 786.4146347 | O27: 0.1105040896 | P27: =+DistsbySize!I12/Report!P$31 -> 812.776582 | Q27: 0.1110269429 | R27: =+DistsbySize!J12/Report!R$31 -> 866.1785016 | S27: 0.1146861037 | T27: =+DistsbySize!K12/Report!T$31 -> 899.6714122 | U27: 0.1150097317 | V27: =+DistsbySize!L12/Report!V$31 -> 928.660399 | W27: 0.1141783766 | X27: =+DistsbySize!M12/Report!X$31 -> 977.786763 | Y27: 0.1139725313 | Z27: =+DistsbySize!N12/Report!Z$31 -> 1034.376343 | AA27: 0.1131230543 | AB27: =+DistsbySize!O12/Report!AB$31 -> 1070.270387 | AC27: 0.1113402128 | AD27: =+DistsbySize!P12/Report!AD$31 -> 1030.675458 | AE27: 0.110195623 | AF27: =+DistsbySize!Q12/Report!AF$31 -> 1108.926097 | AG27: 0.1152923788 | AH27: =+DistsbySize!R12/Report!AH$31 -> 1092.902945 | AI27: 0.1142390064 | AJ27: =+DistsbySize!S12/Report!AJ$31 -> 1139.923048 | AK27: 0.1171196733 | AL27: =+DistsbySize!T12/Report!AL$31 -> 1216.569912 | AM27: 0.118699255 | AN27: =+DistsbySize!U12/Report!AN$31 -> 1226.474744 | AO27: 0.1162268773 | AP27: =+DistsbySize!V12/Report!AP$31 -> 1281.593461 | AQ27: 0.1138673191 | AR27: =+DistsbySize!W12/Report!AR$31 -> 1294.699122 | AS27: 0.1103572046 | AT27: =IFERROR(VLOOKUP($A27,DistsbySize!$A:BN,COLUMN(DistsbySize!X:X),0)/AT$31,0) -> 1356.439194 | AU27: 0.1070655875 | AV27: =IFERROR(VLOOKUP($A27,DistsbySize!$A:BP,COLUMN(DistsbySize!Y:Y),0)/AV$31,0) -> 1440.253465 | AW27: 0.1023735955 | AX27: =IFERROR(VLOOKUP($A27,DistsbySize!$A:BR,COLUMN(DistsbySize!Z:Z),0)/AX$31,0) -> 1456.451464 | AY27: 0.1005659055 | AZ27: =IFERROR(VLOOKUP($A27,DistsbySize!$A:BT,COLUMN(DistsbySize!AA:AA),0)/AZ$31,0) -> 1581.841699 | BA27: 0.1028462698 | BB27: =IFERROR(VLOOKUP($A27,DistsbySize!$A:BV,COLUMN(DistsbySize!AB:AB),0)/VLOOKUP("Total",DistsbySize!$A$19:$AI$25,COLUMN(AB:AB),0),0) -> 1743.303268 | BC27: 0.1047345819 | BD27: =IFERROR(VLOOKUP($A27,DistsbySize!$A:BX,COLUMN(DistsbySize!AC:AC),0)/BD$31,0) -> 1839.533845 | BE27: 0.1041354161 | BF27: =IFERROR(VLOOKUP($A27,DistsbySize!$A:AD,COLUMN(DistsbySize!AD:AD),0)/BF$31,0) -> 1806.659681 | BG27: 0.0981359005
A28: =+DistsbySize!A13 -> Unit Admin | B28: =+DistsbySize!B13/Report!B$31 -> 365.1850791 | C28: 0.06398640241 | D28: =+DistsbySize!C13/Report!D$31 -> 377.9372394 | E28: 0.06514995879 | F28: =+DistsbySize!D13/Report!F$31 -> 380.4385688 | G28: 0.06259012397 | H28: =+DistsbySize!E13/Report!H$31 -> 380.4716308 | I28: 0.06137999537 | J28: =+DistsbySize!F13/Report!J$31 -> 396.5456347 | K28: 0.06118716789 | L28: =+DistsbySize!G13/Report!L$31 -> 423.8751318 | M28: 0.06193332799 | N28: =+DistsbySize!H13/Report!N$31 -> 431.1234246 | O28: 0.06057987664 | P28: =+DistsbySize!I13/Report!P$31 -> 444.3972721 | Q28: 0.06070557601 | R28: =+DistsbySize!J13/Report!R$31 -> 455.1085051 | S28: 0.0602585046 | T28: =+DistsbySize!K13/Report!T$31 -> 471.4302233 | U28: 0.06026540665 | V28: =+DistsbySize!L13/Report!V$31 -> 488.4804059 | W28: 0.06005844525 | X28: =+DistsbySize!M13/Report!X$31 -> 508.9773244 | Y28: 0.0593272851 | Z28: =+DistsbySize!N13/Report!Z$31 -> 524.0241119 | AA28: 0.05730912976 | AB28: =+DistsbySize!O13/Report!AB$31 -> 538.8590106 | AC28: 0.05605749505 | AD28: =+DistsbySize!P13/Report!AD$31 -> 520.3628393 | AE28: 0.05563507584 | AF28: =+DistsbySize!Q13/Report!AF$31 -> 531.8063074 | AG28: 0.05529062249 | AH28: =+DistsbySize!R13/Report!AH$31 -> 547.3729092 | AI28: 0.05721581918 | AJ28: =+DistsbySize!S13/Report!AJ$31 -> 569.0448677 | AK28: 0.05846565619 | AL28: =+DistsbySize!T13/Report!AL$31 -> 593.0451555 | AM28: 0.05786269861 | AN28: =+DistsbySize!U13/Report!AN$31 -> 630.088845 | AO28: 0.05971036848 | AP28: =+DistsbySize!V13/Report!AP$31 -> 673.5377286 | AQ28: 0.05984263949 | AR28: =+DistsbySize!W13/Report!AR$31 -> 703.0359942 | AS28: 0.05992518706 | AT28: =IFERROR(VLOOKUP($A28,DistsbySize!$A:BN,COLUMN(DistsbySize!X:X),0)/AT$31,0) -> 758.1701581 | AU28: 0.05984340014 | AV28: =IFERROR(VLOOKUP($A28,DistsbySize!$A:BP,COLUMN(DistsbySize!Y:Y),0)/AV$31,0) -> 823.8453195 | AW28: 0.05855914224 | AX28: =IFERROR(VLOOKUP($A28,DistsbySize!$A:BR,COLUMN(DistsbySize!Z:Z),0)/AX$31,0) -> 853.7389761 | AY28: 0.05894946401 | AZ28: =IFERROR(VLOOKUP($A28,DistsbySize!$A:BT,COLUMN(DistsbySize!AA:AA),0)/AZ$31,0) -> 909.1668847 | BA28: 0.05911111254 | BB28: =IFERROR(VLOOKUP($A28,DistsbySize!$A:BV,COLUMN(DistsbySize!AB:AB),0)/VLOOKUP("Total",DistsbySize!$A$19:$AI$25,COLUMN(AB:AB),0),0) -> 957.7054163 | BC28: 0.05753725022 | BD28: =IFERROR(VLOOKUP($A28,DistsbySize!$A:BX,COLUMN(DistsbySize!AC:AC),0)/BD$31,0) -> 1013.379554 | BE28: 0.05736708885 | BF28: =IFERROR(VLOOKUP($A28,DistsbySize!$A:AD,COLUMN(DistsbySize!AD:AD),0)/BF$31,0) -> 1019.418368 | BG28: 0.05537375998
A29: =+DistsbySize!A14 -> Central Admin | B29: =+DistsbySize!B14/Report!B$31 -> 328.3631473 | C29: 0.05753459733 | D29: =+DistsbySize!C14/Report!D$31 -> 334.7918202 | E29: 0.05771242157 | F29: =+DistsbySize!D14/Report!F$31 -> 358.6482174 | G29: 0.05900515412 | H29: =+DistsbySize!E14/Report!H$31 -> 363.4618244 | I29: 0.05863587004 | J29: =+DistsbySize!F14/Report!J$31 -> 386.3944912 | K29: 0.05962084194 | L29: =+DistsbySize!G14/Report!L$31 -> 402.6054164 | M29: 0.05882556308 | N29: =+DistsbySize!H14/Report!N$31 -> 438.3464389 | O29: 0.06159482803 | P29: =+DistsbySize!I14/Report!P$31 -> 441.8798863 | Q29: 0.06036169596 | R29: =+DistsbySize!J14/Report!R$31 -> 449.6134153 | S29: 0.05953092888 | T29: =+DistsbySize!K14/Report!T$31 -> 454.5764229 | U29: 0.05811089664 | V29: =+DistsbySize!L14/Report!V$31 -> 494.4787233 | W29: 0.06079593567 | X29: =+DistsbySize!M14/Report!X$31 -> 523.2328066 | Y29: 0.06098892897 | Z29: =+DistsbySize!N14/Report!Z$31 -> 554.5489784 | AA29: 0.06064743709 | AB29: =+DistsbySize!O14/Report!AB$31 -> 574.6019148 | AC29: 0.05977582885 | AD29: =+DistsbySize!P14/Report!AD$31 -> 554.9886598 | AE29: 0.05933712758 | AF29: =+DistsbySize!Q14/Report!AF$31 -> 562.8118707 | AG29: 0.05851419632 | AH29: =+DistsbySize!R14/Report!AH$31 -> 557.9192528 | AI29: 0.05831820783 | AJ29: =+DistsbySize!S14/Report!AJ$31 -> 570.8408684 | AK29: 0.05865018357 | AL29: =+DistsbySize!T14/Report!AL$31 -> 615.6332715 | AM29: 0.06006659377 | AN29: =+DistsbySize!U14/Report!AN$31 -> 634.5038699 | AO29: 0.06012875831 | AP29: =+DistsbySize!V14/Report!AP$31 -> 690.2568342 | AQ29: 0.06132810254 | AR29: =+DistsbySize!W14/Report!AR$31 -> 715.3462396 | AS29: 0.06097448434 | AT29: =IFERROR(VLOOKUP($A29,DistsbySize!$A:BN,COLUMN(DistsbySize!X:X),0)/AT$31,0) -> 801.9787531 | AU29: 0.06330127204 | AV29: =IFERROR(VLOOKUP($A29,DistsbySize!$A:BP,COLUMN(DistsbySize!Y:Y),0)/AV$31,0) -> 848.1425569 | AW29: 0.06028619627 | AX29: =IFERROR(VLOOKUP($A29,DistsbySize!$A:BR,COLUMN(DistsbySize!Z:Z),0)/AX$31,0) -> 889.5883242 | AY29: 0.06142481059 | AZ29: =IFERROR(VLOOKUP($A29,DistsbySize!$A:BT,COLUMN(DistsbySize!AA:AA),0)/AZ$31,0) -> 971.4029031 | BA29: 0.06315749869 | BB29: =IFERROR(VLOOKUP($A29,DistsbySize!$A:BV,COLUMN(DistsbySize!AB:AB),0)/VLOOKUP("Total",DistsbySize!$A$19:$AI$25,COLUMN(AB:AB),0),0) -> 1042.365344 | BC29: 0.0626234692 | BD29: =IFERROR(VLOOKUP($A29,DistsbySize!$A:BX,COLUMN(DistsbySize!AC:AC),0)/BD$31,0) -> 1140.686119 | BE29: 0.06457387234 | BF29: =IFERROR(VLOOKUP($A29,DistsbySize!$A:AD,COLUMN(DistsbySize!AD:AD),0)/BF$31,0) -> 1195.965985 | BG29: 0.06496364544
A30: =+A41 -> Total All Activities | B30: =SUM(DistsbySize!B8:B14)/B31 -> 5707.229432 | C30: 1 | D30: =SUM(DistsbySize!C8:C14)/D31 -> 5801.035741 | E30: 1 | F30: =SUM(DistsbySize!D8:D14)/F31 -> 6078.252362 | G30: 1 | H30: =SUM(DistsbySize!E8:E14)/H31 -> 6198.625929 | I30: 1 | J30: =SUM(DistsbySize!F8:F14)/J31 -> 6480.86271 | K30: 1 | L30: =SUM(DistsbySize!G8:G14)/L31 -> 6844.055463 | M30: 1 | N30: =SUM(DistsbySize!H8:H14)/N31 -> 7116.611134 | O30: 1 | P30: =SUM(DistsbySize!I8:I14)/P31 -> 7320.534641 | Q30: 1 | R30: =SUM(DistsbySize!J8:J14)/R31 -> 7552.602046 | S30: 1 | T30: =SUM(DistsbySize!K8:K14)/T31 -> 7822.567697 | U30: 1 | V30: =SUM(DistsbySize!L8:L14)/V31 -> 8133.417437 | W30: 1 | X30: =SUM(DistsbySize!M8:M14)/X31 -> 8579.144041 | Y30: 1 | Z30: =SUM(DistsbySize!N8:N14)/Z31 -> 9143.815551 | AA30: 1 | AB30: =SUM(DistsbySize!O8:O14)/AB31 -> 9612.613089 | AC30: 1 | AD30: =SUM(DistsbySize!P8:P14)/AD31 -> 9353.143344 | AE30: 1 | AF30: =SUM(DistsbySize!Q8:Q14)/AF31 -> 9618.381625 | AG30: 1 | AH30: =SUM(DistsbySize!R8:R14)/AH31 -> 9566.810667 | AI30: 1 | AJ30: =SUM(DistsbySize!S8:S14)/AJ31 -> 9732.976671 | AK30: 1 | AL30: =SUM(DistsbySize!T8:T14)/AL31 -> 10249.179 | AM30: 1 | AN30: =SUM(DistsbySize!U8:U14)/AN31 -> 10552.4193 | AO30: 1 | AP30: =SUM(DistsbySize!V8:V14)/AP31 -> 11255.14741 | AQ30: 1 | AR30: =SUM(DistsbySize!W8:W14)/AR31 -> 11731.89486 | AS30: 1 | AT30: =SUM(DistsbySize!X8:X14)/AT31 -> 12669.23598 | AU30: 1 | AV30: =SUM(AV23:AV29) -> 14068.60292 | AW30: 1 | AX30: =SUM(AX23:AX29) -> 14482.55706 | AY30: 1 | AZ30: =SUM(AZ23:AZ29) -> 15380.64241 | BA30: 1 | BB30: =SUM(BB23:BB29) -> 16644.96327 | BC30: 1 | BD30: =SUM(BD23:BD29) -> 17664.82445 | BE30: 1 | BF30: =SUM(BF23:BF29) -> 18409.7733 | BG30: 1
A31: Total FTE Enrollment | B31: =+DistsbySize!B22 -> 92926.21 | D31: =+DistsbySize!C22 -> 95093.33 | F31: =+DistsbySize!D22 -> 96512.51 | H31: =+DistsbySize!E22 -> 98186.54 | J31: =+DistsbySize!F22 -> 98675.4 | L31: =+DistsbySize!G22 -> 98839.25 | N31: =+DistsbySize!H22 -> 98854.85 | P31: =+DistsbySize!I22 -> 99330.93 | R31: =+DistsbySize!J22 -> 99481.09 | T31: =+DistsbySize!K22 -> 100052.92 | V31: =+DistsbySize!L22 -> 100249.21 | X31: =+DistsbySize!M22 -> 101775.17 | Z31: =+DistsbySize!N22 -> 103006.77 | AB31: =+DistsbySize!O22 -> 103962.81 | AD31: =+DistsbySize!P22 -> 105263.93 | AF31: =+DistsbySize!Q22 -> 104398.8 | AH31: =+DistsbySize!R22 -> 103701.37 | AJ31: =+DistsbySize!S22 -> 102834.31 | AL31: =+DistsbySize!T22 -> 103909.93 | AN31: =+DistsbySize!U22 -> 103638.93 | AP31: =+DistsbySize!V22 -> 105865.8 | AR31: =+DistsbySize!W22 -> 108045.38 | AT31: =VLOOKUP("Total",DistsbySize!$A$19:$AI$25,COLUMN(X:X),0) -> 109319.1 | AV31: =VLOOKUP("Total",DistsbySize!$A$19:$AI$25,COLUMN(Y:Y),0) -> 109630.91 | AX31: =VLOOKUP("Total",DistsbySize!$A$19:$AI$25,COLUMN(Z:Z),0) -> 110684.22 | AZ31: =VLOOKUP("Total",DistsbySize!$A$19:$AI$25,COLUMN(AA:AA),0) -> 106117.48 | BB31: =VLOOKUP("Total",DistsbySize!$A$19:$AI$25,COLUMN(AB:AB),0) -> 107185.18 | BD31: =VLOOKUP("Total",DistsbySize!$A$19:$AI$25,COLUMN(AC:AC),0) -> 108434.33 | BF31: =VLOOKUP("Total",DistsbySize!$A$19:$AI$25,COLUMN(AD:AD),0) -> 108098.27
A33: Statewide
A34: =+Statewide!A7 -> Teaching | B34: =+Statewide!B7/Report!B$42 -> 3618.399102 | C34: =+B34/B$41 -> 0.6098593237 | D34: =+Statewide!C7/Report!D$42 -> 3703.31811 | E34: =+D34/D$41 -> 0.6132889068 | F34: =+Statewide!D7/Report!F$42 -> 3820.468985 | G34: =+F34/F$41 -> 0.6107089186 | H34: =+Statewide!E7/Report!H$42 -> 3906.943778 | I34: =+H34/H$41 -> 0.6122306371 | J34: =+Statewide!F7/Report!J$42 -> 4072.890619 | K34: =+J34/J$41 -> 0.6098535937 | L34: =+Statewide!G7/Report!L$42 -> 4288.496047 | M34: =+L34/L$41 -> 0.6087262486 | N34: =+Statewide!H7/Report!N$42 -> 4469.988841 | O34: 0.6098225105 | P34: =+Statewide!I7/Report!P$42 -> 4605.086808 | Q34: =+P34/P$41 -> 0.6100785647 | R34: =+Statewide!J7/Report!R$42 -> 4705.678993 | S34: 0.6098899354 | T34: =+Statewide!K7/Report!T$42 -> 4869.260355 | U34: =+T34/T$41 -> 0.6086188882 | V34: =+Statewide!L7/Report!V$42 -> 5037.542206 | W34: 0.6051789305 | X34: =+Statewide!M7/Report!X$42 -> 5356.55989 | Y34: =+X34/X$41 -> 0.6061864545 | Z34: =+Statewide!N7/Report!Z$42 -> 5721.057704 | AA34: 0.6074291216 | AB34: =+Statewide!O7/Report!AB$42 -> 6114.000585 | AC34: =+AB34/AB$41 -> 0.613227802 | AD34: =+Statewide!P7/Report!AD$42 -> 6012.789836 | AE34: 0.6144677901 | AF34: =+Statewide!Q7/Report!AF$42 -> 6119.119627 | AG34: =+AF34/AF$41 -> 0.6153018262 | AH34: =+Statewide!R7/Report!AH$42 -> 5876.059619 | AI34: =+AH34/AH$41 -> 0.592679126 | AJ34: =+Statewide!S7/Report!AJ$42 -> 5925.011708 | AK34: =+AJ34/AJ$41 -> 0.5894086644 | AL34: =+Statewide!T7/Report!AL$42 -> 6195.385943 | AM34: 0.5869449694 | AN34: =+Statewide!U7/Report!AN$42 -> 6307.858501 | AO34: 0.576024781 | AP34: =+Statewide!V7/Report!AP$42 -> 6722.930136 | AQ34: 0.5767248856 | AR34: =+Statewide!W7/Report!AR$42 -> 6951.955554 | AS34: 0.5740146569 | AT34: =IFERROR(VLOOKUP($A34,Statewide!$A:BN,COLUMN(X:X),0)/AT$42,0) -> 7567.423263 | AU34: 0.5780392198 | AV34: =IFERROR(VLOOKUP($A34,Statewide!$A:BP,COLUMN(Y:Y),0)/AV$42,0) -> 8599.899866 | AW34: 0.5912624882 | AX34: =IFERROR(VLOOKUP($A34,Statewide!$A:BR,COLUMN(Z:Z),0)/AX$42,0) -> 8871.08548 | AY34: 0.592051534 | AZ34: =IFERROR(VLOOKUP($A34,Statewide!$A:BT,COLUMN(AA:AA),0)/AZ$42,0) -> 9457.218342 | BA34: =+AZ34/AZ$41 -> 0.5948195983 | BB34: =IFERROR(VLOOKUP($A34,Statewide!$A:BV,COLUMN(AB:AB),0)/BB$42,0) -> 10046.417 | BC34: =+BB34/BB$41 -> 0.5768617656 | BD34: =IFERROR(VLOOKUP($A34,Statewide!$A:BX,COLUMN(AC:AC),0)/BD$42,0) -> 10635.46787 | BE34: =+BD34/BD$41 -> 0.5735102356 | BF34: =IFERROR(VLOOKUP($A34,Statewide!$A:AD,COLUMN(AD:AD),0)/BF$42,0) -> 11273.15445 | BG34: =+BF34/BF$41 -> 0.5882894841
A35: =+Statewide!A8 -> Teaching Support | B35: =+Statewide!B8/Report!B$42 -> 458.2845371 | C35: 0.07724109199 | D35: =+Statewide!C8/Report!D$42 -> 460.851807 | E35: 0.07631947689 | F35: =+Statewide!D8/Report!F$42 -> 513.62774 | G35: 0.08210432879 | H35: =+Statewide!E8/Report!H$42 -> 520.6526348 | I35: 0.08158793993 | J35: =+Statewide!F8/Report!J$42 -> 555.8614709 | K35: 0.08323182409 | L35: =+Statewide!G8/Report!L$42 -> 588.4508892 | M35: 0.08352706831 | N35: =+Statewide!H8/Report!N$42 -> 604.5323438 | O35: 0.08247390423 | P35: =+Statewide!I8/Report!P$42 -> 626.6760538 | Q35: 0.08302158969 | R35: =+Statewide!J8/Report!R$42 -> 642.0937527 | S35: 0.08321998119 | T35: =+Statewide!K8/Report!T$42 -> 669.1022431 | U35: 0.08363246851 | V35: =+Statewide!L8/Report!V$42 -> 700.5193579 | W35: 0.08415603056 | X35: =+Statewide!M8/Report!X$42 -> 751.2243194 | Y35: 0.08501389251 | Z35: =+Statewide!N8/Report!Z$42 -> 798.4787327 | AA35: 0.08477789602 | AB35: =+Statewide!O8/Report!AB$42 -> 856.0570163 | AC35: 0.0858616147 | AD35: =+Statewide!P8/Report!AD$42 -> 832.2610215 | AE35: 0.08505163237 | AF35: =+Statewide!Q8/Report!AF$42 -> 839.7717484 | AG35: 0.08444239073 | AH35: =+Statewide!R8/Report!AH$42 -> 1027.370811 | AI35: 0.1036240736 | AJ35: =+Statewide!S8/Report!AJ$42 -> 1069.246055 | AK35: 0.1063665221 | AL35: =+Statewide!T8/Report!AL$42 -> 1149.194491 | AM35: 0.1088735926 | AN35: =+Statewide!U8/Report!AN$42 -> 1331.371372 | AO35: 0.1215789642 | AP35: =+Statewide!V8/Report!AP$42 -> 1458.339917 | AQ35: 0.1251033261 | AR35: =+Statewide!W8/Report!AR$42 -> 1576.898399 | AS35: 0.1302026152 | AT35: =IFERROR(VLOOKUP($A35,Statewide!$A:BN,COLUMN(X:X),0)/AT$42,0) -> 1681.370547 | AU35: 0.1284318434 | AV35: =IFERROR(VLOOKUP($A35,Statewide!$A:BP,COLUMN(Y:Y),0)/AV$42,0) -> 1903.384813 | AW35: 0.1308619935 | AX35: =IFERROR(VLOOKUP($A35,Statewide!$A:BR,COLUMN(Z:Z),0)/AX$42,0) -> 1952.877772 | AY35: 0.1303340254 | AZ35: =IFERROR(VLOOKUP($A35,Statewide!$A:BT,COLUMN(AA:AA),0)/AZ$42,0) -> 2168.521305 | BA35: 0.1363909476 | BB35: =IFERROR(VLOOKUP($A35,Statewide!$A:BV,COLUMN(AB:AB),0)/BB$42,0) -> 2400.771117 | BC35: 0.1378514416 | BD35: =IFERROR(VLOOKUP($A35,Statewide!$A:BX,COLUMN(AC:AC),0)/BD$42,0) -> 2580.430153 | BE35: 0.1391479081 | BF35: =IFERROR(VLOOKUP($A35,Statewide!$A:AD,COLUMN(AD:AD),0)/BF$42,0) -> 2542.997547 | BG35: 0.1327063087
A36: =+Statewide!A9 -> Food Services | B36: =+Statewide!B9/Report!B$42 -> 195.3850554 | C36: 0.03293097151 | D36: =+Statewide!C9/Report!D$42 -> 198.3107612 | E36: 0.03284130241 | F36: =+Statewide!D9/Report!F$42 -> 204.8952576 | G36: 0.03275287973 | H36: =+Statewide!E9/Report!H$42 -> 213.7574674 | I36: 0.03349648161 | J36: =+Statewide!F9/Report!J$42 -> 224.9466148 | K36: 0.03368234364 | L36: =+Statewide!G9/Report!L$42 -> 236.3556606 | M36: 0.033549266 | N36: =+Statewide!H9/Report!N$42 -> 249.1232623 | O36: 0.03398687975 | P36: =+Statewide!I9/Report!P$42 -> 254.0656552 | Q36: 0.03365843397 | R36: =+Statewide!J9/Report!R$42 -> 266.1938262 | S36: 0.0345006397 | T36: =+Statewide!K9/Report!T$42 -> 283.1553385 | U36: 0.0353921694 | V36: =+Statewide!L9/Report!V$42 -> 290.6828801 | W36: 0.03492082991 | X36: =+Statewide!M9/Report!X$42 -> 307.0707462 | Y36: 0.03475031191 | Z36: =+Statewide!N9/Report!Z$42 -> 326.512716 | AA36: 0.03466724904 | AB36: =+Statewide!O9/Report!AB$42 -> 334.1957239 | AC36: 0.03351947818 | AD36: =+Statewide!P9/Report!AD$42 -> 333.7791505 | AE36: 0.03411004585 | AF36: =+Statewide!Q9/Report!AF$42 -> 341.5497044 | AG36: 0.03434418179 | AH36: =+Statewide!R9/Report!AH$42 -> 351.9800141 | AI36: 0.03550188743 | AJ36: =+Statewide!S9/Report!AJ$42 -> 355.83042 | AK36: 0.03539731952 | AL36: =+Statewide!T9/Report!AL$42 -> 363.4815583 | AM36: 0.03443589698 | AN36: =+Statewide!U9/Report!AN$42 -> 365.4757318 | AO36: 0.03337473064 | AP36: =+Statewide!V9/Report!AP$42 -> 375.5472781 | AQ36: 0.03221622962 | AR36: =+Statewide!W9/Report!AR$42 -> 376.7968909 | AS36: 0.03111166871 | AT36: =IFERROR(VLOOKUP($A36,Statewide!$A:BN,COLUMN(X:X),0)/AT$42,0) -> 387.120222 | AU36: 0.02957025969 | AV36: =IFERROR(VLOOKUP($A36,Statewide!$A:BP,COLUMN(Y:Y),0)/AV$42,0) -> 399.9768759 | AW36: 0.02749931122 | AX36: =IFERROR(VLOOKUP($A36,Statewide!$A:BR,COLUMN(Z:Z),0)/AX$42,0) -> 374.8039864 | AY36: 0.02501421901 | AZ36: =IFERROR(VLOOKUP($A36,Statewide!$A:BT,COLUMN(AA:AA),0)/AZ$42,0) -> 363.2188503 | BA36: 0.02284495111 | BB36: =IFERROR(VLOOKUP($A36,Statewide!$A:BV,COLUMN(AB:AB),0)/BB$42,0) -> 493.5329962 | BC36: 0.02833849279 | BD36: =IFERROR(VLOOKUP($A36,Statewide!$A:BX,COLUMN(AC:AC),0)/BD$42,0) -> 527.3107804 | BE36: 0.02843486847 | BF36: =IFERROR(VLOOKUP($A36,Statewide!$A:AD,COLUMN(AD:AD),0)/BF$42,0) -> 532.0679644 | BG36: 0.0277659629
A37: =+Statewide!A10 -> Pupil Transpo | B37: =+Statewide!B10/Report!B$42 -> 237.0051297 | C37: 0.03994578378 | D37: =+Statewide!C10/Report!D$42 -> 239.5020679 | E37: 0.03966279888 | F37: =+Statewide!D10/Report!F$42 -> 246.7456493 | G37: 0.039442741 | H37: =+Statewide!E10/Report!H$42 -> 251.2632806 | I37: 0.039373763 | J37: =+Statewide!F10/Report!J$42 -> 264.9772138 | K37: 0.03967631866 | L37: =+Statewide!G10/Report!L$42 -> 278.8465883 | M37: 0.03958059789 | N37: =+Statewide!H10/Report!N$42 -> 282.5444792 | O37: 0.03854640129 | P37: =+Statewide!I10/Report!P$42 -> 293.3601055 | Q37: 0.03886413428 | R37: =+Statewide!J10/Report!R$42 -> 303.7972362 | S37: 0.03937431283 | T37: =+Statewide!K10/Report!T$42 -> 326.8934816 | U37: 0.04085909005 | V37: =+Statewide!L10/Report!V$42 -> 346.6102368 | W37: 0.04163959404 | X37: =+Statewide!M10/Report!X$42 -> 363.424341 | Y37: 0.04112768592 | Z37: =+Statewide!N10/Report!Z$42 -> 388.9494097 | AA37: 0.04129641939 | AB37: =+Statewide!O10/Report!AB$42 -> 394.5160464 | AC37: 0.03956954282 | AD37: =+Statewide!P10/Report!AD$42 -> 391.2169876 | AE37: 0.03997981709 | AF37: =+Statewide!Q10/Report!AF$42 -> 408.2044231 | AG37: 0.04104657897 | AH37: =+Statewide!R10/Report!AH$42 -> 411.6572297 | AI37: 0.04152113201 | AJ37: =+Statewide!S10/Report!AJ$42 -> 415.9815695 | AK37: 0.04138103912 | AL37: =+Statewide!T10/Report!AL$42 -> 423.8220028 | AM37: 0.04015249328 | AN37: =+Statewide!U10/Report!AN$42 -> 423.1899575 | AO37: 0.03864511269 | AP37: =+Statewide!V10/Report!AP$42 -> 429.1643446 | AQ37: 0.0368157563 | AR37: =+Statewide!W10/Report!AR$42 -> 451.1484047 | AS37: 0.03725078429 | AT37: =IFERROR(VLOOKUP($A37,Statewide!$A:BN,COLUMN(X:X),0)/AT$42,0) -> 495.743427 | AU37: 0.03786746608 | AV37: =IFERROR(VLOOKUP($A37,Statewide!$A:BP,COLUMN(Y:Y),0)/AV$42,0) -> 540.1034363 | AW37: 0.0371333279 | AX37: =IFERROR(VLOOKUP($A37,Statewide!$A:BR,COLUMN(Z:Z),0)/AX$42,0) -> 557.5224335 | AY37: 0.03720875114 | AZ37: =IFERROR(VLOOKUP($A37,Statewide!$A:BT,COLUMN(AA:AA),0)/AZ$42,0) -> 438.6495606 | BA37: 0.02758922825 | BB37: =IFERROR(VLOOKUP($A37,Statewide!$A:BV,COLUMN(AB:AB),0)/BB$42,0) -> 624.1696364 | BC37: 0.03583960318 | BD37: =IFERROR(VLOOKUP($A37,Statewide!$A:BX,COLUMN(AC:AC),0)/BD$42,0) -> 698.4407634 | BE37: 0.03766293424 | BF37: =IFERROR(VLOOKUP($A37,Statewide!$A:AD,COLUMN(AD:AD),0)/BF$42,0) -> 697.8051836 | BG37: 0.03641495849
A38: =+Statewide!A11 -> Util/Plant/Ins/IS/Other | B38: =+Statewide!B11/Report!B$42 -> 675.2170855 | C38: 0.1138037634 | D38: =+Statewide!C11/Report!D$42 -> 677.67146 | E38: 0.1122259489 | F38: =+Statewide!D11/Report!F$42 -> 696.6280154 | G38: 0.1113572558 | H38: =+Statewide!E11/Report!H$42 -> 709.5147891 | I38: 0.111183246 | J38: =+Statewide!F11/Report!J$42 -> 746.112852 | K38: 0.1117190827 | L38: =+Statewide!G11/Report!L$42 -> 793.1672764 | M38: 0.1125853295 | N38: =+Statewide!H11/Report!N$42 -> 832.4133017 | O38: 0.1135627823 | P38: =+Statewide!I11/Report!P$42 -> 858.4945517 | Q38: 0.1137327364 | R38: =+Statewide!J11/Report!R$42 -> 877.1406759 | S38: 0.1136837576 | T38: =+Statewide!K11/Report!T$42 -> 903.4941462 | U38: 0.1129295956 | V38: =+Statewide!L11/Report!V$42 -> 947.9155517 | W38: 0.1138766677 | X38: =+Statewide!M11/Report!X$42 -> 1010.563484 | Y38: 0.1143625588 | Z38: =+Statewide!N11/Report!Z$42 -> 1069.234032 | AA38: 0.1135251421 | AB38: =+Statewide!O11/Report!AB$42 -> 1109.3549 | AC38: 0.1112671249 | AD38: =+Statewide!P11/Report!AD$42 -> 1094.949588 | AE38: 0.1118966856 | AF38: =+Statewide!Q11/Report!AF$42 -> 1118.562183 | AG38: 0.1124758783 | AH38: =+Statewide!R11/Report!AH$42 -> 1127.93009 | AI38: 0.1137668205 | AJ38: =+Statewide!S11/Report!AJ$42 -> 1141.763156 | AK38: 0.1135803826 | AL38: =+Statewide!T11/Report!AL$42 -> 1208.205353 | AM38: 0.1144642256 | AN38: =+Statewide!U11/Report!AN$42 -> 1257.907968 | AO38: 0.1148703893 | AP38: =+Statewide!V11/Report!AP$42 -> 1310.191008 | AQ38: 0.1123944089 | AR38: =+Statewide!W11/Report!AR$42 -> 1336.974027 | AS38: 0.1103923467 | AT38: =IFERROR(VLOOKUP($A38,Statewide!$A:BN,COLUMN(X:X),0)/AT$42,0) -> 1427.448574 | AU38: 0.10903596 | AV38: =IFERROR(VLOOKUP($A38,Statewide!$A:BP,COLUMN(Y:Y),0)/AV$42,0) -> 1460.62871 | AW38: 0.1004215141 | AX38: =IFERROR(VLOOKUP($A38,Statewide!$A:BR,COLUMN(Z:Z),0)/AX$42,0) -> 1518.291494 | AY38: 0.101329968 | AZ38: =IFERROR(VLOOKUP($A38,Statewide!$A:BT,COLUMN(AA:AA),0)/AZ$42,0) -> 1620.589036 | BA38: 0.1019282928 | BB38: =IFERROR(VLOOKUP($A38,Statewide!$A:BV,COLUMN(AB:AB),0)/BB$42,0) -> 1853.507292 | BC38: 0.1064277433 | BD38: =IFERROR(VLOOKUP($A38,Statewide!$A:BX,COLUMN(AC:AC),0)/BD$42,0) -> 1975.795402 | BE38: 0.1065433981 | BF38: =IFERROR(VLOOKUP($A38,Statewide!$A:AD,COLUMN(AD:AD),0)/BF$42,0) -> 1957.068638 | BG38: 0.1021296128
A39: =+Statewide!A12 -> Unit Admin | B39: =+Statewide!B12/Report!B$42 -> 379.2923183 | C39: 0.06392743039 | D39: =+Statewide!C12/Report!D$42 -> 385.191434 | E39: 0.06378972221 | F39: =+Statewide!D12/Report!F$42 -> 388.4744894 | G39: 0.06209835395 | H39: =+Statewide!E12/Report!H$42 -> 396.4474555 | I39: 0.06212458946 | J39: =+Statewide!F12/Report!J$42 -> 413.9941979 | K39: 0.06198935177 | L39: =+Statewide!G12/Report!L$42 -> 437.0254769 | M39: 0.06203314079 | N39: =+Statewide!H12/Report!N$42 -> 446.1106663 | O39: 0.06086107509 | P39: =+Statewide!I12/Report!P$42 -> 462.2102776 | Q39: 0.06123328278 | R39: =+Statewide!J12/Report!R$42 -> 469.0578731 | S39: 0.06079328325 | T39: =+Statewide!K12/Report!T$42 -> 486.2996929 | U39: 0.06078360096 | V39: =+Statewide!L12/Report!V$42 -> 504.9512619 | W39: 0.06066169813 | X39: =+Statewide!M12/Report!X$42 -> 528.3776577 | Y39: 0.05979497766 | Z39: =+Statewide!N12/Report!Z$42 -> 558.6845679 | AA39: 0.05931792578 | AB39: =+Statewide!O12/Report!AB$42 -> 592.0710319 | AC39: 0.05938409925 | AD39: =+Statewide!P12/Report!AD$42 -> 572.2139072 | AE39: 0.05847651832 | AF39: =+Statewide!Q12/Report!AF$42 -> 577.9033249 | AG39: 0.05811047878 | AH39: =+Statewide!R12/Report!AH$42 -> 584.6404866 | AI39: 0.0589688048 | AJ39: =+Statewide!S12/Report!AJ$42 -> 601.0726368 | AK39: 0.05979353924 | AL39: =+Statewide!T12/Report!AL$42 -> 630.7904718 | AM39: 0.0597604891 | AN39: =+Statewide!U12/Report!AN$42 -> 659.954846 | AO39: 0.06026614985 | AP39: =+Statewide!V12/Report!AP$42 -> 707.4268526 | AQ39: 0.06068643617 | AR39: =+Statewide!W12/Report!AR$42 -> 741.361536 | AS39: 0.0612133355 | AT39: =IFERROR(VLOOKUP($A39,Statewide!$A:BN,COLUMN(X:X),0)/AT$42,0) -> 795.8039965 | AU39: 0.06078765588 | AV39: =IFERROR(VLOOKUP($A39,Statewide!$A:BP,COLUMN(Y:Y),0)/AV$42,0) -> 857.5855152 | AW39: 0.05896093599 | AX39: =IFERROR(VLOOKUP($A39,Statewide!$A:BR,COLUMN(Z:Z),0)/AX$42,0) -> 888.8501233 | AY39: 0.05932138521 | AZ39: =IFERROR(VLOOKUP($A39,Statewide!$A:BT,COLUMN(AA:AA),0)/AZ$42,0) -> 960.8940794 | BA39: 0.06043623079 | BB39: =IFERROR(VLOOKUP($A39,Statewide!$A:BV,COLUMN(AB:AB),0)/BB$42,0) -> 1025.606713 | BC39: 0.05888998035 | BD39: =IFERROR(VLOOKUP($A39,Statewide!$A:BX,COLUMN(AC:AC),0)/BD$42,0) -> 1086.110972 | BE39: 0.05856778164 | BF39: =IFERROR(VLOOKUP($A39,Statewide!$A:AD,COLUMN(AD:AD),0)/BF$42,0) -> 1088.101111 | BG39: 0.05678254866
A40: =+Statewide!A13 -> Central Admin | B40: =+Statewide!B13/Report!B$42 -> 369.5868678 | C40: 0.0622916353 | D40: =+Statewide!C13/Report!D$42 -> 373.6104104 | E40: 0.06187184394 | F40: =+Statewide!D13/Report!F$42 -> 384.9535294 | G40: 0.0615355221 | H40: =+Statewide!E13/Report!H$42 -> 382.9107415 | I40: 0.06000334289 | J40: =+Statewide!F13/Report!J$42 -> 399.6898018 | K40: 0.05984748542 | L40: =+Statewide!G13/Report!L$42 -> 422.690302 | M40: 0.05999834885 | N40: =+Statewide!H13/Report!N$42 -> 445.2704433 | O40: 0.06074644686 | P40: =+Statewide!I13/Report!P$42 -> 448.4569976 | Q40: 0.05941125821 | R40: =+Statewide!J13/Report!R$42 -> 451.6576592 | S40: 0.05853809003 | T40: =+Statewide!K13/Report!T$42 -> 462.3028599 | U40: 0.05778418735 | V40: =+Statewide!L13/Report!V$42 -> 495.8326854 | W40: 0.05956624918 | X40: =+Statewide!M13/Report!X$42 -> 519.2684834 | Y40: 0.05876411865 | Z40: =+Statewide!N13/Report!Z$42 -> 555.56065 | AA40: 0.05898624608 | AB40: =+Statewide!O13/Report!AB$42 -> 569.9994029 | AC40: 0.05717033816 | AD40: =+Statewide!P13/Report!AD$42 -> 548.1516272 | AE40: 0.0560175107 | AF40: =+Statewide!Q13/Report!AF$42 -> 539.7962941 | AG40: 0.0542786652 | AH40: =+Statewide!R13/Report!AH$42 -> 534.7646047 | AI40: 0.05393815569 | AJ40: =+Statewide!S13/Report!AJ$42 -> 543.5624057 | AK40: 0.05407253307 | AL40: =+Statewide!T13/Report!AL$42 -> 584.4299045 | AM40: 0.05536833307 | AN40: =+Statewide!U13/Report!AN$42 -> 604.9137287 | AO40: 0.0552398723 | AP40: =+Statewide!V13/Report!AP$42 -> 653.4839448 | AQ40: 0.05605895727 | AR40: =+Statewide!W13/Report!AR$42 -> 675.976761 | AS40: 0.05581459282 | AT40: =IFERROR(VLOOKUP($A40,Statewide!$A:BN,COLUMN(X:X),0)/AT$42,0) -> 736.6294439 | AU40: 0.05626759522 | AV40: =IFERROR(VLOOKUP($A40,Statewide!$A:BP,COLUMN(Y:Y),0)/AV$42,0) -> 783.3987548 | AW40: 0.0538604291 | AX40: =IFERROR(VLOOKUP($A40,Statewide!$A:BR,COLUMN(Z:Z),0)/AX$42,0) -> 820.2060645 | AY40: 0.05474011718 | AZ40: =IFERROR(VLOOKUP($A40,Statewide!$A:BT,COLUMN(AA:AA),0)/AZ$42,0) -> 890.2140418 | BA40: 0.05599075115 | BB40: =IFERROR(VLOOKUP($A40,Statewide!$A:BV,COLUMN(AB:AB),0)/BB$42,0) -> 971.6355193 | BC40: 0.05579097319 | BD40: =IFERROR(VLOOKUP($A40,Statewide!$A:BX,COLUMN(AC:AC),0)/BD$42,0) -> 1040.956794 | BE40: 0.05613287384 | BF40: =IFERROR(VLOOKUP($A40,Statewide!$A:AD,COLUMN(AD:AD),0)/BF$42,0) -> 1071.402358 | BG40: 0.05591112433
A41: Total All Activities | B41: =SUM(Statewide!B7:B13)/Report!B42 -> 5933.170095 | C41: 1 | D41: =SUM(Statewide!C7:C13)/Report!D42 -> 6038.456051 | E41: 1 | F41: =SUM(Statewide!D7:D13)/Report!F42 -> 6255.793667 | G41: 1 | H41: =SUM(Statewide!E7:E13)/Report!H42 -> 6381.490147 | I41: 1 | J41: =SUM(Statewide!F7:F13)/Report!J42 -> 6678.472771 | K41: 1 | L41: =SUM(Statewide!G7:G13)/Report!L42 -> 7045.032241 | M41: 1 | N41: =SUM(Statewide!H7:H13)/Report!N42 -> 7329.983338 | O41: 1 | P41: =SUM(Statewide!I7:I13)/Report!P42 -> 7548.35045 | Q41: 1 | R41: =SUM(Statewide!J7:J13)/Report!R42 -> 7715.620017 | S41: 1 | T41: =SUM(Statewide!K7:K13)/Report!T$42 -> 8000.508117 | U41: 1 | V41: =SUM(Statewide!L7:L13)/Report!V$42 -> 8324.05418 | W41: 1 | X41: =SUM(Statewide!M7:M13)/Report!X$42 -> 8836.488922 | Y41: 1 | Z41: =SUM(Statewide!N7:N13)/Report!Z$42 -> 9418.477813 | AA41: 1 | AB41: =SUM(Statewide!O7:O13)/Report!AB$42 -> 9970.194706 | AC41: 1 | AD41: =SUM(Statewide!P7:P13)/Report!AD$42 -> 9785.362118 | AE41: 1 | AF41: =SUM(Statewide!Q7:Q13)/Report!AF$42 -> 9944.907305 | AG41: 1 | AH41: =SUM(Statewide!R7:R13)/Report!AH$42 -> 9914.402855 | AI41: 1 | AJ41: =SUM(Statewide!S7:S13)/Report!AJ$42 -> 10052.46795 | AK41: 1 | AL41: =SUM(Statewide!T7:T13)/Report!AL$42 -> 10555.30973 | AM41: 1 | AN41: =SUM(Statewide!U7:U13)/Report!AN$42 -> 10950.6721 | AO41: 1 | AP41: =SUM(Statewide!V7:V13)/Report!AP$42 -> 11657.08348 | AQ41: 1 | AR41: =SUM(Statewide!W7:W13)/Report!AR$42 -> 12111.11157 | AS41: 1 | AT41: =SUM(Statewide!X7:X13)/Report!AT$42 -> 13091.53947 | AU41: 1 | AV41: =SUM(AV34:AV40) -> 14544.97797 | AW41: 1 | AX41: =SUM(AX34:AX40) -> 14983.63735 | AY41: 1 | AZ41: =SUM(AZ34:AZ40) -> 15899.30521 | BA41: 1 | BB41: =SUM(BB34:BB40) -> 17415.64027 | BC41: 1 | BD41: =SUM(BD34:BD40) -> 18544.51273 | BE41: 1 | BF41: =SUM(BF34:BF40) -> 19162.59726 | BG41: 1
A42: Total FTE Enrollment | B42: =+Statewide!B20 -> 904086.21 | D42: =+Statewide!C20 -> 923214.16 | F42: =+Statewide!D20 -> 936170.54 | H42: =+Statewide!E20 -> 946107.01 | J42: =+Statewide!F20 -> 948194.27 | L42: =+Statewide!G20 -> 950397.26 | N42: =+Statewide!H20 -> 955927.65 | P42: =+Statewide!I20 -> 958181.31 | R42: =+Statewide!J20 -> 961543.37 | T42: =+Statewide!K20 -> 965464.3 | V42: =+Statewide!L20 -> 970897.84 | X42: =+Statewide!M20 -> 972539.66 | Z42: =+Statewide!N20 -> 974605.76 | AB42: =+Statewide!O20 -> 980121.34 | AD42: =+Statewide!P20 -> 987336.18 | AF42: =+Statewide!Q20 -> 991502.19 | AH42: =+Statewide!R20 -> 997473.19 | AJ42: =+Statewide!S20 -> 1002074.3 | AL42: =+Statewide!T20 -> 1019752.43 | AN42: =+Statewide!U20 -> 1031553.62 | AP42: =+Statewide!V20 -> 1055850.98 | AR42: =+Statewide!W20 -> 1079889.35 | AT42: =VLOOKUP("Total",Statewide!$A$17:$BV$23,COLUMN(X:X),0) -> 1090905.61 | AV42: =VLOOKUP("Total",Statewide!$A$17:$BV$23,COLUMN(Y:Y),0) -> 1093913.03 | AX42: =VLOOKUP("Total",Statewide!$A$17:$BV$23,COLUMN(Z:Z),0) -> 1103195.31 | AZ42: =VLOOKUP("Total",Statewide!$A$17:$BV$23,COLUMN(AA:AA),0) -> 1063049.39 | BB42: =VLOOKUP("Total",Statewide!$A$17:$BV$23,COLUMN(AB:AB),0) -> 1060460.66 | BD42: =VLOOKUP("Total",Statewide!$A$17:$BV$23,COLUMN(AC:AC),0) -> 1066846.54 | BF42: =VLOOKUP("Total",Statewide!$A$17:$BV$23,COLUMN(AD:AD),0) -> 1072185.83
A44: ="Sources: enrollment data from OSPI School Apportionment and Financial Services (SAFS)--"&HLOOKUP(MAX(Enrollment!3:3),Enrollment!3:6,3,0)&" enrollment data are year-to-date data as of "&HLOOKUP(MAX(Enrollment!3:3),Enrollment!3:6,4,0)&";" -> Sources: enrollment data from OSPI School Apportionment and Financial Services (SAFS)--2023-24 enrollment data are year-to-date data as of January 2024;
A45: ="enrollment data exclude Skills Center Summer School, State Institutions, and pre-K Special Education; expenditure data from F195 and F196 reports from OSPI SAFS." -> enrollment data exclude Skills Center Summer School, State Institutions, and pre-K Special Education; expenditure data from F195 and F196 reports from OSPI SAFS.
A46: ="SY"&HLOOKUP(MAX(Enrollment!3:3),Enrollment!3:6,3,0)&" data exclude budget extensions." -> SY2023-24 data exclude budget extensions.
A47: Note: data displayed here differ from F196 report activity groups; Pupil Transpo is identified separately; Food Service Supervision (code 41) and
A48: Transportation Supervision (51) are displayed in their respective groups, while Plant Supervision (61) is included in Central Admin; Util/Plant/Ins/IS/Other
A49: includes all other activities in Utilities, Grounds Care, Plant Operation and Maintenance, Insurance, Information Systems, and Other Support activities.

Sheet Statewide (hidden)
A1: STATEWIDE DATA
A4: Sum of Sum of Amount | B4: SchoolYear | C4: VerTtl
B5: 1995-96 | C5: 1996-97 | D5: 1997-98 | E5: 1998-99 | F5: 1999-00 | G5: 2000-01 | H5: 2001-02 | I5: 2002-03 | J5: 2003-04 | K5: 2004-05 | L5: 2005-06 | M5: 2006-07 | N5: 2007-08 | O5: 2008-09 | P5: 2009-10 | Q5: 2010-11 | R5: 2011-12 | S5: 2012-13 | T5: 2013-14 | U5: 2014-15 | V5: 2015-16 | W5: 2016-17 | X5: 2017-18 | Y5: 2018-19 | Z5: 2019-20 | AA5: 2020-21 | AB5: 2021-22 | AC5: 2022-23 | AD5: 2023-24
A6: ActGroup2 | B6: Actual | C6: Actual | D6: Actual | E6: Actual | F6: Actual | G6: Actual | H6: Actual | I6: Actual | J6: Actual | K6: Actual | L6: Actual | M6: Actual | N6: Actual | O6: Actual | P6: Actual | Q6: Actual | R6: Actual | S6: Actual | T6: Actual | U6: Actual | V6: Actual | W6: Actual | X6: Actual | Y6: Actual | Z6: Actual | AA6: Actual | AB6: Actual | AC6: Actual | AD6: Budgeted (excluding extensions)
A7: Teaching | B7: 3271344730 | C7: 3418955718 | D7: 3576610513 | E7: 3696386896 | F7: 3861891548 | G7: 4075774893 | H7: 4272985928 | I7: 4412508110 | J7: 4524714437 | K7: 4701097040 | L7: 4890938846 | M7: 5209466934 | N7: 5575775792 | O7: 5992462446 | P7: 5936644948 | Q7: 6067120511 | R7: 5861211933 | S7: 5937301960 | T7: 6317759871 | U7: 6506894271 | V7: 7098412373 | W7: 7507342764 | X7: 8255344491 | Y7: 9407542521 | Z7: 9786539897 | AA7: 1.005349019e+10 | AB7: 1.065383e+10 | AC7: 1.134641209e+10 | AD7: 12086916464
A8: Teaching Support | B8: 414328730.3 | C8: 425464913.9 | D8: 480843158.8 | E8: 492593107.5 | F8: 527064661.6 | G8: 559262112.8 | H8: 577889182.7 | I8: 600469282.2 | J8: 617400990.8 | K8: 645994328.8 | L8: 680132731.5 | M8: 730595444.2 | N8: 778201972.1 | O8: 839039750 | P8: 821721417.7 | Q8: 832635527.6 | R8: 1024774840 | S8: 1071463992 | T8: 1171893875 | U8: 1373380959 | V8: 1539789630 | W8: 1702875787 | X8: 1834216562 | Y8: 2082137448 | Z8: 2154405599 | AA8: 2305245250 | AB8: 2545923323 | AC8: 2752922980 | AD8: 2726565936
A9: Food Services | B9: 176644934.2 | C9: 183083302.8 | D9: 191816903.9 | E9: 202237438.3 | F9: 213293091.2 | G9: 224631772.2 | H9: 238143814.7 | I9: 243440962.3 | J9: 255956908.7 | K9: 273376370.7 | L9: 282223380.4 | M9: 298638479.1 | N9: 318221173.7 | O9: 327552360.7 | P9: 329552231.4 | Q9: 338647279.9 | R9: 351090627.5 | S9: 356568519 | T9: 370661202.3 | U9: 377007814.2 | V9: 396521961.7 | W9: 406898949.6 | X9: 422311621.9 | Y9: 437539916.3 | Z9: 413482000 | AA9: 386119577.2 | AB9: 523372326.9 | AC9: 562559681.6 | AD9: 570475732
A10: Pupil Transpo | B10: 214273069.5 | C10: 221111700.4 | D10: 230996007.8 | E10: 237721951.1 | F10: 251249875.8 | G10: 265015033.4 | H10: 270092080 | I10: 281092170.2 | J10: 292114218.3 | K10: 315603986.4 | L10: 336523130.2 | M10: 353444585.1 | N10: 379072335.1 | O10: 386673596 | P10: 386262686.1 | Q10: 404735579.5 | R10: 410617050.1 | S10: 416844440.1 | T10: 432193517.3 | U10: 436543132.6 | V10: 453133593.8 | W10: 487190357.6 | X10: 540809285.6 | Y10: 590826186.5 | Z10: 615056133.9 | AA10: 466306147.8 | AB10: 661907344.6 | AC10: 745129111.9 | AD10: 748176830
A11: Util/Plant/Ins/IS/Other | B11: 610454455.8 | C11: 625635887.7 | D11: 652162625.4 | E11: 671276915.7 | F11: 707459931 | G11: 753824006.2 | H11: 795726891.3 | I11: 822593434.2 | J11: 843408801.5 | K11: 872291343.4 | L11: 920329161.6 | M11: 982813067.2 | N11: 1042081647 | O11: 1087302411 | P11: 1081083344 | Q11: 1109056855 | R11: 1125080025 | S11: 1144131515 | T11: 1232070345 | U11: 1297599518 | V11: 1383366460 | W11: 1443784013 | X11: 1557211657 | Y11: 1597800778 | Z11: 1674972056 | AA11: 1722766187 | AB11: 1965571566 | AC11: 2107870489 | AD11: 2098341262
A12: Unit Admin | B12: 342912954.5 | C12: 355614186.2 | D12: 363678372.5 | E12: 375081716.8 | F12: 392546926.2 | G12: 415347815.8 | H12: 426449520.9 | I12: 442881249.3 | J12: 451019488.1 | K12: 469504992.6 | L12: 490256089.5 | M12: 513868227.6 | N12: 544497197.9 | O12: 580301453.2 | P12: 564967493.2 | Q12: 572992412.3 | R12: 583163211.2 | S12: 602319441.8 | T12: 643250116.4 | U12: 680778810.4 | V12: 746937335.5 | W12: 800588427.2 | X12: 868147044.2 | Y12: 938123969.4 | Z12: 980575287.3 | AA12: 1021477865 | AB12: 1087615572 | AC12: 1158713733 | AD12: 1166646593
A13: Central Admin | B13: 334138390.5 | C13: 344922421.2 | D13: 360382153.5 | E13: 362274536.7 | F13: 378983579.8 | G13: 401723704.9 | H13: 425646328.5 | I13: 429703113.5 | J13: 434288427.7 | K13: 446336907 | L13: 481402883.3 | M13: 505009194.3 | N13: 541452609.5 | O13: 558668578.6 | P13: 541209933.6 | Q13: 535209207.7 | R13: 533413356.2 | S13: 544689917.1 | T13: 595973815.3 | U13: 624000946.6 | V13: 689981663.5 | W13: 729980105 | X13: 803593192.9 | Y13: 856970105.6 | Z13: 904847483.6 | AA13: 946341494.1 | AB13: 1030381244 | AC13: 1110541154 | AD13: 1148742426
A14: Grand Total | B14: 5364097265 | C14: 5574788130 | D14: 5856489735 | E14: 6037572562 | F14: 6332489613 | G14: 6695579338 | H14: 7006933746 | I14: 7232688322 | J14: 7418903273 | K14: 7724204969 | L14: 8081806223 | M14: 8593835932 | N14: 9179302727 | O14: 9772000596 | P14: 9661442054 | Q14: 9860397372 | R14: 9889351043 | S14: 1.007331978e+10 | T14: 1.076380274e+10 | U14: 1.129620545e+10 | V14: 1.230814302e+10 | W14: 1.30786604e+10 | X14: 1.428163386e+10 | Y14: 1.591094092e+10 | Z14: 1.652987846e+10 | AA14: 1.690174671e+10 | AB14: 1.846860137e+10 | AC14: 1.978414924e+10 | AD14: 20545865243
B15: =+B14-Report!B41*Report!B42 -> 0 | C15: =+C14-Report!D41*Report!D42 -> 0 | D15: =+D14-Report!F41*Report!F42 -> 0 | E15: =+E14-Report!H41*Report!H42 -> 0 | F15: =+F14-Report!J41*Report!J42 -> 0 | G15: =+G14-Report!L41*Report!L42 -> 0 | H15: =+H14-Report!N41*Report!N42 -> 0 | I15: =+I14-Report!P41*Report!P42 -> 0 | J15: =+J14-Report!R41*Report!R42 -> 0 | K15: =+K14-Report!T41*Report!T42 -> 0 | L15: =+L14-Report!V41*Report!V42 -> 0 | M15: =+M14-Report!X41*Report!X42 -> 0 | N15: =+N14-Report!Z41*Report!Z42 -> 0 | O15: =+O14-Report!AB41*Report!AB42 -> 0 | P15: =+P14-Report!AD41*Report!AD42 -> 0 | Q15: =+Q14-Report!AF41*Report!AF42 -> 0 | R15: =+R14-Report!AH41*Report!AH42 -> 0 | S15: =+S14-Report!AJ41*Report!AJ42 -> 0 | T15: =+T14-Report!AL41*Report!AL42 -> 0 | U15: =+U14-Report!AN41*Report!AN42 -> 0 | V15: =+V14-Report!AP41*Report!AP42 -> 0 | W15: =+W14-Report!AR41*Report!AR42 -> 0 | X15: =+X14-Report!AT41*Report!AT42 -> 0 | Y15: =+Y14-Report!AV41*Report!AV42 -> 0 | Z15: =+Z14-Report!AX41*Report!AX42 -> 0 | AA15: =+AA14-Report!AZ41*Report!AZ42 -> 0 | AB15: =+AB14-Report!BB41*Report!BB42 -> 0 | AC15: =+AC14-Report!BD41*Report!BD42 -> 0 | AD15: =+AD14-Report!BF41*Report!BF42 -> 0
A17: Sum of Sum of Amount | B17: SchoolYear | C17: VerTtl
B18: 1995-96 | C18: 1996-97 | D18: 1997-98 | E18: 1998-99 | F18: 1999-00 | G18: 2000-01 | H18: 2001-02 | I18: 2002-03 | J18: 2003-04 | K18: 2004-05 | L18: 2005-06 | M18: 2006-07 | N18: 2007-08 | O18: 2008-09 | P18: 2009-10 | Q18: 2010-11 | R18: 2011-12 | S18: 2012-13 | T18: 2013-14 | U18: 2014-15 | V18: 2015-16 | W18: 2016-17 | X18: 2017-18 | Y18: 2018-19 | Z18: 2019-20 | AA18: 2020-21 | AB18: 2021-22 | AC18: 2022-23 | AD18: 2023-24
B19: Final | C19: Final | D19: Final | E19: Final | F19: Final | G19: Final | H19: Final | I19: Final | J19: Final | K19: Final | L19: Final | M19: Final | N19: Final | O19: Final | P19: Final | Q19: Final | R19: Final | S19: Final | T19: Final | U19: Final | V19: Final | W19: Final | X19: Final | Y19: Final | Z19: Final | AA19: Final | AB19: Final | AC19: Final | AD19: January 2024
A20: Total | B20: 904086.21 | C20: 923214.16 | D20: 936170.54 | E20: 946107.01 | F20: 948194.27 | G20: 950397.26 | H20: 955927.65 | I20: 958181.31 | J20: 961543.37 | K20: 965464.3 | L20: 970897.84 | M20: 972539.66 | N20: 974605.76 | O20: 980121.34 | P20: 987336.18 | Q20: 991502.19 | R20: 997473.19 | S20: 1002074.3 | T20: 1019752.43 | U20: 1031553.62 | V20: 1055850.98 | W20: 1079889.35 | X20: 1090905.61 | Y20: 1093913.03 | Z20: 1103195.31 | AA20: 1063049.39 | AB20: 1060460.66 | AC20: 1066846.54 | AD20: 1072185.83
B21: =+B20-Report!B42 -> 0 | C21: =+C20-Report!D42 -> 0 | D21: =+D20-Report!F42 -> 0 | E21: =+E20-Report!H42 -> 0 | F21: =+F20-Report!J42 -> 0 | G21: =+G20-Report!L42 -> 0 | H21: =+H20-Report!N42 -> 0 | I21: =+I20-Report!P42 -> 0 | J21: =+J20-Report!R42 -> 0 | K21: =+K20-Report!T42 -> 0 | L21: =+L20-Report!V42 -> 0 | M21: =+M20-Report!X42 -> 0 | N21: =+N20-Report!Z42 -> 0 | O21: =+O20-Report!AB42 -> 0 | P21: =+P20-Report!AD42 -> 0 | Q21: =+Q20-Report!AF42 -> 0 | R21: =+R20-Report!AH42 -> 0 | S21: =+S20-Report!AJ42 -> 0 | T21: =+T20-Report!AL42 -> 0 | U21: =+U20-Report!AN42 -> 0 | V21: =+V20-Report!AP42 -> 0 | W21: =+W20-Report!AR42 -> 0 | X21: =+X20-Report!AT42 -> 0 | Y21: =+Y20-Report!AV42 -> 0 | Z21: =+Z20-Report!AX42 -> 0 | AA21: =+AA20-Report!AZ42 -> 0 | AB21: =+AB20-Report!BB42 -> 0 | AC21: =+AC20-Report!BD42 -> 0 | AD21: =+AD20-Report!BF42 -> 0
A31: Sum of Sum of Amount | D31: SchoolYear | E31: VerTtl
D32: 1995-96 | E32: 1996-97 | F32: 1997-98 | G32: 1998-99 | H32: 1999-00 | I32: 2000-01 | J32: 2001-02 | K32: 2002-03 | L32: 2003-04 | M32: 2004-05 | N32: 2005-06 | O32: 2006-07 | P32: 2007-08 | Q32: 2008-09 | R32: 2009-10 | S32: 2010-11 | T32: 2011-12 | U32: 2012-13 | V32: 2013-14 | W32: 2014-15 | X32: 2015-16 | Y32: 2016-17 | Z32: 2017-18 | AA32: 2018-19 | AB32: 2019-20 | AC32: 2020-21 | AD32: 2021-22 | AE32: 2022-23 | AF32: 2023-24
A33: ActGroup2 | B33: ActivityTitle | C33: ActivityShortTitle | D33: Actual | E33: Actual | F33: Actual | G33: Actual | H33: Actual | I33: Actual | J33: Actual | K33: Actual | L33: Actual | M33: Actual | N33: Actual | O33: Actual | P33: Actual | Q33: Actual | R33: Actual | S33: Actual | T33: Actual | U33: Actual | V33: Actual | W33: Actual | X33: Actual | Y33: Actual | Z33: Actual | AA33: Actual | AB33: Actual | AC33: Actual | AD33: Actual | AE33: Actual | AF33: Budgeted (excluding extensions)
A34: Teaching | B34: 27 Teaching | C34: Teaching | D34: 3157613938 | E34: 3299792816 | F34: 3445280828 | G34: 3562350865 | H34: 3718622146 | I34: 3924366849 | J34: 4115714761 | K34: 4251856212 | L34: 4358816057 | M34: 4527776434 | N34: 4710587012 | O34: 5020760325 | P34: 5369761849 | Q34: 5775862890 | R34: 5733027785 | S34: 5860944022 | T34: 5654816579 | U34: 5722909953 | V34: 6091003170 | W34: 6268570338 | X34: 6840119338 | Y34: 7235340283 | Z34: 7969083456 | AA34: 9105078618 | AB34: 9518215600 | AC34: 9834179221 | AD34: 1.033784916e+10 | AE34: 10988856520 | AF34: 11743730466
B35: 28 Extracurricular | C35: Extracurricular | D35: 97754367.27 | E35: 101560305.1 | F35: 108429508.2 | G35: 112055884.6 | H35: 121119594.3 | I35: 127995581.1 | J35: 131070665.2 | K35: 136486244.8 | L35: 139238310.5 | M35: 144977884 | N35: 151116961.6 | O35: 159592181.4 | P35: 172732082.2 | Q35: 177188215.8 | R35: 166314588.2 | S35: 166109692.9 | T35: 169009466.5 | U35: 174848832.7 | V35: 185509762.6 | W35: 195069592.2 | X35: 212546448.2 | Y35: 224592485.4 | Z35: 241157257.2 | AA35: 253013116.7 | AB35: 234064342.1 | AC35: 186017219.7 | AD35: 281389303.1 | AE35: 317558745.4 | AF35: 304231878
B36: 29 Payments to Other Districts | C36: Payments to Other Dists | D36: 15976424.66 | E36: 17602596.74 | F36: 22900176.99 | G36: 21980146.54 | H36: 22149807.58 | I36: 23412462.68 | J36: 26200502 | K36: 24165653.84 | L36: 26660070.24 | M36: 28342721.7 | N36: 29234872.36 | O36: 29114428.31 | P36: 33281860.25 | Q36: 39411340.91 | R36: 37302574.89 | S36: 40066795.61 | T36: 37385886.97 | U36: 39543173.9 | V36: 41246937.97 | W36: 43254340.66 | X36: 45746586.39 | Y36: 47409995.45 | Z36: 45103777.59 | AA36: 49450785.6 | AB36: 34259954.46 | AC36: 33293748.32 | AD36: 34591535.74 | AE36: 39996828.64 | AF36: 38954120
A37: Teaching Total | D37: 3271344730 | E37: 3418955718 | F37: 3576610513 | G37: 3696386896 | H37: 3861891548 | I37: 4075774893 | J37: 4272985928 | K37: 4412508110 | L37: 4524714437 | M37: 4701097040 | N37: 4890938846 | O37: 5209466934 | P37: 5575775792 | Q37: 5992462446 | R37: 5936644948 | S37: 6067120511 | T37: 5861211933 | U37: 5937301960 | V37: 6317759871 | W37: 6506894271 | X37: 7098412373 | Y37: 7507342764 | Z37: 8255344491 | AA37: 9407542521 | AB37: 9786539897 | AC37: 1.005349019e+10 | AD37: 1.065383e+10 | AE37: 1.134641209e+10 | AF37: 12086916464
A38: Teaching Support | B38: 22 Learning Resources | C38: Learning Resources | D38: 123046200.4 | E38: 122825548.4 | F38: 136791078.8 | G38: 134453331.7 | H38: 136876829.6 | I38: 141345864.5 | J38: 144394353.6 | K38: 148262632.2 | L38: 147752388.3 | M38: 150097643.4 | N38: 154774283.1 | O38: 161021355.5 | P38: 165479260.6 | Q38: 178383403.4 | R38: 162716478.2 | S38: 160478631.3 | T38: 150786891 | U38: 148833756 | V38: 151922220.7 | W38: 155749858.4 | X38: 167515012.2 | Y38: 173092678.6 | Z38: 182186947.9 | AA38: 196298254.4 | AB38: 176384566.2 | AC38: 171649473 | AD38: 180179624.1 | AE38: 186380916.5 | AF38: 184308247
B39: 24 Guidance & Counseling | C39: Guidance & Counseling | D39: 146473371.5 | E39: 151707284.7 | F39: 153449174.5 | G39: 153179350.2 | H39: 163903139.4 | I39: 172497592.8 | J39: 177918931.2 | K39: 183186566.6 | L39: 187386939.5 | M39: 194557438.7 | N39: 202440100.2 | O39: 217191011.4 | P39: 229924050.3 | Q39: 245123684.5 | R39: 238495856.7 | S39: 240871506 | T39: 236631960.7 | U39: 241825315.6 | V39: 258072457.2 | W39: 274428131.5 | X39: 308573339.5 | Y39: 346056688.2 | Z39: 378028527.8 | AA39: 449876460.3 | AB39: 469476320.5 | AC39: 491829946.1 | AD39: 546659905.8 | AE39: 614810389.8 | AF39: 638982360
B40: 25 Psychological, Speech and Hearing Svcs | C40: Psych, Speech, & Hearing | D40: 92051085.38 | E40: 97368621.75
B41: 25 Pupil Management & Safety | C41: Pupil Management & Safety | F41: 40905192.36 | G41: 40703004.29 | H41: 46877261.4 | I41: 51698160.56 | J41: 52576980.3 | K41: 53192235.64 | L41: 55792275.64 | M41: 60007793.31 | N41: 65540582.79 | O41: 72287318.98 | P41: 80172079.59 | Q41: 87117628.58 | R41: 85632490.28 | S41: 88330166.15 | T41: 87542252.86 | U41: 90008490.89 | V41: 99301854.96 | W41: 109637807.7 | X41: 118508472.2 | Y41: 155300427.8 | Z41: 144115688.4 | AA41: 160676221.7 | AB41: 179431791.4 | AC41: 163802164 | AD41: 206425409.1 | AE41: 224506029.4 | AF41: 235465739
B42: 26 Health Related | C42: Health Related | F42: 149697713.1 | G42: 164257421.4 | H42: 179407431.2 | I42: 193720494.8 | J42: 202998917.7 | K42: 215827847.7 | L42: 226469387.4 | M42: 241331453.4 | N42: 257377765.4 | O42: 280095758.2 | P42: 302626581.6 | Q42: 328415033.4 | R42: 334876592.5 | S42: 342955224.2 | T42: 346762057.4 | U42: 352507467.9 | V42: 380433680.2 | W42: 396595597.4 | X42: 436434522.1 | Y42: 467210289.3 | Z42: 531156399.8 | AA42: 612906744.6 | AB42: 660292473.8 | AC42: 701030278 | AD42: 780893366.3 | AE42: 863268708.2 | AF42: 884679411
B43: 26 Health Services | C43: Health Services | D43: 52758072.97 | E43: 53563459.04
B44: 31 Instructional Professional Development | C44: Instruct Professional Dev | T44: 168178647.1 | U44: 191597253.5 | V44: 227725574.5 | W44: 264793934.5 | X44: 317405376.3 | Y44: 348448739 | Z44: 379508681.2 | AA44: 393780680.3 | AB44: 363155334 | AC44: 347203536.1 | AD44: 398960008.7 | AE44: 430106216.2 | AF44: 438174535
B45: 32 Instructional Technology | C45: Instructional Technology | T45: 34873031.47 | U45: 46691707.75 | V45: 54438087.45 | W45: 76508980.64 | X45: 79162733.53 | Y45: 84094929.77 | Z45: 93329040.53 | AA45: 99000730.2 | AB45: 114142280.5 | AC45: 166248691.3 | AD45: 175395426.5 | AE45: 136593797.3 | AF45: 101303576
B46: 33 Curriculum | C46: Curriculum | W46: 95666648.36 | X46: 112190174.1 | Y46: 128672034.7 | Z46: 125891276.6 | AA46: 132727825.2 | AB46: 119699922.1 | AC46: 133577296.8 | AD46: 147593825.5 | AE46: 170966234.8 | AF46: 156559067
B47: 34 Professional Learning State | C47: Professional Learning St | AA47: 36870531.76 | AB47: 71822910.14 | AC47: 109592990 | AD47: 109751697 | AE47: 126228176.4 | AF47: 87089801
B48: 58 Remote Learning Operations | C48: Remote Learning Operation | AC48: 20310874.67 | AD48: 64059.94 | AE48: 62511.38 | AF48: 3200
A49: Teaching Support Total | D49: 414328730.3 | E49: 425464913.9 | F49: 480843158.8 | G49: 492593107.5 | H49: 527064661.6 | I49: 559262112.8 | J49: 577889182.7 | K49: 600469282.2 | L49: 617400990.8 | M49: 645994328.8 | N49: 680132731.5 | O49: 730595444.2 | P49: 778201972.1 | Q49: 839039750 | R49: 821721417.7 | S49: 832635527.6 | T49: 1024774841 | U49: 1071463992 | V49: 1171893875 | W49: 1373380959 | X49: 1539789630 | Y49: 1702875787 | Z49: 1834216562 | AA49: 2082137448 | AB49: 2154405599 | AC49: 2305245250 | AD49: 2545923323 | AE49: 2752922980 | AF49: 2726565936
A50: Food Services | B50: 41 Supervision - Nutrition Services | C50: Supervision - Nutrition | D50: 11598640.41 | E50: 12705413.83 | F50: 13097077.02 | G50: 13436695.18 | H50: 14647486.84 | I50: 15588512.06 | J50: 16286519.37 | K50: 17135214.75 | L50: 17846591.64 | M50: 19310861.26 | N50: 21287606.39 | O50: 23230887.66 | P50: 24956460.68 | Q50: 26229428.48 | R50: 26209746.83 | S50: 27075458.46 | T50: 26368851.63 | U50: 29123282.89 | V50: 29615150.18 | W50: 30734907.7 | X50: 33210070.56 | Y50: 34136383.91 | Z50: 35370088.22 | AA50: 38162428.82 | AB50: 38656988.57 | AC50: 37969018.12 | AD50: 44075100.39 | AE50: 46726936.88 | AF50: 48792456
B51: 42 Food | C51: Food | D51: 66583751.07 | E51: 70828322.96 | F51: 72827974.43 | G51: 77031342.16 | H51: 81854452.3 | I51: 82181291.8 | J51: 88082332.22 | K51: 102135046.4 | L51: 111037766.1 | M51: 118370834.1 | N51: 120011414.2 | O51: 125009440.1 | P51: 136503282.6 | Q51: 137386643.8 | R51: 135997101.3 | S51: 139753979.2 | T51: 146964474.6 | U51: 143858646.9 | V51: 151940502.3 | W51: 150418602.7 | X51: 154737356.9 | Y51: 157390989.6 | Z51: 157925050.9 | AA51: 157326067.1 | AB51: 161654727.5 | AC51: 123713768.1 | AD51: 186224161.3 | AE51: 208153536.9 | AF51: 189264471
B52: 43 Commodities | C52: Commodities | D52: 12498229.3 | E52: 11968569.75 | F52: 13268255.67 | G52: 13936957.54 | H52: 13464832.56 | I52: 15597483.13 | J52: 16067488.2
B53: 44 Food Service Operations | C53: Food Service Operations | D53: 88129925.51 | E53: 90135124.8 | F53: 95498401.9 | G53: 100088861.8 | H53: 105956695.6 | I53: 114707777.5 | J53: 121082918.1 | K53: 127317862.3 | L53: 130549398.7 | M53: 139394123.4 | N53: 144911845.1 | O53: 154429824.1 | P53: 160914353.3 | Q53: 167976959.6 | R53: 171108788 | S53: 175771440.1 | T53: 181835603.1 | U53: 187944013 | V53: 193647278.8 | W53: 200575034.7 | X53: 213559142.7 | Y53: 220550298.5 | Z53: 234645345.4 | AA53: 247671733 | AB53: 299441379.1 | AC53: 231809380.9 | AD53: 295386284.8 | AE53: 310451191.7 | AF53: 335034093
B54: 49 Food Services Transfers | C54: Food Services Transfers | D54: -2165612.1 | E54: -2554128.49 | F54: -2874805.07 | G54: -2256418.43 | H54: -2630376.03 | I54: -3443292.22 | J54: -3375443.22 | K54: -3147161.11 | L54: -3476847.64 | M54: -3699448.04 | N54: -3987485.33 | O54: -4031672.67 | P54: -4152922.86 | Q54: -4040671.15 | R54: -3763404.8 | S54: -3953597.88 | T54: -4078301.87 | U54: -4357423.79 | V54: -4541728.99 | W54: -4720730.92 | X54: -4984608.57 | Y54: -5178722.41 | Z54: -5628862.68 | AA54: -5620312.6 | AB54: -86271095.2 | AC54: -7372589.93 | AD54: -2313219.57 | AE54: -2771983.94 | AF54: -2615288
A55: Food Services Total | D55: 176644934.2 | E55: 183083302.8 | F55: 191816904 | G55: 202237438.3 | H55: 213293091.2 | I55: 224631772.2 | J55: 238143814.7 | K55: 243440962.3 | L55: 255956908.7 | M55: 273376370.7 | N55: 282223380.4 | O55: 298638479.1 | P55: 318221173.7 | Q55: 327552360.7 | R55: 329552231.4 | S55: 338647279.9 | T55: 351090627.5 | U55: 356568519 | V55: 370661202.3 | W55: 377007814.2 | X55: 396521961.7 | Y55: 406898949.6 | Z55: 422311621.9 | AA55: 437539916.3 | AB55: 413482000 | AC55: 386119577.2 | AD55: 523372326.9 | AE55: 562559681.6 | AF55: 570475732
A56: Pupil Transpo | B56: 51 Supervision - Transportation | C56: Supervision - Transpo | D56: 21828804.47 | E56: 22720698.77 | F56: 23614175.27 | G56: 24073321.82 | H56: 25089799.89 | I56: 26906980.63 | J56: 29312800.6 | K56: 29199717.51 | L56: 30081584.07 | M56: 31994467.68 | N56: 34162773.06 | O56: 36151464.86 | P56: 39109122.95 | Q56: 40512931.03 | R56: 39621914.22 | S56: 39902694.87 | T56: 40260389.28 | U56: 41614635.43 | V56: 44289340.08 | W56: 47076001.48 | X56: 51695835.59 | Y56: 56419165.37 | Z56: 62076008.79 | AA56: 68188940.4 | AB56: 71031177.7 | AC56: 69208537.27 | AD56: 75359902.71 | AE56: 82502887.63 | AF56: 83414591
B57: 52 Operations - Transportation | C57: Operations - Transpo | D57: 166893291.3 | E57: 172538274.3 | F57: 182405621.5 | G57: 188869620.6 | H57: 201540839.2 | I57: 215051362.2 | J57: 217849634.6 | K57: 229833650.2 | L57: 239195869.8 | M57: 259696699.9 | N57: 279713806.1 | O57: 293804486.5 | P57: 320774184.8 | Q57: 321550113.6 | R57: 321150542.1 | S57: 338858379.1 | T57: 343218685.4 | U57: 346302027.2 | V57: 358173362.1 | W57: 357877633.1 | X57: 369529729.2 | Y57: 396108858.6 | Z57: 443046072 | AA57: 479000006.7 | AB57: 479713993.1 | AC57: 335750366.5 | AD57: 532444707.6 | AE57: 610761363.6 | AF57: 598387683
B58: 53 Maintenance - Transportation | C58: Maintenance - Transpo | D58: 36194077.27 | E58: 37417602.85 | F58: 40282561.46 | G58: 40645609.59 | H58: 42090822.72 | I58: 41845272.15 | J58: 42325770.7 | K58: 43252699.05 | L58: 43727525.51 | M58: 45399147.51 | N58: 46252868.75 | O58: 48800224.12 | P58: 48766488.13 | Q58: 50495451.99 | R58: 49559181.59 | S58: 50523646.05 | T58: 51963013.99 | U58: 54004490.32 | V58: 55345784.42 | W58: 59109367.6 | X58: 62743684.19 | Y58: 63589129.59 | Z58: 68743588.17 | AA58: 74800979.32 | AB58: 76425728.89 | AC58: 63184946.04 | AD58: 74005280.02 | AE58: 84083435.62 | AF58: 82683070
B59: 54 Garage - Operation and Maintenance | C59: Garage - Ops & Maint | D59: 2532277.13 | E59: 2574504.25
B60: 55 Payments In-Lieu-of Transportation | C60: Pay In-Lieu-of Transpo | D60: 740889.44 | E60: 592636.23
B61: 56 Insurance - Transportation | C61: Insurance - Transpo | D61: 2998767.68 | E61: 3013796.96 | F61: 3339804.17 | G61: 3350303.58 | H61: 3162637.23 | I61: 3569061.78 | J61: 4106033.68 | K61: 4210153.94 | L61: 4541807.01 | M61: 4842004.86 | N61: 5158414.14 | O61: 5267800.58 | P61: 5497723.54 | Q61: 6231188.42 | R61: 6496316.72 | S61: 7111887.45 | T61: 7312590.63 | U61: 7736476.19 | V61: 8301838.4 | W61: 8356818.01 | X61: 8573484.58 | Y61: 8868152.17 | Z61: 9537504.57 | AA61: 11088822.79 | AB61: 12888667.78 | AC61: 13503617.81 | AD61: 14858210.31 | AE61: 15324525.27 | AF61: 18052553
B62: 59 Transportation Transfers | C62: Transportation Transfers | D62: -16915037.85 | E62: -17745812.96 | F62: -18646154.58 | G62: -19216904.4 | H62: -20634223.26 | I62: -22357643.32 | J62: -23502159.52 | K62: -25404050.52 | L62: -25432568.1 | M62: -26328333.59 | N62: -28764731.78 | O62: -30579391.02 | P62: -35075184.29 | Q62: -32116089 | R62: -30565268.54 | S62: -31661027.99 | T62: -32137629.15 | U62: -32813189.1 | V62: -33916807.69 | W62: -35876687.6 | X62: -39409139.77 | Y62: -37794948.19 | Z62: -42593887.87 | AA62: -42252562.73 | AB62: -25003433.6 | AC62: -15341319.77 | AD62: -34760756.01 | AE62: -47543100.25 | AF62: -34361067
A63: Pupil Transpo Total | D63: 214273069.5 | E63: 221111700.4 | F63: 230996007.8 | G63: 237721951.1 | H63: 251249875.8 | I63: 265015033.4 | J63: 270092080 | K63: 281092170.2 | L63: 292114218.3 | M63: 315603986.4 | N63: 336523130.2 | O63: 353444585.1 | P63: 379072335.1 | Q63: 386673596 | R63: 386262686.1 | S63: 404735579.5 | T63: 410617050.1 | U63: 416844440.1 | V63: 432193517.3 | W63: 436543132.6 | X63: 453133593.8 | Y63: 487190357.6 | Z63: 540809285.6 | AA63: 590826186.5 | AB63: 615056133.9 | AC63: 466306147.8 | AD63: 661907344.6 | AE63: 745129111.9 | AF63: 748176830
A64: Unit Admin | B64: 23 Principal's Office | C64: Principal's Office | D64: 342912954.5 | E64: 355614186.2 | F64: 363678372.5 | G64: 375081716.8 | H64: 392546926.2 | I64: 415347815.8 | J64: 426449520.9 | K64: 442881249.3 | L64: 451019488.1 | M64: 469504992.6 | N64: 490256089.5 | O64: 513868227.6 | P64: 544497197.9 | Q64: 580301453.2 | R64: 564967493.2 | S64: 572992412.3 | T64: 583163211.2 | U64: 602319441.8 | V64: 643250116.4 | W64: 680778810.4 | X64: 746937335.5 | Y64: 800588427.2 | Z64: 868147044.2 | AA64: 938123969.4 | AB64: 980575287.3 | AC64: 1021477865 | AD64: 1087615572 | AE64: 1158713733 | AF64: 1166646593
A65: Unit Admin Total | D65: 342912954.5 | E65: 355614186.2 | F65: 363678372.5 | G65: 375081716.8 | H65: 392546926.2 | I65: 415347815.8 | J65: 426449520.9 | K65: 442881249.3 | L65: 451019488.1 | M65: 469504992.6 | N65: 490256089.5 | O65: 513868227.6 | P65: 544497197.9 | Q65: 580301453.2 | R65: 564967493.2 | S65: 572992412.3 | T65: 583163211.2 | U65: 602319441.8 | V65: 643250116.4 | W65: 680778810.4 | X65: 746937335.5 | Y65: 800588427.2 | Z65: 868147044.2 | AA65: 938123969.4 | AB65: 980575287.3 | AC65: 1021477865 | AD65: 1087615572 | AE65: 1158713733 | AF65: 1166646593
A66: Util/Plant/Ins/IS/Other | B66: 61 Supervision - Maintenance & Operation | C66: Supervision - Maint & Ops | D66: 17440198.14 | E66: 18236791.2 | F66: 19408394.47 | G66: 19381380.19 | H66: 20544548.29 | I66: 21823689.35 | J66: 22914224.58 | K66: 24339157.36 | L66: 24551663.3 | M66: 25088251.24 | N66: 26591163.84 | O66: 28335484.68 | P66: 30445752.14 | Q66: 30984155.67 | R66: 30593236.42 | S66: 30242181.36 | T66: 29796801.44 | U66: 32145956.79 | V66: 33988809.31 | W66: 36981925.2 | X66: 43161970.63 | Y66: 46072868.4 | Z66: 51301687.94 | AA66: 53082313.14 | AB66: 55486469.57 | AC66: 56492910.31 | AD66: 60565484.02 | AE66: 64754264.27 | AF66: 71951239
B67: 62 Grounds Maintenance | C67: Grounds Maintenance | D67: 31463356.82 | E67: 32118303.31 | F67: 33563315.61 | G67: 33456530.55 | H67: 35835477.62 | I67: 37999197.19 | J67: 39493333.12 | K67: 39934633.9 | L67: 40409495.55 | M67: 43203104.44 | N67: 44574734.29 | O67: 47882144.03 | P67: 50688066.23 | Q67: 53058671.34 | R67: 51778975.7 | S67: 51939232.5 | T67: 54081832.81 | U67: 57339437.32 | V67: 60815362.73 | W67: 71403443.64 | X67: 70825552.73 | Y67: 74800290.36 | Z67: 79823417.23 | AA67: 82560100.51 | AB67: 81423756.63 | AC67: 83096587.2 | AD67: 93714020.8 | AE67: 97427158.91 | AF67: 99510246
B68: 63 Operation of Buildings | C68: Operation of Buildings | D68: 192062911.8 | E68: 195490677.2 | F68: 205203514 | G68: 210472415.8 | H68: 220070428.3 | I68: 232111155.9 | J68: 240295528.7 | K68: 251117997.4 | L68: 255092241.4 | M68: 267495552 | N68: 279650061.8 | O68: 296054711.4 | P68: 311974268.6 | Q68: 326973500.5 | R68: 322103641.7 | S68: 325686465 | T68: 327176607.6 | U68: 330401987.6 | V68: 345341078.3 | W68: 358239548.7 | X68: 382851387.6 | Y68: 402562279.9 | Z68: 431542897.4 | AA68: 460514965 | AB68: 476824472.3 | AC68: 504091624.5 | AD68: 559250467.2 | AE68: 575016867.3 | AF68: 589538364
B69: 64 Maintenance of Plant & Equipment | C69: Maint - Plant & Equipment | D69: 118621450.8 | E69: 123254481.6 | F69: 130065172.1 | G69: 133507796.4 | H69: 137426830.2 | I69: 137640860.4 | J69: 143172138.7 | K69: 151691210.3 | L69: 141754133.7 | M69: 144092978.2 | N69: 144612038.3 | O69: 153486778.7 | P69: 163559097.7 | Q69: 168475807.9 | R69: 179691873.1 | S69: 182473119.3 | T69: 184209133.2 | U69: 188299885.9 | V69: 209671215.8 | W69: 224331312.1 | X69: 245267166.1 | Y69: 246374089.4 | Z69: 270804764 | AA69: 264330212.5 | AB69: 257532072.5 | AC69: 269455579.5 | AD69: 335359660.5 | AE69: 328859723.8 | AF69: 311436019
B70: 65 Utilities | C70: Utilities | D70: 135398884.8 | E70: 138027122.4 | F70: 140781574.5 | G70: 149640711.1 | H70: 156841237 | I70: 175150548.9 | J70: 188130070.6 | K70: 185356587.9 | L70: 193934777.8 | M70: 199559385.6 | N70: 217416994.1 | O70: 230805175.2 | P70: 235729365.4 | Q70: 244242970.9 | R70: 229333313.8 | S70: 235766509.3 | T70: 236726934.3 | U70: 230701136.4 | V70: 244437051.1 | W70: 243900783.7 | X70: 245282988.9 | Y70: 261208330.1 | Z70: 266749825.5 | AA70: 269325491.6 | AB70: 257795788.9 | AC70: 268664483.4 | AD70: 315472211.6 | AE70: 339052042.2 | AF70: 325863077
B71: 66 Rentals of Land & Buildings | C71: Rentals - Land & Bldgs | D71: 1643276.57 | E71: 1739338.54 | AF71: 588178
B72: 67 Building & Property Security | C72: Bldg & Property Security | D72: 8318092.82 | E72: 7843955.66 | F72: 7040041.08 | G72: 7643822.64 | H72: 8818253.03 | I72: 8618529.33 | J72: 9822921.37 | K72: 10116877.13 | L72: 10638214.57 | M72: 12664610.11 | N72: 12249304.97 | O72: 13644243.19 | P72: 15220028.32 | Q72: 15003148.43 | R72: 15736628.69 | S72: 16209644.53 | T72: 16175848.5 | U72: 18215675.78 | V72: 18883410.3 | W72: 25645460.46 | X72: 22054674.12 | Y72: 23176113.49 | Z72: 26075036.3 | AA72: 28050438.72 | AB72: 28583212.44 | AC72: 24442993.88 | AD72: 28994281.07 | AE72: 33460194.77 | AF72: 33808390
B73: 68 Insurance - Except Transportation | C73: Insurance - Excl Transpo | D73: 29073570.87 | E73: 29042935.87 | F73: 27934604.32 | G73: 26641129.76 | H73: 27430210.72 | I73: 28233174.41 | J73: 32514745.22 | K73: 35900099.79 | L73: 45788600.66 | M73: 44852640.87 | N73: 46041694.67 | O73: 47737078.13 | P73: 48316470.89 | Q73: 52377793.31 | R73: 55209685.51 | S73: 60963211.14 | T73: 63473467.99 | U73: 65016233.49 | V73: 69060578.72 | W73: 71131493.04 | X73: 75635489.01 | Y73: 75612166.23 | Z73: 90042598.03 | AA73: 101947455.5 | AB73: 116160293.1 | AC73: 129576826 | AD73: 151513344.6 | AE73: 175489573.7 | AF73: 196195134
B74: 69 Depreciation Sub-Fund for Facility Maintenance | C74: Depr. Sub-Fund for F&M | AF74: 50000
B75: 72 Information Systems | C75: Information Systems | D75: 40519090.67 | E75: 43371454.23 | F75: 49418205.66 | G75: 52854789.25 | H75: 59622952.34 | I75: 66718022.25 | J75: 74982748.69 | K75: 77777810.38 | L75: 84006007.93 | M75: 86190766.42 | N75: 94456701.92 | O75: 107872300.3 | P75: 123307758.3 | Q75: 133317317.1 | R75: 136472644 | S75: 140536505.5 | T75: 149320188.5 | U75: 154758514.4 | V75: 180339872.9 | W75: 190762110.2 | X75: 209662244.5 | Y75: 219296787.4 | Z75: 238905658.8 | AA75: 237043382.6 | AB75: 270533320.8 | AC75: 298578802.9 | AD75: 310689925.7 | AE75: 342162570.8 | AF75: 347206760
B76: 73 Printing | C76: Printing | D76: 6434426.5 | E76: 6542008.27 | F76: 7316778.77 | G76: 6554659.5 | H76: 7577917.27 | I76: 8107989.27 | J76: 8308465.17 | K76: 9007850.07 | L76: 8865639.33 | M76: 9828067.41 | N76: 9322106.75 | O76: 8702260.83 | P76: 9265305.01 | Q76: 9393665.76 | R76: 8342053.81 | S76: 9246600.74 | T76: 8143450.43 | U76: 7918283.5 | V76: 8267031.73 | W76: 8003853.3 | X76: 8505437.89 | Y76: 10312541.63 | Z76: 9972669.18 | AA76: 10226530.61 | AB76: 10209748.09 | AC76: 9956148.09 | AD76: 9547038.5 | AE76: 8475420.73 | AF76: 11507540
B77: 74 Warehousing & Distribution | C77: Warehousing/Distribution | D77: 10635564.68 | E77: 10820225.41 | F77: 11012757.04 | G77: 11261686.16 | H77: 11292306.46 | I77: 12194421.01 | J77: 12099787.85 | K77: 12185745.34 | L77: 12250648.75 | M77: 12300366.56 | N77: 13066680.44 | O77: 13141968.95 | P77: 14370206.97 | Q77: 14562211.98 | R77: 13540667.63 | S77: 13714449.23 | T77: 13439640.84 | U77: 13888884.19 | V77: 14440070.37 | W77: 15708852.53 | X77: 16141159.37 | Y77: 16455610.83 | Z77: 18142301.13 | AA77: 18907823.07 | AB77: 20455448.63 | AC77: 20715783.23 | AD77: 21547219.82 | AE77: 22597826.31 | AF77: 23012829
B78: 75 Motor Pool | C78: Motor Pool | D78: 3466389.73 | E78: 3663663.83 | F78: 3444907.87 | G78: 3083588.57 | H78: 3694435.91 | I78: 4153737.32 | J78: 3571434.23 | K78: 3947125.85 | L78: 3890774.49 | M78: 4538723.64 | N78: 4941298.03 | O78: 4876614.9 | P78: 6296218.8 | Q78: 5348893.33 | R78: 5060919.34 | S78: 6708108.56 | T78: 5845060.26 | U78: 6076386.43 | V78: 7597878.15 | W78: 7595582.78 | X78: 9764668.1 | Y78: 10372857.16 | Z78: 12472546.86 | AA78: 11300381.14 | AB78: 10737729.87 | AC78: 9569534.09 | AD78: 12663107.54 | AE78: 13998214.87 | AF78: 15710846
B79: 82 Warrant Interest | C79: Warrant Interest | D79: 71577.78 | E79: 73077.11
B80: 83 Other Interest | C80: Other Interest | D80: 841215.76 | E80: 556965.9 | F80: 533830.54 | G80: 488323.18 | H80: 544736.68 | I80: 607881.8 | J80: 448485.91 | K80: 362628.29 | L80: 300093.33 | M80: 341957.92 | N80: 409999.28 | O80: 617243.89 | P80: 339322.6 | Q80: 183007.38 | R80: 210062.94 | S80: 103937.58 | T80: 87181.59 | U80: 92435.62 | V80: 92397.96 | W80: 142527.03 | X80: 187569.91 | Y80: 172338.75 | Z80: 305860.27 | AA80: 238918.69 | AB80: 171526.18 | AC80: 209187.79 | AD80: 2962449.44 | AE80: 3293043.83 | AF80: 2030191
B81: 84 Principal | C81: Principal | D81: 1582806.21 | E81: 1220219.1 | F81: 1575018.91 | G81: 1462523.15 | H81: 1555345.07 | I81: 2320279.61 | J81: 1497326.8 | K81: 1470743.36 | L81: 1488974.4 | M81: 1501813.37 | N81: 1645295.1 | O81: 1582840.15 | P81: 1529851.48 | Q81: 1333911.16 | R81: 1185045.96 | S81: 1078654.09 | T81: 808885.51 | U81: 1231818.09 | V81: 1533414.85 | W81: 3136359.4 | X81: 4847584.54 | Y81: 6636178.44 | Z81: 6511755.72 | AA81: 6408816.16 | AB81: 8697610.27 | AC81: 8305156.69 | AD81: 19797758.41 | AE81: 33333094.12 | AF81: 10217034
B82: 85 Debt-Related Expenditures | C82: Debt-Related Expenditures | F82: 23177.21 | G82: 7179.6 | H82: 10813.19 | I82: 1319.7 | J82: 6171.56 | K82: 5179.49 | L82: 90295.7 | M82: 26125.04 | N82: 12093.78 | O82: 11190.98 | P82: 11633.57 | Q82: 8222.49 | R82: 10605.68 | S82: 25341.51 | T82: 32858.89 | U82: 12415.19 | V82: 11560.35 | W82: 63772.3 | X82: 112317.71 | Y82: 5088.54 | Z82: 199830.87 | AA82: 127260.29 | AB82: 4018.72 | AC82: 6971.5 | AD82: 815674.91 | AE82: 22555189.69 | AF82: 7330086
B83: 91 Public Activities | C83: Public Activities | D83: 12881641.81 | E83: 13634668.02 | F83: 14841333.28 | G83: 14820379.86 | H83: 16194438.94 | I83: 18143199.75 | J83: 18469508.79 | K83: 19379787.57 | L83: 20347240.64 | M83: 20607000.48 | N83: 25338994.44 | O83: 28063031.95 | P83: 31028300.43 | Q83: 32039133.65 | R83: 31813989.64 | S83: 34362894.23 | T83: 35762132.77 | U83: 38032464.48 | V83: 37590612.47 | W83: 40552493.5 | X83: 49066248.4 | Y83: 50726472.5 | Z83: 54360808.25 | AA83: 53736688.25 | AB83: 80356587.8 | AC83: 39603597.56 | AD83: 42678921.99 | AE83: 47395303.45 | AF83: 52385329
A84: Util/Plant/Ins/IS/Other Total | D84: 610454455.8 | E84: 625635887.7 | F84: 652162625.4 | G84: 671276915.7 | H84: 707459931.1 | I84: 753824006.2 | J84: 795726891.3 | K84: 822593434.2 | L84: 843408801.5 | M84: 872291343.4 | N84: 920329161.6 | O84: 982813067.3 | P84: 1042081647 | Q84: 1087302411 | R84: 1081083344 | S84: 1109056855 | T84: 1125080025 | U84: 1144131515 | V84: 1232070345 | W84: 1297599518 | X84: 1383366460 | Y84: 1443784013 | Z84: 1557211657 | AA84: 1597800778 | AB84: 1674972056 | AC84: 1722766187 | AD84: 1965571566 | AE84: 2107870489 | AF84: 2098341262
A85: Central Admin | B85: 11 Board of Directors | C85: Board of Directors | D85: 24662022.43 | E85: 21679032.58 | F85: 24181647.6 | G85: 19734870.88 | H85: 24060620.06 | I85: 22421635.45 | J85: 26124306.21 | K85: 25195194.15 | L85: 28115286.23 | M85: 24291727.77 | N85: 29861218.76 | O85: 30435694.12 | P85: 32807771.92 | Q85: 28043590.63 | R85: 31616446.2 | S85: 30412601.76 | T85: 32868161.38 | U85: 31468097.16 | V85: 36857589.14 | W85: 35088221.16 | X85: 39592686.73 | Y85: 36995414.2 | Z85: 43319517.16 | AA85: 40337696.11 | AB85: 45681833.82 | AC85: 45048662.48 | AD85: 58686501.26 | AE85: 54795973.99 | AF85: 57815247
B86: 12 Superintendent's Office | C86: Superintendent's Office | D86: 88566708.89 | E86: 92102117.7 | F86: 68629005.66 | G86: 66071442.14 | H86: 67197297.76 | I86: 68785648.48 | J86: 72080227.44 | K86: 73141382.95 | L86: 73095500.44 | M86: 74192895.14 | N86: 77052806.09 | O86: 72001018.07 | P86: 74696747.29 | Q86: 78139840.76 | R86: 76526149.63 | S86: 78336905.49 | T86: 77958563.3 | U86: 79142601.38 | V86: 85021023.78 | W86: 85706169.98 | X86: 92040255.85 | Y86: 96232186.9 | Z86: 104646533.9 | AA86: 109081925.9 | AB86: 111461261.8 | AC86: 118299732 | AD86: 128013963.7 | AE86: 131873695.7 | AF86: 134977743
B87: 13 Business Office | C87: Business Office | D87: 69490200.52 | E87: 71668539.37 | F87: 73684530 | G87: 75637703.93 | H87: 77085279.48 | I87: 85301338.09 | J87: 88966656.46 | K87: 92600174.98 | L87: 93415630.61 | M87: 96801337.32 | N87: 103913458.3 | O87: 108355165.2 | P87: 115028671.2 | Q87: 120480933.9 | R87: 116661382.7 | S87: 116756337.1 | T87: 120218860.1 | U87: 121987555.1 | V87: 130594685 | W87: 136132873 | X87: 149229415.1 | Y87: 160899711.3 | Z87: 175216827.5 | AA87: 184408763.8 | AB87: 195711527.7 | AC87: 201430059.9 | AD87: 213063325.2 | AE87: 226914747.5 | AF87: 246317102
B88: 14 Human Resources | C88: Human Resources | F88: 32551141.12 | G88: 36508694.96 | H88: 39915255.6 | I88: 43410002.22 | J88: 45675069.98 | K88: 46895189.9 | L88: 48129192.09 | M88: 50629395.26 | N88: 55688863.39 | O88: 60092345.8 | P88: 65671523.27 | Q88: 68241813.11 | R88: 66035383.44 | S88: 67711121.26 | T88: 70274881.56 | U88: 72747342.18 | V88: 81557326.92 | W88: 89319706.18 | X88: 99860534.37 | Y88: 105647070.2 | Z88: 114830490.9 | AA88: 122075809.8 | AB88: 129354512.7 | AC88: 135909821.6 | AD88: 147897285 | AE88: 160785505.9 | AF88: 162900110
B89: 15 Public Relations | C89: Public Relations | O89: 10877948.96 | P89: 13878349.51 | Q89: 15191246.76 | R89: 15334043.37 | S89: 14529012.41 | T89: 15581103.73 | U89: 16631860.8 | V89: 19360180.28 | W89: 21194777.88 | X89: 24609429.06 | Y89: 26167608.9 | Z89: 28090824.26 | AA89: 30050393.66 | AB89: 32576862.05 | AC89: 35175833.72 | AD89: 40805011.38 | AE89: 43976565.82 | AF89: 44657342
B90: 21 Supervision - Instruction | C90: Supervision - Instruction | D90: 151419458.7 | E90: 159472731.5 | F90: 161335829.2 | G90: 164321824.8 | H90: 170725126.9 | I90: 181805080.6 | J90: 192800068.4 | K90: 191871171.5 | L90: 191532818.3 | M90: 200421551.5 | N90: 214886536.7 | O90: 223247022.2 | P90: 239369546.4 | Q90: 248571153.4 | R90: 235036528.3 | S90: 227463229.7 | T90: 216511786.1 | U90: 222712460.5 | V90: 242583010.2 | W90: 256559198.4 | X90: 284649342.4 | Y90: 304038113.5 | Z90: 337488999.1 | AA90: 371015516.3 | AB90: 390061485.4 | AC90: 410477384.4 | AD90: 441915157.6 | AE90: 492194664.6 | AF90: 502074882
A91: Central Admin Total | D91: 334138390.5 | E91: 344922421.2 | F91: 360382153.5 | G91: 362274536.7 | H91: 378983579.8 | I91: 401723704.9 | J91: 425646328.5 | K91: 429703113.5 | L91: 434288427.7 | M91: 446336907 | N91: 481402883.3 | O91: 505009194.3 | P91: 541452609.5 | Q91: 558668578.6 | R91: 541209933.6 | S91: 535209207.7 | T91: 533413356.2 | U91: 544689917.2 | V91: 595973815.3 | W91: 624000946.6 | X91: 689981663.5 | Y91: 729980105 | Z91: 803593192.9 | AA91: 856970105.6 | AB91: 904847483.6 | AC91: 946341494.1 | AD91: 1030381244 | AE91: 1110541154 | AF91: 1148742426
A92: Grand Total | D92: 5364097265 | E92: 5574788130 | F92: 5856489735 | G92: 6037572562 | H92: 6332489613 | I92: 6695579338 | J92: 7006933746 | K92: 7232688322 | L92: 7418903273 | M92: 7724204969 | N92: 8081806223 | O92: 8593835932 | P92: 9179302727 | Q92: 9772000596 | R92: 9661442054 | S92: 9860397372 | T92: 9889351043 | U92: 1.007331978e+10 | V92: 1.076380274e+10 | W92: 1.129620545e+10 | X92: 1.230814302e+10 | Y92: 1.30786604e+10 | Z92: 1.428163386e+10 | AA92: 1.591094092e+10 | AB92: 1.652987846e+10 | AC92: 1.690174671e+10 | AD92: 1.846860137e+10 | AE92: 1.978414924e+10 | AF92: 20545865243

Sheet Enrollment (hidden)
B1: Enrollment data exclude Skills Center Summer, State Institutions, and Pre-K Special Education. | C1: Aberdeen
C3: =COLUMN() -> 3 | D3: =COLUMN() -> 4 | E3: =COLUMN() -> 5 | F3: =COLUMN() -> 6 | G3: =COLUMN() -> 7 | H3: =COLUMN() -> 8 | I3: =COLUMN() -> 9 | J3: =COLUMN() -> 10 | K3: =COLUMN() -> 11 | L3: =COLUMN() -> 12 | M3: =COLUMN() -> 13 | N3: =COLUMN() -> 14 | O3: =COLUMN() -> 15 | P3: =COLUMN() -> 16 | Q3: =COLUMN() -> 17 | R3: =COLUMN() -> 18 | S3: =COLUMN() -> 19 | T3: =COLUMN() -> 20 | U3: =COLUMN() -> 21 | V3: =COLUMN() -> 22 | W3: =COLUMN() -> 23 | X3: =COLUMN() -> 24 | Y3: =COLUMN() -> 25 | Z3: =COLUMN() -> 26 | AA3: =COLUMN() -> 27 | AB3: =COLUMN() -> 28 | AC3: =COLUMN() -> 29 | AD3: =COLUMN() -> 30 | AE3: =COLUMN() -> 31
B4: Sum of Sum of Amount | C4: SchoolYear | D4: VerTtl
C5: 1995-96 | D5: 1996-97 | E5: 1997-98 | F5: 1998-99 | G5: 1999-00 | H5: 2000-01 | I5: 2001-02 | J5: 2002-03 | K5: 2003-04 | L5: 2004-05 | M5: 2005-06 | N5: 2006-07 | O5: 2007-08 | P5: 2008-09 | Q5: 2009-10 | R5: 2010-11 | S5: 2011-12 | T5: 2012-13 | U5: 2013-14 | V5: 2014-15 | W5: 2015-16 | X5: 2016-17 | Y5: 2017-18 | Z5: 2018-19 | AA5: 2019-20 | AB5: 2020-21 | AC5: 2021-22 | AD5: 2022-23 | AE5: 2023-24
B6: DistTitle | C6: Final | D6: Final | E6: Final | F6: Final | G6: Final | H6: Final | I6: Final | J6: Final | K6: Final | L6: Final | M6: Final | N6: Final | O6: Final | P6: Final | Q6: Final | R6: Final | S6: Final | T6: Final | U6: Final | V6: Final | W6: Final | X6: Final | Y6: Final | Z6: Final | AA6: Final | AB6: Final | AC6: Final | AD6: Final | AE6: January 2024
A7: =TRIM(B7) -> Aberdeen | B7: Aberdeen | C7: 3799.92 | D7: 3800.15 | E7: 3795.14 | F7: 3747.67 | G7: 3688.56 | H7: 3717.83 | I7: 3786.89 | J7: 3749.5 | K7: 3755.17 | L7: 3727.27 | M7: 3605.56 | N7: 3504.08 | O7: 3301.85 | P7: 3155.93 | Q7: 3157.52 | R7: 3089.58 | S7: 3139.99 | T7: 3176.42 | U7: 3213.85 | V7: 3209.61 | W7: 3250.51 | X7: 3324.66 | Y7: 3374.84 | Z7: 3350.03 | AA7: 3334.49 | AB7: 3101.41 | AC7: 3113.84 | AD7: 3162.21 | AE7: 3225.15
A8: =TRIM(B8) -> Adna | B8: Adna | C8: 584.09 | D8: 601.4 | E8: 535.34 | F8: 521.98 | G8: 512.16 | H8: 514.45 | I8: 504.53 | J8: 511.16 | K8: 535.4 | L8: 548.9 | M8: 544.43 | N8: 566.28 | O8: 574.22 | P8: 568.81 | Q8: 572.76 | R8: 583.09 | S8: 588.65 | T8: 550.4 | U8: 575.19 | V8: 587.01 | W8: 612.77 | X8: 642.2 | Y8: 644.53 | Z8: 629.3 | AA8: 640.69 | AB8: 593.62 | AC8: 615.56 | AD8: 639.35 | AE8: 629.09
A9: Almira | B9: Almira | C9: 104.38 | D9: 98.69 | E9: 94.88 | F9: 95.3 | G9: 100.73 | H9: 90.56 | I9: 89.43 | J9: 87.23 | K9: 74.23 | L9: 72.5 | M9: 63.37 | N9: 62.88 | O9: 74.73 | P9: 66.72 | Q9: 65.22 | R9: 75.98 | S9: 72.65 | T9: 75.05 | U9: 75.34 | V9: 75.82 | W9: 70.72 | X9: 74.43 | Y9: 78.7 | Z9: 82.34 | AA9: 91.57 | AB9: 86.8 | AC9: 97.32 | AD9: 105.98 | AE9: 102.34
A10: Anacortes | B10: Anacortes | C10: 2811.98 | D10: 2886.98 | E10: 2943.15 | F10: 3048.68 | G10: 2984.59 | H10: 3013.36 | I10: 3011.65 | J10: 3004.99 | K10: 2987.5 | L10: 2980.23 | M10: 2939.19 | N10: 2842.01 | O10: 2796.04 | P10: 2659.66 | Q10: 2620.49 | R10: 2589.45 | S10: 2600.15 | T10: 2544.45 | U10: 2609.01 | V10: 2642.12 | W10: 2697.51 | X10: 2740.23 | Y10: 2717.66 | Z10: 2675.05 | AA10: 2675.55 | AB10: 2502.23 | AC10: 2498.72 | AD10: 2523.36 | AE10: 2549.25
A11: Arlington | B11: Arlington | C11: 3943.33 | D11: 4101.5 | E11: 4306.33 | F11: 4541.55 | G11: 4695.28 | H11: 4764.71 | I11: 4871.83 | J11: 4900.97 | K11: 5047.76 | L11: 5187.9 | M11: 5272.1 | N11: 5309.74 | O11: 5239.56 | P11: 5262.03 | Q11: 5259.35 | R11: 5206.75 | S11: 5080.64 | T11: 5160.87 | U11: 5171.57 | V11: 5200.65 | W11: 5345.88 | X11: 5352.99 | Y11: 5468.02 | Z11: 5568.52 | AA11: 5662.04 | AB11: 5236.72 | AC11: 5329.19 | AD11: 5420.09 | AE11: 5483.02
A12: Ashe Preparatory Academy Charter | B12: Ashe Preparatory Academy Charter | AA12: 22.41
A13: Asotin-Anatone | B13: Asotin-Anatone | C13: 610.52 | D13: 577.07 | E13: 598.47 | F13: 588.53 | G13: 581.52 | H13: 564.72 | I13: 529.97 | J13: 540.09 | K13: 573.21 | L13: 568.23 | M13: 549.66 | N13: 548.98 | O13: 568.22 | P13: 579.79 | Q13: 616.93 | R13: 610.72 | S13: 574.9 | T13: 580.41 | U13: 594.09 | V13: 598.45 | W13: 647.71 | X13: 650.17 | Y13: 620.74 | Z13: 639.36 | AA13: 615.19 | AB13: 614.27 | AC13: 606.03 | AD13: 608.11 | AE13: 590.95
A14: Auburn | B14: Auburn | C14: 11568.71 | D14: 11857.03 | E14: 12170.94 | F14: 12361.87 | G14: 12485.82 | H14: 12634.15 | I14: 12797.42 | J14: 12823.41 | K14: 13013.92 | L14: 13129 | M14: 13418.66 | N14: 13822.48 | O14: 13899.98 | P14: 14036.31 | Q14: 13943.1 | R14: 13862.57 | S14: 13824.02 | T14: 14031.4 | U14: 14711.9 | V14: 15020.17 | W14: 15463.99 | X14: 15841.77 | Y14: 16419.2 | Z14: 16722.86 | AA14: 17075.31 | AB14: 16564.17 | AC14: 16810.44 | AD14: 17316.74 | AE14: 17323.15
A15: Bainbridge Island | B15: Bainbridge Island | C15: 3241.41 | D15: 3443.56 | E15: 3571.9 | F15: 3690.52 | G15: 3807.81 | H15: 3837.25 | I15: 3914.3 | J15: 3959.6 | K15: 4003.89 | L15: 4037.61 | M15: 4098.24 | N15: 4037.27 | O15: 3943.91 | P15: 3882.29 | Q15: 3826.5 | R15: 3818.92 | S15: 3726.26 | T15: 3673.73 | U15: 3740.22 | V15: 3706.05 | W15: 3708.85 | X15: 3798.33 | Y15: 3834.39 | Z15: 3762.83 | AA15: 3772.84 | AB15: 3580.96 | AC15: 3574.94 | AD15: 3505.11 | AE15: 3477.56
A16: Battle Ground | B16: Battle Ground | C16: 10013.88 | D16: 10249.24 | E16: 10464.11 | F16: 10640.96 | G16: 10669.16 | H16: 10768.15 | I16: 11092.94 | J16: 11524.94 | K16: 11907.49 | L16: 12045.07 | M16: 12315.3 | N16: 12295.38 | O16: 12428.08 | P16: 12619.41 | Q16: 12797.32 | R16: 12833.23 | S16: 12322.12 | T16: 12487.29 | U16: 12617.85 | V16: 12811.73 | W16: 12762.64 | X16: 13115.64 | Y16: 13208.09 | Z16: 12942.46 | AA16: 12880 | AB16: 11688.54 | AC16: 11677.75 | AD16: 12155.05 | AE16: 12295.31
A17: Bellevue | B17: Bellevue | C17: 14725.37 | D17: 14839.37 | E17: 14839.14 | F17: 14755.22 | G17: 14672.54 | H17: 14881.04 | I17: 14964.96 | J17: 15037.69 | K17: 14988.84 | L17: 15268.99 | M17: 15740.21 | N17: 15921.51 | O17: 16052.07 | P17: 16441.72 | Q17: 16890.94 | R17: 17414.26 | S17: 17698.26 | T17: 17990 | U17: 18233.95 | V17: 18703.63 | W17: 19330.17 | X17: 20165.87 | Y17: 20474.14 | Z17: 20501.98 | AA17: 20542.65 | AB17: 19638.69 | AC17: 18952.01 | AD17: 18650.66 | AE17: 15383.74
A18: Bellingham | B18: Bellingham | C18: 9619.14 | D18: 9686.14 | E18: 9761.53 | F18: 9857.81 | G18: 9788.71 | H18: 9856.73 | I18: 9817.64 | J18: 9912.23 | K18: 9994.42 | L18: 10160.14 | M18: 10118.96 | N18: 10132.09 | O18: 10186.91 | P18: 10215.05 | Q18: 10277.74 | R18: 10333.99 | S18: 10313.12 | T18: 10503.32 | U18: 10656.24 | V18: 10665.3 | W18: 10866.75 | X18: 11240.16 | Y18: 11441.65 | Z18: 11586.02 | AA18: 11568.36 | AB18: 11258.7 | AC18: 11259.73 | AD18: 11315.77 | AE18: 10922.77
A19: Benge | B19: Benge | C19: 8.33 | D19: 11.28 | E19: 7.78 | F19: 8.5 | G19: 9.72 | H19: 9.5 | I19: 7.5 | J19: 10.17 | K19: 9.55 | L19: 10.11 | M19: 10.11 | N19: 6.39 | O19: 5.61 | P19: 8.89 | Q19: 6.78 | R19: 10 | S19: 9 | T19: 11 | U19: 11.65 | V19: 12.8 | W19: 12.7 | X19: 12.5 | Y19: 13.6 | Z19: 12.5 | AA19: 18.8 | AB19: 16.4 | AC19: 11.4 | AD19: 9 | AE19: 11
A20: Bethel | B20: Bethel | C20: 13520.16 | D20: 13983.19 | E20: 14449.95 | F20: 14767.58 | G20: 15122.54 | H20: 15202.46 | I20: 15488.84 | J20: 15943.52 | K20: 16419.02 | L20: 16839.08 | M20: 16987.84 | N20: 17136.8 | O20: 17106.09 | P20: 17097.15 | Q20: 16885.56 | R20: 17049.19 | S20: 17134.35 | T20: 17301.78 | U20: 17745.11 | V20: 17835.14 | W20: 19004.54 | X20: 19295.93 | Y20: 19687.65 | Z20: 19859.07 | AA20: 20385.46 | AB20: 19751.97 | AC20: 20164.18 | AD20: 20582.76 | AE20: 21270.73
A21: Bickleton | B21: Bickleton | C21: 98.72 | D21: 103.55 | E21: 90.72 | F21: 96.5 | G21: 95.56 | H21: 105.44 | I21: 89.77 | J21: 92.28 | K21: 106.29 | L21: 106 | M21: 96.05 | N21: 93.22 | O21: 100.32 | P21: 100.11 | Q21: 87.38 | R21: 79.99 | S21: 91.4 | T21: 99.65 | U21: 87.21 | V21: 86 | W21: 83.15 | X21: 91.9 | Y21: 118.6 | Z21: 117.57 | AA21: 118.8 | AB21: 107.5 | AC21: 112.7 | AD21: 102.9 | AE21: 102.2
A22: Blaine | B22: Blaine | C22: 1680.21 | D22: 1687.16 | E22: 1715.85 | F22: 1820.18 | G22: 1869.65 | H22: 1894.95 | I22: 1958.27 | J22: 1912.21 | K22: 2008.51 | L22: 2139.74 | M22: 2199.13 | N22: 2170.04 | O22: 2134.37 | P22: 2103.16 | Q22: 2079.71 | R22: 2063.11 | S22: 2058.94 | T22: 2036.84 | U22: 2030.1 | V22: 2050.21 | W22: 2057.28 | X22: 2188.32 | Y22: 2188.82 | Z22: 2218.9 | AA22: 2218.79 | AB22: 2125.94 | AC22: 2094.67 | AD22: 2031.36 | AE22: 1977.94
A23: Boistfort | B23: Boistfort | C23: 139.77 | D23: 131.65 | E23: 123.39 | F23: 113.5 | G23: 108.06 | H23: 90.87 | I23: 86.39 | J23: 73.4 | K23: 79.5 | L23: 85.57 | M23: 97.06 | N23: 74.95 | O23: 66.24 | P23: 69.07 | Q23: 81.01 | R23: 74.04 | S23: 77.65 | T23: 83.8 | U23: 84.45 | V23: 85.14 | W23: 88.86 | X23: 94.05 | Y23: 86.55 | Z23: 94.81 | AA23: 91.75 | AB23: 85 | AC23: 85.68 | AD23: 74.38 | AE23: 315.53
A24: Bremerton | B24: Bremerton | C24: 5983.43 | D24: 6016.34 | E24: 5962.8 | F24: 6004.34 | G24: 5944.03 | H24: 5897.88 | I24: 5810.55 | J24: 5738.7 | K24: 5652.27 | L24: 5345.51 | M24: 5177.95 | N24: 5055.75 | O24: 5045.33 | P24: 4989.67 | Q24: 4916.51 | R24: 4901.12 | S24: 4939.71 | T24: 4903.59 | U24: 5036.56 | V24: 5078.14 | W24: 5206.83 | X24: 5123.48 | Y24: 5083.22 | Z24: 5040.36 | AA24: 4979.94 | AB24: 4583.14 | AC24: 4555.7 | AD24: 4511.58 | AE24: 5016.09
A25: Brewster | B25: Brewster | C25: 840.33 | D25: 888.58 | E25: 895.09 | F25: 951.66 | G25: 957.29 | H25: 943.75 | I25: 937.79 | J25: 935.68 | K25: 923.05 | L25: 896.31 | M25: 882.36 | N25: 834.48 | O25: 824 | P25: 820.6 | Q25: 882.3 | R25: 883.89 | S25: 929.48 | T25: 915.4 | U25: 903.53 | V25: 957.21 | W25: 949.05 | X25: 920.93 | Y25: 953.07 | Z25: 955.86 | AA25: 960.94 | AB25: 930.79 | AC25: 962.99 | AD25: 978.73 | AE25: 962.73
A26: Bridgeport | B26: Bridgeport | C26: 684.37 | D26: 699.7 | E26: 670.27 | F26: 634.57 | G26: 596.08 | H26: 624.85 | I26: 600.8 | J26: 585.78 | K26: 609.77 | L26: 643.38 | M26: 695.2 | N26: 687.15 | O26: 682.92 | P26: 710.58 | Q26: 719.14 | R26: 735.74 | S26: 776.35 | T26: 780.3 | U26: 812.5 | V26: 821.46 | W26: 852.96 | X26: 849.39 | Y26: 846.51 | Z26: 830.04 | AA26: 777.64 | AB26: 745.07 | AC26: 736.9 | AD26: 749.89 | AE26: 702.47
A27: Brinnon | B27: Brinnon | C27: 114.33 | D27: 90.99 | E27: 73.86 | F27: 67.33 | G27: 69 | H27: 66.11 | I27: 67.05 | J27: 56.5 | K27: 49.78 | L27: 36.45 | M27: 50.4 | N27: 46.35 | O27: 37.98 | P27: 30.07 | Q27: 30.33 | R27: 34.6 | S27: 32.85 | T27: 35.95 | U27: 35.8 | V27: 40.4 | W27: 51.18 | X27: 57.06 | Y27: 69.4 | Z27: 76.3 | AA27: 68.84 | AB27: 75.9 | AC27: 71.26 | AD27: 74.75 | AE27: 67.5
A28: Burlington-Edison | B28: Burlington-Edison | C28: 3097.97 | D28: 3202.74 | E28: 3197.38 | F28: 3279.68 | G28: 3315.44 | H28: 3352.57 | I28: 3373.88 | J28: 3447.72 | K28: 3436.23 | L28: 3596.63 | M28: 3703.4 | N28: 3785.5 | O28: 3756.67 | P28: 3751.14 | Q28: 3721.01 | R28: 3656.5 | S28: 3659.59 | T28: 3654.16 | U28: 3647.03 | V28: 3643.64 | W28: 3637.08 | X28: 3639.9 | Y28: 3532.8 | Z28: 3443.33 | AA28: 3516.84 | AB28: 3311.37 | AC28: 3259.45 | AD28: 3240.13 | AE28: 3270.85
A29: Camas | B29: Camas | C29: 2837.77 | D29: 2966.61 | E29: 3119.71 | F29: 3339.01 | G29: 3461.52 | H29: 3664.65 | I29: 3929.34 | J29: 4153.83 | K29: 4503.41 | L29: 4764.39 | M29: 5012.64 | N29: 5260.94 | O29: 5418.51 | P29: 5451.85 | Q29: 5581.47 | R29: 5743.84 | S29: 5958.79 | T29: 6071.78 | U29: 6157.92 | V29: 6352.33 | W29: 6593.77 | X29: 6979.11 | Y29: 7070.24 | Z29: 7249.9 | AA29: 7424.26 | AB29: 7006.35 | AC29: 7038.95 | AD29: 7118.95 | AE29: 7109.75
A30: Cape Flattery | B30: Cape Flattery | C30: 613.33 | D30: 615.43 | E30: 599.37 | F30: 576.74 | G30: 551.15 | H30: 517.9 | I30: 504.71 | J30: 487.05 | K30: 474.59 | L30: 515.46 | M30: 486.09 | N30: 458.09 | O30: 433.76 | P30: 430.65 | Q30: 436.19 | R30: 417.4 | S30: 421 | T30: 430.9 | U30: 446.17 | V30: 453.65 | W30: 462.6 | X30: 487.99 | Y30: 487.21 | Z30: 496.19 | AA30: 512.48 | AB30: 507.27 | AC30: 478 | AD30: 480.92 | AE30: 493.29
A31: Carbonado | B31: Carbonado | C31: 178.76 | D31: 170.89 | E31: 176.68 | F31: 178.17 | G31: 182.32 | H31: 175.17 | I31: 174.74 | J31: 175.22 | K31: 175.49 | L31: 178.11 | M31: 174.78 | N31: 169.94 | O31: 173.95 | P31: 168.99 | Q31: 172.36 | R31: 177.04 | S31: 174.2 | T31: 170.45 | U31: 176.8 | V31: 175.15 | W31: 168.78 | X31: 177.14 | Y31: 175.4 | Z31: 175.18 | AA31: 181.38 | AB31: 188.17 | AC31: 177.01 | AD31: 180.4 | AE31: 174.08
A32: Cascade | B32: Cascade | C32: 1558.5 | D32: 1536.83 | E32: 1542.6 | F32: 1543.34 | G32: 1497.34 | H32: 1449.72 | I32: 1396.71 | J32: 1372.36 | K32: 1371.23 | L32: 1340.67 | M32: 1300.52 | N32: 1287.07 | O32: 1253.7 | P32: 1180.06 | Q32: 1171.01 | R32: 1176.78 | S32: 1165.48 | T32: 1256.98 | U32: 1245.29 | V32: 1239.52 | W32: 1318.73 | X32: 1307.79 | Y32: 1328.32 | Z32: 1301.58 | AA32: 1307.68 | AB32: 1210.62 | AC32: 1232.26 | AD32: 1226.76 | AE32: 1213.04
A33: Cashmere | B33: Cashmere | C33: 1472.82 | D33: 1537.1 | E33: 1552.4 | F33: 1542.32 | G33: 1514.04 | H33: 1461.97 | I33: 1400.9 | J33: 1426.8 | K33: 1415.91 | L33: 1391.58 | M33: 1438.82 | N33: 1401.52 | O33: 1405.38 | P33: 1412.94 | Q33: 1392.64 | R33: 1371.07 | S33: 1398.84 | T33: 1411.47 | U33: 1441.05 | V33: 1488.43 | W33: 1536.07 | X33: 1578.19 | Y33: 1586.18 | Z33: 1593.69 | AA33: 1577.73 | AB33: 1553.86 | AC33: 1558.89 | AD33: 1593.36 | AE33: 1601.46
A34: Castle Rock | B34: Castle Rock | C34: 1294.8 | D34: 1334.61 | E34: 1352.91 | F34: 1368.19 | G34: 1322.91 | H34: 1307.06 | I34: 1316.07 | J34: 1319.78 | K34: 1320.66 | L34: 1339.79 | M34: 1361.93 | N34: 1353.72 | O34: 1326.83 | P34: 1306.81 | Q34: 1328.4 | R34: 1292.2 | S34: 1291.98 | T34: 1253.82 | U34: 1275.39 | V34: 1245.24 | W34: 1211.23 | X34: 1260.77 | Y34: 1321.19 | Z34: 1381.27 | AA34: 1429.93 | AB34: 1359.74 | AC34: 1399.15 | AD34: 1435.61 | AE34: 1409.19
A35: Catalyst Bremerton Charter | B35: Catalyst Bremerton Charter | AB35: 165.4 | AC35: 297.9 | AD35: 439 | AE35: 483.32
A36: Centerville | B36: Centerville | C36: 64.61 | D36: 70.34 | E36: 84.39 | F36: 89.27 | G36: 86.22 | H36: 92.68 | I36: 80.34 | J36: 73.45 | K36: 68.67 | L36: 75.94 | M36: 85.28 | N36: 85.33 | O36: 87.22 | P36: 74.39 | Q36: 80.39 | R36: 80.43 | S36: 79.45 | T36: 77.1 | U36: 73.1 | V36: 75.45 | W36: 80.3 | X36: 88.74 | Y36: 90.62 | Z36: 86.1 | AA36: 85.09 | AB36: 87.2 | AC36: 86.3 | AD36: 95.9 | AE36: 90
A37: Central Kitsap | B37: Central Kitsap | C37: 12622.94 | D37: 13013.04 | E37: 13032.7 | F37: 13051.44 | G37: 12864.18 | H37: 12646.94 | I37: 12653.82 | J37: 12649.27 | K37: 12449.81 | L37: 12275.86 | M37: 12078.85 | N37: 11732.48 | O37: 11507.96 | P37: 11457.81 | Q37: 11184.54 | R37: 11089.71 | S37: 10941.89 | T37: 10687.97 | U37: 10535.71 | V37: 10545.36 | W37: 10786.05 | X37: 10996.3 | Y37: 11201.52 | Z37: 11240.29 | AA37: 11630.25 | AB37: 10901.12 | AC37: 11096.06 | AD37: 10940.58 | AE37: 10877.99
A38: Central Valley | B38: Central Valley | C38: 10269.93 | D38: 10271.27 | E38: 10344.46 | F38: 10342.06 | G38: 10461.92 | H38: 10670.13 | I38: 10661.14 | J38: 10788.17 | K38: 10861.23 | L38: 11216.9 | M38: 11587.95 | N38: 11784.04 | O38: 11816.67 | P38: 11925.44 | Q38: 11975.03 | R38: 11963.47 | S38: 11962.53 | T38: 12236.94 | U38: 12474.41 | V38: 12730.03 | W38: 13098.32 | X38: 13484.19 | Y38: 13744.81 | Z38: 13938.88 | AA38: 14171.69 | AB38: 13799.26 | AC38: 14036.76 | AD38: 14119.37 | AE38: 14300.49
A39: Centralia | B39: Centralia | C39: 3291.17 | D39: 3256.18 | E39: 3213.69 | F39: 3192.66 | G39: 3150.75 | H39: 3146.44 | I39: 3110.57 | J39: 3151.71 | K39: 3169.3 | L39: 3209.22 | M39: 3278.35 | N39: 3295.02 | O39: 3259.96 | P39: 3258.78 | Q39: 3264.43 | R39: 3272.09 | S39: 3388.11 | T39: 3395.9 | U39: 3521.86 | V39: 3574.89 | W39: 3563.9 | X39: 3590.82 | Y39: 3508.92 | Z39: 3442.73 | AA39: 3471.41 | AB39: 3324.23 | AC39: 3358.85 | AD39: 3399.52 | AE39: 3354.33
A40: Chehalis | B40: Chehalis | C40: 2626.49 | D40: 2692.64 | E40: 2687.01 | F40: 2660 | G40: 2649.48 | H40: 2610.61 | I40: 2646.55 | J40: 2664.81 | K40: 2580.02 | L40: 2583.25 | M40: 2637.23 | N40: 2613.91 | O40: 2645.57 | P40: 2609.61 | Q40: 2596.77 | R40: 2627.67 | S40: 2681.64 | T40: 2637.65 | U40: 2721.07 | V40: 2781.25 | W40: 2806.64 | X40: 2833.81 | Y40: 2821.91 | Z40: 2905.52 | AA40: 2974 | AB40: 2899.73 | AC40: 2837.71 | AD40: 2869.35 | AE40: 2939.86
A41: Cheney | B41: Cheney | C41: 3404.55 | D41: 3368.26 | E41: 3284.17 | F41: 3323.7 | G41: 3327.69 | H41: 3357.32 | I41: 3327.13 | J41: 3298.26 | K41: 3249.67 | L41: 3260.82 | M41: 3384.64 | N41: 3533.39 | O41: 3590 | P41: 3635.28 | Q41: 3742.56 | R41: 3789.71 | S41: 3909.79 | T41: 3981.22 | U41: 4102.93 | V41: 4247.14 | W41: 4391.18 | X41: 4575.03 | Y41: 4675.81 | Z41: 4898.17 | AA41: 5013.21 | AB41: 4936.32 | AC41: 5159.4 | AD41: 5287.9 | AE41: 5417.06
A42: Chewelah | B42: Chewelah | C42: 1242.68 | D42: 1321.99 | E42: 1261.78 | F42: 1293.41 | G42: 1298.46 | H42: 1285.69 | I42: 1247.95 | J42: 1195.19 | K42: 1168.05 | L42: 1108.17 | M42: 1098.47 | N42: 1093.2 | O42: 1033.16 | P42: 996 | Q42: 931.93 | R42: 863.46 | S42: 829.39 | T42: 806.93 | U42: 838.42 | V42: 856.85 | W42: 801.81 | X42: 783.06 | Y42: 776.84 | Z42: 797.03 | AA42: 774.12 | AB42: 702.79 | AC42: 768.56 | AD42: 777.14 | AE42: 820.4
A43: Chief Leschi Tribal | B43: Chief Leschi Tribal | Z43: 599.92 | AA43: 543.18 | AB43: 552.36 | AC43: 578.15 | AD43: 598.85 | AE43: 640.93
A44: Chimacum | B44: Chimacum | C44: 1388.64 | D44: 1417.51 | E44: 1449.66 | F44: 1439.06 | G44: 1423.08 | H44: 1351.34 | I44: 1312.95 | J44: 1266.51 | K44: 1268.35 | L44: 1243.14 | M44: 1192.04 | N44: 1126.94 | O44: 1109.48 | P44: 1068.04 | Q44: 1094.08 | R44: 1090.54 | S44: 1058.47 | T44: 1012.95 | U44: 1070.53 | V44: 1052.05 | W44: 1046.83 | X44: 1036.44 | Y44: 938.65 | Z44: 832.22 | AA44: 796.38 | AB44: 714.08 | AC44: 673.74 | AD44: 688.82 | AE44: 663.05
A45: Clarkston | B45: Clarkston | C45: 2938.86 | D45: 2997.48 | E45: 3024.07 | F45: 2917.29 | G45: 2839.46 | H45: 2763.8 | I45: 2710.43 | J45: 2669.16 | K45: 2679.9 | L45: 2656.41 | M45: 2629.9 | N45: 2600.29 | O45: 2554.96 | P45: 2562.39 | Q45: 2603.48 | R45: 2596.68 | S45: 2596.61 | T45: 2594.73 | U45: 2600.97 | V45: 2582.67 | W45: 2630 | X45: 2629.5 | Y45: 2579.82 | Z45: 2581.84 | AA45: 2587.13 | AB45: 2463.77 | AC45: 2424.22 | AD45: 2459.39 | AE45: 2425.06
A46: Cle Elum-Roslyn | B46: Cle Elum-Roslyn | C46: 1001.6 | D46: 1029.99 | E46: 976.64 | F46: 990.43 | G46: 962.18 | H46: 939.58 | I46: 956.49 | J46: 918.84 | K46: 903.15 | L46: 936.04 | M46: 972.49 | N46: 947.41 | O46: 919.41 | P46: 903.87 | Q46: 892.63 | R46: 912.36 | S46: 889.88 | T46: 889.04 | U46: 875.71 | V46: 889.86 | W46: 884.39 | X46: 874.88 | Y46: 902.52 | Z46: 866.59 | AA46: 902.71 | AB46: 842.12 | AC46: 880.51 | AD46: 916.83 | AE46: 903.3
A47: Clover Park | B47: Clover Park | C47: 12543.29 | D47: 12575.01 | E47: 12308.27 | F47: 12409.74 | G47: 12289.61 | H47: 12369.93 | I47: 12420.6 | J47: 12158.34 | K47: 11760.42 | L47: 11379.7 | M47: 11550.86 | N47: 10856.3 | O47: 11002.14 | P47: 10952.43 | Q47: 10877.35 | R47: 10879.46 | S47: 11382.69 | T47: 11601.72 | U47: 11767.73 | V47: 11812.32 | W47: 12211.04 | X47: 12611.54 | Y47: 12709.93 | Z47: 12566.36 | AA47: 12557.18 | AB47: 11873.99 | AC47: 11925.18 | AD47: 11759.69 | AE47: 11818.82
A48: Colfax | B48: Colfax | C48: 773.65 | D48: 781.76 | E48: 774.69 | F48: 759.35 | G48: 748.67 | H48: 751.21 | I48: 734.49 | J48: 711.18 | K48: 697.42 | L48: 695.38 | M48: 686.21 | N48: 654.56 | O48: 655.94 | P48: 645.32 | Q48: 626.92 | R48: 624.54 | S48: 605.88 | T48: 600 | U48: 607.73 | V48: 582.04 | W48: 590.83 | X48: 583.74 | Y48: 578.14 | Z48: 548.19 | AA48: 549.73 | AB48: 525.27 | AC48: 513.47 | AD48: 561.01 | AE48: 520.36
A49: College Place | B49: College Place | C49: 845.68 | D49: 868.98 | E49: 857.34 | F49: 839.38 | G49: 790.32 | H49: 770.68 | I49: 776.13 | J49: 776.11 | K49: 806.09 | L49: 792.76 | M49: 759.19 | N49: 766.79 | O49: 754.28 | P49: 696.81 | Q49: 692.59 | R49: 717.71 | S49: 730.18 | T49: 730.38 | U49: 827.84 | V49: 987.42 | W49: 1197.47 | X49: 1307.8 | Y49: 1425.19 | Z49: 1452.15 | AA49: 1590.59 | AB49: 1579.73 | AC49: 1517.7 | AD49: 1522.92 | AE49: 1489.7
A50: Colton | B50: Colton | C50: 185.58 | D50: 177.89 | E50: 178.33 | F50: 180.02 | G50: 188.16 | H50: 186.05 | I50: 184.88 | J50: 190.35 | K50: 175.34 | L50: 174.49 | M50: 163.85 | N50: 169.54 | O50: 165.92 | P50: 168.77 | Q50: 172.41 | R50: 170.87 | S50: 164.23 | T50: 165.36 | U50: 158.59 | V50: 154.12 | W50: 137.49 | X50: 141.31 | Y50: 149.14 | Z50: 176.24 | AA50: 169.89 | AB50: 154.25 | AC50: 155.27 | AD50: 140.96 | AE50: 129.26
A51: Columbia (Stevens) | B51: Columbia (Stevens) | C51: 227.8 | D51: 236.2 | E51: 214.22 | F51: 217.28 | G51: 217.72 | H51: 214.94 | I51: 191.94 | J51: 204.98 | K51: 196.22 | L51: 201.96 | M51: 205.99 | N51: 198.67 | O51: 192.22 | P51: 189.49 | Q51: 194.59 | R51: 191.35 | S51: 175.4 | T51: 170.29 | U51: 156.95 | V51: 155.99 | W51: 157.01 | X51: 151.74 | Y51: 136.56 | Z51: 126.68 | AA51: 104.6 | AB51: 109.85 | AC51: 109.84 | AD51: 132.42 | AE51: 108.04
A52: Columbia (Walla Walla) | B52: Columbia (Walla Walla) | C52: 891.93 | D52: 870.57 | E52: 863.89 | F52: 864.11 | G52: 868.66 | H52: 870.16 | I52: 875.53 | J52: 902.63 | K52: 919.23 | L52: 899.88 | M52: 903.54 | N52: 891.93 | O52: 895.58 | P52: 876.18 | Q52: 857.52 | R52: 828.79 | S52: 841.3 | T52: 824.93 | U52: 843.28 | V52: 825.86 | W52: 788.79 | X52: 758.47 | Y52: 747.85 | Z52: 748.48 | AA52: 753.39 | AB52: 692.94 | AC52: 716.14 | AD52: 755.38 | AE52: 767.07
A53: Colville | B53: Colville | C53: 2534.21 | D53: 2521.64 | E53: 2447.62 | F53: 2392.55 | G53: 2394.65 | H53: 2270.02 | I53: 2171.5 | J53: 2079.92 | K53: 2034.78 | L53: 1981.71 | M53: 1966.31 | N53: 2055.11 | O53: 2146.34 | P53: 2334.95 | Q53: 2697.81 | R53: 2817.66 | S53: 2585.07 | T53: 1776.95 | U53: 1801.42 | V53: 1774.61 | W53: 1764.31 | X53: 1772.35 | Y53: 1758.65 | Z53: 1800.43 | AA53: 1733.73 | AB53: 1580.62 | AC53: 1623.85 | AD53: 1692.02 | AE53: 1672.27
A54: Concrete | B54: Concrete | C54: 873.76 | D54: 866.38 | E54: 836.79 | F54: 902.07 | G54: 922.85 | H54: 866.72 | I54: 813.22 | J54: 790.33 | K54: 780.03 | L54: 756.35 | M54: 766.83 | N54: 739.98 | O54: 689.39 | P54: 676.85 | Q54: 616.05 | R54: 582.74 | S54: 543.28 | T54: 525.82 | U54: 523.37 | V54: 511.5 | W54: 522.99 | X54: 532.22 | Y54: 513.22 | Z54: 500.66 | AA54: 508.94 | AB54: 495.15 | AC54: 484.5 | AD54: 494.44 | AE54: 503.2
A55: Conway | B55: Conway | C55: 432.35 | D55: 437.27 | E55: 462.98 | F55: 443.07 | G55: 432.56 | H55: 431.46 | I55: 432.2 | J55: 408.56 | K55: 393.45 | L55: 395.04 | M55: 408.09 | N55: 402.25 | O55: 400.16 | P55: 400.39 | Q55: 397.76 | R55: 393.24 | S55: 412.65 | T55: 412.45 | U55: 414.85 | V55: 422 | W55: 413.1 | X55: 428.24 | Y55: 437.44 | Z55: 441.13 | AA55: 457.56 | AB55: 448.05 | AC55: 452.17 | AD55: 435.48 | AE55: 419.6
A56: Cosmopolis | B56: Cosmopolis | C56: 188.55 | D56: 189.67 | E56: 191.72 | F56: 203.11 | G56: 215.29 | H56: 196.83 | I56: 166.88 | J56: 158.55 | K56: 156.95 | L56: 156.44 | M56: 173.5 | N56: 171.34 | O56: 168.88 | P56: 166.4 | Q56: 164.44 | R56: 157.88 | S56: 142.98 | T56: 120.1 | U56: 121.71 | V56: 124.23 | W56: 141.91 | X56: 144.82 | Y56: 148.14 | Z56: 152.02 | AA56: 167.5 | AB56: 162.59 | AC56: 164.45 | AD56: 176.1 | AE56: 170.3
A57: Coulee-Hartline | B57: Coulee-Hartline | C57: 263.28 | D57: 240.63 | E57: 240.55 | F57: 242.36 | G57: 245.22 | H57: 240.82 | I57: 234.72 | J57: 212.32 | K57: 206.79 | L57: 192.6 | M57: 169.34 | N57: 159.73 | O57: 165.73 | P57: 165.78 | Q57: 175.04 | R57: 190.92 | S57: 193.41 | T57: 194.34 | U57: 187.94 | V57: 196.62 | W57: 200.4 | X57: 193.39 | Y57: 199.35 | Z57: 206.22 | AA57: 218.09 | AB57: 205.01 | AC57: 211 | AD57: 198.31 | AE57: 195.45
A58: Coupeville | B58: Coupeville | C58: 1138.11 | D58: 1149.43 | E58: 1162.19 | F58: 1130.6 | G58: 1115.42 | H58: 1086.52 | I58: 1058.83 | J58: 1088.71 | K58: 1130.87 | L58: 1152.8 | M58: 1134.26 | N58: 1110.77 | O58: 1110.09 | P58: 1049.19 | Q58: 1022.88 | R58: 980.94 | S58: 969.5 | T58: 925.72 | U58: 899.29 | V58: 872.9 | W58: 954.45 | X58: 980.54 | Y58: 983.17 | Z58: 972.64 | AA58: 1021.86 | AB58: 984.08 | AC58: 966.85 | AD58: 1017.81 | AE58: 1008.05
A59: Crescent | B59: Crescent | C59: 293.02 | D59: 285.47 | E59: 246.09 | F59: 245.82 | G59: 211.63 | H59: 222.02 | I59: 211.52 | J59: 203.75 | K59: 185.9 | L59: 171.93 | M59: 268.23 | N59: 261.87 | O59: 273.5 | P59: 289.83 | Q59: 351.9 | R59: 340.89 | S59: 341.46 | T59: 317.25 | U59: 302.47 | V59: 270.04 | W59: 280.53 | X59: 320.65 | Y59: 337.91 | Z59: 351.18 | AA59: 366.95 | AB59: 322.13 | AC59: 308.01 | AD59: 334.92 | AE59: 356.28
A60: Creston | B60: Creston | C60: 114.4 | D60: 116.61 | E60: 116.01 | F60: 115.36 | G60: 110.39 | H60: 110.8 | I60: 108.08 | J60: 108.95 | K60: 107.63 | L60: 111.51 | M60: 117.19 | N60: 104.77 | O60: 105.79 | P60: 102.97 | Q60: 103.76 | R60: 93.64 | S60: 102.95 | T60: 92.19 | U60: 98.05 | V60: 95.15 | W60: 86.02 | X60: 90.9 | Y60: 86.83 | Z60: 93.94 | AA60: 89.35 | AB60: 84.27 | AC60: 87.2 | AD60: 97.32 | AE60: 91.35
A61: Curlew | B61: Curlew | C61: 335.27 | D61: 303.17 | E61: 296.96 | F61: 297.35 | G61: 287.11 | H61: 255.4 | I61: 237.68 | J61: 230.54 | K61: 255.01 | L61: 246.77 | M61: 244.9 | N61: 246.35 | O61: 223.26 | P61: 219.41 | Q61: 223.96 | R61: 216.32 | S61: 204.7 | T61: 205.41 | U61: 208.7 | V61: 197.5 | W61: 170.03 | X61: 175.1 | Y61: 211.1 | Z61: 244.95 | AA61: 248.75 | AB61: 286.19 | AC61: 265.52 | AD61: 244.47 | AE61: 262.26
A62: Cusick | B62: Cusick | C62: 349.59 | D62: 344.56 | E62: 342.02 | F62: 328.46 | G62: 306.2 | H62: 309.08 | I62: 298.87 | J62: 278.68 | K62: 268.23 | L62: 259.26 | M62: 266.91 | N62: 279.67 | O62: 278.75 | P62: 285.58 | Q62: 293.63 | R62: 275.08 | S62: 266.32 | T62: 266.55 | U62: 268.18 | V62: 263.09 | W62: 233.48 | X62: 231.36 | Y62: 244.98 | Z62: 246.27 | AA62: 248.43 | AB62: 278.77 | AC62: 326.96 | AD62: 354.53 | AE62: 356.38
A63: Damman | B63: Damman | C63: 34.05 | D63: 30.82 | E63: 36.73 | F63: 37.33 | G63: 32.83 | H63: 34.67 | I63: 34.17 | J63: 35.78 | K63: 35.06 | L63: 38.44 | M63: 36.23 | N63: 31.95 | O63: 34.61 | P63: 29.17 | Q63: 36.72 | R63: 39.08 | S63: 33.56 | T63: 41.4 | U63: 43 | V63: 37.3 | W63: 33.82 | X63: 33.8 | Y63: 32.9 | Z63: 35.2 | AA63: 35.6 | AB63: 42 | AC63: 41 | AD63: 42 | AE63: 44
A64: Darrington | B64: Darrington | C64: 597.58 | D64: 602.48 | E64: 619.47 | F64: 612.93 | G64: 608.24 | H64: 581.53 | I64: 588.88 | J64: 574.01 | K64: 550.12 | L64: 537.05 | M64: 558.15 | N64: 537.76 | O64: 503.2 | P64: 452.82 | Q64: 451.48 | R64: 454.04 | S64: 430.97 | T64: 416.23 | U64: 432.46 | V64: 413.54 | W64: 412 | X64: 403.48 | Y64: 394.42 | Z64: 404.62 | AA64: 415.33 | AB64: 385.71 | AC64: 411.48 | AD64: 424.1 | AE64: 431.01
A65: Davenport | B65: Davenport | C65: 458.59 | D65: 446.96 | E65: 449.45 | F65: 435.3 | G65: 432.22 | H65: 434.67 | I65: 436.26 | J65: 440.74 | K65: 495.32 | L65: 505.54 | M65: 552.06 | N65: 551.89 | O65: 566.19 | P65: 548.43 | Q65: 567.85 | R65: 545.65 | S65: 539.75 | T65: 518.68 | U65: 550.75 | V65: 585.97 | W65: 597.36 | X65: 594.9 | Y65: 580.09 | Z65: 549.67 | AA65: 556.5 | AB65: 532.69 | AC65: 568.68 | AD65: 608.67 | AE65: 627.2
A66: Dayton | B66: Dayton | C66: 747.5 | D66: 727.89 | E66: 677.64 | F66: 654.28 | G66: 607.62 | H66: 588.61 | I66: 572.12 | J66: 552.85 | K66: 578.08 | L66: 529.84 | M66: 516.92 | N66: 501.74 | O66: 473.14 | P66: 476.82 | Q66: 482.53 | R66: 465.12 | S66: 446.54 | T66: 436.11 | U66: 427.3 | V66: 420.57 | W66: 392.54 | X66: 410.65 | Y66: 399.74 | Z66: 384.92 | AA66: 394.7 | AB66: 386.21 | AC66: 350.42 | AD66: 356.97 | AE66: 339.77
A67: Deer Park | B67: Deer Park | C67: 1603.08 | D67: 1698.55 | E67: 1783.05 | F67: 1812.69 | G67: 1837.41 | H67: 1874.54 | I67: 1896.17 | J67: 1971.34 | K67: 2028.08 | L67: 2123.15 | M67: 2219.23 | N67: 2321.07 | O67: 2342.61 | P67: 2400.64 | Q67: 2499.43 | R67: 2469.25 | S67: 2333.62 | T67: 2436.16 | U67: 2491.89 | V67: 2447.18 | W67: 2424.91 | X67: 2434.13 | Y67: 2431.77 | Z67: 2513.21 | AA67: 2529.19 | AB67: 2488.77 | AC67: 2491.86 | AD67: 2642.08 | AE67: 2656.33
A68: Dieringer | B68: Dieringer | C68: 941.62 | D68: 971.6 | E68: 1013.07 | F68: 1014.69 | G68: 1014.09 | H68: 1054.79 | I68: 1078.4 | J68: 1089.28 | K68: 1088.8 | L68: 1134.6 | M68: 1144.29 | N68: 1157.74 | O68: 1186.61 | P68: 1199.39 | Q68: 1303.42 | R68: 1344.53 | S68: 1386.34 | T68: 1411.68 | U68: 1419.23 | V68: 1459.96 | W68: 1476.7 | X68: 1428.19 | Y68: 1462.64 | Z68: 1475.9 | AA68: 1523.71 | AB68: 1346.65 | AC68: 1370.25 | AD68: 1414.44 | AE68: 1396.14
A69: Dixie | B69: Dixie | C69: 37.27 | D69: 40.33 | E69: 36.62 | F69: 30.78 | G69: 32.44 | H69: 34.89 | I69: 36.6 | J69: 39.49 | K69: 38.95 | L69: 33 | M69: 29.39 | N69: 21.33 | O69: 21 | P69: 21.07 | Q69: 25.61 | R69: 25.88 | S69: 23.45 | T69: 32 | U69: 27.6 | V69: 22.9 | W69: 28 | X69: 18.7 | Y69: 17.4 | Z69: 14.3 | AA69: 13.75 | AB69: 28.4 | AC69: 17.3 | AD69: 16.9 | AE69: 19
A70: East Valley (Spokane) | B70: East Valley (Spokane) | C70: 4491.31 | D70: 4513.51 | E70: 4574.24 | F70: 4653.61 | G70: 4685.89 | H70: 4568.28 | I70: 4489.94 | J70: 4410.24 | K70: 4261.4 | L70: 4168.43 | M70: 4095.62 | N70: 4051.12 | O70: 4024.62 | P70: 4134.57 | Q70: 4233.29 | R70: 4465.56 | S70: 4480.89 | T70: 4438.88 | U70: 4354.42 | V70: 4095.97 | W70: 4166.48 | X70: 4147.23 | Y70: 4135.62 | Z70: 4015.96 | AA70: 3951.74 | AB70: 3581.52 | AC70: 3487.48 | AD70: 3451.45 | AE70: 3440.04
A71: East Valley (Yakima) | B71: East Valley (Yakima) | C71: 2097.78 | D71: 2177.77 | E71: 2188.37 | F71: 2233.68 | G71: 2277.1 | H71: 2317.86 | I71: 2292.23 | J71: 2248.63 | K71: 2270.05 | L71: 2392.09 | M71: 2465.02 | N71: 2587.62 | O71: 2624.83 | P71: 2645.43 | Q71: 2685.68 | R71: 2736.91 | S71: 2759.06 | T71: 2840.62 | U71: 2974.76 | V71: 3018.67 | W71: 3079.65 | X71: 3146.52 | Y71: 3176.38 | Z71: 3193.66 | AA71: 3208.83 | AB71: 3132.57 | AC71: 3273.86 | AD71: 3358.46 | AE71: 3308.86
A72: =TRIM(B72) -> Eastmont | B72: Eastmont | C72: 4299.44 | D72: 4488.12 | E72: 4677.33 | F72: 4805.74 | G72: 4867.76 | H72: 4990.04 | I72: 5012.78 | J72: 5102.84 | K72: 5134.06 | L72: 5182.83 | M72: 5263.93 | N72: 5370.53 | O72: 5348.35 | P72: 5371.72 | Q72: 5217.56 | R72: 5271.37 | S72: 5358.23 | T72: 5373.5 | U72: 5520.01 | V72: 5658.64 | W72: 5802 | X72: 5968.67 | Y72: 6089.1 | Z72: 6080.05 | AA72: 6079.92 | AB72: 5899.49 | AC72: 5790.39 | AD72: 5878.84 | AE72: 5859.46
A73: Easton | B73: Easton | C73: 94.88 | D73: 102.83 | E73: 98.34 | F73: 95.95 | G73: 115.55 | H73: 119.88 | I73: 120.22 | J73: 121.21 | K73: 123.46 | L73: 118.71 | M73: 110.24 | N73: 101.58 | O73: 103.91 | P73: 85.35 | Q73: 95.45 | R73: 80.04 | S73: 80.11 | T73: 83.58 | U73: 105.13 | V73: 108.65 | W73: 106.99 | X73: 116.16 | Y73: 107.94 | Z73: 104.89 | AA73: 93.74 | AB73: 85.94 | AC73: 86.38 | AD73: 84.29 | AE73: 84.64
A74: Eatonville | B74: Eatonville | C74: 1934.73 | D74: 2003.21 | E74: 2000.37 | F74: 2013.39 | G74: 2028.51 | H74: 2026.54 | I74: 2015.59 | J74: 2013.7 | K74: 2008.49 | L74: 2070.39 | M74: 2091.1 | N74: 2078.05 | O74: 2008.34 | P74: 1959.56 | Q74: 1985.36 | R74: 1927.3 | S74: 1885.39 | T74: 1833.89 | U74: 1803.28 | V74: 1818.01 | W74: 1935.89 | X74: 1938.41 | Y74: 1865.66 | Z74: 1912.49 | AA74: 1944.35 | AB74: 1801.06 | AC74: 1890.17 | AD74: 1955.56 | AE74: 1940.11
A75: Edmonds | B75: Edmonds | C75: 19629.75 | D75: 20227.27 | E75: 20664 | F75: 20705.56 | G75: 20649.71 | H75: 20813.5 | I75: 20841.11 | J75: 20613.56 | K75: 20167.13 | L75: 20137.27 | M75: 20109.55 | N75: 19935.25 | O75: 19651.34 | P75: 19508.61 | Q75: 19522.54 | R75: 19570.46 | S75: 19405.76 | T75: 19477.07 | U75: 19558.89 | V75: 19690.14 | W75: 20252.33 | X75: 20631.83 | Y75: 20556.04 | Z75: 20562.64 | AA75: 20828.17 | AB75: 20146.92 | AC75: 20039.39 | AD75: 19926.36 | AE75: 20033.96
A76: Ellensburg | B76: Ellensburg | C76: 2642.73 | D76: 2665.11 | E76: 2669.25 | F76: 2792.79 | G76: 2789.58 | H76: 2741.86 | I76: 2718.78 | J76: 2779.66 | K76: 2796.92 | L76: 2769.58 | M76: 2788.58 | N76: 2853.65 | O76: 2884.06 | P76: 2856.14 | Q76: 2858.05 | R76: 2888.63 | S76: 2856.11 | T76: 2836.09 | U76: 2935.96 | V76: 2973.02 | W76: 3203.14 | X76: 3272.64 | Y76: 3280.47 | Z76: 3278.73 | AA76: 3316.73 | AB76: 3119.27 | AC76: 3229.55 | AD76: 3203.44 | AE76: 3246.28
A77: Elma | B77: Elma | C77: 2033.98 | D77: 2024.64 | E77: 1987.72 | F77: 2009.49 | G77: 1983.17 | H77: 1928.6 | I77: 1939.56 | J77: 1901.99 | K77: 1839.25 | L77: 1852.88 | M77: 1802.57 | N77: 1788.59 | O77: 1711.66 | P77: 1673.62 | Q77: 1645.1 | R77: 1579.57 | S77: 1512.36 | T77: 1471.61 | U77: 1507.15 | V77: 1462.98 | W77: 1409.87 | X77: 1394.24 | Y77: 1454.56 | Z77: 1500.74 | AA77: 1562.29 | AB77: 1499.29 | AC77: 1568.14 | AD77: 1691.06 | AE77: 1675.29
A78: Endicott | B78: Endicott | C78: 158.18 | D78: 154.01 | E78: 140.29 | F78: 140.21 | G78: 141.86 | H78: 119.8 | I78: 123.1 | J78: 108.94 | K78: 96.47 | L78: 92.69 | M78: 97.99 | N78: 91.9 | O78: 85.43 | P78: 69.71 | Q78: 66.07 | R78: 72.93 | S78: 74.56 | T78: 83.61 | U78: 72.39 | V78: 71.48 | W78: 81.09 | X78: 87.76 | Y78: 89.23 | Z78: 84.5 | AA78: 80.51 | AB78: 79.82 | AC78: 74.39 | AD78: 69.64 | AE78: 79.51
A79: Entiat | B79: Entiat | C79: 364.09 | D79: 364.18 | E79: 376.35 | F79: 380.45 | G79: 385.5 | H79: 379.53 | I79: 374.25 | J79: 362.52 | K79: 355.29 | L79: 367.16 | M79: 363.41 | N79: 355.02 | O79: 352.95 | P79: 341.33 | Q79: 338.36 | R79: 330.53 | S79: 324.35 | T79: 329.55 | U79: 363.04 | V79: 345.91 | W79: 336.41 | X79: 340.77 | Y79: 305.07 | Z79: 310.64 | AA79: 306.46 | AB79: 303.33 | AC79: 310 | AD79: 332.45 | AE79: 383.57
A80: Enumclaw | B80: Enumclaw | C80: 4765.39 | D80: 4869.94 | E80: 4990.68 | F80: 5020.76 | G80: 5005.86 | H80: 4930.42 | I80: 4903.01 | J80: 4856.99 | K80: 4720.63 | L80: 4718.28 | M80: 4635.04 | N80: 4540.05 | O80: 4395.86 | P80: 4299.81 | Q80: 4441.84 | R80: 4328.8 | S80: 4268.21 | T80: 4260.04 | U80: 4197.22 | V80: 3844.85 | W80: 3981.94 | X80: 3993.73 | Y80: 4025.13 | Z80: 4036.61 | AA80: 4171.34 | AB80: 4001.02 | AC80: 4090.44 | AD80: 4252.81 | AE80: 4329.33
A81: Ephrata | B81: Ephrata | C81: 2153.84 | D81: 2211.35 | E81: 2223.61 | F81: 2240.62 | G81: 2252.96 | H81: 2217.24 | I81: 2188.7 | J81: 2147.26 | K81: 2130.84 | L81: 2106.11 | M81: 2114.52 | N81: 2132.97 | O81: 2159.76 | P81: 2172.71 | Q81: 2185.22 | R81: 2191.82 | S81: 2177.99 | T81: 2192.93 | U81: 2314.47 | V81: 2361.76 | W81: 2340.32 | X81: 2453.32 | Y81: 2530.57 | Z81: 2563.17 | AA81: 2616.41 | AB81: 2552.16 | AC81: 2575.53 | AD81: 2667.36 | AE81: 2709.28
A82: Evaline | B82: Evaline | C82: 41.78 | D82: 40.23 | E82: 42.72 | F82: 42 | G82: 40 | H82: 37.56 | I82: 34.56 | J82: 31.27 | K82: 32.22 | L82: 36.61 | M82: 40.99 | N82: 43.12 | O82: 46.72 | P82: 37.67 | Q82: 36.55 | R82: 31.22 | S82: 27.45 | T82: 45.4 | U82: 42.5 | V82: 35.25 | W82: 48.15 | X82: 51.7 | Y82: 56.8 | Z82: 55 | AA82: 50.46 | AB82: 51.3 | AC82: 45.4 | AD82: 55.9 | AE82: 54.8
A83: Everett | B83: Everett | C83: 16049.63 | D83: 16583.87 | E83: 16996.64 | F83: 17229.05 | G83: 17275.5 | H83: 17415.36 | I83: 17477.12 | J83: 17364.74 | K83: 17312.55 | L83: 17182.26 | M83: 17469.2 | N83: 17598.63 | O83: 17646.77 | P83: 17820.05 | Q83: 17888.57 | R83: 17862.84 | S83: 17767.62 | T83: 17760.19 | U83: 18249.95 | V83: 18685.31 | W83: 19297.75 | X83: 19781.43 | Y83: 19927.48 | Z83: 20102.54 | AA83: 20340.93 | AB83: 19670.39 | AC83: 19749.07 | AD83: 19760.64 | AE83: 19722.41
A84: Evergreen (Clark) | B84: Evergreen (Clark) | C84: 16998.52 | D84: 17863.42 | E84: 18520.04 | F84: 19243.67 | G84: 20111.79 | H84: 20927.67 | I84: 21776.35 | J84: 22410.46 | K84: 23064.77 | L84: 23787.84 | M84: 24018.97 | N84: 24189.34 | O84: 24497.06 | P84: 25289.03 | Q84: 25604.16 | R84: 25600.21 | S84: 25592.09 | T84: 25912.37 | U84: 26437.34 | V84: 26365.29 | W84: 26303.56 | X84: 26478.93 | Y84: 25929.83 | Z84: 25523.25 | AA84: 25159.24 | AB84: 23721.65 | AC84: 23022.6 | AD84: 22863.88 | AE84: 23830.83
A85: Evergreen (Stevens) | B85: Evergreen (Stevens) | C85: 32.28 | D85: 34.72 | E85: 30.99 | F85: 29.22 | G85: 21.89 | H85: 19.6 | I85: 16.17 | J85: 15.17 | K85: 19.73 | L85: 20.78 | M85: 18.61 | N85: 15.11 | O85: 8.22 | P85: 7.06 | Q85: 13.28 | R85: 15.04 | S85: 15.65 | T85: 19.85 | U85: 27.7 | V85: 22.8 | W85: 25.5 | X85: 29 | Y85: 35.5 | Z85: 34.6 | AA85: 35.23 | AB85: 31.3 | AC85: 27 | AD85: 32.6 | AE85: 31
A86: Federal Way | B86: Federal Way | C86: 19386.4 | D86: 19808.22 | E86: 20241.22 | F86: 20721.94 | G86: 20987.74 | H86: 21300.7 | I86: 21318.21 | J86: 21114.63 | K86: 21246.07 | L86: 21430.51 | M86: 21434.64 | N86: 21249.04 | O86: 21128.07 | P86: 20992.01 | Q86: 21010.98 | R86: 20878.2 | S86: 21027.24 | T86: 20926.05 | U86: 21515.34 | V86: 21563.57 | W86: 22309.19 | X86: 22400.99 | Y86: 22434.04 | Z86: 22266.05 | AA86: 22059.26 | AB86: 20905.02 | AC86: 20436.9 | AD86: 20713.33 | AE86: 20762.6
A87: Ferndale | B87: Ferndale | C87: 4252.15 | D87: 4402.78 | E87: 4619.92 | F87: 4906.33 | G87: 4957.01 | H87: 4978.83 | I87: 5015.78 | J87: 5011.15 | K87: 5067.74 | L87: 5076.61 | M87: 5026.47 | N87: 5019.91 | O87: 4999.91 | P87: 5060.11 | Q87: 5012.2 | R87: 4973.71 | S87: 4926 | T87: 4934.76 | U87: 4848.47 | V87: 4621.54 | W87: 4679.66 | X87: 4686.52 | Y87: 4680.32 | Z87: 4657.2 | AA87: 4695.95 | AB87: 4294.34 | AC87: 4367.41 | AD87: 4574.54 | AE87: 4539.78
A88: Fife | B88: Fife | C88: 2404.33 | D88: 2480.77 | E88: 2536.04 | F88: 2666.4 | G88: 2687.22 | H88: 2817.75 | I88: 2919.2 | J88: 3004.67 | K88: 3104.63 | L88: 3107.23 | M88: 3134.46 | N88: 3233.68 | O88: 3313.84 | P88: 3356.71 | Q88: 3340.2 | R88: 3328 | S88: 3342.15 | T88: 3391.33 | U88: 3381.46 | V88: 3418.79 | W88: 3609.44 | X88: 3652.91 | Y88: 3753.4 | Z88: 3760.49 | AA88: 3830.46 | AB88: 3709.37 | AC88: 3723.06 | AD88: 3854.07 | AE88: 3860.04
A89: Finley | B89: Finley | C89: 1137.83 | D89: 1182.74 | E89: 1133.6 | F89: 1124.11 | G89: 1095.17 | H89: 1077.56 | I89: 1057.5 | J89: 999.79 | K89: 973.57 | L89: 970.6 | M89: 936.23 | N89: 939.76 | O89: 925.03 | P89: 923.66 | Q89: 924.35 | R89: 922 | S89: 933.03 | T89: 893.24 | U89: 904.1 | V89: 881.61 | W89: 887.42 | X89: 896.32 | Y89: 866.66 | Z89: 865.89 | AA89: 857.87 | AB89: 868.69 | AC89: 840.66 | AD89: 872.63 | AE89: 850.46
A90: First Place Scholars Charter | B90: First Place Scholars Charter | V90: 82.9 | W90: 32.5
A91: Franklin Pierce | B91: Franklin Pierce | C91: 6418.89 | D91: 6518.35 | E91: 6636.15 | F91: 6810.06 | G91: 7033.19 | H91: 7209.06 | I91: 7493.59 | J91: 7377.35 | K91: 7370.77 | L91: 7317.08 | M91: 7263.7 | N91: 7245.4 | O91: 7236.79 | P91: 7185.78 | Q91: 7205.13 | R91: 7138.38 | S91: 7153.28 | T91: 7168.08 | U91: 7392.11 | V91: 7515.26 | W91: 7588.3 | X91: 7764.36 | Y91: 7774.64 | Z91: 7814.7 | AA91: 7729.27 | AB91: 7411.75 | AC91: 7248.28 | AD91: 7215.96 | AE91: 7096.22
A92: Freeman | B92: Freeman | C92: 875.35 | D92: 878.88 | E92: 876.19 | F92: 876.95 | G92: 840.92 | H92: 852.51 | I92: 892.66 | J92: 895.03 | K92: 860.48 | L92: 859.63 | M92: 857.23 | N92: 894.72 | O92: 919.33 | P92: 921.04 | Q92: 901.68 | R92: 901.52 | S92: 908.91 | T92: 871.8 | U92: 865.37 | V92: 896.44 | W92: 865.2 | X92: 887.28 | Y92: 895.63 | Z92: 895.26 | AA92: 908.19 | AB92: 849.03 | AC92: 858.68 | AD92: 881.66 | AE92: 844.39
A93: Garfield | B93: Garfield | C93: 170.53 | D93: 167.22 | E93: 165.24 | F93: 171.45 | G93: 168.21 | H93: 139.85 | I93: 121.44 | J93: 113.77 | K93: 115.75 | L93: 105.37 | M93: 110.16 | N93: 97.25 | O93: 99.64 | P93: 90.77 | Q93: 81.86 | R93: 88 | S93: 96.47 | T93: 103.5 | U93: 92.65 | V93: 101.74 | W93: 108.18 | X93: 106.64 | Y93: 112.26 | Z93: 121.99 | AA93: 122.9 | AB93: 102.1 | AC93: 106 | AD93: 116.21 | AE93: 109.48
A94: Glenwood | B94: Glenwood | C94: 121.17 | D94: 123.15 | E94: 124.22 | F94: 116.94 | G94: 104.81 | H94: 94.61 | I94: 93.29 | J94: 81.05 | K94: 80 | L94: 72.79 | M94: 66.16 | N94: 60.87 | O94: 57 | P94: 56.52 | Q94: 68.66 | R94: 64.94 | S94: 64.84 | T94: 60.77 | U94: 65.88 | V94: 64.42 | W94: 66.35 | X94: 71.5 | Y94: 76.12 | Z94: 79.66 | AA94: 65.43 | AB94: 61.2 | AC94: 50.88 | AD94: 58.48 | AE94: 60.4
A95: Goldendale | B95: Goldendale | C95: 1344.29 | D95: 1305.54 | E95: 1244.02 | F95: 1238.08 | G95: 1231.04 | H95: 1264.15 | I95: 1234.89 | J95: 1171.14 | K95: 1131.87 | L95: 1071.72 | M95: 1051.86 | N95: 1028.09 | O95: 1024.74 | P95: 1002.81 | Q95: 977.66 | R95: 970.81 | S95: 986.46 | T95: 948.33 | U95: 931.13 | V95: 906.73 | W95: 914.51 | X95: 933.63 | Y95: 959.79 | Z95: 942.34 | AA95: 905.56 | AB95: 2189.13 | AC95: 2283.1 | AD95: 2914.75 | AE95: 2930.56
A96: Grand Coulee Dam | B96: Grand Coulee Dam | C96: 936.07 | D96: 922.15 | E96: 927.68 | F96: 893.76 | G96: 867.99 | H96: 837.81 | I96: 820.78 | J96: 816.09 | K96: 781.45 | L96: 780.89 | M96: 719.7 | N96: 706.22 | O96: 701.26 | P96: 651.88 | Q96: 646.89 | R96: 622.3 | S96: 628.31 | T96: 619.63 | U96: 674.88 | V96: 716.53 | W96: 689.16 | X96: 720.29 | Y96: 711.67 | Z96: 727.06 | AA96: 723.75 | AB96: 713.48 | AC96: 717.77 | AD96: 729.08 | AE96: 701.17
A97: Grandview | B97: Grandview | C97: 2731.91 | D97: 2772.22 | E97: 2762.45 | F97: 2807.92 | G97: 2833.62 | H97: 2802.79 | I97: 2865.1 | J97: 2965.18 | K97: 2970.16 | L97: 3008.13 | M97: 3050.54 | N97: 3113.6 | O97: 3172.25 | P97: 3215.75 | Q97: 3291.88 | R97: 3331.18 | S97: 3441.19 | T97: 3449.43 | U97: 3532.45 | V97: 3590.82 | W97: 3623.2 | X97: 3679.16 | Y97: 3675.02 | Z97: 3587.59 | AA97: 3567.94 | AB97: 3523.55 | AC97: 3484.26 | AD97: 3477.87 | AE97: 3496.33
A98: Granger | B98: Granger | C98: 1151.44 | D98: 1152.79 | E98: 1200.5 | F98: 1222.77 | G98: 1229.6 | H98: 1232.51 | I98: 1242.33 | J98: 1250.58 | K98: 1229.63 | L98: 1285.05 | M98: 1280.76 | N98: 1354.95 | O98: 1400.94 | P98: 1387.01 | Q98: 1409.88 | R98: 1438.56 | S98: 1484.14 | T98: 1464.41 | U98: 1481.2 | V98: 1475.39 | W98: 1504.96 | X98: 1471.23 | Y98: 1428.43 | Z98: 1443.61 | AA98: 1439.97 | AB98: 1431.28 | AC98: 1450.55 | AD98: 1396.09 | AE98: 1364.23
A99: Granite Falls | B99: Granite Falls | C99: 1579.38 | D99: 1708.83 | E99: 1761.44 | F99: 1930.95 | G99: 2048.33 | H99: 2110.75 | I99: 2172.57 | J99: 2260.34 | K99: 2275.42 | L99: 2289.22 | M99: 2265.98 | N99: 2235.81 | O99: 2219.87 | P99: 2183.14 | Q99: 2162.9 | R99: 2186.22 | S99: 2080.53 | T99: 1990.26 | U99: 1976.28 | V99: 1977.15 | W99: 2043.05 | X99: 2028.22 | Y99: 1954.5 | Z99: 1956.28 | AA99: 2055.76 | AB99: 2061.54 | AC99: 2183.88 | AD99: 2220.27 | AE99: 2247.05
A100: Grapeview | B100: Grapeview | C100: 208.89 | D100: 172.78 | E100: 176.12 | F100: 179.17 | G100: 169.33 | H100: 177.89 | I100: 154 | J100: 156.34 | K100: 154.06 | L100: 170.73 | M100: 179.63 | N100: 192.43 | O100: 196.44 | P100: 193.44 | Q100: 202.54 | R100: 202.43 | S100: 209.3 | T100: 203.45 | U100: 200.55 | V100: 205.92 | W100: 220.28 | X100: 217 | Y100: 218 | Z100: 214.86 | AA100: 201.37 | AB100: 195.4 | AC100: 214.6 | AD100: 238.8 | AE100: 225.4
A101: Great Northern | B101: Great Northern | C101: 31.12 | D101: 28.5 | E101: 38.28 | F101: 40.66 | G101: 40.5 | H101: 39.5 | I101: 41.56 | J101: 41.55 | K101: 39.39 | L101: 42.34 | M101: 34.27 | N101: 32.49 | O101: 35.73 | P101: 44.36 | Q101: 44.4 | R101: 40.42 | S101: 41.85 | T101: 41.44 | U101: 43.8 | V101: 45.45 | W101: 41.65 | X101: 48.25 | Y101: 53.4 | Z101: 37.4 | AA101: 42.9 | AB101: 36.3 | AC101: 29.4 | AD101: 38.4 | AE101: 38.4
A102: Green Dot Destiny Charter | B102: Green Dot Destiny Charter | W102: 57.4 | X102: 252.6 | Y102: 254.7 | Z102: 154.1
A103: Green Dot Excel Charter | B103: Green Dot Excel Charter | W103: 41.8 | X103: 169.1 | Y103: 164 | Z103: 172
A104: Green Dot Rainier Valley Charter | B104: Green Dot Rainier Valley Charter | Y104: 104.9 | Z104: 250 | AA104: 237.78 | AB104: 163.3 | AC104: 156.4 | AD104: 144.98 | AE104: 158.94
A105: Green Mountain | B105: Green Mountain | C105: 91.84 | D105: 98.33 | E105: 110.28 | F105: 115 | G105: 120.72 | H105: 107.32 | I105: 118.51 | J105: 114 | K105: 117.72 | L105: 113.34 | M105: 111.5 | N105: 111.56 | O105: 115.16 | P105: 113.27 | Q105: 124.56 | R105: 132.97 | S105: 145.2 | T105: 148.5 | U105: 137.5 | V105: 135.8 | W105: 158.8 | X105: 152.3 | Y105: 157 | Z105: 160.9 | AA105: 160.78 | AB105: 154.79 | AC105: 155.31 | AD105: 171.55 | AE105: 168.2
A106: Griffin | B106: Griffin | C106: 620.67 | D106: 641.72 | E106: 612.32 | F106: 609.27 | G106: 575.2 | H106: 603.74 | I106: 597.96 | J106: 625.86 | K106: 657.58 | L106: 648.46 | M106: 634.16 | N106: 639.65 | O106: 621.79 | P106: 597.19 | Q106: 615.45 | R106: 617.02 | S106: 595 | T106: 612.28 | U106: 616.34 | V106: 613.34 | W106: 610.26 | X106: 626.36 | Y106: 637.88 | Z106: 629.61 | AA106: 625.05 | AB106: 597.52 | AC106: 602.63 | AD106: 581.83 | AE106: 553.32
A107: Harrington | B107: Harrington | C107: 176.07 | D107: 178.84 | E107: 167.91 | F107: 163.43 | G107: 144.61 | H107: 142.03 | I107: 139.84 | J107: 143.22 | K107: 149.9 | L107: 138.77 | M107: 135.94 | N107: 118.09 | O107: 113.26 | P107: 122.75 | Q107: 124.04 | R107: 120.71 | S107: 108.46 | T107: 96.5 | U107: 97.4 | V107: 90.49 | W107: 90.42 | X107: 113.14 | Y107: 128.1 | Z107: 122.91 | AA107: 126.09 | AB107: 119.69 | AC107: 112.74 | AD107: 130.6 | AE107: 108.63
A108: Highland | B108: Highland | C108: 1089.24 | D108: 1094.53 | E108: 1099.76 | F108: 1146.71 | G108: 1124.02 | H108: 1119.28 | I108: 1098.09 | J108: 1122.33 | K108: 1098.08 | L108: 1139.81 | M108: 1132.34 | N108: 1095.12 | O108: 1087.29 | P108: 1087.46 | Q108: 1109.47 | R108: 1118.3 | S108: 1198.16 | T108: 1220.34 | U108: 1189.81 | V108: 1172.02 | W108: 1147.54 | X108: 1148.29 | Y108: 1120.93 | Z108: 1123.95 | AA108: 1092.2 | AB108: 1050.95 | AC108: 1037.25 | AD108: 1063.34 | AE108: 1050.28
A109: Highline | B109: Highline | C109: 17021.76 | D109: 17460.21 | E109: 17844.97 | F109: 17894.73 | G109: 17635.73 | H109: 17421.99 | I109: 17380.76 | J109: 17104.07 | K109: 16970.83 | L109: 16830.87 | M109: 16783.48 | N109: 16624.9 | O109: 16723.7 | P109: 17162.35 | Q109: 17271.86 | R109: 17260.98 | S109: 17628.71 | T109: 17924.85 | U109: 18687.35 | V109: 19038.16 | W109: 19399.35 | X109: 19402.95 | Y109: 19196.26 | Z109: 18560.6 | AA109: 18498.95 | AB109: 18220.92 | AC109: 17786.31 | AD109: 17580.16 | AE109: 18181.63
A110: Hockinson | B110: Hockinson | C110: 1195.88 | D110: 1205.58 | E110: 1235.7 | F110: 1214.75 | G110: 1270.21 | H110: 1319.87 | I110: 1373.23 | J110: 1459.83 | K110: 1672.09 | L110: 1878.92 | M110: 1955.29 | N110: 2004.11 | O110: 1984.6 | P110: 1967.83 | Q110: 1926.88 | R110: 1894.32 | S110: 1875.86 | T110: 1804.46 | U110: 1818.68 | V110: 1783.02 | W110: 1772.86 | X110: 1853.14 | Y110: 1930.5 | Z110: 1951.4 | AA110: 2012.43 | AB110: 1808.96 | AC110: 1913.95 | AD110: 2001.42 | AE110: 1975.88
A111: Hood Canal | B111: Hood Canal | C111: 455.57 | D111: 451.54 | E111: 420.98 | F111: 371 | G111: 354.05 | H111: 342.67 | I111: 332.33 | J111: 309.56 | K111: 325.67 | L111: 289.83 | M111: 286.02 | N111: 293.84 | O111: 284.45 | P111: 274.16 | Q111: 303.85 | R111: 296.42 | S111: 309.96 | T111: 272.4 | U111: 281.6 | V111: 298.63 | W111: 299.35 | X111: 302.85 | Y111: 301.6 | Z111: 295.43 | AA111: 313.46 | AB111: 293.2 | AC111: 308.64 | AD111: 326.67 | AE111: 307.94
A112: Hoquiam | B112: Hoquiam | C112: 2274.58 | D112: 2233.98 | E112: 2203.33 | F112: 2185.79 | G112: 2137 | H112: 2095.61 | I112: 2048.34 | J112: 2015.79 | K112: 1984.11 | L112: 1942.09 | M112: 1943.44 | N112: 1925.89 | O112: 1923.87 | P112: 1875.97 | Q112: 1863.21 | R112: 1725.09 | S112: 1630.07 | T112: 1577.05 | U112: 1669.34 | V112: 1663.16 | W112: 1660.81 | X112: 1642.12 | Y112: 1657 | Z112: 1654.92 | AA112: 1599.55 | AB112: 1588.31 | AC112: 1566.63 | AD112: 1619.1 | AE112: 1575.32
A113: Impact Charter | B113: Impact Charter | Z113: 177.5 | AA113: 271.81 | AB113: 407.6 | AC113: 582.1 | AD113: 594 | AE113: 485.4
A114: Impact Salish Sea Charter | B114: Impact Salish Sea Charter | AB114: 124.2 | AC114: 277.1 | AD114: 332.6 | AE114: 317
A115: Impact-Black River Elementary Charter | B115: Impact-Black River Elementary Charter | AE115: 127.2
A116: Impact-Commencement Bay Elementary Charter | B116: Impact-Commencement Bay Elementary Charter | AC116: 259.37 | AD116: 325.5 | AE116: 259.6
A117: Inchelium | B117: Inchelium | C117: 246.99 | D117: 244.39 | E117: 254.34 | F117: 252.04 | G117: 248.84 | H117: 255.46 | I117: 233.87 | J117: 221.61 | K117: 223.25 | L117: 221.75 | M117: 218.27 | N117: 195.75 | O117: 194.03 | P117: 199.18 | Q117: 187.3 | R117: 187.19 | S117: 202.01 | T117: 212.15 | U117: 208.45 | V117: 213.78 | W117: 212.1 | X117: 220.05 | Y117: 218.07 | Z117: 209.23 | AA117: 213.75 | AB117: 219.15 | AC117: 219.49 | AD117: 198.85 | AE117: 185.76
A118: Index | B118: Index | C118: 29.56 | D118: 29.33 | E118: 37.05 | F118: 39.98 | G118: 26.03 | H118: 34.87 | I118: 46.09 | J118: 35.46 | K118: 25.76 | L118: 26.72 | M118: 22.83 | N118: 24.28 | O118: 20.39 | P118: 20.4 | Q118: 27.27 | R118: 29.44 | S118: 31.55 | T118: 20.9 | U118: 31.45 | V118: 38.05 | W118: 39.7 | X118: 33.35 | Y118: 33.3 | Z118: 28.39 | AA118: 27.94 | AB118: 24.28 | AC118: 24.68 | AD118: 18.98 | AE118: 23.88
A119: Issaquah | B119: Issaquah | C119: 10692.98 | D119: 11278.25 | E119: 12084.47 | F119: 12788.88 | G119: 12990.04 | H119: 13412.14 | I119: 13653.37 | J119: 13884.34 | K119: 14266.84 | L119: 14635.56 | M119: 15059.16 | N119: 15391.74 | O119: 15555.31 | P119: 15729.82 | Q119: 16020.45 | R119: 16359.5 | S119: 16778.02 | T119: 17360.84 | U119: 17770.25 | V119: 18330.11 | W119: 18919.04 | X119: 20102.88 | Y119: 20522.12 | Z119: 20524.15 | AA119: 20871.99 | AB119: 19817.81 | AC119: 19209.82 | AD119: 19224.51 | AE119: 19057.04
A120: Kahlotus | B120: Kahlotus | C120: 91.84 | D120: 90.94 | E120: 96.06 | F120: 86.95 | G120: 86.94 | H120: 88.79 | I120: 91.23 | J120: 78.66 | K120: 76.5 | L120: 78.32 | M120: 72.88 | N120: 66 | O120: 60.69 | P120: 59.69 | Q120: 58.31 | R120: 53.08 | S120: 53.95 | T120: 53 | U120: 50.5 | V120: 46.6 | W120: 47 | X120: 48.4 | Y120: 44.6 | Z120: 44.22 | AA120: 41.45 | AB120: 38.5 | AC120: 41 | AD120: 48.7 | AE120: 46.58
A121: Kalama | B121: Kalama | C121: 784.5 | D121: 825.54 | E121: 868.9 | F121: 909.36 | G121: 934.8 | H121: 955.55 | I121: 941.19 | J121: 959.3 | K121: 984.91 | L121: 987.98 | M121: 979.38 | N121: 983.18 | O121: 970.61 | P121: 984.81 | Q121: 996.26 | R121: 998.54 | S121: 949.93 | T121: 927.79 | U121: 894.02 | V121: 892.09 | W121: 919.38 | X121: 944.21 | Y121: 1019.33 | Z121: 1020.73 | AA121: 1041.51 | AB121: 1020.29 | AC121: 1045.22 | AD121: 1148.23 | AE121: 1104.81
A122: Keller | B122: Keller | C122: 58.89 | D122: 59.45 | E122: 48.4 | F122: 39.33 | G122: 43.33 | H122: 45.51 | I122: 52.11 | J122: 54 | K122: 53.11 | L122: 46.49 | M122: 41.28 | N122: 36 | O122: 33.83 | P122: 32.84 | Q122: 22.66 | R122: 23.88 | S122: 33.55 | T122: 25.35 | U122: 38.3 | V122: 30.45 | W122: 27.15 | X122: 29.4 | Y122: 28.3 | Z122: 33.7 | AA122: 39.9 | AB122: 36.1 | AC122: 34.1 | AD122: 33.8 | AE122: 43.6
A123: Kelso | B123: Kelso | C123: 4949.16 | D123: 4991.5 | E123: 4966.32 | F123: 4961.67 | G123: 4940.53 | H123: 4984.27 | I123: 4980.24 | J123: 5037.65 | K123: 4993.68 | L123: 5028.03 | M123: 5002.74 | N123: 5022.69 | O123: 4887.57 | P123: 4811.9 | Q123: 4764.35 | R123: 4724.79 | S123: 4679.62 | T123: 4691.33 | U123: 4701.59 | V123: 4742.83 | W123: 4934.43 | X123: 4946.42 | Y123: 5088.16 | Z123: 4990.13 | AA123: 4966.44 | AB123: 4731.26 | AC123: 4821.43 | AD123: 4980.84 | AE123: 4907.78
A124: Kennewick | B124: Kennewick | C124: 12635.08 | D124: 12896.53 | E124: 12983.47 | F124: 13032.91 | G124: 13053.69 | H124: 13210.43 | I124: 13446.72 | J124: 13673.66 | K124: 13778.21 | L124: 13778.9 | M124: 13994.19 | N124: 14142.68 | O124: 14490.55 | P124: 14728.62 | Q124: 15087.53 | R124: 15471.16 | S124: 15810.74 | T124: 16188.06 | U124: 16753.08 | V124: 17108.88 | W124: 17746.63 | X124: 18343.2 | Y124: 18628.23 | Z124: 18623.29 | AA124: 18809.92 | AB124: 18211.55 | AC124: 18324.58 | AD124: 18579.15 | AE124: 19823.41
A125: Kent | B125: Kent | C125: 23215.03 | D125: 23692.75 | E125: 24488.83 | F125: 24811.41 | G125: 25099.54 | H125: 25274.51 | I125: 25436.62 | J125: 25457.44 | K125: 25594.18 | L125: 26026.92 | M125: 26102.74 | N125: 26107.65 | O125: 26066.98 | P125: 26004.07 | Q125: 25989.93 | R125: 25882.32 | S125: 25931.3 | T125: 26313.6 | U125: 26661.77 | V125: 26810.57 | W125: 27088.75 | X125: 27312.04 | Y125: 27271.1 | Z125: 26669.45 | AA125: 26724.15 | AB125: 25323.18 | AC125: 24696.99 | AD125: 25206.72 | AE125: 25347.27
A126: Kettle Falls | B126: Kettle Falls | C126: 858.2 | D126: 888.54 | E126: 872.74 | F126: 877.45 | G126: 856.79 | H126: 842.07 | I126: 816.35 | J126: 825.87 | K126: 829.21 | L126: 823.35 | M126: 820.54 | N126: 817.33 | O126: 785.14 | P126: 765.1 | Q126: 974.56 | R126: 912.74 | S126: 911.81 | T126: 891.64 | U126: 861.92 | V126: 879.8 | W126: 882.72 | X126: 935.46 | Y126: 961.81 | Z126: 1017.81 | AA126: 1039.95 | AB126: 1053.39 | AC126: 1039.69 | AD126: 1072.75 | AE126: 1082.7
A127: Kiona-Benton City | B127: Kiona-Benton City | C127: 1544.48 | D127: 1591.47 | E127: 1607.85 | F127: 1592.08 | G127: 1625.42 | H127: 1582.56 | I127: 1584.62 | J127: 1559.9 | K127: 1556.15 | L127: 1532.27 | M127: 1501.48 | N127: 1477.95 | O127: 1463.86 | P127: 1456.06 | Q127: 1462.2 | R127: 1413.05 | S127: 1392.9 | T127: 1381.26 | U127: 1424.92 | V127: 1437.93 | W127: 1447.91 | X127: 1427.31 | Y127: 1413.56 | Z127: 1384.49 | AA127: 1362.91 | AB127: 1351.11 | AC127: 1398.69 | AD127: 1384.38 | AE127: 1348.17
A128: Kittitas | B128: Kittitas | C128: 561.36 | D128: 546.3 | E128: 541.52 | F128: 533.57 | G128: 494.55 | H128: 502.74 | I128: 510.97 | J128: 512.9 | K128: 525.15 | L128: 560.03 | M128: 564.72 | N128: 608.37 | O128: 751.23 | P128: 821.86 | Q128: 705.85 | R128: 633.99 | S128: 598.69 | T128: 628.05 | U128: 646.87 | V128: 647.44 | W128: 633.83 | X128: 626.98 | Y128: 669.21 | Z128: 662.69 | AA128: 648.71 | AB128: 596.54 | AC128: 575.37 | AD128: 593.27 | AE128: 551.27
A129: Klickitat | B129: Klickitat | C129: 150.77 | D129: 172.61 | E129: 164.66 | F129: 167.19 | G129: 170.39 | H129: 175.15 | I129: 169.69 | J129: 162.64 | K129: 145.48 | L129: 137.11 | M129: 143.15 | N129: 133.09 | O129: 123.25 | P129: 110.21 | Q129: 119.5 | R129: 107.31 | S129: 97.27 | T129: 95.58 | U129: 90.42 | V129: 78.26 | W129: 69.01 | X129: 70.85 | Y129: 71.17 | Z129: 86.49 | AA129: 80.1 | AB129: 74.05 | AC129: 94.67 | AD129: 92.27 | AE129: 84.95
A130: La Center | B130: La Center | C130: 1186.53 | D130: 1237.19 | E130: 1249.19 | F130: 1316.2 | G130: 1352.78 | H130: 1313.64 | I130: 1327.63 | J130: 1272.75 | K130: 1262.97 | L130: 1319.61 | M130: 1411.2 | N130: 1415.13 | O130: 1482.31 | P130: 1500.4 | Q130: 1481.42 | R130: 1489.66 | S130: 1497.28 | T130: 1506.1 | U130: 1542.33 | V130: 1530.17 | W130: 1616.13 | X130: 1646.34 | Y130: 1666.52 | Z130: 1655.86 | AA130: 1672.46 | AB130: 1560.37 | AC130: 1669.41 | AD130: 1707.53 | AE130: 1780.03
A131: La Conner | B131: La Conner | C131: 649.11 | D131: 633.6 | E131: 675.18 | F131: 657.78 | G131: 620.2 | H131: 622.61 | I131: 621.27 | J131: 619.2 | K131: 608.89 | L131: 613.39 | M131: 607.23 | N131: 627.75 | O131: 628.4 | P131: 608.92 | Q131: 622.05 | R131: 600.91 | S131: 595.31 | T131: 602.64 | U131: 607.18 | V131: 597.92 | W131: 612.32 | X131: 568.49 | Y131: 591.16 | Z131: 596.94 | AA131: 613.59 | AB131: 603.57 | AC131: 564.69 | AD131: 531.6 | AE131: 508.51
A132: Lacrosse | B132: Lacrosse | C132: 153.23 | D132: 163.37 | E132: 153.27 | F132: 151.62 | G132: 149.55 | H132: 148.11 | I132: 150.22 | J132: 157.36 | K132: 148.11 | L132: 141.76 | M132: 139 | N132: 140.39 | O132: 144.16 | P132: 115.59 | Q132: 106.96 | R132: 89.62 | S132: 85.57 | T132: 80.12 | U132: 69.42 | V132: 64.74 | W132: 68.63 | X132: 59.17 | Y132: 62.63 | Z132: 65.9 | AA132: 79.88 | AB132: 83.77 | AC132: 80.4 | AD132: 88.79 | AE132: 72.45
A133: Lake Chelan | B133: Lake Chelan | C133: 1270.23 | D133: 1300.87 | E133: 1326.76 | F133: 1326.15 | G133: 1271.89 | H133: 1286.59 | I133: 1257.09 | J133: 1233.73 | K133: 1244.91 | L133: 1237.44 | M133: 1238.21 | N133: 1238.73 | O133: 1280.39 | P133: 1290.15 | Q133: 1316.76 | R133: 1295.63 | S133: 1333.06 | T133: 1343.33 | U133: 1379.3 | V133: 1420.94 | W133: 1439.02 | X133: 1433.39 | Y133: 1408.31 | Z133: 1403.01 | AA133: 1372.07 | AB133: 1277.43 | AC133: 1256.07 | AD133: 1269.86 | AE133: 1267.62
A134: Lake Quinault | B134: Lake Quinault | C134: 275.21 | D134: 287.41 | E134: 259.26 | F134: 260.11 | G134: 279.39 | H134: 252.7 | I134: 263.21 | J134: 264.85 | K134: 251.57 | L134: 245.88 | M134: 225.04 | N134: 239.6 | O134: 233.42 | P134: 220.9 | Q134: 205.66 | R134: 192.28 | S134: 170.08 | T134: 157.48 | U134: 163.58 | V134: 164.7 | W134: 168.04 | X134: 161.33 | Y134: 171.4 | Z134: 178.21 | AA134: 199 | AB134: 180.68 | AC134: 177.6 | AD134: 200.36 | AE134: 205.48
A135: Lake Stevens | B135: Lake Stevens | C135: 4946.29 | D135: 5381.21 | E135: 5723.2 | F135: 5888.21 | G135: 6223.2 | H135: 6389.29 | I135: 6643.01 | J135: 6808.83 | K135: 7045 | L135: 7116.79 | M135: 7331.02 | N135: 7267.58 | O135: 7299.81 | P135: 7361.3 | Q135: 7495.59 | R135: 7598.22 | S135: 7676.03 | T135: 7717.05 | U135: 7805.01 | V135: 7904.67 | W135: 8201.69 | X135: 8588.36 | Y135: 8646.73 | Z135: 8857.3 | AA135: 9196.35 | AB135: 8801.62 | AC135: 9262.81 | AD135: 9353.36 | AE135: 9444.98
A136: =TRIM(B136) -> Lake Washington | B136: Lake Washington | C136: 23099.61 | D136: 23430.04 | E136: 23564.13 | F136: 23337.75 | G136: 23113.79 | H136: 22743.37 | I136: 22718.36 | J136: 22665.26 | K136: 22735.01 | L136: 22748.07 | M136: 22718.8 | N136: 22682.31 | O136: 22628.96 | P136: 22782.12 | Q136: 23115.28 | R136: 23543.5 | S136: 23886.49 | T136: 24373.82 | U136: 25076.68 | V136: 25732.15 | W136: 27005.19 | X136: 29147.36 | Y136: 29754.41 | Z136: 30241.39 | AA136: 31392.03 | AB136: 30657.42 | AC136: 30606.91 | AD136: 30590.55 | AE136: 31411.47
A137: Lakewood | B137: Lakewood | C137: 1862.77 | D137: 1909.94 | E137: 2178.29 | F137: 2288.43 | G137: 2294.69 | H137: 2302.94 | I137: 2286.94 | J137: 2421.44 | K137: 2461.27 | L137: 2391.56 | M137: 2356.55 | N137: 2393.81 | O137: 2395.81 | P137: 2385.77 | Q137: 2390.51 | R137: 2262.63 | S137: 2266.12 | T137: 2201.76 | U137: 2215.74 | V137: 2207.42 | W137: 2262.9 | X137: 2324.02 | Y137: 2394.75 | Z137: 2415.65 | AA137: 2500.9 | AB137: 2438.27 | AC137: 2519.16 | AD137: 2534.67 | AE137: 2579.96
A138: Lamont | B138: Lamont | C138: 38 | D138: 38.33 | E138: 40.7 | F138: 37.34 | G138: 45.88 | H138: 39.12 | I138: 35.29 | J138: 33.78 | K138: 25.34 | L138: 36.89 | M138: 37.34 | N138: 33.66 | O138: 32.66 | P138: 31.99 | Q138: 26.11 | R138: 19.77 | S138: 19.9 | T138: 29.1 | U138: 31.1 | V138: 32 | W138: 31.1 | X138: 29.9 | Y138: 38.6 | Z138: 35 | AA138: 39.02 | AB138: 41.41 | AC138: 35.6 | AD138: 27.65 | AE138: 25.6
A139: Liberty | B139: Liberty | C139: 648.63 | D139: 640.71 | E139: 648.25 | F139: 647.27 | G139: 636.65 | H139: 585.02 | I139: 532.49 | J139: 507.85 | K139: 512.05 | L139: 502.41 | M139: 501.28 | N139: 488.35 | O139: 476.95 | P139: 454 | Q139: 444.61 | R139: 428.45 | S139: 408.14 | T139: 401.68 | U139: 398.84 | V139: 396.95 | W139: 441.64 | X139: 461.02 | Y139: 501.27 | Z139: 511.66 | AA139: 545.3 | AB139: 536.68 | AC139: 564.58 | AD139: 577.62 | AE139: 592.26
A140: Lind | B140: Lind | C140: 231.83 | D140: 242.4 | E140: 238.04 | F140: 236.55 | G140: 216.2 | H140: 216.86 | I140: 212.42 | J140: 208.9 | K140: 210.5 | L140: 213.16 | M140: 230.89 | N140: 224.91 | O140: 218.01 | P140: 200.99 | Q140: 202.98 | R140: 207.89 | S140: 189.69 | T140: 179.47 | U140: 180.95 | V140: 174.5 | W140: 193.24 | X140: 187.7 | Y140: 193.53 | Z140: 197.93 | AA140: 189.99 | AB140: 196.44 | AC140: 192.69 | AD140: 202.34 | AE140: 181.37
A141: Longview | B141: Longview | C141: 7134.73 | D141: 7116.44 | E141: 7159.97 | F141: 7228.94 | G141: 7102 | H141: 7059.25 | I141: 7140.59 | J141: 6995.25 | K141: 6977.84 | L141: 6887.42 | M141: 6908.22 | N141: 6905.73 | O141: 6844.31 | P141: 6723.03 | Q141: 6603.7 | R141: 6485.05 | S141: 6334.91 | T141: 6298.17 | U141: 6480.84 | V141: 6447.05 | W141: 6607.14 | X141: 6561.17 | Y141: 6474.69 | Z141: 6482.81 | AA141: 6488.47 | AB141: 6155.17 | AC141: 6135.77 | AD141: 6175.53 | AE141: 6148.2
A142: Loon Lake | B142: Loon Lake | C142: 178.39 | D142: 166.39 | E142: 155.89 | F142: 144.39 | G142: 145.95 | H142: 135.73 | I142: 153.45 | J142: 145.17 | K142: 131.16 | L142: 161.77 | M142: 184.8 | N142: 197.4 | O142: 248.98 | P142: 258.5 | Q142: 290.38 | R142: 286.91 | S142: 210.43 | T142: 204.09 | U142: 211.97 | V142: 195.05 | W142: 197.57 | X142: 190.37 | Y142: 213.97 | Z142: 219.4 | AA142: 224.89 | AB142: 259.24 | AC142: 233.7 | AD142: 230.7 | AE142: 246.28
A143: Lopez Island | B143: Lopez Island | C143: 277.88 | D143: 280.71 | E143: 268.57 | F143: 262.34 | G143: 254.46 | H143: 248.88 | I143: 254.22 | J143: 247.24 | K143: 259.79 | L143: 255.31 | M143: 239.59 | N143: 234.35 | O143: 229.61 | P143: 212.69 | Q143: 213 | R143: 211.55 | S143: 201.72 | T143: 214.09 | U143: 218.82 | V143: 230 | W143: 227.64 | X143: 230.26 | Y143: 243.17 | Z143: 228.52 | AA143: 239.7 | AB143: 233.36 | AC143: 242.11 | AD143: 225.91 | AE143: 225.25
A144: Lumen Charter | B144: Lumen Charter | AB144: 36.74 | AC144: 36.6 | AD144: 34.48 | AE144: 28.57
A145: Lummi Tribal | B145: Lummi Tribal | V145: 284.9 | W145: 268.66 | X145: 285.67 | Y145: 315.21 | Z145: 334.03 | AA145: 380.83 | AB145: 396.97 | AC145: 393.4 | AD145: 386.65 | AE145: 397.2
A146: Lyle | B146: Lyle | C146: 418.26 | D146: 417.96 | E146: 405.33 | F146: 432.36 | G146: 415.07 | H146: 397.3 | I146: 385.64 | J146: 371.1 | K146: 379.82 | L146: 365.91 | M146: 365.51 | N146: 333.93 | O146: 320.48 | P146: 316.1 | Q146: 297.04 | R146: 297.79 | S146: 295.59 | T146: 264.01 | U146: 218.71 | V146: 233.6 | W146: 240.54 | X146: 228.6 | Y146: 243.89 | Z146: 245.25 | AA146: 242.8 | AB146: 208.71 | AC146: 205.16 | AD146: 203.71 | AE146: 198.07
A147: Lynden | B147: Lynden | C147: 2366.32 | D147: 2437.11 | E147: 2440.96 | F147: 2484.23 | G147: 2475.74 | H147: 2433.72 | I147: 2416.6 | J147: 2470.36 | K147: 2533.29 | L147: 2629.29 | M147: 2645.71 | N147: 2660.83 | O147: 2684.34 | P147: 2642.63 | Q147: 2700.69 | R147: 2696.74 | S147: 2646.34 | T147: 2667.3 | U147: 2706.05 | V147: 2744.71 | W147: 2989.46 | X147: 3155.78 | Y147: 3190.13 | Z147: 3358.82 | AA147: 3464.95 | AB147: 3297.55 | AC147: 3307.02 | AD147: 3440.29 | AE147: 3455.39
A148: Mabton | B148: Mabton | C148: 876.01 | D148: 854.6 | E148: 888.85 | F148: 903.3 | G148: 857.77 | H148: 820.81 | I148: 776.27 | J148: 802.54 | K148: 866.07 | L148: 865.94 | M148: 867.26 | N148: 895.68 | O148: 860.94 | P148: 901.4 | Q148: 903.93 | R148: 889.28 | S148: 925.01 | T148: 889.62 | U148: 911.14 | V148: 935.75 | W148: 939 | X148: 893.06 | Y148: 869.82 | Z148: 827.09 | AA148: 855.25 | AB148: 841.8 | AC148: 804.39 | AD148: 769.32 | AE148: 721.14
A149: Mansfield | B149: Mansfield | C149: 117.78 | D149: 141.66 | E149: 116.34 | F149: 119.16 | G149: 108.28 | H149: 103.08 | I149: 103.88 | J149: 115.23 | K149: 102.66 | L149: 83.84 | M149: 79.55 | N149: 82.5 | O149: 79.67 | P149: 75.6 | Q149: 79.84 | R149: 74.92 | S149: 84.25 | T149: 92.25 | U149: 79 | V149: 97.73 | W149: 92.1 | X149: 99.6 | Y149: 90.6 | Z149: 88.67 | AA149: 93.19 | AB149: 87.3 | AC149: 89.5 | AD149: 98.03 | AE149: 100.59
A150: Manson | B150: Manson | C150: 627.06 | D150: 609.11 | E150: 610.34 | F150: 609.98 | G150: 653.35 | H150: 636.92 | I150: 628.83 | J150: 601.45 | K150: 599.04 | L150: 583.19 | M150: 595.39 | N150: 601.61 | O150: 570.38 | P150: 567.64 | Q150: 574.08 | R150: 556.6 | S150: 640.36 | T150: 628.38 | U150: 656.87 | V150: 666.52 | W150: 660.27 | X150: 655.37 | Y150: 622.45 | Z150: 605.17 | AA150: 626.65 | AB150: 612.79 | AC150: 598.94 | AD150: 616.18 | AE150: 649.3
A151: Mary M. Knight | B151: Mary M. Knight | C151: 210.3 | D151: 214.22 | E151: 207.95 | F151: 203.1 | G151: 204.37 | H151: 206.83 | I151: 198.19 | J151: 206.73 | K151: 195.73 | L151: 198.57 | M151: 170 | N151: 176.59 | O151: 172.79 | P151: 170.79 | Q151: 180.6 | R151: 181.9 | S151: 172.36 | T151: 188.52 | U151: 189.96 | V151: 175.67 | W151: 152.75 | X151: 575.98 | Y151: 1129.77 | Z151: 1720.72 | AA151: 1736.91 | AB151: 2068.39 | AC151: 1408.03 | AD151: 1005.35 | AE151: 863.81
A152: Mary Walker | B152: Mary Walker | C152: 531.83 | D152: 556.69 | E152: 544.15 | F152: 536.15 | G152: 552.19 | H152: 544.26 | I152: 564.92 | J152: 578.24 | K152: 556.21 | L152: 563.24 | M152: 566.73 | N152: 575.16 | O152: 559.06 | P152: 554.43 | Q152: 558.94 | R152: 522.01 | S152: 527.44 | T152: 546.35 | U152: 492.54 | V152: 489.7 | W152: 934.71 | X152: 532.45 | Y152: 497.58 | Z152: 459.25 | AA152: 468.57 | AB152: 420.64 | AC152: 461.11 | AD152: 492.13 | AE152: 488
A153: Marysville | B153: Marysville | C153: 9397.27 | D153: 9843.8 | E153: 10236.71 | F153: 10669.45 | G153: 10978.19 | H153: 11191.47 | I153: 11309.01 | J153: 11161.28 | K153: 10728.59 | L153: 10859.54 | M153: 11094.84 | N153: 11261.79 | O153: 11205.57 | P153: 11114.45 | Q153: 10967.07 | R153: 10873.66 | S153: 10789.59 | T153: 10711.77 | U153: 10895.15 | V153: 10764.24 | W153: 10835.04 | X153: 10831.38 | Y153: 10721.73 | Z153: 10546.15 | AA153: 10344.67 | AB153: 9863.43 | AC153: 9840.05 | AD153: 9832.18 | AE153: 9453.57
A154: McCleary | B154: McCleary | C154: 304.4 | D154: 302.39 | E154: 281.83 | F154: 264.61 | G154: 274.45 | H154: 265.17 | I154: 262.83 | J154: 261.39 | K154: 265 | L154: 266.01 | M154: 268.88 | N154: 261.89 | O154: 247.41 | P154: 258.69 | Q154: 280.7 | R154: 305.47 | S154: 300.77 | T154: 284.64 | U154: 264.64 | V154: 265.7 | W154: 307.73 | X154: 333.18 | Y154: 311.77 | Z154: 298.86 | AA154: 318.65 | AB154: 286.92 | AC154: 287.28 | AD154: 304.46 | AE154: 319.2
A155: Mead | B155: Mead | C155: 7381.89 | D155: 7519.8 | E155: 7593.06 | F155: 7679.42 | G155: 7701.85 | H155: 7873.73 | I155: 8054.87 | J155: 8223.73 | K155: 8378.93 | L155: 8548.73 | M155: 8720.69 | N155: 8782.22 | O155: 8915.16 | P155: 9002.4 | Q155: 9052.08 | R155: 9234.18 | S155: 9173.91 | T155: 9142.67 | U155: 9287.24 | V155: 9480.31 | W155: 9545.26 | X155: 9745.65 | Y155: 10224.89 | Z155: 10499.85 | AA155: 10517.09 | AB155: 10128.23 | AC155: 10197.5 | AD155: 10218.2 | AE155: 10111.08
A156: Medical Lake | B156: Medical Lake | C156: 2270.74 | D156: 2341.3 | E156: 2347.81 | F156: 2304.75 | G156: 2188.08 | H156: 2155.08 | I156: 2177.67 | J156: 2174.75 | K156: 2174.09 | L156: 2139.92 | M156: 2085.57 | N156: 2065.44 | O156: 2043.56 | P156: 2028.46 | Q156: 1962.9 | R156: 1904.69 | S156: 1805.59 | T156: 1772.05 | U156: 1773.44 | V156: 1759.44 | W156: 1807.34 | X156: 1843.41 | Y156: 1849.18 | Z156: 1823.91 | AA156: 1828.39 | AB156: 1722.98 | AC156: 1752.27 | AD156: 1759.46 | AE156: 1717.02
A157: Mercer Island | B157: Mercer Island | C157: 3622.8 | D157: 3798.88 | E157: 3888.26 | F157: 4013.85 | G157: 4098.53 | H157: 4163.9 | I157: 4054.74 | J157: 4017.57 | K157: 4025.92 | L157: 4025.39 | M157: 3970.81 | N157: 3884.11 | O157: 3844.89 | P157: 3880.72 | Q157: 3951.1 | R157: 4040.67 | S157: 4123.61 | T157: 4118.71 | U157: 4136.22 | V157: 4227.53 | W157: 4243.68 | X157: 4398.67 | Y157: 4451.95 | Z157: 4419.94 | AA157: 4358.16 | AB157: 4074.56 | AC157: 3996.87 | AD157: 3982.46 | AE157: 3920.39
A158: Meridian | B158: Meridian | C158: 1412.63 | D158: 1389.38 | E158: 1431.66 | F158: 1487.67 | G158: 1503.3 | H158: 1531.71 | I158: 1484.72 | J158: 1503.77 | K158: 1493.16 | L158: 1467.08 | M158: 1493.07 | N158: 1581.33 | O158: 1572.04 | P158: 1867.66 | Q158: 2070.18 | R158: 2259.59 | S158: 2057.26 | T158: 2223.27 | U158: 1683.96 | V158: 1636.59 | W158: 1714.13 | X158: 1704.92 | Y158: 1751.49 | Z158: 1728 | AA158: 1785.13 | AB158: 1795.34 | AC158: 1730.42 | AD158: 1773.85 | AE158: 1816.57
A159: Methow Valley | B159: Methow Valley | C159: 783.4 | D159: 750.55 | E159: 758.91 | F159: 750.04 | G159: 704.31 | H159: 689.15 | I159: 651.18 | J159: 620.41 | K159: 623.87 | L159: 605.26 | M159: 562.26 | N159: 539.87 | O159: 541.56 | P159: 524.01 | Q159: 509.05 | R159: 532.99 | S159: 542.11 | T159: 556.25 | U159: 584.75 | V159: 591.94 | W159: 595.85 | X159: 612.3 | Y159: 643.04 | Z159: 690.76 | AA159: 695.56 | AB159: 680 | AC159: 717.46 | AD159: 736.7 | AE159: 753.54
A160: Mill A | B160: Mill A | C160: 86.33 | D160: 64.88 | E160: 84.28 | F160: 77.72 | G160: 78.06 | H160: 74.06 | I160: 82.39 | J160: 80.78 | K160: 74.89 | L160: 74.71 | M160: 76.28 | N160: 65.77 | O160: 61.49 | P160: 54.01 | Q160: 56.51 | R160: 57.65 | S160: 56.05 | T160: 26.6 | U160: 22.85 | V160: 19.65 | W160: 19.94 | X160: 18.8 | Y160: 29.78 | Z160: 43.22 | AA160: 50.51 | AB160: 41.31 | AC160: 52.75 | AD160: 68.05 | AE160: 68.71
A161: Monroe | B161: Monroe | C161: 4521.26 | D161: 4617.03 | E161: 4760 | F161: 5130.72 | G161: 5382 | H161: 5597.65 | I161: 5823.63 | J161: 5913.38 | K161: 6086.14 | L161: 6162.25 | M161: 6423.2 | N161: 6600.12 | O161: 6867.43 | P161: 7489.94 | Q161: 7675.18 | R161: 7558.81 | S161: 7313.79 | T161: 6986.43 | U161: 6818.54 | V161: 6788.97 | W161: 6585.04 | X161: 6734.25 | Y161: 6712.65 | Z161: 6593.8 | AA161: 6515.07 | AB161: 5968.65 | AC161: 5795.59 | AD161: 5494.29 | AE161: 5458.05
A162: Montesano | B162: Montesano | C162: 1551.99 | D162: 1543.66 | E162: 1469.26 | F162: 1437 | G162: 1349.85 | H162: 1319.76 | I162: 1310.7 | J162: 1246.12 | K162: 1237.03 | L162: 1223.27 | M162: 1252.25 | N162: 1200.86 | O162: 1253.9 | P162: 1250.23 | Q162: 1207.18 | R162: 1209.88 | S162: 1192.27 | T162: 1209.5 | U162: 1235.35 | V162: 1252.29 | W162: 1342.34 | X162: 1384.87 | Y162: 1371.65 | Z162: 1390.38 | AA162: 1423.3 | AB162: 1367.8 | AC162: 1349.6 | AD162: 1410.52 | AE162: 1400.38
A163: Morton | B163: Morton | C163: 535.19 | D163: 513.86 | E163: 512.19 | F163: 490.82 | G163: 494.39 | H163: 468.73 | I163: 450.29 | J163: 461.48 | K163: 453.63 | L163: 421.41 | M163: 422.81 | N163: 379.17 | O163: 383.06 | P163: 342.09 | Q163: 311.59 | R163: 285.44 | S163: 285.83 | T163: 289.37 | U163: 293.55 | V163: 306.73 | W163: 315.44 | X163: 321.75 | Y163: 302.74 | Z163: 314.15 | AA163: 342.65 | AB163: 316.18 | AC163: 392.36 | AD163: 413.16 | AE163: 401.81
A164: Moses Lake | B164: Moses Lake | C164: 5746.54 | D164: 5864.99 | E164: 5993.97 | F164: 6093 | G164: 6215.7 | H164: 6112.64 | I164: 6230.58 | J164: 6301.21 | K164: 6390.36 | L164: 6417.65 | M164: 6553.15 | N164: 6738.06 | O164: 6899 | P164: 7047.07 | Q164: 7220.57 | R164: 7324.81 | S164: 7447.85 | T164: 7578.96 | U164: 7928.56 | V164: 8082.28 | W164: 8309.11 | X164: 8517.88 | Y164: 8616.61 | Z164: 8643.82 | AA164: 8755.63 | AB164: 8082.99 | AC164: 8327.82 | AD164: 8518.15 | AE164: 9154.29
A165: Mossyrock | B165: Mossyrock | C165: 646.75 | D165: 627.74 | E165: 604.12 | F165: 634.52 | G165: 616.29 | H165: 600.22 | I165: 599.59 | J165: 605.39 | K165: 596.82 | L165: 622.64 | M165: 635.08 | N165: 643.59 | O165: 621.5 | P165: 611.6 | Q165: 579.32 | R165: 558.15 | S165: 542.89 | T165: 513.1 | U165: 526.7 | V165: 515.95 | W165: 517.9 | X165: 508.56 | Y165: 522.55 | Z165: 523.24 | AA165: 561.32 | AB165: 553.66 | AC165: 575.51 | AD165: 597.19 | AE165: 613.03
A166: Mount Adams | B166: Mount Adams | C166: 1154.89 | D166: 1183.5 | E166: 1177.35 | F166: 1142.12 | G166: 1128.23 | H166: 1059.31 | I166: 1019.43 | J166: 1004.78 | K166: 1006.08 | L166: 1015.55 | M166: 967.36 | N166: 952.6 | O166: 904.46 | P166: 904.91 | Q166: 940.03 | R166: 959.07 | S166: 996.42 | T166: 956.25 | U166: 974.13 | V166: 937.23 | W166: 918.31 | X166: 926.1 | Y166: 902.41 | Z166: 888.52 | AA166: 864.4 | AB166: 855.96 | AC166: 842.66 | AD166: 884.81 | AE166: 864.62
A167: Mount Baker | B167: Mount Baker | C167: 1941.57 | D167: 1999.44 | E167: 2064.79 | F167: 2128.91 | G167: 2253.56 | H167: 2250.97 | I167: 2301.18 | J167: 2318.85 | K167: 2317.89 | L167: 2280.97 | M167: 2229.52 | N167: 2165.9 | O167: 2092.62 | P167: 2057.75 | Q167: 2036.89 | R167: 1990.16 | S167: 1896.45 | T167: 1798.24 | U167: 1782.73 | V167: 1791.75 | W167: 1859.45 | X167: 1852.21 | Y167: 1811.34 | Z167: 1830.26 | AA167: 1787.06 | AB167: 1684.11 | AC167: 1631.64 | AD167: 1618.62 | AE167: 1567.79
A168: Mount Pleasant | B168: Mount Pleasant | C168: 52.27 | D168: 50.89 | E168: 53.56 | F168: 45.83 | G168: 53.77 | H168: 62.34 | I168: 59 | J168: 58.83 | K168: 59.55 | L168: 58.22 | M168: 56.84 | N168: 55.83 | O168: 51.34 | P168: 37.39 | Q168: 44.61 | R168: 52.04 | S168: 50.75 | T168: 41.35 | U168: 58.9 | V168: 57.6 | W168: 52.65 | X168: 61.8 | Y168: 63.5 | Z168: 63.5 | AA168: 64.8 | AB168: 65.5 | AC168: 58.9 | AD168: 68.5 | AE168: 66.2
A169: Mount Vernon | B169: Mount Vernon | C169: 4804.26 | D169: 4899.9 | E169: 5068.36 | F169: 5163.56 | G169: 5272.04 | H169: 5319.16 | I169: 5424.79 | J169: 5419.21 | K169: 5469.39 | L169: 5483.6 | M169: 5546.9 | N169: 5539.52 | O169: 5591.96 | P169: 5743.51 | Q169: 5818.59 | R169: 6037.89 | S169: 6227.22 | T169: 6203.26 | U169: 6458.77 | V169: 6613.41 | W169: 6695.86 | X169: 6749.36 | Y169: 6830.44 | Z169: 6825.87 | AA169: 6845.54 | AB169: 6544.99 | AC169: 6586.07 | AD169: 6663.19 | AE169: 7182.45
A170: Muckleshoot Tribal | B170: Muckleshoot Tribal | V170: 384.88 | W170: 416.69 | X170: 465.06 | Y170: 490.18 | Z170: 523.42 | AA170: 531.62 | AB170: 557.59 | AC170: 534.53 | AD170: 550.98 | AE170: 542.97
A171: Mukilteo | B171: Mukilteo | C171: 11879.7 | D171: 12573.74 | E171: 12987.55 | F171: 13151.36 | G171: 13187.97 | H171: 13361.21 | I171: 13548.51 | J171: 13667.47 | K171: 13714.71 | L171: 13988.63 | M171: 13975.49 | N171: 14139.06 | O171: 14057.67 | P171: 14073.57 | Q171: 14063.73 | R171: 14301.36 | S171: 14529.74 | T171: 14569.88 | U171: 14692.82 | V171: 14770.08 | W171: 15119.84 | X171: 15339 | Y171: 15663.78 | Z171: 15715.06 | AA171: 15749.52 | AB171: 15219.36 | AC171: 15063.77 | AD171: 15189.68 | AE171: 16326.31
A172: Naches Valley | B172: Naches Valley | C172: 1441.64 | D172: 1466.74 | E172: 1457.15 | F172: 1491.52 | G172: 1510.5 | H172: 1506.69 | I172: 1517.94 | J172: 1541.64 | K172: 1508.32 | L172: 1491.49 | M172: 1477.17 | N172: 1449.09 | O172: 1427.98 | P172: 1427.86 | Q172: 1393.65 | R172: 1381.33 | S172: 1363.95 | T172: 1327.19 | U172: 1306.29 | V172: 1299.22 | W172: 1302.66 | X172: 1306.49 | Y172: 1276.42 | Z172: 1242.03 | AA172: 1259.58 | AB172: 1211 | AC172: 1230.63 | AD172: 1287.32 | AE172: 1277.54
A173: Napavine | B173: Napavine | C173: 636.35 | D173: 649.49 | E173: 649.48 | F173: 668.24 | G173: 668.09 | H173: 645.19 | I173: 645.47 | J173: 621.71 | K173: 663.83 | L173: 679.12 | M173: 688.76 | N173: 720.92 | O173: 728.99 | P173: 733.66 | Q173: 746.96 | R173: 728.94 | S173: 724.34 | T173: 750.09 | U173: 735.98 | V173: 749.4 | W173: 788.62 | X173: 798.63 | Y173: 823.45 | Z173: 814.62 | AA173: 824.98 | AB173: 768.34 | AC173: 772.43 | AD173: 805.07 | AE173: 803.78
A174: Naselle-Grays River Valley | B174: Naselle-Grays River Valley | C174: 341.4 | D174: 329.07 | E174: 329.77 | F174: 315.18 | G174: 309.08 | H174: 325 | I174: 317.32 | J174: 314.49 | K174: 321.28 | L174: 331.2 | M174: 345.54 | N174: 339.99 | O174: 325.16 | P174: 317.22 | Q174: 310.9 | R174: 312.82 | S174: 538.42 | T174: 538.3 | U174: 503.72 | V174: 324.88 | W174: 346.9 | X174: 359.78 | Y174: 357.47 | Z174: 332.25 | AA174: 326.64 | AB174: 310.38 | AC174: 308.62 | AD174: 309.67 | AE174: 313.04
A175: Nespelem | B175: Nespelem | C175: 201.39 | D175: 205.89 | E175: 189.66 | F175: 195.84 | G175: 193.73 | H175: 199.5 | I175: 174.33 | J175: 161.05 | K175: 152.88 | L175: 156.73 | M175: 153.77 | N175: 141.88 | O175: 133.99 | P175: 133.55 | Q175: 134.83 | R175: 132.54 | S175: 139 | T175: 139.1 | U175: 132.9 | V175: 113.4 | W175: 117.1 | X175: 128.2 | Y175: 132.7 | Z175: 141 | AA175: 133.19 | AB175: 131.93 | AC175: 129 | AD175: 122.6 | AE175: 118.6
A176: Newport | B176: Newport | C176: 1447.99 | D176: 1463.52 | E176: 1400.32 | F176: 1337.53 | G176: 1253.86 | H176: 1218.84 | I176: 1172.8 | J176: 1153.15 | K176: 1152.38 | L176: 1131.94 | M176: 1094.45 | N176: 1097.95 | O176: 1082.12 | P176: 1088.64 | Q176: 1056.3 | R176: 1104.06 | S176: 1128.55 | T176: 1088.51 | U176: 1021.85 | V176: 1069.56 | W176: 1090.55 | X176: 1090.41 | Y176: 1127.75 | Z176: 1115.41 | AA176: 1109.74 | AB176: 956.96 | AC176: 1014.94 | AD176: 1087.2 | AE176: 1145.39
A177: Nine Mile Falls | B177: Nine Mile Falls | C177: 1340.36 | D177: 1423.12 | E177: 1435.39 | F177: 1501.37 | G177: 1538.3 | H177: 1554.64 | I177: 1563.25 | J177: 1567.9 | K177: 1553.62 | L177: 1586.03 | M177: 1650.79 | N177: 1669.88 | O177: 1676.22 | P177: 1638.45 | Q177: 1617.67 | R177: 1567.21 | S177: 1503.02 | T177: 1474.4 | U177: 1458.81 | V177: 1423.47 | W177: 1412.44 | X177: 1411.68 | Y177: 1405.87 | Z177: 1395.42 | AA177: 1423.85 | AB177: 1326.17 | AC177: 1378.6 | AD177: 1404.78 | AE177: 1410.2
A178: Nooksack Valley | B178: Nooksack Valley | C178: 1675.65 | D178: 1701.79 | E178: 1740.25 | F178: 1734.36 | G178: 1736.56 | H178: 1759.67 | I178: 1768.87 | J178: 1715.67 | K178: 1717.1 | L178: 1680.41 | M178: 1646.21 | N178: 1607.99 | O178: 1573.9 | P178: 1560.97 | Q178: 1537.95 | R178: 1483.67 | S178: 1489.95 | T178: 1480.31 | U178: 1517.62 | V178: 1552.51 | W178: 1579.73 | X178: 1672.05 | Y178: 1744.47 | Z178: 1798.55 | AA178: 1890.51 | AB178: 1841.31 | AC178: 1798.51 | AD178: 1867.51 | AE178: 1887.05
A179: North Beach | B179: North Beach | C179: 632.71 | D179: 643.14 | E179: 673.48 | F179: 674.82 | G179: 627.76 | H179: 641.99 | I179: 634.43 | J179: 640.85 | K179: 688.29 | L179: 697.39 | M179: 690.49 | N179: 665.33 | O179: 647.71 | P179: 634.93 | Q179: 641.89 | R179: 609.73 | S179: 625.7 | T179: 634.16 | U179: 628.31 | V179: 664.16 | W179: 669.84 | X179: 659.89 | Y179: 682.2 | Z179: 702.59 | AA179: 706.86 | AB179: 735.36 | AC179: 712.37 | AD179: 649 | AE179: 643.4
A180: North Franklin | B180: North Franklin | C180: 1742.1 | D180: 1785.37 | E180: 1805.06 | F180: 1819.8 | G180: 1795.47 | H180: 1830.4 | I180: 1815.38 | J180: 1795.11 | K180: 1784.22 | L180: 1759.02 | M180: 1722.17 | N180: 1687.64 | O180: 1715.66 | P180: 1781 | Q180: 1850.64 | R180: 1888.28 | S180: 2011.37 | T180: 2025.45 | U180: 2037.27 | V180: 2060.83 | W180: 2029.94 | X180: 2094.39 | Y180: 2115.87 | Z180: 2095.4 | AA180: 2063.19 | AB180: 2034.38 | AC180: 2034.15 | AD180: 2012.56 | AE180: 1987
A181: North Kitsap | B181: North Kitsap | C181: 6475.03 | D181: 6524.37 | E181: 6618.99 | F181: 6654.71 | G181: 6645.77 | H181: 6616.76 | I181: 6669.35 | J181: 6743.05 | K181: 6635.77 | L181: 6665.75 | M181: 6578.88 | N181: 6394.63 | O181: 6421.43 | P181: 6410.55 | Q181: 6421.21 | R181: 6305.72 | S181: 6177.7 | T181: 6025.98 | U181: 5879.37 | V181: 5729.61 | W181: 5898.43 | X181: 5797.1 | Y181: 5854.94 | Z181: 5825.01 | AA181: 5847.63 | AB181: 5315.19 | AC181: 5393.86 | AD181: 5294.66 | AE181: 5295.61
A182: North Mason | B182: North Mason | C182: 2238.69 | D182: 2313 | E182: 2268.44 | F182: 2253.82 | G182: 2237.61 | H182: 2255.04 | I182: 2294.61 | J182: 2281.71 | K182: 2278.09 | L182: 2237.75 | M182: 2215.3 | N182: 2206.37 | O182: 2174.13 | P182: 2131.12 | Q182: 2078.6 | R182: 2079.63 | S182: 2049.66 | T182: 2017.2 | U182: 2026.54 | V182: 2019.67 | W182: 2103.69 | X182: 2136.07 | Y182: 2190.63 | Z182: 2256.32 | AA182: 2327.52 | AB182: 2200.79 | AC182: 2239.37 | AD182: 2256.42 | AE182: 2270.61
A183: North River | B183: North River | C183: 55.85 | D183: 50.34 | E183: 51.49 | F183: 51.99 | G183: 70.25 | H183: 55.93 | I183: 58.29 | J183: 51.49 | K183: 57.27 | L183: 59.59 | M183: 55.77 | N183: 62.13 | O183: 52.65 | P183: 52.81 | Q183: 46.89 | R183: 49.57 | S183: 48.94 | T183: 54.38 | U183: 50.39 | V183: 50.49 | W183: 65.55 | X183: 61.9 | Y183: 70.4 | Z183: 66.34 | AA183: 66.71 | AB183: 69.06 | AC183: 83.63 | AD183: 72.07 | AE183: 59.22
A184: North Thurston | B184: North Thurston | C184: 12441.56 | D184: 12432.39 | E184: 12370.56 | F184: 12433.32 | G184: 12238.65 | H184: 12267.33 | I184: 12258.11 | J184: 12383.36 | K184: 12381.87 | L184: 12411.41 | M184: 12505.17 | N184: 12722.24 | O184: 12946.29 | P184: 13119.41 | Q184: 13225.11 | R184: 13524.94 | S184: 13489.11 | T184: 13721.91 | U184: 14091.24 | V184: 14133.97 | W184: 14603.88 | X184: 14793.76 | Y184: 14803.95 | Z184: 14910.55 | AA184: 15250.17 | AB184: 14446.63 | AC184: 14771.24 | AD184: 14808.76 | AE184: 14754.47
A185: Northport | B185: Northport | C185: 229.54 | D185: 239.5 | E185: 236 | F185: 229.6 | G185: 207.72 | H185: 215.2 | I185: 195.1 | J185: 189.18 | K185: 201.17 | L185: 182.48 | M185: 179.75 | N185: 180.07 | O185: 201.18 | P185: 270.33 | Q185: 354.62 | R185: 280.85 | S185: 242.98 | T185: 286.76 | U185: 227.9 | V185: 240.38 | W185: 214.09 | X185: 225.84 | Y185: 231.82 | Z185: 226.08 | AA185: 213.38 | AB185: 264.94 | AC185: 249.69 | AD185: 268.68 | AE185: 262.83
A186: Northshore | B186: Northshore | C186: 18287.45 | D186: 18789.46 | E186: 19143.61 | F186: 19389.48 | G186: 19284.55 | H186: 19326.69 | I186: 19295.99 | J186: 19248.29 | K186: 19184.38 | L186: 19254.81 | M186: 19387.58 | N186: 19183.63 | O186: 19003.8 | P186: 18708.61 | Q186: 18618.63 | R186: 18567.44 | S186: 18783.72 | T186: 19226.09 | U186: 19471.55 | V186: 19908.75 | W186: 20287.27 | X186: 21231.8 | Y186: 22108.83 | Z186: 22738.84 | AA186: 23131.85 | AB186: 22680.87 | AC186: 22402.2 | AD186: 22378.21 | AE186: 22437.97
A187: Oak Harbor | B187: Oak Harbor | C187: 5941.99 | D187: 6006.8 | E187: 5966.38 | F187: 6064 | G187: 6070.72 | H187: 5912.42 | I187: 5873.3 | J187: 5763.82 | K187: 5859.2 | L187: 5660.29 | M187: 5503.26 | N187: 5372.18 | O187: 5297.83 | P187: 5301.74 | Q187: 5346.57 | R187: 5381.69 | S187: 5337.48 | T187: 5155.69 | U187: 5260.43 | V187: 5310.13 | W187: 5625.91 | X187: 5736.68 | Y187: 5797.42 | Z187: 5817.03 | AA187: 5852.8 | AB187: 5494.17 | AC187: 5472.52 | AD187: 5512.68 | AE187: 5606.23
A188: Oakesdale | B188: Oakesdale | C188: 156.8 | D188: 170.13 | E188: 176.8 | F188: 165.55 | G188: 150.41 | H188: 137.35 | I188: 136.47 | J188: 130.98 | K188: 125.14 | L188: 121.64 | M188: 104.77 | N188: 102.05 | O188: 112.92 | P188: 109.58 | Q188: 110.53 | R188: 107.25 | S188: 103.14 | T188: 101.91 | U188: 109.45 | V188: 105.05 | W188: 98.38 | X188: 109.46 | Y188: 113.8 | Z188: 120.83 | AA188: 122.73 | AB188: 145.52 | AC188: 145.47 | AD188: 144.02 | AE188: 153.39
A189: Oakville | B189: Oakville | C189: 362.8 | D189: 342.47 | E189: 342.16 | F189: 319.36 | G189: 309.04 | H189: 282.03 | I189: 278.58 | J189: 279.27 | K189: 269.86 | L189: 257.84 | M189: 272.44 | N189: 258.03 | O189: 254.01 | P189: 260.33 | Q189: 272.65 | R189: 251.46 | S189: 275.71 | T189: 250.98 | U189: 248.14 | V189: 232.55 | W189: 214.39 | X189: 211.78 | Y189: 233.17 | Z189: 228.6 | AA189: 282.11 | AB189: 287.22 | AC189: 323.9 | AD189: 331.84 | AE189: 305.35
A190: Ocean Beach | B190: Ocean Beach | C190: 1339.2 | D190: 1352.44 | E190: 1362.96 | F190: 1303.47 | G190: 1243.76 | H190: 1160.85 | I190: 1156.06 | J190: 1147.13 | K190: 1100.11 | L190: 1080.05 | M190: 1011.34 | N190: 970.05 | O190: 928.01 | P190: 881.68 | Q190: 877.36 | R190: 862.16 | S190: 900.45 | T190: 903.66 | U190: 941.29 | V190: 974.81 | W190: 996.2 | X190: 1027.77 | Y190: 1025.15 | Z190: 1025.88 | AA190: 1043.39 | AB190: 1001.23 | AC190: 1017.16 | AD190: 1014.3 | AE190: 985.81
A191: Ocosta | B191: Ocosta | C191: 952.06 | D191: 929.9 | E191: 869.75 | F191: 784.35 | G191: 745.57 | H191: 704.34 | I191: 695.05 | J191: 694.69 | K191: 696.67 | L191: 696.4 | M191: 653.06 | N191: 636.3 | O191: 623.1 | P191: 632.36 | Q191: 651.16 | R191: 649.35 | S191: 631.53 | T191: 616.99 | U191: 647.6 | V191: 630.63 | W191: 611.66 | X191: 598.96 | Y191: 580.33 | Z191: 617.37 | AA191: 612.74 | AB191: 598.15 | AC191: 560.64 | AD191: 565.08 | AE191: 581.66
A192: Odessa | B192: Odessa | C192: 313.27 | D192: 331.23 | E192: 344.51 | F192: 342.15 | G192: 317.4 | H192: 308.65 | I192: 282.04 | J192: 280.77 | K192: 270.22 | L192: 238.13 | M192: 230.23 | N192: 219.31 | O192: 217.23 | P192: 207.24 | Q192: 206.33 | R192: 198.41 | S192: 198.8 | T192: 190.63 | U192: 204.82 | V192: 212.24 | W192: 225.86 | X192: 237.37 | Y192: 245.78 | Z192: 250.44 | AA192: 229.11 | AB192: 206.22 | AC192: 217.61 | AD192: 215.4 | AE192: 211.37
A193: Okanogan | B193: Okanogan | C193: 1054.52 | D193: 1062.03 | E193: 1059.6 | F193: 1011.22 | G193: 1080.24 | H193: 1067.43 | I193: 962.2 | J193: 922.37 | K193: 944.4 | L193: 964.4 | M193: 980.95 | N193: 958.85 | O193: 936.43 | P193: 995.12 | Q193: 1006.92 | R193: 1038.54 | S193: 1013.79 | T193: 1009.97 | U193: 1100.72 | V193: 1066.75 | W193: 1126.71 | X193: 1099.55 | Y193: 1110.48 | Z193: 1108.88 | AA193: 1141.64 | AB193: 1082.2 | AC193: 1042.54 | AD193: 1059.38 | AE193: 1058.09
A194: Olympia | B194: Olympia | C194: 8257.83 | D194: 8507.37 | E194: 8631.91 | F194: 8698.23 | G194: 8741.99 | H194: 8738.56 | I194: 8772.26 | J194: 8636.2 | K194: 8569.28 | L194: 8547.25 | M194: 8618.9 | N194: 8650.61 | O194: 8845.84 | P194: 8888.58 | Q194: 8860.91 | R194: 8766.44 | S194: 8733.33 | T194: 8841.16 | U194: 8980.94 | V194: 9204.51 | W194: 9603.79 | X194: 9852.94 | Y194: 9901.19 | Z194: 9928.19 | AA194: 10066.41 | AB194: 9643.54 | AC194: 9579.35 | AD194: 9472.92 | AE194: 9454.27
A195: Omak | B195: Omak | C195: 2169.04 | D195: 2165.22 | E195: 2108.89 | F195: 2057.81 | G195: 2057.91 | H195: 1998.25 | I195: 1913.2 | J195: 1883.25 | K195: 1801.7 | L195: 1708.68 | M195: 1669.28 | N195: 1668.06 | O195: 1640.22 | P195: 1597.5 | Q195: 1618.13 | R195: 2497.21 | S195: 2828.88 | T195: 4472.25 | U195: 4941.35 | V195: 4792.65 | W195: 5264.33 | X195: 5107.34 | Y195: 5040.97 | Z195: 5364.99 | AA195: 5360.81 | AB195: 7746.55 | AC195: 6443.79 | AD195: 5870.09 | AE195: 5726.07
A196: Onalaska | B196: Onalaska | C196: 909.04 | D196: 946.09 | E196: 962.91 | F196: 944.39 | G196: 922.1 | H196: 892.47 | I196: 863.38 | J196: 869.9 | K196: 885.52 | L196: 866.37 | M196: 868.02 | N196: 854.85 | O196: 854.19 | P196: 853.91 | Q196: 868.76 | R196: 764.41 | S196: 814.91 | T196: 723.98 | U196: 731.65 | V196: 733.21 | W196: 740.05 | X196: 780.4 | Y196: 828.83 | Z196: 805 | AA196: 823.39 | AB196: 818.55 | AC196: 792.22 | AD196: 835.5 | AE196: 829.97
A197: Onion Creek | B197: Onion Creek | C197: 54.04 | D197: 57.06 | E197: 58.23 | F197: 60.84 | G197: 44.44 | H197: 45.66 | I197: 53.44 | J197: 42.99 | K197: 37.62 | L197: 47.49 | M197: 35.44 | N197: 36.95 | O197: 34.67 | P197: 28.12 | Q197: 42.44 | R197: 43.58 | S197: 37.3 | T197: 34.4 | U197: 37.7 | V197: 34.6 | W197: 40.9 | X197: 38.3 | Y197: 30.1 | Z197: 39.02 | AA197: 37.69 | AB197: 42.6 | AC197: 47.4 | AD197: 38.5 | AE197: 40
A198: Orcas Island | B198: Orcas Island | C198: 529.26 | D198: 541.37 | E198: 562.98 | F198: 595.48 | G198: 523.64 | H198: 491.94 | I198: 530.05 | J198: 508.49 | K198: 495.23 | L198: 486.16 | M198: 510.88 | N198: 491.49 | O198: 464.52 | P198: 461.93 | Q198: 524.87 | R198: 667.8 | S198: 634.44 | T198: 781.78 | U198: 806.67 | V198: 805.11 | W198: 789.78 | X198: 785.56 | Y198: 761.67 | Z198: 806.39 | AA198: 790.29 | AB198: 759.31 | AC198: 722.05 | AD198: 692.84 | AE198: 757.77
A199: Orchard Prairie | B199: Orchard Prairie | C199: 55 | D199: 55.94 | E199: 44.11 | F199: 52.17 | G199: 62.66 | H199: 63.33 | I199: 58.22 | J199: 57.17 | K199: 60.94 | L199: 59.39 | M199: 65.22 | N199: 63.39 | O199: 59.99 | P199: 65.28 | Q199: 72.05 | R199: 72.32 | S199: 68.3 | T199: 76.75 | U199: 73.1 | V199: 73.75 | W199: 75.4 | X199: 76.1 | Y199: 68.7 | Z199: 76.8 | AA199: 75.58 | AB199: 77.76 | AC199: 68.7 | AD199: 71.6 | AE199: 73.4
A200: =TRIM(B200) -> Orient | B200: Orient | C200: 112.01 | D200: 102.5 | E200: 98.61 | F200: 101.11 | G200: 85.4 | H200: 80.61 | I200: 82.6 | J200: 86.95 | K200: 86.12 | L200: 86.94 | M200: 79.67 | N200: 85.98 | O200: 90.8 | P200: 161.36 | Q200: 210.79 | R200: 330 | S200: 336.67 | T200: 177.86 | U200: 102.74 | V200: 73.6 | W200: 71.94 | X200: 60.95 | Y200: 70.28 | Z200: 46.5 | AA200: 48.91 | AB200: 43.98 | AC200: 32.5 | AD200: 39.52 | AE200: 33
A201: Orondo | B201: Orondo | C201: 223.45 | D201: 215.26 | E201: 195.8 | F201: 187.29 | G201: 169.28 | H201: 178.33 | I201: 167.22 | J201: 192.05 | K201: 183.85 | L201: 182.68 | M201: 174.18 | N201: 170.16 | O201: 171.17 | P201: 174.61 | Q201: 177.48 | R201: 176.32 | S201: 181.7 | T201: 179.7 | U201: 158.2 | V201: 174.07 | W201: 152.95 | X201: 182.2 | Y201: 177.1 | Z201: 175.6 | AA201: 171.71 | AB201: 154.63 | AC201: 136.94 | AD201: 117.43 | AE201: 109.38
... 134 more rows

Sheet DistrictExpenditures (hidden)
B4: Sum of Amount | D4: SchoolYear | E4: VerTtl
D5: 1995-96 | E5: 1996-97 | F5: 1997-98 | G5: 1998-99 | H5: 1999-00 | I5: 2000-01 | J5: 2001-02 | K5: 2002-03 | L5: 2003-04 | M5: 2004-05 | N5: 2005-06 | O5: 2006-07 | P5: 2007-08 | Q5: 2008-09 | R5: 2009-10 | S5: 2010-11 | T5: 2011-12 | U5: 2012-13 | V5: 2013-14 | W5: 2014-15 | X5: 2015-16 | Y5: 2016-17 | Z5: 2017-18 | AA5: 2018-19 | AB5: 2019-20 | AC5: 2020-21 | AD5: 2021-22 | AE5: 2022-23 | AF5: 2023-24
B6: DistTitle | C6: ActGroup2 | D6: Actual | E6: Actual | F6: Actual | G6: Actual | H6: Actual | I6: Actual | J6: Actual | K6: Actual | L6: Actual | M6: Actual | N6: Actual | O6: Actual | P6: Actual | Q6: Actual | R6: Actual | S6: Actual | T6: Actual | U6: Actual | V6: Actual | W6: Actual | X6: Actual | Y6: Actual | Z6: Actual | AA6: Actual | AB6: Actual | AC6: Actual | AD6: Actual | AE6: Actual | AF6: Budgeted (excluding extensions)
A7: =TRIM(B7)&TRIM(C7) -> AberdeenTeaching | B7: Aberdeen | C7: Teaching | D7: 15518349.68 | E7: 16237434.89 | F7: 15922683.83 | G7: 16763310.64 | H7: 17002066.62 | I7: 17660462.27 | J7: 18458030.54 | K7: 18600818.29 | L7: 19113820.85 | M7: 19538168.53 | N7: 19586051.11 | O7: 20236385.35 | P7: 21814303.44 | Q7: 22474103.8 | R7: 22176425.69 | S7: 22918130.66 | T7: 22314036.89 | U7: 22177848.1 | V7: 23010356.86 | W7: 24297711.98 | X7: 25680575.73 | Y7: 27632831.42 | Z7: 28856825.69 | AA7: 32263553.9 | AB7: 32727776.97 | AC7: 28581899.7 | AD7: 34749164.8 | AE7: 37412670.48 | AF7: 37742540
A8: =TRIM(B8)&TRIM(C8) -> AberdeenTeaching Support | B8: Aberdeen | C8: Teaching Support | D8: 1066308.06 | E8: 1207585.52 | F8: 1418778.54 | G8: 1557142.54 | H8: 1599971.65 | I8: 1687081.89 | J8: 1954823.05 | K8: 1848653.26 | L8: 2154660.98 | M8: 2259581.62 | N8: 2249012.78 | O8: 2273078.21 | P8: 2449557.08 | Q8: 2529488.85 | R8: 2397413.23 | S8: 2479813.1 | T8: 3005079.33 | U8: 2962878.65 | V8: 3611473.76 | W8: 3600008.02 | X8: 4112820.74 | Y8: 4863862.26 | Z8: 5302267.14 | AA8: 4951775.62 | AB8: 5423788.55 | AC8: 6728898.32 | AD8: 7696570.83 | AE8: 7830052.28 | AF8: 7615795
A9: AberdeenFood Services | B9: Aberdeen | C9: Food Services | D9: 809513.2 | E9: 887458.5 | F9: 845524.37 | G9: 858728.92 | H9: 964358.09 | I9: 1074546.1 | J9: 1156670.79 | K9: 1292557.19 | L9: 1335585.99 | M9: 1544588.39 | N9: 1519705.74 | O9: 1573386.24 | P9: 1777913.71 | Q9: 1806317.56 | R9: 1789818.83 | S9: 1799738.63 | T9: 1722669.19 | U9: 1796188.39 | V9: 1793950.81 | W9: 1844066.87 | X9: 1898647.47 | Y9: 1936739.67 | Z9: 2191009.49 | AA9: 2277247.01 | AB9: 2281070.04 | AC9: 1716926.81 | AD9: 2563823.64 | AE9: 2853614.63 | AF9: 2733794
A10: AberdeenPupil Transpo | B10: Aberdeen | C10: Pupil Transpo | D10: 503524.1 | E10: 522081.88 | F10: 511265.43 | G10: 542823.09 | H10: 549118.39 | I10: 506646.91 | J10: 555167.86 | K10: 563160.59 | L10: 640470.16 | M10: 623358.2 | N10: 673239.27 | O10: 650624.72 | P10: 559207.42 | Q10: 570872.94 | R10: 546986.36 | S10: 770203.48 | T10: 748042.43 | U10: 780344.12 | V10: 834042.01 | W10: 719198.16 | X10: 804209.12 | Y10: 941578.26 | Z10: 1099950.34 | AA10: 1117469.22 | AB10: 1330340.14 | AC10: 798653.54 | AD10: 1229762.88 | AE10: 1653019.96 | AF10: 1335450
A11: AberdeenUtil/Plant/Ins/IS/Other | B11: Aberdeen | C11: Util/Plant/Ins/IS/Other | D11: 2605377.88 | E11: 2656539.99 | F11: 2340620.29 | G11: 2578117.99 | H11: 2772191.46 | I11: 3009390.97 | J11: 3902942.25 | K11: 4036334.33 | L11: 3916436.53 | M11: 4799633.78 | N11: 3635756.15 | O11: 3902168.06 | P11: 4293919.14 | Q11: 4041809.53 | R11: 4064453.8 | S11: 4101803.93 | T11: 4252955.08 | U11: 3943697.61 | V11: 4147038.96 | W11: 4223236.82 | X11: 4700327.24 | Y11: 4384328.27 | Z11: 4834035.79 | AA11: 6097287.94 | AB11: 5524980.39 | AC11: 6073623.24 | AD11: 6420331.2 | AE11: 6424536.86 | AF11: 6625941
A12: AberdeenUnit Admin | B12: Aberdeen | C12: Unit Admin | D12: 1306345.19 | E12: 1283765.12 | F12: 1284125.35 | G12: 1403132.41 | H12: 1435298.19 | I12: 1572038.12 | J12: 1646276.09 | K12: 1800018.16 | L12: 1983440.06 | M12: 1818067.66 | N12: 1846199.52 | O12: 1821956.61 | P12: 1888796.27 | Q12: 1899440.6 | R12: 1816593.68 | S12: 1953639.81 | T12: 2052095.88 | U12: 1943688.56 | V12: 1963732.47 | W12: 2065271.98 | X12: 2144493.86 | Y12: 2233965.56 | Z12: 2477900.29 | AA12: 2560964.82 | AB12: 2423735.24 | AC12: 2290070.02 | AD12: 2907384 | AE12: 3338679.5 | AF12: 3441280
A13: AberdeenCentral Admin | B13: Aberdeen | C13: Central Admin | D13: 1174758.36 | E13: 1348796.02 | F13: 1345325.02 | G13: 1293857.87 | H13: 1355212.22 | I13: 1391738.9 | J13: 1558897.39 | K13: 1748319.06 | L13: 1512101.04 | M13: 1416839.23 | N13: 1436377.93 | O13: 1678348.18 | P13: 1804612.67 | Q13: 1829010.85 | R13: 1799558.39 | S13: 1823351.65 | T13: 1788708.93 | U13: 1781718.81 | V13: 1883705.4 | W13: 1727270.68 | X13: 1823335.25 | Y13: 1995933.48 | Z13: 2298097.6 | AA13: 2277693.99 | AB13: 2354556.28 | AC13: 2390814.67 | AD13: 2774246.66 | AE13: 3058844.78 | AF13: 2873531
A14: AdnaTeaching | B14: Adna | C14: Teaching | D14: 2097601.14 | E14: 2174781.52 | F14: 2117677.91 | G14: 2178220.22 | H14: 2032301.64 | I14: 2220760.1 | J14: 2109899.42 | K14: 2299608.19 | L14: 2720469.54 | M14: 2728128.94 | N14: 2972831.74 | O14: 3120781.1 | P14: 3420750.76 | Q14: 3617709.25 | R14: 3449676.68 | S14: 3324490.03 | T14: 3309571.47 | U14: 3396696.91 | V14: 3371184.81 | W14: 3690102.03 | X14: 4169967.17 | Y14: 4319681.52 | Z14: 4883549.18 | AA14: 5409630.09 | AB14: 5514236.59 | AC14: 5700693.45 | AD14: 6092959.29 | AE14: 6230114.78 | AF14: 6583264
A15: AdnaTeaching Support | B15: Adna | C15: Teaching Support | D15: 133077.8 | E15: 135028.67 | F15: 146656.87 | G15: 153118.63 | H15: 142760.19 | I15: 162135.9 | J15: 117584.56 | K15: 114842.95 | L15: 135467.89 | M15: 142222.33 | N15: 149604.97 | O15: 152884.01 | P15: 150628 | Q15: 182857.11 | R15: 172540.31 | S15: 153932.99 | T15: 116160.82 | U15: 99112.55 | V15: 205639.68 | W15: 194304.48 | X15: 203426.29 | Y15: 365128.18 | Z15: 219883.86 | AA15: 340511.25 | AB15: 494658.95 | AC15: 446244.49 | AD15: 441653.25 | AE15: 588501.31 | AF15: 547702
A16: AdnaFood Services | B16: Adna | C16: Food Services | D16: 165840.73 | E16: 165865.45 | F16: 164627.09 | G16: 167980.85 | H16: 162776.71 | I16: 175048.09 | J16: 177251.96 | K16: 180981.33 | L16: 166762.94 | M16: 222614.96 | N16: 237847.1 | O16: 242270.61 | P16: 252651.52 | Q16: 264789.02 | R16: 279038.22 | S16: 272179.05 | T16: 264087.1 | U16: 251334.73 | V16: 236146.01 | W16: 217815.76 | X16: 230821.69 | Y16: 246097.48 | Z16: 262904.61 | AA16: 298586.37 | AB16: 293114.75 | AC16: 249645.03 | AD16: 438710.27 | AE16: 422442.99 | AF16: 446119
A17: AdnaPupil Transpo | B17: Adna | C17: Pupil Transpo | D17: 188087.14 | E17: 188849.91 | F17: 180870.58 | G17: 191159.52 | H17: 191912.82 | I17: 191123.03 | J17: 183583.9 | K17: 231897.18 | L17: 280894.82 | M17: 265273.85 | N17: 262463.67 | O17: 232576.31 | P17: 267894.22 | Q17: 264290.26 | R17: 321359.18 | S17: 337813.54 | T17: 345545.34 | U17: 363183.48 | V17: 370922.87 | W17: 358032.23 | X17: 352071.41 | Y17: 350032.2 | Z17: 382686.24 | AA17: 389513.5 | AB17: 382229.83 | AC17: 272714.34 | AD17: 373153.85 | AE17: 355393.4 | AF17: 367414
A18: AdnaUtil/Plant/Ins/IS/Other | B18: Adna | C18: Util/Plant/Ins/IS/Other | D18: 291931.94 | E18: 364463.53 | F18: 365009.16 | G18: 333756.65 | H18: 325227.27 | I18: 368626.58 | J18: 366278.56 | K18: 424184.1 | L18: 452163.85 | M18: 433680.89 | N18: 446069.02 | O18: 501149.96 | P18: 552360.63 | Q18: 598488.16 | R18: 568337.62 | S18: 599879.27 | T18: 653215.5 | U18: 588585.04 | V18: 609029.99 | W18: 757370.03 | X18: 722176.34 | Y18: 902285.84 | Z18: 957621.01 | AA18: 1020689.28 | AB18: 1051849.53 | AC18: 1058928.25 | AD18: 1195445.36 | AE18: 1256193.51 | AF18: 1251682
A19: AdnaUnit Admin | B19: Adna | C19: Unit Admin | D19: 194920 | E19: 200623.84 | F19: 184626.89 | G19: 177631.99 | H19: 181002.05 | I19: 244393.55 | J19: 233127.7 | K19: 245467.54 | L19: 249142.65 | M19: 273846.97 | N19: 295531.1 | O19: 338332.05 | P19: 330414.29 | Q19: 354360.36 | R19: 334561.06 | S19: 342795.16 | T19: 344342.82 | U19: 358906.8 | V19: 349208.96 | W19: 356748.58 | X19: 396038.05 | Y19: 407701.32 | Z19: 417733.77 | AA19: 449187.81 | AB19: 489372 | AC19: 513040.27 | AD19: 514492.66 | AE19: 545210.73 | AF19: 540276
A20: AdnaCentral Admin | B20: Adna | C20: Central Admin | D20: 235456.44 | E20: 240654.57 | F20: 243974.7 | G20: 250130.61 | H20: 243384.89 | I20: 269045.68 | J20: 229809.35 | K20: 257757.01 | L20: 259314.02 | M20: 268144.63 | N20: 275460.56 | O20: 294965.52 | P20: 300296.99 | Q20: 295325.25 | R20: 303505.91 | S20: 299285.07 | T20: 301308.77 | U20: 295439.66 | V20: 325040.49 | W20: 358568.79 | X20: 371040.95 | Y20: 263509.92 | Z20: 321069.9 | AA20: 343471.89 | AB20: 378725.97 | AC20: 432925.39 | AD20: 524011.11 | AE20: 525374.44 | AF20: 517761
A21: AlmiraTeaching | B21: Almira | C21: Teaching | D21: 732367.33 | E21: 716065.48 | F21: 785078.08 | G21: 810790.78 | H21: 880977.94 | I21: 924489.55 | J21: 1005668.53 | K21: 974323.15 | L21: 969501.68 | M21: 1047209.52 | N21: 1184258.28 | O21: 1190921.01 | P21: 1233835.28 | Q21: 1232779.67 | R21: 1208193.32 | S21: 1184227.87 | T21: 1212928.18 | U21: 1193392.48 | V21: 1181751.92 | W21: 1141596.45 | X21: 1146703.71 | Y21: 1213446.98 | Z21: 1174846.35 | AA21: 1282572.33 | AB21: 1305621.5 | AC21: 1111994.62 | AD21: 1457515.02 | AE21: 1418116.13 | AF21: 1750850
A22: AlmiraTeaching Support | B22: Almira | C22: Teaching Support | D22: 48550.99 | E22: 59506.74 | F22: 52040.56 | G22: 53296.7 | H22: 56554.3 | I22: 43477.64 | J22: 50041.42 | K22: 42972.77 | L22: 48320.73 | M22: 27805.76 | N22: 19380.4 | O22: 27300.08 | P22: 43057.05 | Q22: 67934.86 | R22: 53360.11 | S22: 50827.78 | T22: 79870.55 | U22: 87659.84 | V22: 133996.84 | W22: 165414.72 | X22: 124255.01 | Y22: 100830.52 | Z22: 124943.39 | AA22: 123932.7 | AB22: 80317.19 | AC22: 113525.99 | AD22: 114379.38 | AE22: 221792.54 | AF22: 213644
A23: AlmiraFood Services | B23: Almira | C23: Food Services | D23: 57871.73 | E23: 57000.64 | F23: 56816.96 | G23: 60312.93 | H23: 62536.21 | I23: 63442.25 | J23: 61590.23 | K23: 73408.07 | L23: 63252.41 | M23: 53222.78 | N23: 50582.42 | O23: 54900.95 | P23: 68079.31 | Q23: 68844.65 | R23: 62789.25 | S23: 71783.41 | T23: 75396.9 | U23: 75090.84 | V23: 77579.45 | W23: 83721.82 | X23: 86971.92 | Y23: 91236.8 | Z23: 112742.45 | AA23: 123628.93 | AB23: 111029.47 | AC23: 130749.83 | AD23: 148504.17 | AE23: 151033.9 | AF23: 164070
A24: AlmiraPupil Transpo | B24: Almira | C24: Pupil Transpo | D24: 61190.14 | E24: 64277.13 | F24: 79159.48 | G24: 88401.41 | H24: 87235.47 | I24: 96600.37 | J24: 115541.37 | K24: 113686 | L24: 113988.07 | M24: 110993.25 | N24: 115023.15 | O24: 120617.2 | P24: 126147.5 | Q24: 165052.76 | R24: 152651.87 | S24: 180760.26 | T24: 167442.06 | U24: 158532.49 | V24: 160999.26 | W24: 134089.81 | X24: 147603.18 | Y24: 147505.05 | Z24: 193100.08 | AA24: 167664.44 | AB24: 178334.7 | AC24: 204288.99 | AD24: 194081.46 | AE24: 241682.67 | AF24: 268293
A25: AlmiraUtil/Plant/Ins/IS/Other | B25: Almira | C25: Util/Plant/Ins/IS/Other | D25: 129531.33 | E25: 137306.55 | F25: 106820.63 | G25: 124055.52 | H25: 167595.31 | I25: 239077.53 | J25: 155407.3 | K25: 340720.14 | L25: 199499.37 | M25: 242010.55 | N25: 326109.77 | O25: 239424.8 | P25: 335600.45 | Q25: 340981.89 | R25: 297137.88 | S25: 339946.85 | T25: 304728.09 | U25: 313899.22 | V25: 314339.6 | W25: 324504.79 | X25: 318038.54 | Y25: 317435.25 | Z25: 308453.96 | AA25: 338193.79 | AB25: 439168.27 | AC25: 395524.18 | AD25: 258823.49 | AE25: 190855.57 | AF25: 443761
A26: AlmiraUnit Admin | B26: Almira | C26: Unit Admin | D26: 82380.71 | E26: 81544.35 | F26: 63376.72 | G26: 71263.16 | H26: 53484.85 | I26: 55080.05 | J26: 56814.77 | K26: 72950.2 | L26: 75064.69 | M26: 55455.34 | N26: 57779.83 | O26: 59945.14 | P26: 58724.35 | Q26: 67997.8 | R26: 70813.75 | S26: 73138.51 | T26: 76788.53 | U26: 78408.53 | V26: 80311.31 | W26: 88145.33 | X26: 93010.83 | Y26: 109769.77 | Z26: 114355.7 | AA26: 99403.07 | AB26: 51139.85 | AC26: 104566.9 | AD26: 130308.06 | AE26: 150534.29 | AF26: 183322
A27: AlmiraCentral Admin | B27: Almira | C27: Central Admin | D27: 90269.28 | E27: 83433.05 | F27: 92667.76 | G27: 85223.25 | H27: 90794.45 | I27: 93626.98 | J27: 102483.67 | K27: 99645.35 | L27: 105690.87 | M27: 124371.91 | N27: 119523.58 | O27: 134954.68 | P27: 136271.79 | Q27: 156699.69 | R27: 155009.04 | S27: 156440.93 | T27: 174198.16 | U27: 165863.91 | V27: 172249.43 | W27: 183269.68 | X27: 211893.82 | Y27: 189739.55 | Z27: 207569.57 | AA27: 203158.96 | AB27: 214733.33 | AC27: 258576.37 | AD27: 468308.59 | AE27: 349134.14 | AF27: 315943
A28: AnacortesTeaching | B28: Anacortes | C28: Teaching | D28: 10261021.04 | E28: 11028533.11 | F28: 12080249.28 | G28: 12076253.31 | H28: 13214732.98 | I28: 13003221.91 | J28: 13200498.61 | K28: 14194985.84 | L28: 14733938.59 | M28: 15239198.62 | N28: 15639998.26 | O28: 16279180.75 | P28: 16932915.48 | Q28: 16711916.44 | R28: 16234048.87 | S28: 16506314.75 | T28: 15542325.58 | U28: 15698130.89 | V28: 16002302.95 | W28: 16149369.43 | X28: 17667942.36 | Y28: 19528037.97 | Z28: 21808137.6 | AA28: 24055887.06 | AB28: 23935736.1 | AC28: 24888779.48 | AD28: 25416535.81 | AE28: 25949804.57 | AF28: 27450648
A29: AnacortesTeaching Support | B29: Anacortes | C29: Teaching Support | D29: 990579.68 | E29: 1075890.7 | F29: 1217578.69 | G29: 1228139.77 | H29: 1337976.12 | I29: 1587498.12 | J29: 1605672.79 | K29: 1794966.15 | L29: 1854506.85 | M29: 1979860.82 | N29: 2048619.33 | O29: 2059549.17 | P29: 2212765.58 | Q29: 2342899.25 | R29: 1791878.24 | S29: 1854638.99 | T29: 2703447.79 | U29: 2652128.49 | V29: 3310720.24 | W29: 3423269.73 | X29: 4718556.02 | Y29: 5477434.77 | Z29: 4602025.88 | AA29: 5059330.38 | AB29: 5742633.88 | AC29: 5602652.38 | AD29: 6772471.67 | AE29: 6438460.54 | AF29: 5655123
A30: AnacortesFood Services | B30: Anacortes | C30: Food Services | D30: 487517.3 | E30: 488502.56 | F30: 486486.81 | G30: 503047.11 | H30: 533952.73 | I30: 550234.16 | J30: 584955.06 | K30: 627775.12 | L30: 648837.52 | M30: 714852.23 | N30: 733487.98 | O30: 741065.07 | P30: 813826.12 | Q30: 803722.25 | R30: 753185.93 | S30: 789967.36 | T30: 799534.87 | U30: 782998.89 | V30: 818205.3 | W30: 785526.32 | X30: 828251.77 | Y30: 813732.77 | Z30: 866401.69 | AA30: 949001.64 | AB30: 959405.31 | AC30: 883120.69 | AD30: 1297684.09 | AE30: 1304665.27 | AF30: 1291980
A31: AnacortesPupil Transpo | B31: Anacortes | C31: Pupil Transpo | D31: 576397.76 | E31: 523934.64 | F31: 521374.88 | G31: 482985.79 | H31: 553405.17 | I31: 634389.95 | J31: 617856.5 | K31: 633378.45 | L31: 666461.63 | M31: 748797.55 | N31: 719386.92 | O31: 763622.67 | P31: 869055.98 | Q31: 804980.4 | R31: 732879.19 | S31: 821954.53 | T31: 885783.51 | U31: 863004.84 | V31: 896317.26 | W31: 929755.01 | X31: 971830.8 | Y31: 1018786.08 | Z31: 1161617.36 | AA31: 1247972.83 | AB31: 1516218.52 | AC31: 1548391.78 | AD31: 1881289.68 | AE31: 1859477.56 | AF31: 1913720
A32: AnacortesUtil/Plant/Ins/IS/Other | B32: Anacortes | C32: Util/Plant/Ins/IS/Other | D32: 1755629.67 | E32: 1743306 | F32: 1813132.12 | G32: 1726130.2 | H32: 1883941.16 | I32: 2062956.03 | J32: 2193055.71 | K32: 2378360.3 | L32: 2630620.84 | M32: 2784292.34 | N32: 2592223.89 | O32: 2689764.15 | P32: 2812272.33 | Q32: 2812681.67 | R32: 2805449.58 | S32: 2758183.83 | T32: 2774351.72 | U32: 2681681.68 | V32: 3123818.09 | W32: 3025704.45 | X32: 3326097.27 | Y32: 3297079.32 | Z32: 3829100.41 | AA32: 3783154.06 | AB32: 3639816.09 | AC32: 4406967.03 | AD32: 5696308.59 | AE32: 5789259.07 | AF32: 4872714
A33: AnacortesUnit Admin | B33: Anacortes | C33: Unit Admin | D33: 748641.9 | E33: 731522.42 | F33: 807479.55 | G33: 801539.75 | H33: 894609.8 | I33: 1301750.71 | J33: 1202155.93 | K33: 1329698.12 | L33: 1462494.73 | M33: 1525959.79 | N33: 1514501.71 | O33: 1606426.05 | P33: 1771981.56 | Q33: 1902336.1 | R33: 1802769.39 | S33: 1862578.19 | T33: 1810469.86 | U33: 1798163.35 | V33: 1881887.11 | W33: 2073075.94 | X33: 2302121.66 | Y33: 2535686.52 | Z33: 2713987.1 | AA33: 2946193.75 | AB33: 2702687.26 | AC33: 2557057.21 | AD33: 2909741.61 | AE33: 3043210.65 | AF33: 2838522
A34: AnacortesCentral Admin | B34: Anacortes | C34: Central Admin | D34: 1268802.48 | E34: 1275631.72 | F34: 1351645.42 | G34: 1282401.91 | H34: 1372015.53 | I34: 1128337.55 | J34: 1490567.32 | K34: 1246723.8 | L34: 1305402.57 | M34: 1263854.45 | N34: 1438345.83 | O34: 1572056.06 | P34: 1627142.57 | Q34: 1482342.56 | R34: 1354904.04 | S34: 1386726.37 | T34: 1379622.67 | U34: 1486762.16 | V34: 1511020.72 | W34: 1603383.55 | X34: 1690065.76 | Y34: 1942341.09 | Z34: 2162734.58 | AA34: 2288325.66 | AB34: 2277078.48 | AC34: 2409038.56 | AD34: 3029887.54 | AE34: 3245723.35 | AF34: 2664185
A35: ArlingtonTeaching | B35: Arlington | C35: Teaching | D35: 13882833.5 | E35: 15357749.12 | F35: 16572833.46 | G35: 17539561.79 | H35: 18600082.91 | I35: 19418252.54 | J35: 20676211.5 | K35: 21917205.75 | L35: 22868911.3 | M35: 24620693.23 | N35: 25556755.83 | O35: 28262418.53 | P35: 30449490.49 | Q35: 31206502.19 | R35: 29742386.78 | S35: 29888981.41 | T35: 28669727.95 | U35: 29720400.77 | V35: 32057770.39 | W35: 33284004.76 | X35: 36924378.09 | Y35: 39305440.89 | Z35: 42547624.87 | AA35: 48846790.53 | AB35: 51538840.71 | AC35: 52466868.85 | AD35: 55275435.24 | AE35: 58483365.81 | AF35: 64007496
A36: ArlingtonTeaching Support | B36: Arlington | C36: Teaching Support | D36: 1584800.11 | E36: 1543355 | F36: 1517777 | G36: 1758180.53 | H36: 1674967.56 | I36: 1908279.24 | J36: 2015585.82 | K36: 2014816.94 | L36: 2128611.89 | M36: 2298342.49 | N36: 2352218.02 | O36: 2471634.36 | P36: 2549969.27 | Q36: 2531788.73 | R36: 2232858.27 | S36: 2139609.95 | T36: 3048926.19 | U36: 3251391.26 | V36: 4101311.4 | W36: 5311214.92 | X36: 5010244.89 | Y36: 5667817.67 | Z36: 6273705.91 | AA36: 7163838.01 | AB36: 8049454.07 | AC36: 8805599.85 | AD36: 10383518.09 | AE36: 9517424.26 | AF36: 8943639
A37: ArlingtonFood Services | B37: Arlington | C37: Food Services | D37: 641980.45 | E37: 665892.94 | F37: 699240.98 | G37: 727637.43 | H37: 785291.39 | I37: 856366.49 | J37: 857381.09 | K37: 829137.42 | L37: 1171792.21 | M37: 1266799.47 | N37: 1355972.24 | O37: 1424045.5 | P37: 1515138.86 | Q37: 1484368.39 | R37: 1490369.28 | S37: 1490722.05 | T37: 1553336.39 | U37: 1708741.73 | V37: 1597106.61 | W37: 1577756.22 | X37: 1678726.02 | Y37: 1740181.15 | Z37: 1777430.63 | AA37: 1941604.64 | AB37: 2045906.21 | AC37: 1699113.81 | AD37: 2983256.4 | AE37: 2636100.89 | AF37: 2430521
A38: ArlingtonPupil Transpo | B38: Arlington | C38: Pupil Transpo | D38: 1033916.53 | E38: 1030847.1 | F38: 1081231.66 | G38: 1160896.22 | H38: 1319295.24 | I38: 1319161.61 | J38: 1395216.09 | K38: 1573209.06 | L38: 1614691.99 | M38: 1894465.98 | N38: 2026638.3 | O38: 2028393.97 | P38: 2316860.88 | Q38: 2117653.31 | R38: 2226943.83 | S38: 2400382.19 | T38: 2386962.46 | U38: 2381443.83 | V38: 2476689.33 | W38: 2615418 | X38: 2695194.31 | Y38: 2848128.99 | Z38: 3018132.6 | AA38: 3445545.55 | AB38: 3538763.74 | AC38: 2968050.4 | AD38: 3905784.49 | AE38: 4181908.74 | AF38: 4423811
A39: ArlingtonUtil/Plant/Ins/IS/Other | B39: Arlington | C39: Util/Plant/Ins/IS/Other | D39: 2236476.69 | E39: 2214920.28 | F39: 2165672.25 | G39: 2352699.45 | H39: 2394795.78 | I39: 2576851.23 | J39: 2763783.6 | K39: 3301442.31 | L39: 3929968.37 | M39: 3603043.35 | N39: 3808416.74 | O39: 4225548.97 | P39: 4626152.26 | Q39: 4516665.11 | R39: 4179890.8 | S39: 4189874.32 | T39: 4280554.02 | U39: 4888337.22 | V39: 4770737.39 | W39: 4879897.25 | X39: 5120171.09 | Y39: 5290810.04 | Z39: 5402296.64 | AA39: 6079340.89 | AB39: 6125671.65 | AC39: 6283435.82 | AD39: 7071392.29 | AE39: 7658299.38 | AF39: 7552763
A40: ArlingtonUnit Admin | B40: Arlington | C40: Unit Admin | D40: 1450248.38 | E40: 1514277.03 | F40: 1787133.66 | G40: 1851850.84 | H40: 1908969.8 | I40: 2036220.71 | J40: 2094671.08 | K40: 2286938.23 | L40: 2478927.78 | M40: 2397117.9 | N40: 2386114.79 | O40: 2851535.75 | P40: 2926987.62 | Q40: 3210228.45 | R40: 3097908.37 | S40: 3049846.05 | T40: 3023215.53 | U40: 3058718.03 | V40: 3142169.8 | W40: 3700974.95 | X40: 4424376.59 | Y40: 4532608.56 | Z40: 4832271.13 | AA40: 5097728.33 | AB40: 5567677.35 | AC40: 5752548.15 | AD40: 6038646.58 | AE40: 6548792.09 | AF40: 6509517
A41: ArlingtonCentral Admin | B41: Arlington | C41: Central Admin | D41: 1289293.9 | E41: 1658903.47 | F41: 1508163.57 | G41: 1649850.93 | H41: 1891142.68 | I41: 1851008.77 | J41: 2148536.98 | K41: 2251210.31 | L41: 2301931.87 | M41: 2114458.34 | N41: 2173257.95 | O41: 2560763.22 | P41: 3055861.84 | Q41: 2792869.77 | R41: 2542770.83 | S41: 2391035.74 | T41: 2542471.24 | U41: 2894878.81 | V41: 2840376.02 | W41: 3236781.99 | X41: 3842262.04 | Y41: 3791051.63 | Z41: 3955696.05 | AA41: 4420554.18 | AB41: 5075717.98 | AC41: 4903631.4 | AD41: 5287127.75 | AE41: 5624794.65 | AF41: 5500083
A42: Asotin-AnatoneTeaching | B42: Asotin-Anatone | C42: Teaching | D42: 2489284.25 | E42: 2528481.51 | F42: 2612044.06 | G42: 2620638.03 | H42: 2786380.07 | I42: 2947794.54 | J42: 2904406.66 | K42: 2809093.39 | L42: 2986485.3 | M42: 3143155.74 | N42: 3191270.83 | O42: 3313369.06 | P42: 3674897.08 | Q42: 3949257.78 | R42: 3918247.24 | S42: 3770231.2 | T42: 3740477.71 | U42: 3704317.62 | V42: 3821308.77 | W42: 3896693.69 | X42: 4319503.47 | Y42: 4508705.2 | Z42: 4896769.77 | AA42: 4957561.72 | AB42: 4768415.04 | AC42: 5640717.05 | AD42: 5570680.77 | AE42: 5834115.35 | AF42: 7389210
A43: Asotin-AnatoneTeaching Support | B43: Asotin-Anatone | C43: Teaching Support | D43: 180593.9 | E43: 177632.34 | F43: 220646.77 | G43: 231257.83 | H43: 244793.44 | I43: 261378.63 | J43: 276054.35 | K43: 287254.47 | L43: 329705.98 | M43: 315582.6 | N43: 325893.95 | O43: 338631.07 | P43: 321417.08 | Q43: 533566.63 | R43: 477022.27 | S43: 626421.45 | T43: 361057.16 | U43: 354034.98 | V43: 242964.33 | W43: 359359.99 | X43: 605717.9 | Y43: 587757.8 | Z43: 543842.95 | AA43: 678018.97 | AB43: 727695.12 | AC43: 1028727.12 | AD43: 1139547.81 | AE43: 1045420.7 | AF43: 1009760
A44: Asotin-AnatoneFood Services | B44: Asotin-Anatone | C44: Food Services | D44: 103931.56 | E44: 116127.49 | F44: 121750.29 | G44: 126418.7 | H44: 130058.82 | I44: 136729.18 | J44: 138492.52 | K44: 127567.1 | L44: 141792.18 | M44: 142080.95 | N44: 151706.92 | O44: 180929.39 | P44: 167701.79 | Q44: 177751.41 | R44: 187656.22 | S44: 186604.73 | T44: 188133.92 | U44: 175067.29 | V44: 185126.46 | W44: 195931.91 | X44: 225766.2 | Y44: 232710.91 | Z44: 200042.69 | AA44: 243776.23 | AB44: 234012.25 | AC44: 322475.76 | AD44: 273655.89 | AE44: 406553.57 | AF44: 300398
A45: Asotin-AnatonePupil Transpo | B45: Asotin-Anatone | C45: Pupil Transpo | D45: 192863.4 | E45: 164124.5 | F45: 188644.14 | G45: 177210.48 | H45: 172938.99 | I45: 171720.58 | J45: 169836.61 | K45: 193269 | L45: 220139.95 | M45: 214569.26 | N45: 234346.28 | O45: 249432.53 | P45: 289051.33 | Q45: 264906.12 | R45: 327735.43 | S45: 299518.98 | T45: 293881.48 | U45: 308839.8 | V45: 306715.02 | W45: 271857.33 | X45: 263989.21 | Y45: 290950.43 | Z45: 299886.26 | AA45: 319068.76 | AB45: 284228.69 | AC45: 335562.73 | AD45: 346861.99 | AE45: 357250.05 | AF45: 388757
A46: Asotin-AnatoneUtil/Plant/Ins/IS/Other | B46: Asotin-Anatone | C46: Util/Plant/Ins/IS/Other | D46: 339302.35 | E46: 339767.93 | F46: 366963.06 | G46: 408502.87 | H46: 356355.96 | I46: 360704.38 | J46: 431670.11 | K46: 419518.97 | L46: 454631.01 | M46: 546258.14 | N46: 544454.68 | O46: 589515.79 | P46: 758085.83 | Q46: 658499.26 | R46: 598067.51 | S46: 814478.46 | T46: 709852.17 | U46: 864569.77 | V46: 909193.23 | W46: 862570.4 | X46: 1047001.04 | Y46: 1019521.92 | Z46: 986209.26 | AA46: 1175802.37 | AB46: 1286925.23 | AC46: 1136594.97 | AD46: 1167593.73 | AE46: 1217579.76 | AF46: 1343902
A47: Asotin-AnatoneUnit Admin | B47: Asotin-Anatone | C47: Unit Admin | D47: 198111.77 | E47: 195206.15 | F47: 196615.55 | G47: 201192.95 | H47: 201965.57 | I47: 203662.07 | J47: 209915.21 | K47: 212668.97 | L47: 220147.29 | M47: 243524.91 | N47: 265257 | O47: 265711.15 | P47: 277545.19 | Q47: 268865.59 | R47: 332488.14 | S47: 338525.57 | T47: 339127.82 | U47: 337383.11 | V47: 370102.88 | W47: 379211.49 | X47: 409816.01 | Y47: 435708.39 | Z47: 473037.33 | AA47: 445442.76 | AB47: 397927.89 | AC47: 466139.24 | AD47: 593541.09 | AE47: 628633.76 | AF47: 622729
A48: Asotin-AnatoneCentral Admin | B48: Asotin-Anatone | C48: Central Admin | D48: 222546.86 | E48: 227747.15 | F48: 257060.68 | G48: 240634.81 | H48: 261065.97 | I48: 255324.64 | J48: 290132.61 | K48: 312098.46 | L48: 305779 | M48: 310678.39 | N48: 320135.2 | O48: 292509.98 | P48: 361119.45 | Q48: 458143.01 | R48: 508381.08 | S48: 512661.51 | T48: 525520.83 | U48: 442632.22 | V48: 487643.34 | W48: 581927.31 | X48: 638246.47 | Y48: 722092.35 | Z48: 618270.83 | AA48: 661331.12 | AB48: 605132.69 | AC48: 605003.77 | AD48: 636087.18 | AE48: 671763.32 | AF48: 723688
A49: AuburnTeaching | B49: Auburn | C49: Teaching | D49: 40678497.43 | E49: 41053326.46 | F49: 43531001.6 | G49: 46427250.76 | H49: 47983736.49 | I49: 51122759.98 | J49: 54402418.47 | K49: 56876707.3 | L49: 59473780.15 | M49: 61971509.26 | N49: 66271804.86 | O49: 71005315.62 | P49: 75846268.76 | Q49: 83188366.46 | R49: 83401350.1 | S49: 84867845.13 | T49: 83073307.85 | U49: 84867047.54 | V49: 88118562.92 | W49: 93390721.54 | X49: 100700009.3 | Y49: 107715671.7 | Z49: 116651396 | AA49: 135122667.1 | AB49: 145463278.9 | AC49: 155669184.3 | AD49: 164322213.7 | AE49: 182226366 | AF49: 197339764
A50: AuburnTeaching Support | B50: Auburn | C50: Teaching Support | D50: 4994190.51 | E50: 5266203.58 | F50: 6121182.21 | G50: 6296786.72 | H50: 6427788.16 | I50: 6912518.86 | J50: 7154518.32 | K50: 7534996.33 | L50: 8103152.41 | M50: 8380500.34 | N50: 9043015.85 | O50: 9728838.75 | P50: 10448442.01 | Q50: 11831651.4 | R50: 12170604.77 | S50: 12231609.48 | T50: 15339152.51 | U50: 15933186.66 | V50: 25540234.43 | W50: 29453610.9 | X50: 36428151.08 | Y50: 38725792.52 | Z50: 42465654.08 | AA50: 44068980.72 | AB50: 44388318.8 | AC50: 52141766.39 | AD50: 53543590.51 | AE50: 61364828.82 | AF50: 62991606
A51: AuburnFood Services | B51: Auburn | C51: Food Services | D51: 1719402.83 | E51: 1906664.29 | F51: 2075989.88 | G51: 2187430.99 | H51: 2331842.36 | I51: 2569973.91 | J51: 2724557.26 | K51: 2840419.59 | L51: 3022380.96 | M51: 3156085.35 | N51: 3274723.19 | O51: 3628127.25 | P51: 3978227.58 | Q51: 4376451.48 | R51: 4763730.88 | S51: 4890915.43 | T51: 5067891.77 | U51: 5128828.6 | V51: 5547568.2 | W51: 6019497.05 | X51: 6130034.79 | Y51: 6382973.13 | Z51: 7083559.12 | AA51: 7341328.09 | AB51: 5701504.83 | AC51: 7352437.16 | AD51: 9639181.97 | AE51: 11713145.88 | AF51: 11006760
A52: AuburnPupil Transpo | B52: Auburn | C52: Pupil Transpo | D52: 3145874.28 | E52: 3077569.49 | F52: 3256620.85 | G52: 3163024.37 | H52: 3251990.97 | I52: 3418642.76 | J52: 3459108.12 | K52: 3704238.74 | L52: 4143461.43 | M52: 4498881.69 | N52: 4923535.14 | O52: 5164302.52 | P52: 5871334.97 | Q52: 6085765.96 | R52: 5438002.5 | S52: 5782441.98 | T52: 5703078.52 | U52: 5937192.61 | V52: 6321325.67 | W52: 6243127.27 | X52: 6784382.22 | Y52: 7092092.24 | Z52: 7704712.17 | AA52: 8212230.21 | AB52: 9744107.21 | AC52: 4673749.61 | AD52: 11343223.12 | AE52: 10471203.46 | AF52: 12520183
A53: AuburnUtil/Plant/Ins/IS/Other | B53: Auburn | C53: Util/Plant/Ins/IS/Other | D53: 7972024.24 | E53: 7740735.66 | F53: 7485617.9 | G53: 7932108.78 | H53: 8486703.51 | I53: 8708307.43 | J53: 8970871.45 | K53: 9440942.14 | L53: 9723682.68 | M53: 10576693.75 | N53: 11464531.85 | O53: 12689262.83 | P53: 12799690.67 | Q53: 13514361.27 | R53: 13222116 | S53: 12914144.84 | T53: 13398096.93 | U53: 13226227.58 | V53: 14508787.53 | W53: 15182914.5 | X53: 15726022.75 | Y53: 17254810.23 | Z53: 19076643.43 | AA53: 22214988.34 | AB53: 30326236.91 | AC53: 26657744.48 | AD53: 31686299.17 | AE53: 36548790.35 | AF53: 33319890
A54: AuburnUnit Admin | B54: Auburn | C54: Unit Admin | D54: 4407822.61 | E54: 4589978.24 | F54: 4309267.33 | G54: 4397283.43 | H54: 4504432.99 | I54: 4699610.91 | J54: 5068161.88 | K54: 5160182.16 | L54: 5410201.58 | M54: 5611820.46 | N54: 6271968.1 | O54: 7055403.59 | P54: 7755114.37 | Q54: 8261301.1 | R54: 8410147.17 | S54: 8521046.28 | T54: 8751823.69 | U54: 8859952.35 | V54: 9412122.96 | W54: 9870432.09 | X54: 10724498.48 | Y54: 12099235.24 | Z54: 13387437.08 | AA54: 14549050.5 | AB54: 16522176.17 | AC54: 16700710.6 | AD54: 19515491.72 | AE54: 21435119.13 | AF54: 21704474
A55: AuburnCentral Admin | B55: Auburn | C55: Central Admin | D55: 2877100.95 | E55: 2867604.74 | F55: 3041197.2 | G55: 3135353.85 | H55: 3326088.44 | I55: 3474174.95 | J55: 3670373.99 | K55: 3780103.76 | L55: 4030185.5 | M55: 4340291.93 | N55: 4645131.99 | O55: 4775890.35 | P55: 5036010.35 | Q55: 5117327.49 | R55: 5093844.34 | S55: 5548387.85 | T55: 5756370.59 | U55: 6055259.71 | V55: 6533592.21 | W55: 7601084.1 | X55: 8208615.51 | Y55: 8375541.57 | Z55: 8988923.42 | AA55: 9941920.43 | AB55: 11202964.91 | AC55: 12739354.89 | AD55: 13051246.85 | AE55: 15329522.82 | AF55: 16497587
A56: Bainbridge IslandTeaching | B56: Bainbridge Island | C56: Teaching | D56: 10195584.07 | E56: 10981004.07 | F56: 11534215.12 | G56: 12687954.02 | H56: 14208012.11 | I56: 14655513.14 | J56: 15353765.35 | K56: 15993129.34 | L56: 17081865.5 | M56: 17978299.81 | N56: 19101429.26 | O56: 20160072.51 | P56: 21572005.43 | Q56: 22380423 | R56: 21553831.85 | S56: 21999005.55 | T56: 21875112.87 | U56: 21778314.31 | V56: 23075681.38 | W56: 22786204.95 | X56: 24849090.6 | Y56: 25948704.76 | Z56: 27290516.79 | AA56: 32059569.63 | AB56: 33113576.98 | AC56: 33649300.82 | AD56: 34163151.86 | AE56: 37121120.23 | AF56: 37019448
A57: Bainbridge IslandTeaching Support | B57: Bainbridge Island | C57: Teaching Support | D57: 1861367.25 | E57: 1852372.23 | F57: 1924011.8 | G57: 2010044.38 | H57: 2385482.9 | I57: 2465546.01 | J57: 2520202.99 | K57: 2651828.51 | L57: 2858218.77 | M57: 3080386.94 | N57: 3317365.56 | O57: 3479499.51 | P57: 3662398.15 | Q57: 3865946.73 | R57: 3646476.86 | S57: 3568369.12 | T57: 3790407.24 | U57: 4002861.89 | V57: 4334503.28 | W57: 4998042.69 | X57: 5330872.57 | Y57: 5261380.89 | Z57: 5647689.23 | AA57: 7045472.54 | AB57: 6836150.57 | AC57: 7828222.61 | AD57: 7122644.92 | AE57: 7585775.71 | AF57: 7935157
A58: Bainbridge IslandFood Services | B58: Bainbridge Island | C58: Food Services | D58: 507474.91 | E58: 552337.01 | F58: 588867.33 | G58: 610156.21 | H58: 663868.46 | I58: 700082.28 | J58: 737047.46 | K58: 754548.87 | L58: 757388.17 | M58: 870345.38 | N58: 921955.62 | O58: 989479.73 | P58: 1010151.71 | Q58: 926814.25 | R58: 925665.47 | S58: 919144.93 | T58: 944331.1 | U58: 937411.47 | V58: 937903.98 | W58: 947750.33 | X58: 919145.39 | Y58: 955786.69 | Z58: 1032464.89 | AA58: 1159461.63 | AB58: 1293773.37 | AC58: 1137701.64 | AD58: 1403582.13 | AE58: 1626107.66 | AF58: 1757822
A59: Bainbridge IslandPupil Transpo | B59: Bainbridge Island | C59: Pupil Transpo | D59: 735004.4 | E59: 687258.75 | F59: 704438.8 | G59: 753375.21 | H59: 855938.56 | I59: 801771.84 | J59: 937703.84 | K59: 1050205.8 | L59: 1117346.83 | M59: 1245907.02 | N59: 1379655.06 | O59: 1423130.11 | P59: 1545851.32 | Q59: 1512224.07 | R59: 1309130.43 | S59: 1434020.8 | T59: 1406951.38 | U59: 1327115.09 | V59: 1348753.48 | W59: 1317998.36 | X59: 1400126.89 | Y59: 1484393.71 | Z59: 1577386.91 | AA59: 1800174.69 | AB59: 1846427.99 | AC59: 1519887.22 | AD59: 1846339.99 | AE59: 2009386.63 | AF59: 2264445
A60: Bainbridge IslandUtil/Plant/Ins/IS/Other | B60: Bainbridge Island | C60: Util/Plant/Ins/IS/Other | D60: 2381320.61 | E60: 2356726.37 | F60: 2428870.58 | G60: 2811743.77 | H60: 3396147.52 | I60: 3007143.65 | J60: 3216137.15 | K60: 3238203.4 | L60: 3530468.65 | M60: 3875757.83 | N60: 4072060.09 | O60: 4119182.38 | P60: 4451039.32 | Q60: 4489013.1 | R60: 4267157.38 | S60: 4619564.76 | T60: 4426818.13 | U60: 4494314.26 | V60: 4670475.69 | W60: 4473454.5 | X60: 4574359.72 | Y60: 5016870.28 | Z60: 5654472.3 | AA60: 6073734.25 | AB60: 6147955.01 | AC60: 6513366.69 | AD60: 7208476.56 | AE60: 7513934.22 | AF60: 8380391
A61: Bainbridge IslandUnit Admin | B61: Bainbridge Island | C61: Unit Admin | D61: 1336084.09 | E61: 1498520.07 | F61: 1625494.87 | G61: 1458686.3 | H61: 1500666.31 | I61: 1531596.51 | J61: 1694263.64 | K61: 1786712.09 | L61: 1728786.73 | M61: 1768194.06 | N61: 1899251.16 | O61: 1975769.57 | P61: 2161952.14 | Q61: 2213185.07 | R61: 2201177.6 | S61: 2109525.56 | T61: 2148235.36 | U61: 2216226.65 | V61: 2304965.74 | W61: 2335303.85 | X61: 2594627.4 | Y61: 2731291.94 | Z61: 2837960.31 | AA61: 3056755.79 | AB61: 3054437.41 | AC61: 3137727.83 | AD61: 3119344.04 | AE61: 3210400.24 | AF61: 3306834
A62: Bainbridge IslandCentral Admin | B62: Bainbridge Island | C62: Central Admin | D62: 1342724.8 | E62: 1267950.63 | F62: 1451105.61 | G62: 1428651.45 | H62: 1566968.38 | I62: 1552838.05 | J62: 1443645.54 | K62: 1631577.79 | L62: 1536377.7 | M62: 1578506.89 | N62: 1663219.68 | O62: 1936005.22 | P62: 1856011.87 | Q62: 2021717.11 | R62: 1828411.82 | S62: 1871768.67 | T62: 1829276.93 | U62: 1870411.73 | V62: 2281178.96 | W62: 2393391.63 | X62: 2876084.1 | Y62: 2728391.02 | Z62: 2913822.41 | AA62: 3450364.95 | AB62: 3613055.36 | AC62: 3445998.06 | AD62: 4003544.65 | AE62: 4323618.64 | AF62: 4104705
A63: Battle GroundTeaching | B63: Battle Ground | C63: Teaching | D63: 33279996.85 | E63: 34721293.55 | F63: 34141572.96 | G63: 36223450.9 | H63: 39264878.11 | I63: 40138192.76 | J63: 42801245.78 | K63: 44813248.87 | L63: 47104345.38 | M63: 49707563.16 | N63: 52068168.29 | O63: 52567941.49 | P63: 60579911.77 | Q63: 69055109.64 | R63: 67010474.94 | S63: 69462569.31 | T63: 68142017.1 | U63: 69024786.6 | V63: 75245256.61 | W63: 77297446.04 | X63: 83386249.14 | Y63: 88172934.73 | Z63: 93371779.25 | AA63: 103485708.6 | AB63: 104059682.7 | AC63: 100478878.7 | AD63: 102010342 | AE63: 110919282.8 | AF63: 129798232
A64: Battle GroundTeaching Support | B64: Battle Ground | C64: Teaching Support | D64: 3961740.32 | E64: 4108017.45 | F64: 4008838.39 | G64: 4076758.64 | H64: 4647276.25 | I64: 4890348.22 | J64: 5124105.69 | K64: 5491646.79 | L64: 5607483.23 | M64: 6056351.43 | N64: 6397938.36 | O64: 6043857.42 | P64: 7136709.54 | Q64: 8097990.51 | R64: 8381071.84 | S64: 8732489.7 | T64: 9761815.28 | U64: 9721894.2 | V64: 10602251.2 | W64: 12429930.26 | X64: 14868171.9 | Y64: 14984169.86 | Z64: 16359845.46 | AA64: 21002616.07 | AB64: 23090700.83 | AC64: 23423884.86 | AD64: 26261251.89 | AE64: 30998929.81 | AF64: 36101603
A65: Battle GroundFood Services | B65: Battle Ground | C65: Food Services | D65: 1791351.16 | E65: 1760534.54 | F65: 1785980.64 | G65: 1897253.06 | H65: 1735083.89 | I65: 1807789.76 | J65: 2069265.38 | K65: 2313655.64 | L65: 2724234.73 | M65: 2818114.24 | N65: 2910233.97 | O65: 2937864.09 | P65: 3146176.44 | Q65: 3234008.15 | R65: 3213596.88 | S65: 3205732.26 | T65: 3120577.22 | U65: 2901205.48 | V65: 3158245.83 | W65: 3083367.2 | X65: 3172995.34 | Y65: 3206741.38 | Z65: 3110788.47 | AA65: 2923336.41 | AB65: 3169929.38 | AC65: 2536285.39 | AD65: 4172150.2 | AE65: 3383165.26 | AF65: 3768034
A66: Battle GroundPupil Transpo | B66: Battle Ground | C66: Pupil Transpo | D66: 3392905.85 | E66: 3824990.15 | F66: 3719269.92 | G66: 3378793.82 | H66: 3593992.39 | I66: 3808129.41 | J66: 4122949.01 | K66: 4519317.16 | L66: 4954010.3 | M66: 5457405.44 | N66: 5974766.44 | O66: 6040459.37 | P66: 6328396 | Q66: 6378973.41 | R66: 6470251.48 | S66: 6832092.45 | T66: 6851795.17 | U66: 6902313.51 | V66: 7252744.66 | W66: 7377719.59 | X66: 7541679.18 | Y66: 7851179.13 | Z66: 8903191.98 | AA66: 9794931.85 | AB66: 10354307.07 | AC66: 6945140.78 | AD66: 11305983.51 | AE66: 12257262.55 | AF66: 12895339
A67: Battle GroundUtil/Plant/Ins/IS/Other | B67: Battle Ground | C67: Util/Plant/Ins/IS/Other | D67: 5598892.4 | E67: 5402903.21 | F67: 5534635.54 | G67: 6162168.79 | H67: 7186039.51 | I67: 8403618.6 | J67: 7894920.53 | K67: 8843699.02 | L67: 7901860.57 | M67: 9499224.82 | N67: 8948060.42 | O67: 8796708.56 | P67: 10243639.1 | Q67: 12314926.17 | R67: 11176027.02 | S67: 11897174.46 | T67: 11976525.88 | U67: 12760382.31 | V67: 13276649.81 | W67: 14794715.06 | X67: 15294804.7 | Y67: 16439663.07 | Z67: 16324218.34 | AA67: 17274827.8 | AB67: 18013948.42 | AC67: 18349180.21 | AD67: 20143907.45 | AE67: 24265857.44 | AF67: 24311612
A68: Battle GroundUnit Admin | B68: Battle Ground | C68: Unit Admin | D68: 3097077.44 | E68: 3034913.36 | F68: 2987471.31 | G68: 3256876 | H68: 4093496.9 | I68: 4245918 | J68: 4591218.95 | K68: 4867804.29 | L68: 5203943.47 | M68: 5558682.28 | N68: 5896525.17 | O68: 5101376.42 | P68: 6757101.72 | Q68: 8359661.61 | R68: 8015213.41 | S68: 8268523.63 | T68: 8060787.35 | U68: 8335319.25 | V68: 8754047.61 | W68: 9156205.19 | X68: 9523801.08 | Y68: 9633277.08 | Z68: 10188837.26 | AA68: 10859237.96 | AB68: 11598546.95 | AC68: 11893581.81 | AD68: 11828125.64 | AE68: 12700421.96 | AF68: 13799263
A69: Battle GroundCentral Admin | B69: Battle Ground | C69: Central Admin | D69: 3280014.62 | E69: 2995381.16 | F69: 2979054.94 | G69: 2267973.98 | H69: 2900144.22 | I69: 3472607.59 | J69: 4019578.25 | K69: 4181248.87 | L69: 4600759.34 | M69: 5231087.58 | N69: 5969125.51 | O69: 5013869.07 | P69: 5829686.75 | Q69: 6198726.91 | R69: 6137468.05 | S69: 6294462.86 | T69: 6427083.75 | U69: 7029270.8 | V69: 7288987.17 | W69: 7401691.23 | X69: 7395808.16 | Y69: 7963901.98 | Z69: 8998427.64 | AA69: 8444605.62 | AB69: 8329512.55 | AC69: 8851821.21 | AD69: 9117701.24 | AE69: 10566003.37 | AF69: 11489752
A70: BellevueTeaching | B70: Bellevue | C70: Teaching | D70: 53320994.79 | E70: 53708628.29 | F70: 57525481.04 | G70: 60389133.52 | H70: 61147216.6 | I70: 64526551.66 | J70: 68469027.33 | K70: 71365377.33 | L70: 72937565.44 | M70: 78536783.36 | N70: 83513282.52 | O70: 92418829.14 | P70: 102532283.6 | Q70: 107318272.9 | R70: 105814791 | S70: 111857210 | T70: 112834004.6 | U70: 116894505.7 | V70: 125386098.4 | W70: 131724741.1 | X70: 141678590.9 | Y70: 146614023.4 | Z70: 158125496.8 | AA70: 182494005.1 | AB70: 197509726.8 | AC70: 198499737 | AD70: 197502441.4 | AE70: 218845206.1 | AF70: 214623764
A71: BellevueTeaching Support | B71: Bellevue | C71: Teaching Support | D71: 7750484.03 | E71: 7700623.82 | F71: 7944034.06 | G71: 8110679.18 | H71: 8586822.09 | I71: 8568167.97 | J71: 9007579.57 | K71: 9499875.8 | L71: 9722480.73 | M71: 10436266.08 | N71: 11505473.25 | O71: 12793994.04 | P71: 13461620.34 | Q71: 14421505.14 | R71: 13505430.76 | S71: 14272256.27 | T71: 18895233.29 | U71: 20972937.47 | V71: 23358777.94 | W71: 33552336.95 | X71: 38639320.97 | Y71: 44198359.45 | Z71: 47568976.98 | AA71: 58332439.81 | AB71: 59290114.38 | AC71: 60856552.32 | AD71: 65058859.78 | AE71: 72038988.67 | AF71: 70736136
A72: =TRIM(B72)&TRIM(C72) -> BellevueFood Services | B72: Bellevue | C72: Food Services | D72: 2262003.41 | E72: 2269449.91 | F72: 2340141.61 | G72: 2664065.22 | H72: 2730062.66 | I72: 2852404.19 | J72: 3343069.82 | K72: 3246280.45 | L72: 3129776.08 | M72: 3499969.04 | N72: 3853939.68 | O72: 4211297.82 | P72: 4646735.75 | Q72: 5047191.92 | R72: 5050498 | S72: 4848393.46 | T72: 5149314.76 | U72: 5199216.43 | V72: 5540698.23 | W72: 6112031.69 | X72: 6543715.31 | Y72: 6563359.57 | Z72: 6653894.81 | AA72: 6635585.39 | AB72: 6355145.36 | AC72: 3178811.45 | AD72: 6807168.69 | AE72: 6662109.39 | AF72: 7362406
A73: BellevuePupil Transpo | B73: Bellevue | C73: Pupil Transpo | D73: 3068187.69 | E73: 3169777.44 | F73: 3221252.82 | G73: 3280029.32 | H73: 3326908.99 | I73: 3443245.43 | J73: 3499668.43 | K73: 3656045.37 | L73: 3684008.48 | M73: 3983170.48 | N73: 4306946.19 | O73: 4591378.87 | P73: 4480065.38 | Q73: 4744429.46 | R73: 4812339.69 | S73: 4753656.02 | T73: 5048788.72 | U73: 5443919.99 | V73: 5941773.45 | W73: 6386104.97 | X73: 6589121.27 | Y73: 7374676.93 | Z73: 7932928.62 | AA73: 9302869.92 | AB73: 10246939.84 | AC73: 6423496.6 | AD73: 9325072.76 | AE73: 10078177.66 | AF73: 10470899
A74: BellevueUtil/Plant/Ins/IS/Other | B74: Bellevue | C74: Util/Plant/Ins/IS/Other | D74: 12876527.3 | E74: 12747927.74 | F74: 13281898.52 | G74: 13445054.07 | H74: 13981163.74 | I74: 14736402.66 | J74: 15200588.32 | K74: 15150155.11 | L74: 15345326.94 | M74: 16182558.72 | N74: 17454893.24 | O74: 18807734.65 | P74: 20027901.23 | Q74: 20973697.41 | R74: 20082174.24 | S74: 21737910.64 | T74: 22514382.97 | U74: 23509949.97 | V74: 25140270.77 | W74: 25470359.06 | X74: 27804392.34 | Y74: 30683877.61 | Z74: 31156076.98 | AA74: 30947203.46 | AB74: 31853458.54 | AC74: 30186618.87 | AD74: 33525813.12 | AE74: 35824031.62 | AF74: 35575576
A75: BellevueUnit Admin | B75: Bellevue | C75: Unit Admin | D75: 5867778.21 | E75: 6377647.71 | F75: 6319761.9 | G75: 6305399.82 | H75: 6583739.49 | I75: 6468633.86 | J75: 6594013.15 | K75: 6692138.17 | L75: 6754454.27 | M75: 7145539.3 | N75: 7458923.56 | O75: 8190195.3 | P75: 8550354 | Q75: 8584788.62 | R75: 8252139.1 | S75: 8153341.34 | T75: 8720909.62 | U75: 8844641.97 | V75: 10073142.54 | W75: 11317311.24 | X75: 13188000.23 | Y75: 14114863.03 | Z75: 15984721.12 | AA75: 17395238.03 | AB75: 17850561.43 | AC75: 18791937.25 | AD75: 18999536.56 | AE75: 20132539.37 | AF75: 17991734
A76: BellevueCentral Admin | B76: Bellevue | C76: Central Admin | D76: 5797872.59 | E76: 5996803.14 | F76: 6284330.43 | G76: 6090547.48 | H76: 6294133.03 | I76: 5699131.97 | J76: 6278764.26 | K76: 6640905.15 | L76: 6231103.51 | M76: 6001428.89 | N76: 6638955 | O76: 7193046.97 | P76: 7564607.38 | Q76: 7311696.9 | R76: 7643240.55 | S76: 7886725.35 | T76: 9039529.46 | U76: 10170695.31 | V76: 13824365.77 | W76: 11927880.36 | X76: 14130695.01 | Y76: 14270429.53 | Z76: 16521770.05 | AA76: 21710956.9 | AB76: 25062128.7 | AC76: 22940130.09 | AD76: 21743205.7 | AE76: 24481647.38 | AF76: 26421245
A77: BellinghamTeaching | B77: Bellingham | C77: Teaching | D77: 33358698.14 | E77: 34818423.77 | F77: 36176069.67 | G77: 38188294.31 | H77: 39510153.9 | I77: 42416475.3 | J77: 44415228.26 | K77: 46106988.32 | L77: 46742148.7 | M77: 49615937.74 | N77: 51647462.41 | O77: 53706170.43 | P77: 58399547.57 | Q77: 61624374.21 | R77: 60560345.46 | S77: 64978359.46 | T77: 63179390.18 | U77: 62038784.02 | V77: 66467044.43 | W77: 68633286.27 | X77: 76056381.42 | Y77: 80504624.55 | Z77: 90168645.66 | AA77: 102446600.4 | AB77: 106701976.9 | AC77: 111613842.8 | AD77: 118576851.8 | AE77: 130816113 | AF77: 129219130
A78: BellinghamTeaching Support | B78: Bellingham | C78: Teaching Support | D78: 4779976 | E78: 4856047.2 | F78: 6144640.66 | G78: 5669879.47 | H78: 7215378.46 | I78: 6910871.91 | J78: 7831244.21 | K78: 7664554.09 | L78: 7500274.44 | M78: 7832297.85 | N78: 8151487.28 | O78: 8829966.13 | P78: 9415485.64 | Q78: 10173339.58 | R78: 9638209.04 | S78: 9642811.61 | T78: 11139800.98 | U78: 11351738.5 | V78: 12507154.02 | W78: 16784078.45 | X78: 17008194.43 | Y78: 17367606.94 | Z78: 18084221.84 | AA78: 19730709.53 | AB78: 19048807.44 | AC78: 20759813.07 | AD78: 23139498.08 | AE78: 23741355.86 | AF78: 27511580
A79: BellinghamFood Services | B79: Bellingham | C79: Food Services | D79: 1797800.37 | E79: 1783664.06 | F79: 1871236.07 | G79: 2064662.93 | H79: 2107407.42 | I79: 2208738.41 | J79: 2366459.76 | K79: 2471036.18 | L79: 2588814.57 | M79: 2809256.22 | N79: 2660559.8 | O79: 2902794.64 | P79: 3214507.21 | Q79: 3290136.89 | R79: 3217258.35 | S79: 3371635.11 | T79: 3563116.08 | U79: 3490057.67 | V79: 3587733.48 | W79: 3742008.14 | X79: 4138755.93 | Y79: 4001846.95 | Z79: 4212098.12 | AA79: 4341560.24 | AB79: 5238188.7 | AC79: 6011095.54 | AD79: 6017256.92 | AE79: 6080334.09 | AF79: 5895766
A80: BellinghamPupil Transpo | B80: Bellingham | C80: Pupil Transpo | D80: 1563855.21 | E80: 1626856.4 | F80: 1650410.86 | G80: 1668650.29 | H80: 1755187.99 | I80: 1769521.9 | J80: 1777524.29 | K80: 1851835.98 | L80: 1860039.33 | M80: 2042385.6 | N80: 2201838.18 | O80: 2380216.45 | P80: 2585477.72 | Q80: 2627795.2 | R80: 2860784.51 | S80: 3030231.73 | T80: 2860475.74 | U80: 2848218.34 | V80: 2957522.29 | W80: 3138756.64 | X80: 3190607.08 | Y80: 3404261.1 | Z80: 3792839.05 | AA80: 3800344.88 | AB80: 4260841.11 | AC80: 3398387.46 | AD80: 4559774.84 | AE80: 4983919.67 | AF80: 5257338
A81: BellinghamUtil/Plant/Ins/IS/Other | B81: Bellingham | C81: Util/Plant/Ins/IS/Other | D81: 5947790.61 | E81: 6000150.96 | F81: 6212613.86 | G81: 6732012.86 | H81: 6464029.57 | I81: 7037610.56 | J81: 7511005.51 | K81: 7619964.44 | L81: 7954818.21 | M81: 8304346.48 | N81: 8666411.1 | O81: 9135480.53 | P81: 9801912.38 | Q81: 10613935.67 | R81: 10341242.08 | S81: 11210830.75 | T81: 11197350.46 | U81: 11414671 | V81: 12150590.95 | W81: 13027534.69 | X81: 13668659.96 | Y81: 12944968.83 | Z81: 13854385.94 | AA81: 14396725.71 | AB81: 14303573.13 | AC81: 15616836.28 | AD81: 17298229.6 | AE81: 18740644.44 | AF81: 22790783
A82: BellinghamUnit Admin | B82: Bellingham | C82: Unit Admin | D82: 3392090.05 | E82: 3373321.62 | F82: 3234698.12 | G82: 3552844.53 | H82: 3619203.73 | I82: 3985537.64 | J82: 4043905.32 | K82: 4189954.82 | L82: 4320081.21 | M82: 4517105.59 | N82: 4716176.74 | O82: 4989654.88 | P82: 5403215.82 | Q82: 5698595.92 | R82: 5668740.15 | S82: 6009594.04 | T82: 6743604.45 | U82: 6656752.2 | V82: 6770326.89 | W82: 7655820.09 | X82: 8796337.44 | Y82: 9312755.27 | Z82: 9911705.21 | AA82: 10390309.81 | AB82: 10700464.24 | AC82: 11278819.32 | AD82: 12431529.38 | AE82: 12905985.4 | AF82: 11285566
A83: BellinghamCentral Admin | B83: Bellingham | C83: Central Admin | D83: 3070828.85 | E83: 2977775.25 | F83: 3154810.37 | G83: 3295373.46 | H83: 3430107.82 | I83: 3508834.47 | J83: 3848865.03 | K83: 3791429.32 | L83: 4030527.92 | M83: 4150752.94 | N83: 4188332.77 | O83: 4673746.98 | P83: 5075604.36 | Q83: 5079891.86 | R83: 4871300.99 | S83: 4933758.73 | T83: 5404910.61 | U83: 5664214.07 | V83: 6267494.17 | W83: 6878970.65 | X83: 7780610.19 | Y83: 7641356.72 | Z83: 8554348.92 | AA83: 9012247.27 | AB83: 10188298.2 | AC83: 10372276.96 | AD83: 11285399.76 | AE83: 11077706.88 | AF83: 12686264
A84: BengeTeaching | B84: Benge | C84: Teaching | D84: 118204.12 | E84: 118807.07 | F84: 120509.06 | G84: 124835.67 | H84: 134865.99 | I84: 136115.01 | J84: 140643.34 | K84: 141895.41 | L84: 144308.57 | M84: 146952.76 | N84: 155993.71 | O84: 152782.69 | P84: 176347.43 | Q84: 178606.66 | R84: 201402.88 | S84: 221919.18 | T84: 199860.11 | U84: 227556 | V84: 158079.95 | W84: 161316.94 | X84: 170937.78 | Y84: 201414.03 | Z84: 224192.62 | AA84: 221401.8 | AB84: 272548.54 | AC84: 215140.89 | AD84: 200695.94 | AE84: 228314.29 | AF84: 282853
A85: BengeTeaching Support | B85: Benge | C85: Teaching Support | D85: 511.3 | E85: 369.83 | F85: 1120.98 | G85: 1774.42 | H85: 1991.53 | I85: 65.61 | J85: 64.13 | K85: 148.2 | L85: 17.17 | R85: 9259.61 | S85: 7551.23 | T85: 19603.61 | U85: 23540.02 | V85: 13457.92 | W85: 2775.36 | X85: 30198.36 | Y85: 28960.56 | Z85: 1138.4 | AA85: 10588.08 | AB85: 673.16 | AC85: 6232.52 | AD85: 22701.47 | AE85: 11876.39 | AF85: 11733
A86: BengeFood Services | B86: Benge | C86: Food Services | D86: 8793.22 | E86: 9506.38 | F86: 8671.73 | G86: 9231.96 | H86: 11720.72 | I86: 11857.91 | J86: 10465.18 | K86: 12384.56 | L86: 12587.46 | M86: 11037.83 | N86: 11712.38 | O86: 12776.42 | P86: 12063.75 | Q86: 14260.82 | R86: 12568.1 | S86: 15546.69 | T86: 15962.15 | U86: 16363.72 | V86: 18251.43 | W86: 15058.66 | X86: 14600.24 | Y86: 15346.91 | Z86: 18328.44 | AA86: 17810.54 | AB86: 22045.86 | AC86: 25336.44 | AD86: 21274.84 | AE86: 23493.52 | AF86: 12055
A87: BengePupil Transpo | B87: Benge | C87: Pupil Transpo | D87: 29829.69 | E87: 31776.93 | F87: 28235.32 | G87: 27431.96 | H87: 26540.86 | I87: 28493.04 | J87: 27161.34 | K87: 24074.94 | L87: 30369.16 | M87: 33092.72 | N87: 50086.77 | O87: 42688.5 | P87: 58913 | Q87: 58603.78 | R87: 47500.35 | S87: 60008.9 | T87: 65389.06 | U87: 64343.1 | V87: 60919.36 | W87: 74557.21 | X87: 41224.17 | Y87: 50603.03 | Z87: 48666.42 | AA87: 54328.15 | AB87: 55248.55 | AC87: 66842.6 | AD87: 72115.08 | AE87: 86040.39 | AF87: 109484
A88: BengeUtil/Plant/Ins/IS/Other | B88: Benge | C88: Util/Plant/Ins/IS/Other | D88: 34279.25 | E88: 36341.32 | F88: 35575.89 | G88: 41932.5 | H88: 41283.64 | I88: 42376.81 | J88: 45677.78 | K88: 45635.31 | L88: 46801.43 | M88: 53285.33 | N88: 59212.05 | O88: 59313.89 | P88: 74231.94 | Q88: 71006.57 | R88: 66511.68 | S88: 78997.43 | T88: 73157.41 | U88: 71263.87 | V88: 70120.25 | W88: 63177.87 | X88: 80365.79 | Y88: 83596.92 | Z88: 66800.6 | AA88: 84075.44 | AB88: 107297.83 | AC88: 58608.55 | AD88: 37289.85 | AE88: 79810.38 | AF88: 65373
A89: BengeUnit Admin | B89: Benge | C89: Unit Admin | M89: 36 | AD89: 137.24
A90: BengeCentral Admin | B90: Benge | C90: Central Admin | D90: 14012.99 | E90: 18211.73 | F90: 15084.6 | G90: 14803.86 | H90: 16954.18 | I90: 14536.16 | J90: 14190.11 | K90: 18544.27 | L90: 16841.58 | M90: 18266.93 | N90: 19627 | O90: 22178.65 | P90: 21349.82 | Q90: 23423.38 | R90: 20788.26 | S90: 22369.87 | T90: 21637.99 | U90: 23084 | V90: 24881.65 | W90: 24276.18 | X90: 28070.91 | Y90: 35084.91 | Z90: 34402.61 | AA90: 49752.62 | AB90: 65948.11 | AC90: 60421.96 | AD90: 57358.36 | AE90: 47341.82 | AF90: 64250
A91: BethelTeaching | B91: Bethel | C91: Teaching | D91: 44917390.11 | E91: 46812818.18 | F91: 49481368.98 | G91: 48955132.64 | H91: 52909324.17 | I91: 58313327.12 | J91: 62197846.78 | K91: 64979765.81 | L91: 68469337.48 | M91: 70131031.21 | N91: 74703359.82 | O91: 81316779.06 | P91: 86367328.47 | Q91: 93875447.97 | R91: 92549364.11 | S91: 95953725.67 | T91: 90054456.58 | U91: 90373150.94 | V91: 96007366.81 | W91: 102063567.7 | X91: 111640901.5 | Y91: 119121471.8 | Z91: 133467834.5 | AA91: 152424980.1 | AB91: 163303212.2 | AC91: 168572933.6 | AD91: 174900158.4 | AE91: 181891107 | AF91: 209060028
A92: BethelTeaching Support | B92: Bethel | C92: Teaching Support | D92: 5287279.59 | E92: 5574224.82 | F92: 6385638.26 | G92: 7024329.69 | H92: 8367224.11 | I92: 8747171.11 | J92: 8706311.99 | K92: 10145341.65 | L92: 10978763.62 | M92: 11981322.07 | N92: 12801319.52 | O92: 14014734.92 | P92: 15852332.42 | Q92: 16771114.86 | R92: 16650746.48 | S92: 15773251.8 | T92: 19932320.19 | U92: 20389978.86 | V92: 23119762.53 | W92: 28044364.75 | X92: 28595465.48 | Y92: 29284483.16 | Z92: 31791477.28 | AA92: 38315131.03 | AB92: 41160765.54 | AC92: 40771287.74 | AD92: 45835885.75 | AE92: 46563066.49 | AF92: 46712815
A93: BethelFood Services | B93: Bethel | C93: Food Services | D93: 2390391.26 | E93: 2741528.05 | F93: 2724143.86 | G93: 2974141.68 | H93: 3331642.16 | I93: 3303053.68 | J93: 3356282.03 | K93: 3513320.91 | L93: 3716742.09 | M93: 3858302.65 | N93: 4296675.64 | O93: 4803922.81 | P93: 5304736.51 | Q93: 5236804.33 | R93: 5530645.66 | S93: 5588735.75 | T93: 5910662.01 | U93: 5959210.04 | V93: 7295903.6 | W93: 6279888.72 | X93: 6736762.73 | Y93: 7161623.54 | Z93: 7315409.42 | AA93: 7731863.1 | AB93: 8101745.67 | AC93: 8570677.82 | AD93: 9688776.69 | AE93: 10383466.93 | AF93: 13224468
A94: BethelPupil Transpo | B94: Bethel | C94: Pupil Transpo | D94: 3679502.29 | E94: 4089434.47 | F94: 4324711.98 | G94: 3852977.67 | H94: 4319194.88 | I94: 5150189.63 | J94: 5520331.22 | K94: 6858935.52 | L94: 7270830.6 | M94: 8152237.6 | N94: 8760382.12 | O94: 8864256.53 | P94: 9443344.36 | Q94: 9598934.54 | R94: 9674923.99 | S94: 9964095.82 | T94: 9923136.64 | U94: 10048027.45 | V94: 10158687.82 | W94: 10236056.52 | X94: 10836123.2 | Y94: 11675787.42 | Z94: 13565002.01 | AA94: 14195849.73 | AB94: 14938028.57 | AC94: 13956460.78 | AD94: 16295540.28 | AE94: 16823834.03 | AF94: 16360773
A95: BethelUtil/Plant/Ins/IS/Other | B95: Bethel | C95: Util/Plant/Ins/IS/Other | D95: 8403217.88 | E95: 9755285.71 | F95: 12163804.32 | G95: 9340850.11 | H95: 10844923.66 | I95: 11215727.85 | J95: 11048085.85 | K95: 14932908.77 | L95: 12815133.19 | M95: 12445362.25 | N95: 14698540.31 | O95: 14503345.62 | P95: 16095085.03 | Q95: 16553256.92 | R95: 17281011.11 | S95: 17558521.2 | T95: 17485987.7 | U95: 17460160.99 | V95: 18828641.32 | W95: 19553222.17 | X95: 21549691.03 | Y95: 24575278.11 | Z95: 27115118 | AA95: 26975419.48 | AB95: 31401746.72 | AC95: 30805544.87 | AD95: 33767753.61 | AE95: 40367310.66 | AF95: 43473784
A96: BethelUnit Admin | B96: Bethel | C96: Unit Admin | D96: 5343075.34 | E96: 5605338.06 | F96: 5799753.34 | G96: 5314145.34 | H96: 5689873.47 | I96: 6560963.19 | J96: 6817252.7 | K96: 6909096.47 | L96: 7417092.91 | M96: 7625306.24 | N96: 8131974.09 | O96: 8424435.37 | P96: 8975933.63 | Q96: 9168964.79 | R96: 8927745.65 | S96: 9725405 | T96: 9459599.02 | U96: 9645527.97 | V96: 10654032.46 | W96: 12194003.77 | X96: 14186531.42 | Y96: 14959628.72 | Z96: 16826984.86 | AA96: 17807100.43 | AB96: 20118427.17 | AC96: 20720059.95 | AD96: 22189727.51 | AE96: 22700120.18 | AF96: 23015596
A97: BethelCentral Admin | B97: Bethel | C97: Central Admin | D97: 5114152.65 | E97: 5951696 | F97: 5332068.09 | G97: 4328465.4 | H97: 4457338.25 | I97: 4542220.72 | J97: 5643519.72 | K97: 6058185.49 | L97: 6047643.3 | M97: 6505919.8 | N97: 7893532.85 | O97: 8786701.11 | P97: 9743948.01 | Q97: 9184211.61 | R97: 9072847.89 | S97: 9444362.31 | T97: 8438494.04 | U97: 8490232.64 | V97: 9447683.74 | W97: 9914172.98 | X97: 10984515.76 | Y97: 11695422.58 | Z97: 12855643.64 | AA97: 13852970.21 | AB97: 15321207.32 | AC97: 16015150.79 | AD97: 16971982.62 | AE97: 16955080.49 | AF97: 19822208
A98: BickletonTeaching | B98: Bickleton | C98: Teaching | D98: 652774.94 | E98: 651134.03 | F98: 723913.94 | G98: 708916.26 | H98: 751520.87 | I98: 839067.83 | J98: 874845.85 | K98: 890836.98 | L98: 837692.51 | M98: 976139.11 | N98: 1010351.52 | O98: 1079884.74 | P98: 1150151.5 | Q98: 1243779.9 | R98: 1141602.88 | S98: 1183017.68 | T98: 1114531.7 | U98: 1132790.09 | V98: 1138437.37 | W98: 1139600.04 | X98: 1193100.02 | Y98: 1296882.21 | Z98: 1394686.15 | AA98: 1605090.14 | AB98: 1618616.12 | AC98: 1816131.42 | AD98: 1775562.09 | AE98: 1884404.89 | AF98: 2083849
A99: BickletonTeaching Support | B99: Bickleton | C99: Teaching Support | D99: 56028.07 | E99: 56181.87 | F99: 40396.35 | G99: 45600.58 | H99: 48040.19 | I99: 24735.7 | J99: 31267.34 | K99: 9954.63 | L99: 31771.31 | M99: 1021.6 | N99: 2706.81 | O99: 1796.8 | P99: 2462.22 | Q99: 2342.74 | R99: 902.87 | S99: 1307.69 | T99: 252 | U99: 809.35 | V99: 14036.5 | W99: 27456.9 | X99: 27195.18 | Y99: 11741.22 | Z99: 22227.83 | AA99: 32196.46 | AB99: 38700.11 | AC99: 35631.48 | AD99: 22573.26 | AE99: 45429.99 | AF99: 31000
A100: BickletonPupil Transpo | B100: Bickleton | C100: Pupil Transpo | D100: 72578.89 | E100: 92621.69 | F100: 83912.21 | G100: 102624.32 | H100: 108107.63 | I100: 117304.68 | J100: 120449.02 | K100: 106913.37 | L100: 155059.57 | M100: 138278.19 | N100: 138996.79 | O100: 151653.72 | P100: 159954.97 | Q100: 161867.37 | R100: 184737.14 | S100: 195246.83 | T100: 163036.1 | U100: 181146.04 | V100: 230985.37 | W100: 191301.79 | X100: 141811.41 | Y100: 168659.74 | Z100: 183673.98 | AA100: 176261.51 | AB100: 208216.42 | AC100: 196952.29 | AD100: 197951.91 | AE100: 213489.38 | AF100: 223510
A101: BickletonUtil/Plant/Ins/IS/Other | B101: Bickleton | C101: Util/Plant/Ins/IS/Other | D101: 152836.22 | E101: 139037.76 | F101: 153169.41 | G101: 130578.11 | H101: 159344.85 | I101: 165286.56 | J101: 138231.25 | K101: 228148.6 | L101: 211234.91 | M101: 165951.16 | N101: 164574.17 | O101: 159579.14 | P101: 150434.54 | Q101: 175818.11 | R101: 129634.88 | S101: 153313.31 | T101: 206619.48 | U101: 211622.49 | V101: 222317.55 | W101: 261985.63 | X101: 205013.69 | Y101: 268451.51 | Z101: 249155.92 | AA101: 392356.4 | AB101: 486965.48 | AC101: 398306.48 | AD101: 378813.15 | AE101: 503699.79 | AF101: 394624
A102: BickletonUnit Admin | B102: Bickleton | C102: Unit Admin | D102: 27337.48 | E102: 24138.91 | F102: 25352.68 | G102: 23552.34 | H102: 23791.68 | I102: 30400 | J102: 13450.25 | K102: 25030.82 | L102: 27736.7 | M102: 36923.19 | N102: 39375.43 | O102: 40858.09 | P102: 43403.86 | Q102: 47560.59 | R102: 46667.49 | S102: 49165.65 | T102: 51232.57 | U102: 43022.92 | X102: 55270.6 | Y102: 76501.76 | Z102: 48777.35 | AA102: 82419.63 | AB102: 99403.56 | AC102: 106802.47 | AD102: 92845.36 | AE102: 91190.93 | AF102: 90989
A103: BickletonCentral Admin | B103: Bickleton | C103: Central Admin | D103: 115065.02 | E103: 95955.25 | F103: 117604.57 | G103: 113990.47 | H103: 154124.16 | I103: 187413.95 | J103: 147673.51 | K103: 126568.19 | L103: 116840.88 | M103: 113595.76 | N103: 126867.72 | O103: 138405.46 | P103: 129333.96 | Q103: 147084.85 | R103: 135864.52 | S103: 154465.23 | T103: 152929.22 | U103: 162334.69 | V103: 181547.21 | W103: 206309.82 | X103: 149602.23 | Y103: 320715.98 | Z103: 255372.12 | AA103: 180088.06 | AB103: 185501.37 | AC103: 192037.21 | AD103: 168683.26 | AE103: 163591.13 | AF103: 176028
A104: BlaineTeaching | B104: Blaine | C104: Teaching | D104: 6029990.81 | E104: 6282790.74 | F104: 6462616.65 | G104: 6925111.54 | H104: 7198504.6 | I104: 8263527.87 | J104: 8709716.93 | K104: 8898740.92 | L104: 8708926.73 | M104: 9592652.76 | N104: 10460806.88 | O104: 11566576.4 | P104: 11726946.37 | Q104: 12417756.37 | R104: 12432369.93 | S104: 12239502.37 | T104: 12187133.99 | U104: 12474031.57 | V104: 12886561.88 | W104: 13268778.51 | X104: 14668048.88 | Y104: 16008975.82 | Z104: 17400767.36 | AA104: 18955704.1 | AB104: 19787722.51 | AC104: 19941444.09 | AD104: 21945129.7 | AE104: 23322091.71 | AF104: 23627056
A105: BlaineTeaching Support | B105: Blaine | C105: Teaching Support | D105: 687535.81 | E105: 686066.9 | F105: 783253.27 | G105: 936924.82 | H105: 936200.1 | I105: 970050.26 | J105: 986367.68 | K105: 972830.84 | L105: 1036357.84 | M105: 986066.74 | N105: 1084192.1 | O105: 1320049.7 | P105: 1515094 | Q105: 1702192.9 | R105: 1769119.93 | S105: 1796404.9 | T105: 1977304.62 | U105: 2148447.67 | V105: 2315829.06 | W105: 2711260.65 | X105: 3430414.46 | Y105: 3413415.83 | Z105: 3771816.11 | AA105: 4752981.77 | AB105: 5124604.6 | AC105: 3922498.1 | AD105: 4614955.58 | AE105: 5810649.18 | AF105: 4503156
A106: BlaineFood Services | B106: Blaine | C106: Food Services | D106: 333581.26 | E106: 343047.01 | F106: 346929.94 | G106: 419350.63 | H106: 507061.84 | I106: 569355.85 | J106: 555023.91 | K106: 520438.94 | L106: 550745.86 | M106: 621361.79 | N106: 650037.51 | O106: 681357.6 | P106: 796567.88 | Q106: 822330.4 | R106: 751824.51 | S106: 693472.69 | T106: 743789.93 | U106: 745024.74 | V106: 774536.13 | W106: 711377.02 | X106: 805956.19 | Y106: 867311.35 | Z106: 1031269.51 | AA106: 1057590.57 | AB106: 1180905.94 | AC106: 569897.1 | AD106: 1115987.8 | AE106: 1306704.39 | AF106: 1445789
A107: BlainePupil Transpo | B107: Blaine | C107: Pupil Transpo | D107: 404809.86 | E107: 399512.72 | F107: 424342.71 | G107: 382504.15 | H107: 435548.85 | I107: 470189.51 | J107: 517947.96 | K107: 476649.18 | L107: 562421.91 | M107: 640021.14 | N107: 681402.94 | O107: 744142.52 | P107: 880949.04 | Q107: 923948.28 | R107: 868438.78 | S107: 942716.25 | T107: 968307.73 | U107: 1003168.86 | V107: 970488.09 | W107: 930025.77 | X107: 1039854.81 | Y107: 1081065.04 | Z107: 1156030.8 | AA107: 1341568.5 | AB107: 1486662.35 | AC107: 982126.91 | AD107: 1430207.74 | AE107: 1508725.29 | AF107: 1577018
A108: BlaineUtil/Plant/Ins/IS/Other | B108: Blaine | C108: Util/Plant/Ins/IS/Other | D108: 1324248.79 | E108: 1268944.48 | F108: 1465291.83 | G108: 1287770.23 | H108: 1502683.71 | I108: 1594991.98 | J108: 1772981.09 | K108: 1688636.66 | L108: 2040685.27 | M108: 2241277.24 | N108: 2330118.66 | O108: 2706241.33 | P108: 2624623.67 | Q108: 2670204.39 | R108: 2476283.97 | S108: 2365429.62 | T108: 2531041.09 | U108: 2390838.81 | V108: 2641244.3 | W108: 2636787.9 | X108: 2633074.18 | Y108: 3076499.15 | Z108: 3278275.29 | AA108: 3486948.03 | AB108: 3589102.04 | AC108: 3426617.49 | AD108: 3833981.19 | AE108: 4669877.39 | AF108: 5955930
A109: BlaineUnit Admin | B109: Blaine | C109: Unit Admin | D109: 714343.06 | E109: 841415.09 | F109: 822888.03 | G109: 758484.17 | H109: 805034.17 | I109: 899584.13 | J109: 957577.38 | K109: 898536.8 | L109: 918941.77 | M109: 987661.45 | N109: 857201 | O109: 1169681.48 | P109: 1167882.99 | Q109: 1197928.75 | R109: 1187123.69 | S109: 1197232.74 | T109: 1234524.88 | U109: 1272371.51 | V109: 1343921.48 | W109: 1403364.26 | X109: 1504561.61 | Y109: 1558439.91 | Z109: 1690047.3 | AA109: 1736472.65 | AB109: 1895936.73 | AC109: 1924574.84 | AD109: 2048172.56 | AE109: 2299160.2 | AF109: 2044692
A110: BlaineCentral Admin | B110: Blaine | C110: Central Admin | D110: 505538.27 | E110: 564624.53 | F110: 634278.71 | G110: 637531.97 | H110: 613354.45 | I110: 700630.64 | J110: 720896.2 | K110: 824304.97 | L110: 725180.98 | M110: 771045.23 | N110: 1035145.37 | O110: 1146772.55 | P110: 1372845.55 | Q110: 1254469.84 | R110: 1265822.33 | S110: 1271700.13 | T110: 1146485.73 | U110: 1269331.34 | V110: 1386447.21 | W110: 1497651.52 | X110: 1580971.58 | Y110: 1601121.43 | Z110: 1820772.94 | AA110: 2058471.9 | AB110: 2310174.54 | AC110: 2295471.96 | AD110: 2674281.84 | AE110: 3019781.65 | AF110: 2635949
A111: BoistfortTeaching | B111: Boistfort | C111: Teaching | D111: 643530.15 | E111: 601409.84 | F111: 663744.21 | G111: 666429.39 | H111: 664190.67 | I111: 653154.12 | J111: 582846.15 | K111: 542601.79 | L111: 603287.02 | M111: 580245.43 | N111: 620362.87 | O111: 618802.37 | P111: 571829.95 | Q111: 639429.06 | R111: 688171.33 | S111: 694433.83 | T111: 726417.67 | U111: 701783.27 | V111: 855014.92 | W111: 829123.54 | X111: 716530.69 | Y111: 880149.51 | Z111: 803365.57 | AA111: 904959.44 | AB111: 913701.55 | AC111: 1134473.88 | AD111: 1032091.03 | AE111: 1002054.82 | AF111: 2326539
A112: BoistfortTeaching Support | B112: Boistfort | C112: Teaching Support | D112: 36741.59 | E112: 22940.11 | F112: 29877.14 | G112: 26505.06 | H112: 26292.25 | I112: 23495.81 | J112: 19143.65 | K112: 8551.79 | L112: 3915.88 | M112: 6761.24 | N112: 16415.92 | O112: 16511.6 | P112: 19763.04 | Q112: 20032.19 | R112: 22768.75 | S112: 25088.12 | T112: 28787.82 | U112: 34833.38 | V112: 34846.33 | W112: 37063.02 | X112: 51368.24 | Y112: 55493.29 | Z112: 43217.42 | AA112: 51829.16 | AB112: 42838.94 | AC112: 37629.88 | AD112: 37897.28 | AE112: 42833.87 | AF112: 61477
A113: BoistfortFood Services | B113: Boistfort | C113: Food Services | D113: 40988.56 | E113: 40648.3 | F113: 46336.62 | G113: 42264.17 | H113: 42876.3 | I113: 45145.95 | J113: 46510.16 | K113: 52304.77 | L113: 54914.18 | M113: 54486 | N113: 58703.64 | O113: 50918.18 | P113: 54733.2 | Q113: 57904.56 | R113: 52417.27 | S113: 48019.96 | T113: 53444.46 | U113: 57070.18 | V113: 54138.52 | W113: 73247.83 | X113: 79572.55 | Y113: 96617.41 | Z113: 90321.25 | AA113: 104406.78 | AB113: 113977.32 | AC113: 86958.57 | AD113: 83927.11 | AE113: 86920.91 | AF113: 84259
A114: BoistfortPupil Transpo | B114: Boistfort | C114: Pupil Transpo | D114: 129812.45 | E114: 127266.97 | F114: 107955.64 | G114: 112671.29 | H114: 110419.32 | I114: 106502.35 | J114: 108542.3 | K114: 116408.95 | L114: 117193.16 | M114: 122362.46 | N114: 142873.59 | O114: 140883.73 | P114: 142532.58 | Q114: 144899.35 | R114: 158235.32 | S114: 153525.88 | T114: 143366.59 | U114: 156709.99 | V114: 149558.47 | W114: 142824.3 | X114: 143939.44 | Y114: 133771.28 | Z114: 139040.76 | AA114: 129143.03 | AB114: 144408.5 | AC114: 142776.46 | AD114: 162150.56 | AE114: 213334.9 | AF114: 229193
A115: BoistfortUtil/Plant/Ins/IS/Other | B115: Boistfort | C115: Util/Plant/Ins/IS/Other | D115: 84451.59 | E115: 92413.12 | F115: 89438.15 | G115: 96173.75 | H115: 76246.18 | I115: 68868.55 | J115: 90228.23 | K115: 85135.56 | L115: 106621.27 | M115: 92258.88 | N115: 110122.85 | O115: 120903.15 | P115: 165308.21 | Q115: 131164.1 | R115: 204137.58 | S115: 135582.83 | T115: 151362.09 | U115: 128684.07 | V115: 152889.77 | W115: 120320.64 | X115: 103475.34 | Y115: 135817.74 | Z115: 155651.47 | AA115: 156436.94 | AB115: 178622.64 | AC115: 194208.78 | AD115: 193995.3 | AE115: 258144.79 | AF115: 238302
A116: BoistfortUnit Admin | B116: Boistfort | C116: Unit Admin | D116: 6772.57 | E116: 7993.39 | F116: 2153.12 | G116: 13852.36 | H116: 14305.27 | I116: 8971.26 | X116: 36722.21 | Y116: 67260.28 | Z116: 101592.61 | AA116: 113113.24 | AB116: 102880.37 | AC116: 104312.56 | AD116: 117958.59 | AE116: 162641.98 | AF116: 116553
A117: BoistfortCentral Admin | B117: Boistfort | C117: Central Admin | D117: 82218.11 | E117: 93047.23 | F117: 79832.84 | G117: 68959.56 | H117: 60930.64 | I117: 77834.6 | J117: 89006.45 | K117: 101779.08 | L117: 107913.86 | M117: 112816.24 | N117: 120005.94 | O117: 127651.11 | P117: 139898.84 | Q117: 140863.2 | R117: 139157.67 | S117: 150221.5 | T117: 145083.41 | U117: 158790.94 | V117: 167475.35 | W117: 152339.46 | X117: 177339.05 | Y117: 183676.68 | Z117: 191459.91 | AA117: 151211.33 | AB117: 198872.33 | AC117: 210308.95 | AD117: 198060.87 | AE117: 168822.86 | AF117: 229325
A118: BremertonTeaching | B118: Bremerton | C118: Teaching | D118: 20906193.53 | E118: 22692364.86 | F118: 23571854.13 | G118: 23978296.64 | H118: 24763820.03 | I118: 25812356.26 | J118: 26241517.67 | K118: 27796633.44 | L118: 26961683.16 | M118: 27396626.69 | N118: 27515885.34 | O118: 29547155.97 | P118: 30915239.46 | Q118: 33259665.09 | R118: 31980324.5 | S118: 32593430.52 | T118: 29598391.46 | U118: 29993471.77 | V118: 31245593.7 | W118: 32847792.56 | X118: 35201389.13 | Y118: 37434564.02 | Z118: 40134409.17 | AA118: 47136994.22 | AB118: 49070803.21 | AC118: 47884025.83 | AD118: 52288100.76 | AE118: 53501214.09 | AF118: 53861593
A119: BremertonTeaching Support | B119: Bremerton | C119: Teaching Support | D119: 2422499.48 | E119: 2420868.71 | F119: 2487319.99 | G119: 2473916.01 | H119: 2673238.78 | I119: 2753345.69 | J119: 2899644.9 | K119: 3056978.11 | L119: 3258530.71 | M119: 3351671.68 | N119: 3430112.9 | O119: 4044038.56 | P119: 4271308.2 | Q119: 4432103.68 | R119: 3949299.13 | S119: 3722639.4 | T119: 5174942.32 | U119: 5557583.57 | V119: 5674000.79 | W119: 6914278.23 | X119: 7722217.43 | Y119: 7282063.46 | Z119: 7718491.86 | AA119: 10408945.14 | AB119: 10036376.98 | AC119: 10998199.34 | AD119: 11179528.97 | AE119: 11470965.86 | AF119: 12674436
A120: BremertonFood Services | B120: Bremerton | C120: Food Services | D120: 1288548.34 | E120: 1357497.69 | F120: 1384179.4 | G120: 1428507.41 | H120: 1585748.68 | I120: 1575608.51 | J120: 1568906.11 | K120: 1637017.81 | L120: 1617802.14 | M120: 1598384.58 | N120: 1606587.6 | O120: 1784022.79 | P120: 1846673.1 | Q120: 1925821.03 | R120: 2012654.55 | S120: 2067597.52 | T120: 2083415.61 | U120: 2065778.14 | V120: 2078827.71 | W120: 2127970.96 | X120: 2163361.62 | Y120: 2186061.65 | Z120: 2151652.28 | AA120: 2125259.68 | AB120: 2415543.26 | AC120: 2318178.46 | AD120: 2840890.94 | AE120: 2934964.88 | AF120: 2748916
A121: BremertonPupil Transpo | B121: Bremerton | C121: Pupil Transpo | D121: 966600.8 | E121: 1015535.08 | F121: 1058288.36 | G121: 981040.25 | H121: 1023598.79 | I121: 1139392.27 | J121: 1159369.15 | K121: 1259640.83 | L121: 1301108.12 | M121: 1240407.61 | N121: 1392226.94 | O121: 1444832.47 | P121: 1522409.28 | Q121: 1502950.86 | R121: 1482798.69 | S121: 1572657.11 | T121: 1591210.93 | U121: 1369574.18 | V121: 1457773.17 | W121: 1367964.8 | X121: 1470490.12 | Y121: 1566035.25 | Z121: 1696949.36 | AA121: 1903750.07 | AB121: 1922894.58 | AC121: 1510972.16 | AD121: 2092618.51 | AE121: 2446604.98 | AF121: 2327726
A122: BremertonUtil/Plant/Ins/IS/Other | B122: Bremerton | C122: Util/Plant/Ins/IS/Other | D122: 4396087.88 | E122: 5083686.95 | F122: 5141709.3 | G122: 5329273.11 | H122: 5671330.28 | I122: 5896076.37 | J122: 6045886.24 | K122: 5631953.42 | L122: 5583158.13 | M122: 5600443.22 | N122: 6003213.1 | O122: 6421039.08 | P122: 5808447.94 | Q122: 5914537.63 | R122: 6476023.68 | S122: 6753413.13 | T122: 6625628.38 | U122: 6746046.64 | V122: 6911989.45 | W122: 7482687.76 | X122: 8183625.5 | Y122: 8523766.53 | Z122: 8931304.6 | AA122: 9324605.41 | AB122: 8631431.54 | AC122: 9105845.32 | AD122: 9909451.92 | AE122: 9955369.31 | AF122: 10089124
A123: BremertonUnit Admin | B123: Bremerton | C123: Unit Admin | D123: 2241923.54 | E123: 2412350.69 | F123: 2724509.09 | G123: 2777869.11 | H123: 2732594.24 | I123: 2732243.3 | J123: 3055270.77 | K123: 3197645.06 | L123: 3235373.55 | M123: 2975173.87 | N123: 2943899.62 | O123: 3177279.07 | P123: 3231158.57 | Q123: 3178683.45 | R123: 3095182.03 | S123: 3279816.17 | T123: 3200560.57 | U123: 3311626.33 | V123: 3507918.99 | W123: 3551876.17 | X123: 3897177.48 | Y123: 3787089.29 | Z123: 4131166.23 | AA123: 4470429.37 | AB123: 4887939.62 | AC123: 5203569.96 | AD123: 5428228.57 | AE123: 5417766.44 | AF123: 5678795
A124: BremertonCentral Admin | B124: Bremerton | C124: Central Admin | D124: 2708724.72 | E124: 2108010 | F124: 2034879.05 | G124: 2078092.98 | H124: 2122452.19 | I124: 2369109.77 | J124: 2785229.72 | K124: 2571050.47 | L124: 2651261.49 | M124: 2585118.34 | N124: 2670851.86 | O124: 2704667.13 | P124: 2856928.92 | Q124: 3007721.13 | R124: 2984929.16 | S124: 2878464.76 | T124: 2714908.58 | U124: 2813649.34 | V124: 3129388.26 | W124: 3086855.44 | X124: 3562394 | Y124: 3672855.83 | Z124: 4067509.5 | AA124: 4427261.84 | AB124: 4675776.18 | AC124: 4597733.41 | AD124: 5537875.36 | AE124: 6980780.8 | AF124: 6889413
A125: BrewsterTeaching | B125: Brewster | C125: Teaching | D125: 3468156.09 | E125: 3603436.22 | F125: 3788404.24 | G125: 4014679.51 | H125: 4295625.08 | I125: 4606408.51 | J125: 4722990.02 | K125: 4278664.16 | L125: 4976600.53 | M125: 5178955.45 | N125: 5062814.79 | O125: 5400350.98 | P125: 5698689.53 | Q125: 5865861.89 | R125: 6028021.5 | S125: 6496191.76 | T125: 5976653.06 | U125: 5988090.49 | V125: 6183075.33 | W125: 6457833.72 | X125: 6870195.49 | Y125: 7126678.16 | Z125: 7324048.8 | AA125: 8499713.54 | AB125: 8212822.7 | AC125: 8031892.21 | AD125: 9251097.01 | AE125: 9663273.95 | AF125: 11241113
A126: BrewsterTeaching Support | B126: Brewster | C126: Teaching Support | D126: 348923.44 | E126: 353073.58 | F126: 343547.17 | G126: 375367.92 | H126: 450192.47 | I126: 409139.95 | J126: 414026.39 | K126: 440559.1 | L126: 505449.52 | M126: 535861.67 | N126: 418076.22 | O126: 492108.06 | P126: 555616.4 | Q126: 633271.52 | R126: 565048.79 | S126: 606253.47 | T126: 916433.65 | U126: 737270.24 | V126: 943400.62 | W126: 1286506.56 | X126: 1241783.57 | Y126: 1230350.98 | Z126: 1126536.72 | AA126: 1351976.71 | AB126: 1478290.99 | AC126: 1514379.64 | AD126: 1789245.31 | AE126: 2116075.56 | AF126: 2449906
A127: BrewsterFood Services | B127: Brewster | C127: Food Services | D127: 182054.93 | E127: 191915.24 | F127: 213492.53 | G127: 218822.65 | H127: 232539.97 | I127: 239891.18 | J127: 256038.08 | K127: 258049.93 | L127: 292302.27 | M127: 310787.28 | N127: 291151.08 | O127: 306597.11 | P127: 292265.55 | Q127: 368135.37 | R127: 408566.66 | S127: 424579.29 | T127: 418788.42 | U127: 447597.93 | V127: 444214.62 | W127: 464178.6 | X127: 504295.77 | Y127: 484212.12 | Z127: 494172.61 | AA127: 521063.33 | AB127: 429242.66 | AC127: 505177.54 | AD127: 585561.15 | AE127: 585675.12 | AF127: 753773
A128: BrewsterPupil Transpo | B128: Brewster | C128: Pupil Transpo | D128: 146042.45 | E128: 142346.11 | F128: 148594.48 | G128: 158105.86 | H128: 171001.41 | I128: 206290.18 | J128: 188387.43 | K128: 164970.94 | L128: 144771.87 | M128: 177990.13 | N128: 245043.1 | O128: 244928.9 | P128: 237860.71 | Q128: 203179.28 | R128: 224885.84 | S128: 170946.31 | T128: 156692.2 | U128: 193208.35 | V128: 164017.78 | W128: 175466.62 | X128: 174002.29 | Y128: 161430.01 | Z128: 172938.56 | AA128: 195521.19 | AB128: 226497.8 | AC128: 199028.83 | AD128: 232695.21 | AE128: 252480.55 | AF128: 387841
A129: BrewsterUtil/Plant/Ins/IS/Other | B129: Brewster | C129: Util/Plant/Ins/IS/Other | D129: 557090.12 | E129: 539346.9 | F129: 510573.08 | G129: 598520.11 | H129: 690369.35 | I129: 732650.73 | J129: 829153.65 | K129: 726654.11 | L129: 967973.32 | M129: 975045.26 | N129: 910722.38 | O129: 1049380.62 | P129: 1094831.27 | Q129: 983081.82 | R129: 1084068.75 | S129: 1204350.11 | T129: 1164667.36 | U129: 1155091.56 | V129: 1103390.19 | W129: 1377639.58 | X129: 1354995.68 | Y129: 1331811.67 | Z129: 1370184 | AA129: 1369773.46 | AB129: 1595370.36 | AC129: 1497847.59 | AD129: 3217909.34 | AE129: 2081539.3 | AF129: 2289404
A130: BrewsterUnit Admin | B130: Brewster | C130: Unit Admin | D130: 206957.12 | E130: 202469.8 | F130: 245567.37 | G130: 270031.9 | H130: 280481.46 | I130: 239091.96 | J130: 253532.54 | K130: 242220.81 | L130: 315669.41 | M130: 335916.96 | N130: 343250.59 | O130: 408838.96 | P130: 368149.67 | Q130: 390787.57 | R130: 499766.86 | S130: 482967.86 | T130: 472254.05 | U130: 511122.78 | V130: 508191.17 | W130: 505938.92 | X130: 558528.73 | Y130: 624774.2 | Z130: 664123.3 | AA130: 717923.45 | AB130: 715079.56 | AC130: 628788.58 | AD130: 603864.04 | AE130: 715960.92 | AF130: 837833
A131: BrewsterCentral Admin | B131: Brewster | C131: Central Admin | D131: 451880.77 | E131: 410447.26 | F131: 406786.37 | G131: 442141.12 | H131: 474717.01 | I131: 486007.22 | J131: 528701.25 | K131: 458076.92 | L131: 486000.44 | M131: 600507.37 | N131: 692933.91 | O131: 838094.02 | P131: 908260.45 | Q131: 694674.02 | R131: 655229.4 | S131: 674145.36 | T131: 704705.4 | U131: 670604.7 | V131: 716684.97 | W131: 849920.08 | X131: 885462.56 | Y131: 817846.51 | Z131: 908804.15 | AA131: 1017945.47 | AB131: 955563.76 | AC131: 1161536.14 | AD131: 1150114.6 | AE131: 1095724.18 | AF131: 1821237
A132: BridgeportTeaching | B132: Bridgeport | C132: Teaching | D132: 2581852.36 | E132: 2896079.11 | F132: 2954444.98 | G132: 2681019.88 | H132: 2851889.47 | I132: 3618973.83 | J132: 3696392.56 | K132: 3680444.96 | L132: 3725691.83 | M132: 3793248.94 | N132: 4269574.95 | O132: 4247168.34 | P132: 4743392.68 | Q132: 4791584.94 | R132: 4798560.76 | S132: 4833239.85 | T132: 4621223.37 | U132: 4637607.34 | V132: 4866768.99 | W132: 4961116.24 | X132: 5564722.29 | Y132: 5790478.33 | Z132: 6011917.9 | AA132: 7199816.76 | AB132: 6877148.5 | AC132: 6563206.7 | AD132: 7087333.05 | AE132: 7685583.95 | AF132: 8698084
A133: BridgeportTeaching Support | B133: Bridgeport | C133: Teaching Support | D133: 164260.49 | E133: 232749.1 | F133: 154999.43 | G133: 118447.44 | H133: 114281.37 | I133: 162375.73 | J133: 145722.41 | K133: 135300.15 | L133: 132670.16 | M133: 125362.4 | N133: 140055.11 | O133: 195684.36 | P133: 175930.9 | Q133: 139081.5 | R133: 147433.52 | S133: 138436.9 | T133: 392962.22 | U133: 282225.71 | V133: 258510.19 | W133: 349128.68 | X133: 415990.21 | Y133: 604880.07 | Z133: 830226.54 | AA133: 655900.22 | AB133: 852628.67 | AC133: 1187090 | AD133: 1059865.79 | AE133: 1231500.21 | AF133: 1132926
A134: BridgeportFood Services | B134: Bridgeport | C134: Food Services | D134: 296920.41 | E134: 313158.16 | F134: 289582.1 | G134: 238851.96 | H134: 247537.04 | I134: 247299.13 | J134: 253565.23 | K134: 223245.83 | L134: 249384.12 | M134: 278659.34 | N134: 278914.98 | O134: 355113.38 | P134: 400370.56 | Q134: 424760.62 | R134: 410369.38 | S134: 438219.95 | T134: 459345.51 | U134: 495310.76 | V134: 523762.49 | W134: 507901.6 | X134: 604283.05 | Y134: 589776.89 | Z134: 678593.86 | AA134: 739661.69 | AB134: 529698.86 | AC134: 643666.8 | AD134: 757352.14 | AE134: 763970.7 | AF134: 537310
A135: BridgeportPupil Transpo | B135: Bridgeport | C135: Pupil Transpo | D135: 112343.86 | E135: 128014.02 | F135: 111511.34 | G135: 123957.69 | H135: 150098.18 | I135: 105371.36 | J135: 124318.38 | K135: 128962.87 | L135: 118699.27 | M135: 109571.29 | N135: 138520.28 | O135: 136002.41 | P135: 135658.63 | Q135: 126232.99 | R135: 160150.01 | S135: 179262.29 | T135: 184586.37 | U135: 167367.84 | V135: 190527.56 | W135: 154903.54 | X135: 196144.23 | Y135: 170788.57 | Z135: 172516.56 | AA135: 184951.68 | AB135: 200334.88 | AC135: 172404.49 | AD135: 216960.41 | AE135: 276284.87 | AF135: 191982
A136: =TRIM(B136)&TRIM(C136) -> BridgeportUtil/Plant/Ins/IS/Other | B136: Bridgeport | C136: Util/Plant/Ins/IS/Other | D136: 376918.16 | E136: 425597.57 | F136: 365138.77 | G136: 386362.09 | H136: 513730.95 | I136: 547454.39 | J136: 583181.74 | K136: 630035.95 | L136: 677148.74 | M136: 800478.02 | N136: 704187.1 | O136: 712425.3 | P136: 749852.37 | Q136: 873789.98 | R136: 775103.55 | S136: 952437.24 | T136: 924246.61 | U136: 975759.67 | V136: 1163817.95 | W136: 1117818.67 | X136: 1282855.14 | Y136: 1413621.25 | Z136: 1445004.2 | AA136: 1336521.09 | AB136: 1445034.56 | AC136: 1417574.82 | AD136: 1328089.2 | AE136: 1678058.38 | AF136: 1004599
A137: BridgeportUnit Admin | B137: Bridgeport | C137: Unit Admin | D137: 250003.3 | E137: 258273.19 | F137: 257255.65 | G137: 232466.3 | H137: 281837.15 | I137: 261006.39 | J137: 249526.49 | K137: 303755.88 | L137: 319766.78 | M137: 386821.38 | N137: 377044.46 | O137: 397809.6 | P137: 441492.08 | Q137: 512730.46 | R137: 483959.94 | S137: 478919.68 | T137: 529326.8 | U137: 516904.81 | V137: 551614.23 | W137: 553452.91 | X137: 663084.52 | Y137: 698961.59 | Z137: 739014.21 | AA137: 769970.8 | AB137: 754007.24 | AC137: 772431.12 | AD137: 786001.86 | AE137: 853924.7 | AF137: 889427
A138: BridgeportCentral Admin | B138: Bridgeport | C138: Central Admin | D138: 194933.2 | E138: 205064.04 | F138: 283111.06 | G138: 290859.39 | H138: 321007.56 | I138: 369234.47 | J138: 392664.8 | K138: 444654.93 | L138: 488230.23 | M138: 467752.47 | N138: 499544.25 | O138: 533882.22 | P138: 594293.57 | Q138: 826130.91 | R138: 665652.17 | S138: 701011.59 | T138: 758476.26 | U138: 706502.79 | V138: 734153.86 | W138: 691951.39 | X138: 795397.51 | Y138: 817050.8 | Z138: 925101.05 | AA138: 1011691.6 | AB138: 1001739.61 | AC138: 942346.38 | AD138: 1005757.51 | AE138: 1280539.77 | AF138: 1300629
A139: BrinnonTeaching | B139: Brinnon | C139: Teaching | D139: 502014.99 | E139: 473888.98 | F139: 398961.43 | G139: 318390.79 | H139: 386655.4 | I139: 364763.41 | J139: 356914.41 | K139: 435455.79 | L139: 408819.81 | M139: 400438.97 | N139: 392779.25 | O139: 414470.08 | P139: 428913.28 | Q139: 486259.44 | R139: 428106.26 | S139: 436486.49 | T139: 384233.63 | U139: 393696.55 | V139: 403555.52 | W139: 460174.48 | X139: 433038.66 | Y139: 419124.79 | Z139: 470449.53 | AA139: 596036.52 | AB139: 632426.54 | AC139: 711373.9 | AD139: 708136.04 | AE139: 779351.6 | AF139: 1110351
A140: BrinnonTeaching Support | B140: Brinnon | C140: Teaching Support | D140: 35998.54 | E140: 29826.43 | F140: 45850.67 | G140: 35813.11 | H140: 44011.3 | I140: 56565.85 | J140: 47003.65 | K140: 43097.48 | L140: 37384.61 | M140: 50796.86 | N140: 71029.62 | O140: 53954.8 | P140: 63056.48 | Q140: 70775.54 | R140: 54016.61 | S140: 68164.85 | T140: 61294.93 | U140: 48960.81 | V140: 45868.46 | W140: 58120.88 | X140: 61650.17 | Y140: 88443.38 | Z140: 81090.14 | AA140: 104723.52 | AB140: 97409.62 | AC140: 133808.51 | AD140: 184508.51 | AE140: 259843.78 | AF140: 227357
A141: BrinnonFood Services | B141: Brinnon | C141: Food Services | D141: 45883.42 | E141: 86999.43 | F141: 50313.27 | G141: 50904.17 | H141: 39114.26 | I141: 40596.65 | J141: 46407.82 | K141: 43182.1 | L141: 38998.74 | M141: 39855.62 | N141: 39935.04 | O141: 39846.99 | P141: 44773.33 | Q141: 39780.56 | R141: 46313.09 | S141: 44705.16 | T141: 55365.5 | U141: 45304.75 | V141: 41049.76 | W141: 44733.62 | X141: 78170.33 | Y141: 60147.9 | Z141: 72965.63 | AA141: 84505.9 | AB141: 95950.88 | AC141: 82545.78 | AD141: 103424.9 | AE141: 105505.8 | AF141: 105039
A142: BrinnonPupil Transpo | B142: Brinnon | C142: Pupil Transpo | D142: 73506.43 | E142: 67863.9 | F142: 58913.56 | G142: 62704.86 | H142: 68850.82 | I142: 64638.37 | J142: 65818.16 | K142: 65764.83 | L142: 70949.44 | M142: 74343.33 | N142: 70769.1 | O142: 64398.53 | P142: 70704.65 | Q142: 76630.67 | R142: 68926.1 | S142: 76770.6 | T142: 77828.74 | U142: 74299.81 | V142: 76628.91 | W142: 75198.9 | X142: 70931.71 | Y142: 77448.34 | Z142: 84741.41 | AA142: 85392.78 | AB142: 89043.78 | AC142: 86625.23 | AD142: 85313.64 | AE142: 107995.2 | AF142: 118664
A143: BrinnonUtil/Plant/Ins/IS/Other | B143: Brinnon | C143: Util/Plant/Ins/IS/Other | D143: 66943.76 | E143: 47818.21 | F143: 48861.16 | G143: 51158.05 | H143: 62767.24 | I143: 58824.66 | J143: 144818.29 | K143: 155743.78 | L143: 71165.25 | M143: 73101.84 | N143: 66454.57 | O143: 76026.69 | P143: 83572.02 | Q143: 90633.54 | R143: 93649.75 | S143: 110977.63 | T143: 100242.74 | U143: 145259.74 | V143: 131103.81 | W143: 134581.81 | X143: 128233.32 | Y143: 144768.23 | Z143: 204380.01 | AA143: 277001.73 | AB143: 178753.75 | AC143: 192212.88 | AD143: 199113.26 | AE143: 221828.04 | AF143: 203302
A144: BrinnonUnit Admin | B144: Brinnon | C144: Unit Admin | D144: 50208.82 | E144: 63274.41 | F144: 51466.08 | G144: 31024.7 | H144: 11898.82 | I144: 83524.44 | J144: 51738.41 | K144: 41703.44 | L144: 47128.16 | M144: 48677.19 | N144: 67015.74 | O144: 32117.76 | P144: 34215.85 | Q144: 40750.72 | R144: 44287.77 | S144: 35525.25 | T144: 37980.98 | U144: 41332.15 | V144: 33730.54 | W144: 43101.22 | X144: 34252.72 | Y144: 30591.56 | Z144: 31214.41 | AA144: 35803.59 | AB144: 39529.22 | AC144: 41493.15 | AD144: 51977.75 | AE144: 52338.58 | AF144: 54058
A145: BrinnonCentral Admin | B145: Brinnon | C145: Central Admin | D145: 119115.78 | E145: 89350.04 | F145: 100877.91 | G145: 149983.8 | H145: 132671.46 | I145: 56492.21 | J145: 85534.27 | K145: 88482.57 | L145: 73427.23 | M145: 61957.21 | N145: 91995.92 | O145: 93744.74 | P145: 114545.44 | Q145: 122778.39 | R145: 126317.59 | S145: 123701.71 | T145: 129386.89 | U145: 121616.25 | V145: 135397.69 | W145: 142090.3 | X145: 176883.98 | Y145: 195157.67 | Z145: 224134.72 | AA145: 233773.85 | AB145: 258631.86 | AC145: 260290.65 | AD145: 276606.24 | AE145: 308492.17 | AF145: 317592
A146: Burlington-EdisonTeaching | B146: Burlington-Edison | C146: Teaching | D146: 11064778.13 | E146: 11704361.45 | F146: 12783254.94 | G146: 13566887.61 | H146: 13674662.61 | I146: 14552387.67 | J146: 15093359.71 | K146: 14876163.72 | L146: 14812838.26 | M146: 16374064.38 | N146: 17951146.12 | O146: 18915010.06 | P146: 20722048.11 | Q146: 21700253.65 | R146: 21334798.31 | S146: 22430897.03 | T146: 22324299.56 | U146: 21816952.62 | V146: 22988479.04 | W146: 24474792.79 | X146: 26528522.38 | Y146: 27017406.67 | Z146: 29083018.76 | AA146: 31819265.96 | AB146: 33621642.57 | AC146: 34742214.21 | AD146: 37074736.11 | AE146: 40499149.07 | AF146: 41204550
A147: Burlington-EdisonTeaching Support | B147: Burlington-Edison | C147: Teaching Support | D147: 1382304.64 | E147: 1475945.56 | F147: 1778507.9 | G147: 1668743.63 | H147: 1753545.41 | I147: 1956625.57 | J147: 2000626.1 | K147: 1945883.45 | L147: 1880859.48 | M147: 2019572.13 | N147: 2184558.57 | O147: 2406567.38 | P147: 2699333.44 | Q147: 2762453.55 | R147: 2694358.7 | S147: 2904618.29 | T147: 3647611.45 | U147: 3556101.22 | V147: 3757958.22 | W147: 4133383.79 | X147: 4937786.77 | Y147: 5668821.01 | Z147: 6617208.79 | AA147: 7282392.63 | AB147: 7801819.05 | AC147: 8241596.93 | AD147: 9133706.43 | AE147: 10103919.33 | AF147: 8506199
A148: Burlington-EdisonFood Services | B148: Burlington-Edison | C148: Food Services | D148: 591067.54 | E148: 622436.32 | F148: 640987.83 | G148: 681172.72 | H148: 725743.94 | I148: 785437.34 | J148: 894023.43 | K148: 810648.27 | L148: 854083.75 | M148: 939079.71 | N148: 1015773.09 | O148: 1268460.54 | P148: 1231054.83 | Q148: 1326320.28 | R148: 1423227.6 | S148: 1425431.64 | T148: 1270556.04 | U148: 1406554.95 | V148: 1496291.46 | W148: 1554049.54 | X148: 1405147.82 | Y148: 1402378.61 | Z148: 1503186.24 | AA148: 1622365.34 | AB148: 1670432.61 | AC148: 1947083.48 | AD148: 1799831.33 | AE148: 2653935.95 | AF148: 2207994
A149: Burlington-EdisonPupil Transpo | B149: Burlington-Edison | C149: Pupil Transpo | D149: 836353.92 | E149: 825218.57 | F149: 844900.49 | G149: 897484.52 | H149: 915512.78 | I149: 992187.27 | J149: 972715.08 | K149: 1017718.05 | L149: 1072677.71 | M149: 1119784.6 | N149: 1241012.17 | O149: 1198385.44 | P149: 1405897.99 | Q149: 1469768.7 | R149: 1427620.1 | S149: 1564079.48 | T149: 1611472.92 | U149: 1537989.97 | V149: 1625553.66 | W149: 1622699.47 | X149: 1618629.51 | Y149: 1801910.53 | Z149: 2061936.53 | AA149: 1873652.16 | AB149: 2141975.48 | AC149: 2070695.86 | AD149: 2501380.18 | AE149: 2739041.81 | AF149: 3122635
A150: Burlington-EdisonUtil/Plant/Ins/IS/Other | B150: Burlington-Edison | C150: Util/Plant/Ins/IS/Other | D150: 1787318.89 | E150: 2233872.97 | F150: 2171359.32 | G150: 2543488.68 | H150: 2453631.82 | I150: 2801664.37 | J150: 2758378.27 | K150: 3033624.98 | L150: 3514221.77 | M150: 3612802.15 | N150: 4181122.78 | O150: 3896783.39 | P150: 4144096.81 | Q150: 4417747.24 | R150: 4329460.52 | S150: 4295272.81 | T150: 4159024.21 | U150: 4637357.74 | V150: 4305250.33 | W150: 5034696.01 | X150: 4780459.07 | Y150: 4730381.48 | Z150: 5259669.57 | AA150: 4528781.15 | AB150: 5005958.41 | AC150: 5232990.49 | AD150: 6019729.36 | AE150: 5790614.93 | AF150: 5024154
A151: Burlington-EdisonUnit Admin | B151: Burlington-Edison | C151: Unit Admin | D151: 988779.11 | E151: 1076672.8 | F151: 1056370.26 | G151: 1082447.31 | H151: 1133456.22 | I151: 1259853.86 | J151: 1278163.4 | K151: 1300502.76 | L151: 1376810.61 | M151: 1451629.01 | N151: 1590904.72 | O151: 1764542.77 | P151: 1763702.31 | Q151: 1857707.5 | R151: 1773547.93 | S151: 1736053.13 | T151: 1839821.42 | U151: 1832416.3 | V151: 1958712.05 | W151: 2102840 | X151: 2196962.46 | Y151: 2295670.71 | Z151: 2352991.25 | AA151: 2509701.09 | AB151: 2712711.89 | AC151: 2803722.63 | AD151: 3014677.89 | AE151: 3385928.08 | AF151: 3252041
A152: Burlington-EdisonCentral Admin | B152: Burlington-Edison | C152: Central Admin | D152: 1033587.03 | E152: 1012517.38 | F152: 1096990.27 | G152: 1171128.81 | H152: 1135494.81 | I152: 1273936.78 | J152: 1338991.24 | K152: 1420015.06 | L152: 1694195.4 | M152: 1761861.02 | N152: 1858223.16 | O152: 1931763.94 | P152: 2164455.94 | Q152: 2034439.83 | R152: 2271645.01 | S152: 2359677.18 | T152: 2301317.27 | U152: 2182015.97 | V152: 2378996.15 | W152: 2575495.22 | X152: 3072188.95 | Y152: 3100086.46 | Z152: 3390788.96 | AA152: 3265041.59 | AB152: 3714181.81 | AC152: 3834328.59 | AD152: 4284745.3 | AE152: 4516956.21 | AF152: 4192359
A153: CamasTeaching | B153: Camas | C153: Teaching | D153: 9710017.52 | E153: 10631833.09 | F153: 10852778.03 | G153: 12097563.52 | H153: 13215355.4 | I153: 14641683.62 | J153: 16353445.97 | K153: 17355291 | L153: 18969611.12 | M153: 20562005.84 | N153: 21355887.29 | O153: 24718126.31 | P153: 27732234.28 | Q153: 29833088.38 | R153: 29541330.94 | S153: 30035111.14 | T153: 30986780.85 | U153: 32987325.06 | V153: 35859046.59 | W153: 37232639.3 | X153: 41280251.26 | Y153: 45006544.15 | Z153: 51178293.18 | AA153: 58236692.81 | AB153: 60466599.95 | AC153: 63218567.54 | AD153: 65394532.29 | AE153: 69842562.59 | AF153: 74303967
A154: CamasTeaching Support | B154: Camas | C154: Teaching Support | D154: 993161.21 | E154: 1240411.3 | F154: 1669811.43 | G154: 1469369.26 | H154: 1497282.43 | I154: 1600388.66 | J154: 1982588.54 | K154: 2092489.49 | L154: 2302896.45 | M154: 2515612.94 | N154: 2848699.65 | O154: 3523464.7 | P154: 4141599.92 | Q154: 4358789.1 | R154: 4323460.96 | S154: 4384108.5 | T154: 4953487.5 | U154: 5242137.79 | V154: 5600321.48 | W154: 6995210.29 | X154: 8548201.01 | Y154: 9159400.09 | Z154: 10576859.64 | AA154: 11543198.22 | AB154: 12664784.7 | AC154: 12793601.03 | AD154: 14197377.06 | AE154: 14759001.08 | AF154: 14644738
A155: CamasFood Services | B155: Camas | C155: Food Services | D155: 570901.85 | E155: 654858.85 | F155: 665646.01 | G155: 750447.19 | H155: 830177.97 | I155: 875400.55 | J155: 904840.6 | K155: 907864.46 | L155: 1054588.84 | M155: 1130472.55 | N155: 1174872.47 | O155: 1341651.56 | P155: 1437792.09 | Q155: 1439208.19 | R155: 1453205.8 | S155: 1539964.27 | T155: 1528359.43 | U155: 1464577.42 | V155: 1546677.04 | W155: 1464260.44 | X155: 1613082.48 | Y155: 1868216.93 | Z155: 1952535.41 | AA155: 2038310.61 | AB155: 2163516.64 | AC155: 1754448.2 | AD155: 3025197.22 | AE155: 3055087.69 | AF155: 3338560
A156: CamasPupil Transpo | B156: Camas | C156: Pupil Transpo | D156: 786472.71 | E156: 876193.29 | F156: 964764.35 | G156: 982312.28 | H156: 1140068.59 | I156: 1246282.79 | J156: 1254395.56 | K156: 1381499.66 | L156: 1531933.88 | M156: 1677787.4 | N156: 1951254.33 | O156: 2245601.51 | P156: 2334035.76 | Q156: 2379155.21 | R156: 2348149.34 | S156: 2469758.2 | T156: 2415855.18 | U156: 2564082.74 | V156: 2699205.42 | W156: 2806715.59 | X156: 2927498.76 | Y156: 3126561.53 | Z156: 3479352.42 | AA156: 4051010.86 | AB156: 4173970.37 | AC156: 3742577.46 | AD156: 3950308.95 | AE156: 4368284.09 | AF156: 4831021
A157: CamasUtil/Plant/Ins/IS/Other | B157: Camas | C157: Util/Plant/Ins/IS/Other | D157: 1993206.35 | E157: 2316637.48 | F157: 2316123.47 | G157: 2506433.74 | H157: 2635589.38 | I157: 3064172.82 | J157: 3400382.65 | K157: 3388589.83 | L157: 4219685.63 | M157: 4253645.4 | N157: 4658370.97 | O157: 5256596.87 | P157: 5216199.73 | Q157: 5529568.25 | R157: 5307224.91 | S157: 5935223.17 | T157: 5856010.76 | U157: 6258914.73 | V157: 6275709.59 | W157: 6883044.45 | X157: 6913210.21 | Y157: 7318739.29 | Z157: 8075562.43 | AA157: 8531117.68 | AB157: 8674217.19 | AC157: 8864769.91 | AD157: 10494688.07 | AE157: 10476835.78 | AF157: 11079577
